Workbook

Sheet Contents
C3: Sheet Tab | D3: Description | E3: Author
B4: 1 | C4: Contents
B5: 2 | C5: Comml with Lease Roll
B6: 3 | C6: Lease Roll Outputs
B7: 4 | C7: Lease Roll Scenarios
B8: 5 | C8: Codes
B10: File Name: | D10: C:\Users\Elvis Presley\Documents\Courses\Chapter 1. Models and Analysis\4 Real Estate Template and Exercises\Commercial with Lease Roll.xlsm
B12: Colour Codes
B14: Last Save Date | D14: 2013-04-14T07:50:33
B15: Last Save By | D15: Usain Bolt

Sheet Lease Roll Scenarios
D2: Scenario | E2: 1
D5: Lease No | E5: =INDEX(G5:K5,$E$2) -> Mixed Case | G5: Mixed Case | H5: Long-term Leases | I5: Short-term Leases | J5: Longer Leases | K5: Spot
D6: 1 | E6: =MAX('Comml with Lease Roll'!$G$10,INDEX(G6:K6,$E$2)) -> 2015-05-02 | G6: 2015-05-02 | H6: 2025-05-02 | I6: 2014-05-02 | J6: =EDATE(G6,14) -> 2016-07-02 | K6: ='Comml with Lease Roll'!G10 -> 2014-01-01
D7: 2 | E7: =MAX('Comml with Lease Roll'!$G$10,INDEX(G7:K7,$E$2)) -> 2014-05-03 | G7: 2014-05-03 | H7: 2025-05-03 | I7: 2014-05-03 | J7: =EDATE(G7,14) -> 2015-07-03 | K7: =K6 -> 2014-01-01
D8: 3 | E8: =MAX('Comml with Lease Roll'!$G$10,INDEX(G8:K8,$E$2)) -> 2016-05-04 | G8: 2016-05-04 | H8: 2025-05-04 | I8: 2015-05-04 | J8: 2017-07-04 | K8: =K7 -> 2014-01-01
D9: 4 | E9: =MAX('Comml with Lease Roll'!$G$10,INDEX(G9:K9,$E$2)) -> 2017-05-05 | G9: 2017-05-05 | H9: 2025-05-05 | I9: 2016-05-05 | J9: 2018-07-05 | K9: 2014-01-01
D10: 5 | E10: =MAX('Comml with Lease Roll'!$G$10,INDEX(G10:K10,$E$2)) -> 2020-05-06 | G10: 2020-05-06 | H10: 2025-05-06 | I10: 2014-05-06 | J10: 2021-07-06 | K10: 2014-01-01
D11: 6 | E11: =MAX('Comml with Lease Roll'!$G$10,INDEX(G11:K11,$E$2)) -> 2014-01-01 | G11: 2013-05-07 | H11: 2025-05-07 | I11: 2015-05-07 | J11: 2014-07-07 | K11: 2014-01-01
D12: 7 | E12: =MAX('Comml with Lease Roll'!$G$10,INDEX(G12:K12,$E$2)) -> 2015-05-07 | G12: 2015-05-07 | H12: 2025-05-08 | I12: 2014-05-07 | J12: 2016-07-07 | K12: 2014-01-01
D13: 8 | E13: =MAX('Comml with Lease Roll'!$G$10,INDEX(G13:K13,$E$2)) -> 2014-05-07 | G13: 2014-05-07 | H13: 2025-05-09 | I13: 2014-05-02 | J13: 2015-07-07 | K13: 2014-01-01
D14: 9 | E14: =MAX('Comml with Lease Roll'!$G$10,INDEX(G14:K14,$E$2)) -> 2016-05-04 | G14: 2016-05-04 | H14: 2025-05-10 | I14: 2014-05-03 | J14: 2017-07-04 | K14: 2014-01-01
D15: 10 | E15: =MAX('Comml with Lease Roll'!$G$10,INDEX(G15:K15,$E$2)) -> 2017-05-05 | G15: 2017-05-05 | H15: 2025-05-11 | I15: 2015-05-04 | J15: 2018-07-05 | K15: 2014-01-01
D16: 11 | E16: =MAX('Comml with Lease Roll'!$G$10,INDEX(G16:K16,$E$2)) -> 2020-05-06 | G16: 2020-05-06 | H16: 2025-05-12 | I16: 2016-05-05 | J16: 2021-07-06 | K16: 2014-01-01
D17: 12 | E17: =MAX('Comml with Lease Roll'!$G$10,INDEX(G17:K17,$E$2)) -> 2014-01-01 | G17: 2013-05-07 | H17: 2025-05-13 | I17: 2014-05-06 | J17: 2014-07-07 | K17: 2014-01-01
D18: 13 | E18: =MAX('Comml with Lease Roll'!$G$10,INDEX(G18:K18,$E$2)) -> 2015-05-07 | G18: 2015-05-07 | H18: 2025-05-14 | I18: 2015-05-07 | J18: 2016-07-07 | K18: 2014-01-01
D19: 14 | E19: =MAX('Comml with Lease Roll'!$G$10,INDEX(G19:K19,$E$2)) -> 2015-05-07 | G19: 2015-05-07 | H19: 2025-05-15 | I19: 2014-05-07 | J19: 2016-07-07 | K19: 2014-01-01
D20: 15 | E20: =MAX('Comml with Lease Roll'!$G$10,INDEX(G20:K20,$E$2)) -> 2015-05-07 | G20: 2015-05-07 | H20: 2025-05-16 | I20: 2014-05-06 | J20: 2016-07-07 | K20: 2014-01-01
D21: 16 | E21: =MAX('Comml with Lease Roll'!$G$10,INDEX(G21:K21,$E$2)) -> 2014-01-01 | G21: 2013-05-07 | H21: 2025-05-17 | I21: 2014-05-06 | J21: 2014-07-07 | K21: 2014-01-01
D22: 17 | E22: =MAX('Comml with Lease Roll'!$G$10,INDEX(G22:K22,$E$2)) -> 2014-01-01 | G22: 2013-05-07 | H22: 2025-05-18 | I22: 2014-05-06 | J22: 2014-07-07 | K22: 2014-01-01

Sheet Comml with Lease Roll
A1: Time Line
B2: Start Date | Z2: =Y3+1 -> 2014-01-01 | AA2: =Z3+1 -> 2014-02-01 | AB2: 2014-03-01 | AC2: 2014-04-01 | AD2: 2014-05-01 | AE2: 2014-06-01 | AF2: 2014-07-01 | AG2: 2014-08-01 | AH2: 2014-09-01 | AI2: 2014-10-01 | AJ2: 2014-11-01 | AK2: 2014-12-01 | AL2: 2015-01-01 | AM2: 2015-02-01 | AN2: 2015-03-01 | AO2: 2015-04-01 | AP2: 2015-05-01 | AQ2: 2015-06-01 | AR2: 2015-07-01 | AS2: 2015-08-01 | AT2: 2015-09-01 | AU2: 2015-10-01 | AV2: 2015-11-01 | AW2: 2015-12-01 | AX2: 2016-01-01 | AY2: 2016-02-01 | AZ2: 2016-03-01 | BA2: 2016-04-01 | BB2: 2016-05-01 | BC2: 2016-06-01 | BD2: 2016-07-01 | BE2: 2016-08-01 | BF2: 2016-09-01 | BG2: 2016-10-01 | BH2: 2016-11-01 | BI2: 2016-12-01 | BJ2: 2017-01-01 | BK2: 2017-02-01 | BL2: 2017-03-01 | BM2: 2017-04-01 | BN2: 2017-05-01 | BO2: 2017-06-01 | BP2: 2017-07-01 | BQ2: 2017-08-01 | BR2: 2017-09-01 | BS2: 2017-10-01 | BT2: 2017-11-01 | BU2: 2017-12-01 | BV2: 2018-01-01 | BW2: 2018-02-01 | BX2: 2018-03-01 | BY2: 2018-04-01 | BZ2: 2018-05-01 | CA2: 2018-06-01 | CB2: 2018-07-01 | CC2: 2018-08-01 | CD2: 2018-09-01 | CE2: 2018-10-01 | CF2: 2018-11-01 | CG2: 2018-12-01 | CH2: 2019-01-01 | CI2: 2019-02-01 | CJ2: 2019-03-01 | CK2: 2019-04-01 | CL2: 2019-05-01 | CM2: =CL3+1 -> 2019-06-01 | CN2: 2019-07-01 | CO2: 2019-08-01 | CP2: 2019-09-01 | CQ2: 2019-10-01 | CR2: 2019-11-01 | CS2: 2019-12-01 | CT2: 2020-01-01 | CU2: 2020-02-01 | CV2: 2020-03-01 | CW2: 2020-04-01 | CX2: 2020-05-01 | CY2: 2020-06-01 | CZ2: 2020-07-01 | DA2: 2020-08-01 | DB2: 2020-09-01 | DC2: 2020-10-01 | DD2: 2020-11-01 | DE2: 2020-12-01 | DF2: 2021-01-01 | DG2: 2021-02-01 | DH2: 2021-03-01 | DI2: 2021-04-01 | DJ2: 2021-05-01 | DK2: 2021-06-01 | DL2: 2021-07-01 | DM2: 2021-08-01 | DN2: 2021-09-01 | DO2: 2021-10-01 | DP2: 2021-11-01 | DQ2: 2021-12-01 | DR2: 2022-01-01 | DS2: 2022-02-01 | DT2: 2022-03-01 | DU2: 2022-04-01 | DV2: 2022-05-01 | DW2: 2022-06-01 | DX2: 2022-07-01 | DY2: 2022-08-01 | DZ2: 2022-09-01 | EA2: 2022-10-01 | EB2: 2022-11-01 | EC2: 2022-12-01 | ED2: 2023-01-01 | EE2: 2023-02-01 | EF2: 2023-03-01 | EG2: 2023-04-01 | EH2: 2023-05-01 | EI2: 2023-06-01 | EJ2: 2023-07-01 | EK2: 2023-08-01 | EL2: 2023-09-01 | EM2: 2023-10-01 | EN2: 2023-11-01 | EO2: 2023-12-01 | EP2: 2024-01-01 | EQ2: 2024-02-01 | ER2: 2024-03-01 | ES2: 2024-04-01 | ET2: 2024-05-01 | EU2: 2024-06-01 | EV2: 2024-07-01 | EW2: 2024-08-01 | EX2: 2024-09-01 | EY2: =EX3+1 -> 2024-10-01 | EZ2: 2024-11-01 | FA2: 2024-12-01 | FB2: 2025-01-01 | FC2: 2025-02-01 | FD2: 2025-03-01 | FE2: 2025-04-01 | FF2: 2025-05-01 | FG2: 2025-06-01 | FH2: 2025-07-01 | FI2: 2025-08-01 | FJ2: 2025-09-01 | FK2: 2025-10-01 | FL2: 2025-11-01 | FM2: 2025-12-01 | FN2: 2026-01-01 | FO2: 2026-02-01 | FP2: 2026-03-01 | FQ2: 2026-04-01 | FR2: 2026-05-01 | FS2: 2026-06-01 | FT2: 2026-07-01 | FU2: 2026-08-01 | FV2: 2026-09-01 | FW2: 2026-10-01 | FX2: 2026-11-01 | FY2: 2026-12-01 | FZ2: 2027-01-01 | GA2: 2027-02-01 | GB2: 2027-03-01 | GC2: 2027-04-01 | GD2: 2027-05-01 | GE2: 2027-06-01 | GF2: 2027-07-01 | GG2: 2027-08-01 | GH2: 2027-09-01 | GI2: 2027-10-01 | GJ2: 2027-11-01 | GK2: 2027-12-01 | GL2: 2028-01-01 | GM2: 2028-02-01 | GN2: 2028-03-01 | GO2: 2028-04-01 | GP2: 2028-05-01 | GQ2: 2028-06-01 | GR2: 2028-07-01 | GS2: 2028-08-01 | GT2: 2028-09-01 | GU2: 2028-10-01 | GV2: 2028-11-01 | GW2: 2028-12-01 | GX2: 2029-01-01 | GY2: 2029-02-01 | GZ2: 2029-03-01 | HA2: 2029-04-01 | HB2: 2029-05-01 | HC2: 2029-06-01 | HD2: 2029-07-01 | HE2: 2029-08-01 | HF2: 2029-09-01 | HG2: 2029-10-01 | HH2: 2029-11-01 | HI2: 2029-12-01 | HJ2: 2030-01-01 | HK2: =HJ3+1 -> 2030-02-01 | HL2: 2030-03-01 | HM2: 2030-04-01 | HN2: 2030-05-01 | HO2: 2030-06-01 | HP2: 2030-07-01 | HQ2: 2030-08-01 | HR2: 2030-09-01 | HS2: 2030-10-01 | HT2: 2030-11-01 | HU2: 2030-12-01 | HV2: 2031-01-01 | HW2: 2031-02-01 | HX2: 2031-03-01 | HY2: 2031-04-01 | HZ2: 2031-05-01 | IA2: 2031-06-01 | IB2: 2031-07-01 | IC2: 2031-08-01 | ID2: 2031-09-01 | IE2: 2031-10-01 | IF2: 2031-11-01 | IG2: 2031-12-01 | IH2: 2032-01-01 | II2: 2032-02-01 | IJ2: 2032-03-01 | IK2: 2032-04-01 | IL2: 2032-05-01 | IM2: 2032-06-01 | IN2: 2032-07-01 | IO2: 2032-08-01 | IP2: 2032-09-01 | IQ2: 2032-10-01 | IR2: 2032-11-01 | IS2: 2032-12-01 | IT2: 2033-01-01 | IU2: 2033-02-01 | IV2: 2033-03-01 | IW2: 2033-04-01 | IX2: 2033-05-01 | IY2: 2033-06-01 | IZ2: 2033-07-01 | JA2: 2033-08-01 | JB2: 2033-09-01 | JC2: 2033-10-01 | JD2: 2033-11-01 | JE2: 2033-12-01
B3: End Date | Y3: =G10-1 -> 2013-12-31 | Z3: =EDATE(Z2,1)-1 -> 2014-01-31 | AA3: =EDATE(AA2,1)-1 -> 2014-02-28 | AB3: 2014-03-31 | AC3: 2014-04-30 | AD3: 2014-05-31 | AE3: 2014-06-30 | AF3: 2014-07-31 | AG3: 2014-08-31 | AH3: 2014-09-30 | AI3: 2014-10-31 | AJ3: 2014-11-30 | AK3: 2014-12-31 | AL3: 2015-01-31 | AM3: 2015-02-28 | AN3: 2015-03-31 | AO3: 2015-04-30 | AP3: 2015-05-31 | AQ3: 2015-06-30 | AR3: 2015-07-31 | AS3: 2015-08-31 | AT3: 2015-09-30 | AU3: 2015-10-31 | AV3: 2015-11-30 | AW3: 2015-12-31 | AX3: 2016-01-31 | AY3: 2016-02-29 | AZ3: 2016-03-31 | BA3: 2016-04-30 | BB3: 2016-05-31 | BC3: 2016-06-30 | BD3: 2016-07-31 | BE3: 2016-08-31 | BF3: 2016-09-30 | BG3: 2016-10-31 | BH3: 2016-11-30 | BI3: 2016-12-31 | BJ3: 2017-01-31 | BK3: 2017-02-28 | BL3: 2017-03-31 | BM3: 2017-04-30 | BN3: 2017-05-31 | BO3: 2017-06-30 | BP3: 2017-07-31 | BQ3: 2017-08-31 | BR3: 2017-09-30 | BS3: 2017-10-31 | BT3: 2017-11-30 | BU3: 2017-12-31 | BV3: 2018-01-31 | BW3: 2018-02-28 | BX3: 2018-03-31 | BY3: 2018-04-30 | BZ3: 2018-05-31 | CA3: 2018-06-30 | CB3: 2018-07-31 | CC3: 2018-08-31 | CD3: 2018-09-30 | CE3: 2018-10-31 | CF3: 2018-11-30 | CG3: 2018-12-31 | CH3: 2019-01-31 | CI3: 2019-02-28 | CJ3: 2019-03-31 | CK3: 2019-04-30 | CL3: 2019-05-31 | CM3: =EDATE(CM2,1)-1 -> 2019-06-30 | CN3: 2019-07-31 | CO3: 2019-08-31 | CP3: 2019-09-30 | CQ3: 2019-10-31 | CR3: 2019-11-30 | CS3: 2019-12-31 | CT3: 2020-01-31 | CU3: 2020-02-29 | CV3: 2020-03-31 | CW3: 2020-04-30 | CX3: 2020-05-31 | CY3: 2020-06-30 | CZ3: 2020-07-31 | DA3: 2020-08-31 | DB3: 2020-09-30 | DC3: 2020-10-31 | DD3: 2020-11-30 | DE3: 2020-12-31 | DF3: 2021-01-31 | DG3: 2021-02-28 | DH3: 2021-03-31 | DI3: 2021-04-30 | DJ3: 2021-05-31 | DK3: 2021-06-30 | DL3: 2021-07-31 | DM3: 2021-08-31 | DN3: 2021-09-30 | DO3: 2021-10-31 | DP3: 2021-11-30 | DQ3: 2021-12-31 | DR3: 2022-01-31 | DS3: 2022-02-28 | DT3: 2022-03-31 | DU3: 2022-04-30 | DV3: 2022-05-31 | DW3: 2022-06-30 | DX3: 2022-07-31 | DY3: 2022-08-31 | DZ3: 2022-09-30 | EA3: 2022-10-31 | EB3: 2022-11-30 | EC3: 2022-12-31 | ED3: 2023-01-31 | EE3: 2023-02-28 | EF3: 2023-03-31 | EG3: 2023-04-30 | EH3: 2023-05-31 | EI3: 2023-06-30 | EJ3: 2023-07-31 | EK3: 2023-08-31 | EL3: 2023-09-30 | EM3: 2023-10-31 | EN3: 2023-11-30 | EO3: 2023-12-31 | EP3: 2024-01-31 | EQ3: 2024-02-29 | ER3: 2024-03-31 | ES3: 2024-04-30 | ET3: 2024-05-31 | EU3: 2024-06-30 | EV3: 2024-07-31 | EW3: 2024-08-31 | EX3: 2024-09-30 | EY3: =EDATE(EY2,1)-1 -> 2024-10-31 | EZ3: 2024-11-30 | FA3: 2024-12-31 | FB3: 2025-01-31 | FC3: 2025-02-28 | FD3: 2025-03-31 | FE3: 2025-04-30 | FF3: 2025-05-31 | FG3: 2025-06-30 | FH3: 2025-07-31 | FI3: 2025-08-31 | FJ3: 2025-09-30 | FK3: 2025-10-31 | FL3: 2025-11-30 | FM3: 2025-12-31 | FN3: 2026-01-31 | FO3: 2026-02-28 | FP3: 2026-03-31 | FQ3: 2026-04-30 | FR3: 2026-05-31 | FS3: 2026-06-30 | FT3: 2026-07-31 | FU3: 2026-08-31 | FV3: 2026-09-30 | FW3: 2026-10-31 | FX3: 2026-11-30 | FY3: 2026-12-31 | FZ3: 2027-01-31 | GA3: 2027-02-28 | GB3: 2027-03-31 | GC3: 2027-04-30 | GD3: 2027-05-31 | GE3: 2027-06-30 | GF3: 2027-07-31 | GG3: 2027-08-31 | GH3: 2027-09-30 | GI3: 2027-10-31 | GJ3: 2027-11-30 | GK3: 2027-12-31 | GL3: 2028-01-31 | GM3: 2028-02-29 | GN3: 2028-03-31 | GO3: 2028-04-30 | GP3: 2028-05-31 | GQ3: 2028-06-30 | GR3: 2028-07-31 | GS3: 2028-08-31 | GT3: 2028-09-30 | GU3: 2028-10-31 | GV3: 2028-11-30 | GW3: 2028-12-31 | GX3: 2029-01-31 | GY3: 2029-02-28 | GZ3: 2029-03-31 | HA3: 2029-04-30 | HB3: 2029-05-31 | HC3: 2029-06-30 | HD3: 2029-07-31 | HE3: 2029-08-31 | HF3: 2029-09-30 | HG3: 2029-10-31 | HH3: 2029-11-30 | HI3: 2029-12-31 | HJ3: 2030-01-31 | HK3: =EDATE(HK2,1)-1 -> 2030-02-28 | HL3: 2030-03-31 | HM3: 2030-04-30 | HN3: 2030-05-31 | HO3: 2030-06-30 | HP3: 2030-07-31 | HQ3: 2030-08-31 | HR3: 2030-09-30 | HS3: 2030-10-31 | HT3: 2030-11-30 | HU3: 2030-12-31 | HV3: 2031-01-31 | HW3: 2031-02-28 | HX3: 2031-03-31 | HY3: 2031-04-30 | HZ3: 2031-05-31 | IA3: 2031-06-30 | IB3: 2031-07-31 | IC3: 2031-08-31 | ID3: 2031-09-30 | IE3: 2031-10-31 | IF3: 2031-11-30 | IG3: 2031-12-31 | IH3: 2032-01-31 | II3: 2032-02-29 | IJ3: 2032-03-31 | IK3: 2032-04-30 | IL3: 2032-05-31 | IM3: 2032-06-30 | IN3: 2032-07-31 | IO3: 2032-08-31 | IP3: 2032-09-30 | IQ3: 2032-10-31 | IR3: 2032-11-30 | IS3: 2032-12-31 | IT3: 2033-01-31 | IU3: 2033-02-28 | IV3: 2033-03-31 | IW3: 2033-04-30 | IX3: 2033-05-31 | IY3: 2033-06-30 | IZ3: 2033-07-31 | JA3: 2033-08-31 | JB3: 2033-09-30 | JC3: 2033-10-31 | JD3: 2033-11-30 | JE3: 2033-12-31
L4: Time Series Parameters | O4: Model Outputs
A5: Assumptions | L5: Starting Price | M5: =G47 -> 7 | O5: Equity IRR | Q5: ='Lease Roll Outputs'!S3 -> 0.1213650192
B6: Capital Expenditures | L6: Volatility | M6: =G46 -> 0.07 | O6: Pre-tax IRR | Q6: ='Lease Roll Outputs'!M3 -> 0.1679395046
C7: Gross Floor Area | F7: Square Feet | G7: 150000 | L7: ='Comml with Lease Roll'!D48 -> Minimum Rate | M7: =G48 -> 0 | O7: Probability of Default | Q7: ='Lease Roll Outputs'!M23 -> 0.07992007992
C8: Cost per Square Foot | F8: S$/sq ft | G8: 160 | L8: ='Comml with Lease Roll'!D49 -> Maximum Price | M8: =G49 -> 15 | O8: Expected Loss as Percent of Debt | Q8: ='Lease Roll Outputs'!M25 -> 0.006558354821
L9: ='Comml with Lease Roll'!D50 -> Mean Reversion | M9: =G50 -> 0.008333333333 | O9: Probability of IRR < 5% | Q9: ='Lease Roll Outputs'!M28 -> 0.05294705295
C10: Construction Start Date | F10: Date | G10: 2014-01-01 | L10: ='Comml with Lease Roll'!D51 -> Mean Price | M10: =G51 -> 7 | O10: Probability of IRR < 2% | Q10: ='Lease Roll Outputs'!M31 -> 0.02497502498
C11: Cosntruction Period | F11: Months | G11: 24 | O11: Std Deviation as Pct of Avg NPV | Q11: ='Lease Roll Outputs'!M33 -> 0.7466432107
C12: S-Curve Parameters
C13: Average | G13: =G11/2 -> 12
C14: Standard Deviation | G14: 5
B16: Cost Assumptions
C17: Fixed Cost per Sq Foot | F17: S$/sq ft/Month | G17: 1.88
C18: Variable Cost per Sq Foot | F18: S$/sq ft/Month | G18: 0.92
B20: General Inflation | F20: Percent | G20: 0.02
B22: Revenue Assumptions
C23: Net Lettable Area | G23: 90000
C25: Market Rate - Real
D26: Base Case | G26: 7
D27: Low Case | G27: 6
D28: High Case | G28: 8
D29: Cycle Case | G29: 7
D30: Sensitivity Case Flat | G30: 7
D31: Senstivity Case Cycle
C33: Idle Time Between Leases | G33: Lease Rate | H33: Idle Months
G34: 0 | H34: 10
G35: 5 | H35: 8
G36: 6 | H36: 7
G37: 7 | H37: 6
G38: 8 | H38: 5
G39: 9 | H39: 4
G40: 10 | H40: 3
C42: Term of New Leases | F42: Months | G42: 36
A44: Market Lease Rate
C45: Market Rate - Time Series and Monte Carlo
D46: Monthly Volatility | G46: 0.07
D47: Starting Price | G47: 7
D48: Minimum Rate | G48: 0
D49: Maximum Price | G49: 15
D50: Mean Reversion | G50: =0.1/12 -> 0.008333333333
D51: Mean Price | G51: 7
B53: Montly Rental Rate from Time Series Analysis | Y53: =G47 -> 7 | Z53: =MIN($G$49,MAX(Y53+$G$50*($G$51-Y53)+Y53*$G$46*NORMSINV(RAND()),$G$48)) -> 6.662713983 | AA53: =MIN($G$49,MAX(Z53+$G$50*($G$51-Z53)+Z53*$G$46*NORMSINV(RAND()),$G$48)) -> 6.845644058 | AB53: 7.213437012 | AC53: 7.190491377 | AD53: 8.100074287 | AE53: 8.412281935 | AF53: 8.462607362 | AG53: 8.390042783 | AH53: 7.869185678 | AI53: 7.475162352 | AJ53: 7.064475327 | AK53: 7.21355284 | AL53: 7.467004722 | AM53: 7.706912198 | AN53: 7.750521826 | AO53: 8.473615449 | AP53: 8.992964122 | AQ53: 9.038920711 | AR53: 9.322712075 | AS53: 9.99673998 | AT53: 10.61432206 | AU53: 10.34721714 | AV53: 8.528859081 | AW53: 7.786582634 | AX53: 8.393387736 | AY53: 8.002033035 | AZ53: 8.142721407 | BA53: 7.47112234 | BB53: 7.298446126 | BC53: 7.968870195 | BD53: 7.927841319 | BE53: 8.206098876 | BF53: 7.853160059 | BG53: 8.082436199 | BH53: 7.929114027 | BI53: 8.479986924 | BJ53: 8.9085404 | BK53: 8.594455257 | BL53: 9.219604329 | BM53: 8.927419613 | BN53: 8.281614949 | BO53: 7.586831937 | BP53: 8.410518953 | BQ53: 8.261511064 | BR53: 7.839127165 | BS53: 8.112243867 | BT53: 8.768196522 | BU53: 8.221556365 | BV53: 7.94682963 | BW53: 8.67208748 | BX53: 8.424118864 | BY53: 8.050621272 | BZ53: 7.526764742 | CA53: 7.580396039 | CB53: 6.682067024 | CC53: 7.055800456 | CD53: 6.396009587 | CE53: 6.582570697 | CF53: 6.838381866 | CG53: 7.298210508 | CH53: 7.495844903 | CI53: 7.899392966 | CJ53: 7.524748173 | CK53: 8.64421614 | CL53: 9.07427238 | CM53: =MIN($G$49,MAX(CL53+$G$50*($G$51-CL53)+CL53*$G$46*NORMSINV(RAND()),$G$48)) -> 8.822674749 | CN53: 8.715652005 | CO53: 9.46538225 | CP53: 10.77432346 | CQ53: 10.37050585 | CR53: 9.678951734 | CS53: 9.629932843 | CT53: 9.801809036 | CU53: 10.24862226 | CV53: 10.08172039 | CW53: 9.768770062 | CX53: 9.035171752 | CY53: 10.39057715 | CZ53: 10.44231342 | DA53: 10.88290682 | DB53: 10.59916384 | DC53: 10.07999119 | DD53: 9.58724775 | DE53: 10.74047977 | DF53: 11.65963147 | DG53: 10.83625306 | DH53: 10.94406242 | DI53: 10.99395298 | DJ53: 9.324967128 | DK53: 8.491729649 | DL53: 8.564404282 | DM53: 8.317490115 | DN53: 8.23106738 | DO53: 7.525378551 | DP53: 7.361164267 | DQ53: 6.847839165 | DR53: 7.027033467 | DS53: 7.238840893 | DT53: 7.772376843 | DU53: 7.792102425 | DV53: 7.64541816 | DW53: 8.203624883 | DX53: 8.249739312 | DY53: 8.191336212 | DZ53: 7.779396497 | EA53: 7.246841857 | EB53: 6.917513601 | EC53: 7.270877116 | ED53: 7.553935139 | EE53: 7.524868038 | EF53: 8.395447131 | EG53: 8.002671628 | EH53: 8.032629104 | EI53: 7.662249027 | EJ53: 7.825386323 | EK53: 7.642370769 | EL53: 8.578851044 | EM53: 8.399901725 | EN53: 8.658101048 | EO53: 8.029905004 | EP53: 8.377231203 | EQ53: 8.830780976 | ER53: 8.378812019 | ES53: 8.057523938 | ET53: 8.101024137 | EU53: 6.867002302 | EV53: 6.89882614 | EW53: 6.447979558 | EX53: 6.858579303 | EY53: =MIN($G$49,MAX(EX53+$G$50*($G$51-EX53)+EX53*$G$46*NORMSINV(RAND()),$G$48)) -> 6.428236363 | EZ53: 6.991120556 | FA53: 6.886455006 | FB53: 5.89762008 | FC53: 6.339483319 | FD53: 6.316384536 | FE53: 6.45106299 | FF53: 6.248927219 | FG53: 5.917203929 | FH53: 6.83908208 | FI53: 6.652537182 | FJ53: 7.039207479 | FK53: 6.801994749 | FL53: 7.121958321 | FM53: 6.362830195 | FN53: 6.202591632 | FO53: 5.841231197 | FP53: 5.458467051 | FQ53: 6.223589256 | FR53: 6.12033305 | FS53: 6.06784531 | FT53: 5.889897183 | FU53: 5.915712625 | FV53: 5.987443965 | FW53: 6.167654631 | FX53: 5.515440422 | FY53: 6.278161716 | FZ53: 6.325313879 | GA53: 6.37639684 | GB53: 5.958366705 | GC53: 6.486237297 | GD53: 6.878738032 | GE53: 7.09466622 | GF53: 7.188827395 | GG53: 6.800604023 | GH53: 7.826937155 | GI53: 7.353909506 | GJ53: 6.892979859 | GK53: 6.595540244 | GL53: 6.800242502 | GM53: 6.523681449 | GN53: 6.741135043 | GO53: 7.267140561 | GP53: 6.773151092 | GQ53: 6.381378734 | GR53: 6.589438097 | GS53: 6.919993554 | GT53: 7.222500589 | GU53: 7.547861647 | GV53: 7.006778846 | GW53: 6.69452696 | GX53: 6.811343665 | GY53: 6.678218036 | GZ53: 5.968579084 | HA53: 5.64837562 | HB53: 5.470914131 | HC53: 5.153553866 | HD53: 5.093087452 | HE53: 5.192430594 | HF53: 5.176494133 | HG53: 4.860528564 | HH53: 4.461300727 | HI53: 3.9902797 | HJ53: 3.595311896 | HK53: =MIN($G$49,MAX(HJ53+$G$50*($G$51-HJ53)+HJ53*$G$46*NORMSINV(RAND()),$G$48)) -> 3.816760928 | HL53: 3.916993964 | HM53: 4.063402211 | HN53: 4.311724667 | HO53: 4.289464631 | HP53: 5.099312402 | HQ53: 4.921442194 | HR53: 6.117533797 | HS53: 6.050020826 | HT53: 5.893444233 | HU53: 7.25561192 | HV53: 6.541941527 | HW53: 6.908269198 | HX53: 6.393216452 | HY53: 6.315796661 | HZ53: 6.007168033 | IA53: 6.784702033 | IB53: 7.203985423 | IC53: 7.734773502 | ID53: 7.523563783 | IE53: 7.938087741 | IF53: 7.100515071 | IG53: 6.877574069 | IH53: 7.709612693 | II53: 9.862907551 | IJ53: 8.488303814 | IK53: 8.639004048 | IL53: 9.413986477 | IM53: 9.763341267 | IN53: 10.19225957 | IO53: 9.34156656 | IP53: 8.672152671 | IQ53: 8.454120365 | IR53: 8.600405442 | IS53: 9.697140094 | IT53: 9.140935559 | IU53: 10.3098779 | IV53: 9.368514855 | IW53: 10.2219415 | IX53: 9.819032099 | IY53: 9.717132591 | IZ53: 9.38991112 | JA53: 9.702032523 | JB53: 10.54105516 | JC53: 9.872066855 | JD53: 9.184014104 | JE53: 10.24552315
B54: Idle Time Months from Look-up Function | Y54: =LOOKUP(Y53,$G$34:$G$40,$H$34:$H$40) -> 6 | Z54: 7 | AA54: 7 | AB54: =LOOKUP(AB53,$G$34:$G$40,$H$34:$H$40) -> 6 | AC54: 6 | AD54: 5 | AE54: 5 | AF54: 5 | AG54: 5 | AH54: 6 | AI54: 6 | AJ54: 6 | AK54: 6 | AL54: 6 | AM54: 6 | AN54: 6 | AO54: 5 | AP54: 5 | AQ54: 4 | AR54: 4 | AS54: 4 | AT54: 3 | AU54: 3 | AV54: 5 | AW54: 6 | AX54: 5 | AY54: 5 | AZ54: 5 | BA54: 6 | BB54: 6 | BC54: 6 | BD54: 6 | BE54: 5 | BF54: 6 | BG54: 5 | BH54: 6 | BI54: 5 | BJ54: 5 | BK54: 5 | BL54: 4 | BM54: 5 | BN54: 5 | BO54: 6 | BP54: 5 | BQ54: 5 | BR54: 6 | BS54: 5 | BT54: 5 | BU54: 5 | BV54: 6 | BW54: 5 | BX54: 5 | BY54: 5 | BZ54: 6 | CA54: 6 | CB54: 7 | CC54: 6 | CD54: 7 | CE54: 7 | CF54: 7 | CG54: 6 | CH54: 6 | CI54: 6 | CJ54: 6 | CK54: 5 | CL54: =LOOKUP(CL53,$G$34:$G$40,$H$34:$H$40) -> 4 | CM54: 5 | CN54: 5 | CO54: 4 | CP54: 3 | CQ54: 3 | CR54: 4 | CS54: 4 | CT54: 4 | CU54: 3 | CV54: 3 | CW54: 4 | CX54: 4 | CY54: 3 | CZ54: 3 | DA54: 3 | DB54: 3 | DC54: 3 | DD54: 4 | DE54: 3 | DF54: 3 | DG54: 3 | DH54: 3 | DI54: 3 | DJ54: 4 | DK54: 5 | DL54: 5 | DM54: 5 | DN54: 5 | DO54: 6 | DP54: 6 | DQ54: 7 | DR54: 6 | DS54: 6 | DT54: 6 | DU54: 6 | DV54: 6 | DW54: 5 | DX54: 5 | DY54: 5 | DZ54: 6 | EA54: 6 | EB54: 7 | EC54: 6 | ED54: 6 | EE54: 6 | EF54: 5 | EG54: 5 | EH54: 5 | EI54: 6 | EJ54: 6 | EK54: 6 | EL54: 5 | EM54: 5 | EN54: 5 | EO54: 5 | EP54: 5 | EQ54: 5 | ER54: 5 | ES54: 5 | ET54: 5 | EU54: 7 | EV54: 7 | EW54: 7 | EX54: =LOOKUP(EX53,$G$34:$G$40,$H$34:$H$40) -> 7 | EY54: 7 | EZ54: 7 | FA54: 7 | FB54: 8 | FC54: 7 | FD54: 7 | FE54: 7 | FF54: 7 | FG54: 8 | FH54: 7 | FI54: 7 | FJ54: 6 | FK54: 7 | FL54: 6 | FM54: 7 | FN54: 7 | FO54: 8 | FP54: 8 | FQ54: 7 | FR54: 7 | FS54: 7 | FT54: 8 | FU54: 8 | FV54: 8 | FW54: 7 | FX54: 8 | FY54: 7 | FZ54: 7 | GA54: 7 | GB54: 8 | GC54: 7 | GD54: 7 | GE54: 6 | GF54: 6 | GG54: 7 | GH54: 6 | GI54: 6 | GJ54: 7 | GK54: 7 | GL54: 7 | GM54: 7 | GN54: 7 | GO54: 6 | GP54: 7 | GQ54: 7 | GR54: 7 | GS54: 7 | GT54: 6 | GU54: 6 | GV54: 6 | GW54: 7 | GX54: 7 | GY54: 7 | GZ54: 8 | HA54: 8 | HB54: 8 | HC54: 8 | HD54: 8 | HE54: 8 | HF54: 8 | HG54: 10 | HH54: 10 | HI54: 10 | HJ54: =LOOKUP(HJ53,$G$34:$G$40,$H$34:$H$40) -> 10 | HK54: 10 | HL54: 10 | HM54: 10 | HN54: 10 | HO54: 10 | HP54: 8 | HQ54: 10 | HR54: 7 | HS54: 7 | HT54: 8 | HU54: 6 | HV54: 7 | HW54: 7 | HX54: 7 | HY54: 7 | HZ54: 7 | IA54: 7 | IB54: 6 | IC54: 6 | ID54: 6 | IE54: 6 | IF54: 6 | IG54: 7 | IH54: 6 | II54: 4 | IJ54: 5 | IK54: 5 | IL54: 4 | IM54: 4 | IN54: 3 | IO54: 4 | IP54: 5 | IQ54: 5 | IR54: 5 | IS54: 4 | IT54: 4 | IU54: 3 | IV54: 4 | IW54: 3 | IX54: 4 | IY54: 4 | IZ54: 4 | JA54: 4 | JB54: 3 | JC54: 4 | JD54: 4 | JE54: 3
A56: Financing Assumptions
B58: Total Cost | G58: =G7*G8 -> 24000000
B59: Debt Percent | G59: 0.7
B60: Debt Issued | G60: =G58*G59 -> 16800000
B61: Interest Rate | G61: 0.06
A64: Total Revenues
C68: Tenant Lease Schedule
E69: Tennant Name | F69: Net Lettable Area | G69: Lease No | H69: Lease Rate | I69: Expiration | J69: Match of Expiration | K69: Fraction Month off Lease | L69: Renewal Probability | M69: Lease Expired | N69: Idle Months | O69: New Lease Start date | P69: Match of New Lease Date | Q69: Partial Rate | R69: New Lease Rate | S69: Second Lease Term | T69: Expiration of Second Lease | U69: Match of Second Lease | V69: Lease Expired | W69: Second Lease Idle Time | X69: Third Lease Start
F70: 2000 | G70: 1 | H70: 8 | I70: ='Lease Roll Scenarios'!E6 -> 2015-05-02 | J70: =MATCH(I70,$3:$3) -> 41 | K70: =DAYS360(I70,EOMONTH(I70,0))/30 -> 0.9666666667 | L70: 0 | M70: =RAND()>L70 -> TRUE | N70: =INDEX($54:$54,J70)*M70 -> 5 | O70: =EDATE(I70,N70) -> 2015-10-02 | P70: =MATCH(O70,$2:$2) -> 47 | Q70: =IF(M70,(1-K70)*H70,H70*(1-K70)+K70*R70) -> 0.2666666667 | R70: =INDEX($53:$53,P70) -> 10.34721714 | S70: =$G$42 -> 36 | T70: =EDATE(O70,S70) -> 2018-10-02 | U70: =MATCH(T70,$2:$2) -> 83 | V70: =RAND()>L70 -> TRUE | W70: =INDEX($54:$54,U70)*V70 -> 7 | X70: =EDATE(T70,W70) -> 2019-05-02 | Z70: =lease_codes(Z$2,Z$3,$I70,$N70,$S70,$W70) -> 1 | AA70: =lease_codes(AA$2,AA$3,$I70,$N70,$S70,$W70) -> 1 | AB70: 1 | AC70: 1 | AD70: 1 | AE70: 1 | AF70: 1 | AG70: 1 | AH70: 1 | AI70: 1 | AJ70: 1 | AK70: 1 | AL70: 1 | AM70: 1 | AN70: 1 | AO70: =lease_codes(AO$2,AO$3,$I70,$N70,$S70,$W70) -> 1 | AP70: 2 | AQ70: 3 | AR70: 3 | AS70: 3 | AT70: 3 | AU70: 3 | AV70: 4 | AW70: 4 | AX70: 4 | AY70: 4 | AZ70: 4 | BA70: 4 | BB70: 4 | BC70: 4 | BD70: 4 | BE70: 4 | BF70: 4 | BG70: 4 | BH70: 4 | BI70: 4 | BJ70: 4 | BK70: 4 | BL70: 4 | BM70: 4 | BN70: 4 | BO70: 4 | BP70: 4 | BQ70: 4 | BR70: 4 | BS70: 4 | BT70: 4 | BU70: 4 | BV70: 4 | BW70: 4 | BX70: 4 | BY70: 4 | BZ70: 4 | CA70: 4 | CB70: 4 | CC70: 4 | CD70: 4 | CE70: 4 | CF70: 5 | CG70: 5 | CH70: 5 | CI70: 5 | CJ70: 5 | CK70: 5 | CL70: 5 | CM70: =lease_codes(CM$2,CM$3,$I70,$N70,$S70,$W70) -> 6 | CN70: 6 | CO70: 6 | CP70: 6 | CQ70: 6 | CR70: 6 | CS70: 6 | CT70: 6 | CU70: 6 | CV70: 6 | CW70: 6 | CX70: 6 | CY70: 6 | CZ70: 6 | DA70: 6 | DB70: 6 | DC70: 6 | DD70: 6 | DE70: 6 | DF70: 6 | DG70: 6 | DH70: 6 | DI70: 6 | DJ70: 6 | DK70: 6 | DL70: 6 | DM70: 6 | DN70: 6 | DO70: 6 | DP70: 6 | DQ70: 6 | DR70: 6 | DS70: 6 | DT70: 6 | DU70: 6 | DV70: 6 | DW70: 6 | DX70: 6 | DY70: 6 | DZ70: 6 | EA70: 6 | EB70: 6 | EC70: 6 | ED70: 6 | EE70: 6 | EF70: 6 | EG70: 6 | EH70: 6 | EI70: 6 | EJ70: 6 | EK70: 6 | EL70: 6 | EM70: 6 | EN70: 6 | EO70: 6 | EP70: 6 | EQ70: 6 | ER70: 6 | ES70: 6 | ET70: 6 | EU70: 6 | EV70: 6 | EW70: 6 | EX70: 6 | EY70: =lease_codes(EY$2,EY$3,$I70,$N70,$S70,$W70) -> 6 | EZ70: 6 | FA70: 6 | FB70: 6 | FC70: 6 | FD70: 6 | FE70: 6 | FF70: 6 | FG70: 6 | FH70: 6 | FI70: 6 | FJ70: 6 | FK70: 6 | FL70: 6 | FM70: 6 | FN70: 6 | FO70: 6 | FP70: 6 | FQ70: 6 | FR70: 6 | FS70: 6 | FT70: 6 | FU70: 6 | FV70: 6 | FW70: 6 | FX70: 6 | FY70: 6 | FZ70: 6 | GA70: 6 | GB70: 6 | GC70: 6 | GD70: 6 | GE70: 6 | GF70: 6 | GG70: 6 | GH70: 6 | GI70: 6 | GJ70: 6 | GK70: 6 | GL70: 6 | GM70: 6 | GN70: 6 | GO70: 6 | GP70: 6 | GQ70: 6 | GR70: 6 | GS70: 6 | GT70: 6 | GU70: 6 | GV70: 6 | GW70: 6 | GX70: 6 | GY70: 6 | GZ70: 6 | HA70: 6 | HB70: 6 | HC70: 6 | HD70: 6 | HE70: 6 | HF70: 6 | HG70: 6 | HH70: 6 | HI70: 6 | HJ70: 6 | HK70: =lease_codes(HK$2,HK$3,$I70,$N70,$S70,$W70) -> 6 | HL70: 6 | HM70: 6 | HN70: 6 | HO70: 6 | HP70: 6 | HQ70: 6 | HR70: 6 | HS70: 6 | HT70: 6 | HU70: 6 | HV70: 6 | HW70: 6 | HX70: 6 | HY70: 6 | HZ70: 6 | IA70: 6 | IB70: 6 | IC70: 6 | ID70: 6 | IE70: 6 | IF70: 6 | IG70: 6 | IH70: 6 | II70: 6 | IJ70: 6 | IK70: 6 | IL70: 6 | IM70: 6 | IN70: 6 | IO70: 6 | IP70: 6 | IQ70: 6 | IR70: 6 | IS70: 6 | IT70: 6 | IU70: 6 | IV70: 6 | IW70: 6 | IX70: 6 | IY70: 6 | IZ70: 6 | JA70: 6 | JB70: 6 | JC70: 6 | JD70: 6 | JE70: 6
F71: 1000 | G71: 2 | H71: 7 | I71: ='Lease Roll Scenarios'!E7 -> 2014-05-03 | J71: 29 | K71: =DAYS360(I71,EOMONTH(I71,0))/30 -> 0.9333333333 | L71: =L70 -> 0 | M71: =RAND()>L71 -> TRUE | N71: 6 | O71: =EDATE(I71,N71) -> 2014-11-03 | P71: 36 | Q71: 0.4666666667 | R71: 7.064475327 | S71: =$G$42 -> 36 | T71: 2017-11-03 | U71: 72 | V71: =RAND()>L71 -> TRUE | W71: 5 | X71: =EDATE(T71,W71) -> 2018-04-03 | Z71: =lease_codes(Z$2,Z$3,$I71,$N71,$S71,$W71) -> 1 | AA71: 1 | AB71: 1 | AC71: 1 | AD71: 2 | AE71: 3 | AF71: 3 | AG71: 3 | AH71: 3 | AI71: 3 | AJ71: 3 | AK71: 4 | AL71: 4 | AM71: 4 | AN71: 4 | AO71: 4 | AP71: 4 | AQ71: 4 | AR71: 4 | AS71: 4 | AT71: 4 | AU71: 4 | AV71: 4 | AW71: 4 | AX71: 4 | AY71: 4 | AZ71: 4 | BA71: 4 | BB71: 4 | BC71: 4 | BD71: 4 | BE71: 4 | BF71: 4 | BG71: 4 | BH71: 4 | BI71: 4 | BJ71: 4 | BK71: 4 | BL71: 4 | BM71: 4 | BN71: 4 | BO71: 4 | BP71: 4 | BQ71: 4 | BR71: 4 | BS71: 4 | BT71: 4 | BU71: 5 | BV71: 5 | BW71: 5 | BX71: 5 | BY71: 5 | BZ71: 6 | CA71: 6 | CB71: 6 | CC71: 6 | CD71: 6 | CE71: 6 | CF71: 6 | CG71: 6 | CH71: 6 | CI71: 6 | CJ71: 6 | CK71: 6 | CL71: 6 | CM71: 6 | CN71: 6 | CO71: 6 | CP71: 6 | CQ71: 6 | CR71: 6 | CS71: 6 | CT71: 6 | CU71: 6 | CV71: 6 | CW71: 6 | CX71: 6 | CY71: 6 | CZ71: 6 | DA71: 6 | DB71: 6 | DC71: 6 | DD71: 6 | DE71: 6 | DF71: 6 | DG71: 6 | DH71: 6 | DI71: 6 | DJ71: 6 | DK71: 6 | DL71: 6 | DM71: 6 | DN71: 6 | DO71: 6 | DP71: 6 | DQ71: 6 | DR71: 6 | DS71: 6 | DT71: 6 | DU71: 6 | DV71: 6 | DW71: 6 | DX71: 6 | DY71: 6 | DZ71: 6 | EA71: 6 | EB71: 6 | EC71: 6 | ED71: 6 | EE71: 6 | EF71: 6 | EG71: 6 | EH71: 6 | EI71: 6 | EJ71: 6 | EK71: 6 | EL71: 6 | EM71: 6 | EN71: 6 | EO71: 6 | EP71: 6 | EQ71: 6 | ER71: 6 | ES71: 6 | ET71: 6 | EU71: 6 | EV71: 6 | EW71: 6 | EX71: 6 | EY71: 6 | EZ71: 6 | FA71: 6 | FB71: 6 | FC71: 6 | FD71: 6 | FE71: 6 | FF71: 6 | FG71: 6 | FH71: 6 | FI71: 6 | FJ71: 6 | FK71: 6 | FL71: 6 | FM71: 6 | FN71: 6 | FO71: 6 | FP71: 6 | FQ71: 6 | FR71: 6 | FS71: 6 | FT71: 6 | FU71: 6 | FV71: 6 | FW71: 6 | FX71: 6 | FY71: 6 | FZ71: 6 | GA71: 6 | GB71: 6 | GC71: 6 | GD71: 6 | GE71: 6 | GF71: 6 | GG71: 6 | GH71: 6 | GI71: 6 | GJ71: 6 | GK71: 6 | GL71: 6 | GM71: 6 | GN71: 6 | GO71: 6 | GP71: 6 | GQ71: 6 | GR71: 6 | GS71: 6 | GT71: 6 | GU71: 6 | GV71: 6 | GW71: 6 | GX71: 6 | GY71: 6 | GZ71: 6 | HA71: 6 | HB71: 6 | HC71: 6 | HD71: 6 | HE71: 6 | HF71: 6 | HG71: 6 | HH71: 6 | HI71: 6 | HJ71: 6 | HK71: 6 | HL71: 6 | HM71: 6 | HN71: 6 | HO71: 6 | HP71: 6 | HQ71: 6 | HR71: 6 | HS71: 6 | HT71: 6 | HU71: 6 | HV71: 6 | HW71: 6 | HX71: 6 | HY71: 6 | HZ71: 6 | IA71: 6 | IB71: 6 | IC71: 6 | ID71: 6 | IE71: 6 | IF71: 6 | IG71: 6 | IH71: 6 | II71: 6 | IJ71: 6 | IK71: 6 | IL71: 6 | IM71: 6 | IN71: 6 | IO71: 6 | IP71: 6 | IQ71: 6 | IR71: 6 | IS71: 6 | IT71: 6 | IU71: 6 | IV71: 6 | IW71: 6 | IX71: 6 | IY71: 6 | IZ71: 6 | JA71: 6 | JB71: 6 | JC71: 6 | JD71: 6 | JE71: 6
A72: Codes | F72: 5000 | G72: 3 | H72: 9 | I72: ='Lease Roll Scenarios'!E8 -> 2016-05-04 | J72: 53 | K72: 0.9 | L72: =L71 -> 0 | M72: TRUE | N72: 6 | O72: 2016-11-04 | P72: 60 | Q72: 0.9 | R72: 7.929114027 | S72: 36 | T72: 2019-11-04 | U72: 96 | V72: TRUE | W72: 4 | X72: 2020-03-04 | Z72: =lease_codes(Z$2,Z$3,$I72,$N72,$S72,$W72) -> 1 | AA72: 1 | AB72: 1 | AC72: 1 | AD72: 1 | AE72: 1 | AF72: =lease_codes(AF$2,AF$3,$I72,$N72,$S72,$W72) -> 1 | AG72: 1 | AH72: 1 | AI72: 1 | AJ72: 1 | AK72: 1 | AL72: 1 | AM72: 1 | AN72: 1 | AO72: 1 | AP72: 1 | AQ72: 1 | AR72: 1 | AS72: 1 | AT72: 1 | AU72: 1 | AV72: 1 | AW72: 1 | AX72: 1 | AY72: 1 | AZ72: 1 | BA72: 1 | BB72: 2 | BC72: 3 | BD72: 3 | BE72: 3 | BF72: 3 | BG72: 3 | BH72: 3 | BI72: 4 | BJ72: 4 | BK72: 4 | BL72: 4 | BM72: 4 | BN72: 4 | BO72: 4 | BP72: 4 | BQ72: 4 | BR72: 4 | BS72: 4 | BT72: 4 | BU72: 4 | BV72: 4 | BW72: =lease_codes(BW$2,BW$3,$I72,$N72,$S72,$W72) -> 4 | BX72: 4 | BY72: 4 | BZ72: 4 | CA72: 4 | CB72: 4 | CC72: 4 | CD72: 4 | CE72: 4 | CF72: 4 | CG72: 4 | CH72: 4 | CI72: 4 | CJ72: 4 | CK72: 4 | CL72: 4 | CM72: 4 | CN72: 4 | CO72: 4 | CP72: 4 | CQ72: 4 | CR72: 4 | CS72: 5 | CT72: 5 | CU72: 5 | CV72: 5 | CW72: 6 | CX72: 6 | CY72: 6 | CZ72: 6 | DA72: 6 | DB72: 6 | DC72: 6 | DD72: 6 | DE72: 6 | DF72: 6 | DG72: 6 | DH72: 6 | DI72: 6 | DJ72: 6 | DK72: 6 | DL72: 6 | DM72: 6 | DN72: 6 | DO72: 6 | DP72: 6 | DQ72: 6 | DR72: 6 | DS72: 6 | DT72: 6 | DU72: 6 | DV72: 6 | DW72: 6 | DX72: 6 | DY72: 6 | DZ72: 6 | EA72: 6 | EB72: 6 | EC72: 6 | ED72: 6 | EE72: 6 | EF72: 6 | EG72: 6 | EH72: 6 | EI72: 6 | EJ72: 6 | EK72: 6 | EL72: 6 | EM72: 6 | EN72: 6 | EO72: 6 | EP72: 6 | EQ72: 6 | ER72: 6 | ES72: 6 | ET72: 6 | EU72: 6 | EV72: 6 | EW72: 6 | EX72: 6 | EY72: 6 | EZ72: 6 | FA72: 6 | FB72: 6 | FC72: 6 | FD72: 6 | FE72: 6 | FF72: 6 | FG72: 6 | FH72: 6 | FI72: 6 | FJ72: 6 | FK72: 6 | FL72: 6 | FM72: 6 | FN72: 6 | FO72: 6 | FP72: 6 | FQ72: 6 | FR72: 6 | FS72: 6 | FT72: 6 | FU72: 6 | FV72: 6 | FW72: 6 | FX72: 6 | FY72: 6 | FZ72: 6 | GA72: 6 | GB72: 6 | GC72: 6 | GD72: 6 | GE72: 6 | GF72: 6 | GG72: 6 | GH72: 6 | GI72: 6 | GJ72: 6 | GK72: 6 | GL72: 6 | GM72: 6 | GN72: 6 | GO72: 6 | GP72: 6 | GQ72: 6 | GR72: 6 | GS72: 6 | GT72: 6 | GU72: 6 | GV72: 6 | GW72: 6 | GX72: 6 | GY72: 6 | GZ72: 6 | HA72: 6 | HB72: 6 | HC72: 6 | HD72: 6 | HE72: 6 | HF72: 6 | HG72: 6 | HH72: 6 | HI72: 6 | HJ72: 6 | HK72: 6 | HL72: 6 | HM72: 6 | HN72: 6 | HO72: 6 | HP72: 6 | HQ72: 6 | HR72: 6 | HS72: 6 | HT72: 6 | HU72: 6 | HV72: 6 | HW72: 6 | HX72: 6 | HY72: 6 | HZ72: 6 | IA72: 6 | IB72: 6 | IC72: 6 | ID72: 6 | IE72: 6 | IF72: 6 | IG72: 6 | IH72: 6 | II72: 6 | IJ72: 6 | IK72: 6 | IL72: 6 | IM72: 6 | IN72: 6 | IO72: 6 | IP72: 6 | IQ72: 6 | IR72: 6 | IS72: 6 | IT72: 6 | IU72: 6 | IV72: 6 | IW72: 6 | IX72: 6 | IY72: 6 | IZ72: 6 | JA72: 6 | JB72: 6 | JC72: 6 | JD72: 6 | JE72: 6
D73: 1 | E73: First Lease | F73: 3000 | G73: 4 | H73: 7.5 | I73: ='Lease Roll Scenarios'!E9 -> 2017-05-05 | J73: 65 | K73: 0.8666666667 | L73: 0 | M73: TRUE | N73: 5 | O73: 2017-10-05 | P73: 71 | Q73: 1 | R73: 8.112243867 | S73: 36 | T73: 2020-10-05 | U73: 107 | V73: TRUE | W73: 3 | X73: 2021-01-05 | Z73: =lease_codes(Z$2,Z$3,$I73,$N73,$S73,$W73) -> 1 | AA73: 1 | AB73: 1 | AC73: 1 | AD73: 1 | AE73: 1 | AF73: 1 | AG73: 1 | AH73: 1 | AI73: 1 | AJ73: 1 | AK73: 1 | AL73: 1 | AM73: 1 | AN73: 1 | AO73: 1 | AP73: 1 | AQ73: 1 | AR73: 1 | AS73: 1 | AT73: 1 | AU73: 1 | AV73: 1 | AW73: 1 | AX73: 1 | AY73: 1 | AZ73: 1 | BA73: 1 | BB73: 1 | BC73: 1 | BD73: 1 | BE73: 1 | BF73: 1 | BG73: 1 | BH73: 1 | BI73: 1 | BJ73: 1 | BK73: 1 | BL73: 1 | BM73: 1 | BN73: 2 | BO73: 3 | BP73: 3 | BQ73: 3 | BR73: 3 | BS73: 3 | BT73: 4 | BU73: 4 | BV73: 4 | BW73: 4 | BX73: 4 | BY73: 4 | BZ73: 4 | CA73: 4 | CB73: 4 | CC73: 4 | CD73: 4 | CE73: 4 | CF73: 4 | CG73: 4 | CH73: 4 | CI73: 4 | CJ73: 4 | CK73: 4 | CL73: 4 | CM73: 4 | CN73: 4 | CO73: 4 | CP73: 4 | CQ73: 4 | CR73: 4 | CS73: 4 | CT73: 4 | CU73: 4 | CV73: 4 | CW73: 4 | CX73: 4 | CY73: 4 | CZ73: 4 | DA73: 4 | DB73: 4 | DC73: 4 | DD73: 5 | DE73: 5 | DF73: 5 | DG73: 6 | DH73: 6 | DI73: 6 | DJ73: 6 | DK73: 6 | DL73: 6 | DM73: 6 | DN73: 6 | DO73: 6 | DP73: 6 | DQ73: 6 | DR73: 6 | DS73: 6 | DT73: 6 | DU73: 6 | DV73: 6 | DW73: 6 | DX73: 6 | DY73: 6 | DZ73: 6 | EA73: 6 | EB73: 6 | EC73: 6 | ED73: 6 | EE73: 6 | EF73: 6 | EG73: 6 | EH73: 6 | EI73: 6 | EJ73: 6 | EK73: 6 | EL73: 6 | EM73: 6 | EN73: 6 | EO73: 6 | EP73: 6 | EQ73: 6 | ER73: 6 | ES73: 6 | ET73: 6 | EU73: 6 | EV73: 6 | EW73: 6 | EX73: =lease_codes(EX$2,EX$3,$I73,$N73,$S73,$W73) -> 6 | EY73: 6 | EZ73: 6 | FA73: 6 | FB73: 6 | FC73: 6 | FD73: 6 | FE73: 6 | FF73: 6 | FG73: 6 | FH73: 6 | FI73: 6 | FJ73: 6 | FK73: 6 | FL73: 6 | FM73: 6 | FN73: 6 | FO73: 6 | FP73: 6 | FQ73: 6 | FR73: 6 | FS73: 6 | FT73: 6 | FU73: 6 | FV73: 6 | FW73: 6 | FX73: 6 | FY73: 6 | FZ73: 6 | GA73: 6 | GB73: 6 | GC73: 6 | GD73: 6 | GE73: 6 | GF73: 6 | GG73: 6 | GH73: 6 | GI73: 6 | GJ73: 6 | GK73: 6 | GL73: 6 | GM73: 6 | GN73: 6 | GO73: 6 | GP73: 6 | GQ73: 6 | GR73: 6 | GS73: 6 | GT73: 6 | GU73: 6 | GV73: 6 | GW73: 6 | GX73: 6 | GY73: 6 | GZ73: 6 | HA73: 6 | HB73: 6 | HC73: 6 | HD73: 6 | HE73: 6 | HF73: 6 | HG73: 6 | HH73: 6 | HI73: 6 | HJ73: =lease_codes(HJ$2,HJ$3,$I73,$N73,$S73,$W73) -> 6 | HK73: 6 | HL73: 6 | HM73: 6 | HN73: 6 | HO73: 6 | HP73: 6 | HQ73: 6 | HR73: 6 | HS73: 6 | HT73: 6 | HU73: 6 | HV73: 6 | HW73: 6 | HX73: 6 | HY73: 6 | HZ73: 6 | IA73: 6 | IB73: 6 | IC73: 6 | ID73: 6 | IE73: 6 | IF73: 6 | IG73: 6 | IH73: 6 | II73: 6 | IJ73: 6 | IK73: 6 | IL73: 6 | IM73: 6 | IN73: 6 | IO73: 6 | IP73: 6 | IQ73: 6 | IR73: 6 | IS73: 6 | IT73: 6 | IU73: 6 | IV73: 6 | IW73: 6 | IX73: 6 | IY73: 6 | IZ73: 6 | JA73: 6 | JB73: 6 | JC73: 6 | JD73: 6 | JE73: 6
D74: 2 | E74: Partial | F74: 4000 | G74: 5 | H74: 6 | I74: ='Lease Roll Scenarios'!E10 -> 2020-05-06 | J74: 101 | K74: 0.8333333333 | L74: 0 | M74: TRUE | N74: 4 | O74: 2020-09-06 | P74: 106 | Q74: 1 | R74: 10.59916384 | S74: 36 | T74: 2023-09-06 | U74: 142 | V74: TRUE | W74: 5 | X74: 2024-02-06 | Z74: =lease_codes(Z$2,Z$3,$I74,$N74,$S74,$W74) -> 1 | AA74: 1 | AB74: 1 | AC74: 1 | AD74: 1 | AE74: 1 | AF74: =lease_codes(AF$2,AF$3,$I74,$N74,$S74,$W74) -> 1 | AG74: 1 | AH74: 1 | AI74: 1 | AJ74: 1 | AK74: 1 | AL74: 1 | AM74: 1 | AN74: 1 | AO74: 1 | AP74: 1 | AQ74: =lease_codes(AQ$2,AQ$3,$I74,$N74,$S74,$W74) -> 1 | AR74: 1 | AS74: 1 | AT74: 1 | AU74: 1 | AV74: 1 | AW74: 1 | AX74: 1 | AY74: 1 | AZ74: 1 | BA74: 1 | BB74: 1 | BC74: 1 | BD74: 1 | BE74: 1 | BF74: 1 | BG74: 1 | BH74: 1 | BI74: 1 | BJ74: 1 | BK74: 1 | BL74: 1 | BM74: 1 | BN74: 1 | BO74: 1 | BP74: 1 | BQ74: 1 | BR74: 1 | BS74: 1 | BT74: 1 | BU74: 1 | BV74: 1 | BW74: 1 | BX74: 1 | BY74: 1 | BZ74: 1 | CA74: 1 | CB74: 1 | CC74: 1 | CD74: 1 | CE74: 1 | CF74: 1 | CG74: 1 | CH74: 1 | CI74: 1 | CJ74: 1 | CK74: 1 | CL74: 1 | CM74: =lease_codes(CM$2,CM$3,$I74,$N74,$S74,$W74) -> 1 | CN74: 1 | CO74: 1 | CP74: 1 | CQ74: 1 | CR74: =lease_codes(CR$2,CR$3,$I74,$N74,$S74,$W74) -> 1 | CS74: 1 | CT74: 1 | CU74: 1 | CV74: 1 | CW74: 1 | CX74: 2 | CY74: 3 | CZ74: 3 | DA74: 3 | DB74: 3 | DC74: 4 | DD74: 4 | DE74: 4 | DF74: 4 | DG74: 4 | DH74: 4 | DI74: 4 | DJ74: 4 | DK74: 4 | DL74: 4 | DM74: 4 | DN74: 4 | DO74: 4 | DP74: 4 | DQ74: 4 | DR74: 4 | DS74: 4 | DT74: 4 | DU74: 4 | DV74: 4 | DW74: 4 | DX74: 4 | DY74: 4 | DZ74: 4 | EA74: 4 | EB74: 4 | EC74: 4 | ED74: 4 | EE74: 4 | EF74: 4 | EG74: 4 | EH74: 4 | EI74: 4 | EJ74: 4 | EK74: 4 | EL74: 4 | EM74: 5 | EN74: 5 | EO74: 5 | EP74: 5 | EQ74: 5 | ER74: 6 | ES74: 6 | ET74: 6 | EU74: 6 | EV74: 6 | EW74: 6 | EX74: 6 | EY74: 6 | EZ74: 6 | FA74: 6 | FB74: 6 | FC74: 6 | FD74: =lease_codes(FD$2,FD$3,$I74,$N74,$S74,$W74) -> 6 | FE74: 6 | FF74: 6 | FG74: 6 | FH74: 6 | FI74: 6 | FJ74: 6 | FK74: 6 | FL74: 6 | FM74: 6 | FN74: =lease_codes(FN$2,FN$3,$I74,$N74,$S74,$W74) -> 6 | FO74: 6 | FP74: 6 | FQ74: 6 | FR74: 6 | FS74: 6 | FT74: 6 | FU74: 6 | FV74: 6 | FW74: 6 | FX74: =lease_codes(FX$2,FX$3,$I74,$N74,$S74,$W74) -> 6 | FY74: 6 | FZ74: 6 | GA74: 6 | GB74: 6 | GC74: 6 | GD74: 6 | GE74: 6 | GF74: 6 | GG74: 6 | GH74: =lease_codes(GH$2,GH$3,$I74,$N74,$S74,$W74) -> 6 | GI74: 6 | GJ74: 6 | GK74: 6 | GL74: 6 | GM74: 6 | GN74: 6 | GO74: 6 | GP74: 6 | GQ74: 6 | GR74: =lease_codes(GR$2,GR$3,$I74,$N74,$S74,$W74) -> 6 | GS74: 6 | GT74: 6 | GU74: 6 | GV74: 6 | GW74: 6 | GX74: 6 | GY74: 6 | GZ74: 6 | HA74: 6 | HB74: =lease_codes(HB$2,HB$3,$I74,$N74,$S74,$W74) -> 6 | HC74: 6 | HD74: 6 | HE74: 6 | HF74: 6 | HG74: 6 | HH74: 6 | HI74: 6 | HJ74: =lease_codes(HJ$2,HJ$3,$I74,$N74,$S74,$W74) -> 6 | HK74: 6 | HL74: 6 | HM74: 6 | HN74: 6 | HO74: 6 | HP74: 6 | HQ74: 6 | HR74: 6 | HS74: 6 | HT74: 6 | HU74: 6 | HV74: 6 | HW74: 6 | HX74: 6 | HY74: 6 | HZ74: 6 | IA74: 6 | IB74: 6 | IC74: 6 | ID74: 6 | IE74: 6 | IF74: 6 | IG74: 6 | IH74: 6 | II74: 6 | IJ74: 6 | IK74: 6 | IL74: 6 | IM74: 6 | IN74: 6 | IO74: 6 | IP74: 6 | IQ74: 6 | IR74: 6 | IS74: 6 | IT74: 6 | IU74: 6 | IV74: 6 | IW74: 6 | IX74: 6 | IY74: 6 | IZ74: 6 | JA74: 6 | JB74: 6 | JC74: 6 | JD74: 6 | JE74: 6
D75: 3 | E75: Idle Time | F75: 5000 | G75: 6 | H75: 7 | I75: ='Lease Roll Scenarios'!E11 -> 2014-01-01 | J75: 25 | K75: 1 | L75: 0 | M75: TRUE | N75: 6 | O75: 2014-07-01 | P75: 32 | Q75: 0 | R75: 8.462607362 | S75: 36 | T75: 2017-07-01 | U75: 68 | V75: TRUE | W75: 5 | X75: 2017-12-01 | Z75: =lease_codes(Z$2,Z$3,$I75,$N75,$S75,$W75) -> 3 | AA75: =lease_codes(AA$2,AA$3,$I75,$N75,$S75,$W75) -> 3 | AB75: 3 | AC75: 3 | AD75: 3 | AE75: 3 | AF75: 3 | AG75: 4 | AH75: 4 | AI75: 4 | AJ75: 4 | AK75: 4 | AL75: 4 | AM75: 4 | AN75: 4 | AO75: 4 | AP75: 4 | AQ75: 4 | AR75: 4 | AS75: 4 | AT75: 4 | AU75: 4 | AV75: 4 | AW75: 4 | AX75: 4 | AY75: 4 | AZ75: 4 | BA75: 4 | BB75: 4 | BC75: 4 | BD75: 4 | BE75: 4 | BF75: 4 | BG75: 4 | BH75: 4 | BI75: 4 | BJ75: 4 | BK75: 4 | BL75: 4 | BM75: 4 | BN75: 4 | BO75: 4 | BP75: 4 | BQ75: 5 | BR75: 5 | BS75: 5 | BT75: 5 | BU75: 5 | BV75: 6 | BW75: 6 | BX75: 6 | BY75: 6 | BZ75: 6 | CA75: 6 | CB75: =lease_codes(CB$2,CB$3,$I75,$N75,$S75,$W75) -> 6 | CC75: 6 | CD75: 6 | CE75: 6 | CF75: 6 | CG75: 6 | CH75: 6 | CI75: 6 | CJ75: 6 | CK75: 6 | CL75: 6 | CM75: =lease_codes(CM$2,CM$3,$I75,$N75,$S75,$W75) -> 6 | CN75: 6 | CO75: 6 | CP75: 6 | CQ75: 6 | CR75: 6 | CS75: 6 | CT75: 6 | CU75: 6 | CV75: 6 | CW75: 6 | CX75: 6 | CY75: 6 | CZ75: 6 | DA75: 6 | DB75: 6 | DC75: 6 | DD75: 6 | DE75: 6 | DF75: 6 | DG75: 6 | DH75: 6 | DI75: 6 | DJ75: 6 | DK75: 6 | DL75: 6 | DM75: 6 | DN75: 6 | DO75: 6 | DP75: 6 | DQ75: 6 | DR75: 6 | DS75: 6 | DT75: 6 | DU75: 6 | DV75: 6 | DW75: 6 | DX75: 6 | DY75: 6 | DZ75: 6 | EA75: 6 | EB75: 6 | EC75: 6 | ED75: 6 | EE75: 6 | EF75: 6 | EG75: 6 | EH75: 6 | EI75: 6 | EJ75: 6 | EK75: 6 | EL75: 6 | EM75: 6 | EN75: 6 | EO75: 6 | EP75: 6 | EQ75: 6 | ER75: 6 | ES75: 6 | ET75: 6 | EU75: 6 | EV75: 6 | EW75: 6 | EX75: 6 | EY75: 6 | EZ75: 6 | FA75: 6 | FB75: 6 | FC75: 6 | FD75: 6 | FE75: 6 | FF75: 6 | FG75: 6 | FH75: 6 | FI75: 6 | FJ75: 6 | FK75: 6 | FL75: 6 | FM75: 6 | FN75: 6 | FO75: 6 | FP75: 6 | FQ75: 6 | FR75: 6 | FS75: 6 | FT75: 6 | FU75: 6 | FV75: 6 | FW75: 6 | FX75: 6 | FY75: 6 | FZ75: 6 | GA75: 6 | GB75: 6 | GC75: 6 | GD75: 6 | GE75: 6 | GF75: 6 | GG75: 6 | GH75: 6 | GI75: 6 | GJ75: 6 | GK75: 6 | GL75: 6 | GM75: 6 | GN75: 6 | GO75: 6 | GP75: 6 | GQ75: 6 | GR75: 6 | GS75: 6 | GT75: 6 | GU75: 6 | GV75: 6 | GW75: 6 | GX75: 6 | GY75: 6 | GZ75: 6 | HA75: 6 | HB75: 6 | HC75: 6 | HD75: 6 | HE75: 6 | HF75: 6 | HG75: 6 | HH75: 6 | HI75: 6 | HJ75: =lease_codes(HJ$2,HJ$3,$I75,$N75,$S75,$W75) -> 6 | HK75: 6 | HL75: 6 | HM75: 6 | HN75: 6 | HO75: 6 | HP75: 6 | HQ75: 6 | HR75: 6 | HS75: 6 | HT75: 6 | HU75: 6 | HV75: 6 | HW75: 6 | HX75: 6 | HY75: 6 | HZ75: 6 | IA75: 6 | IB75: 6 | IC75: 6 | ID75: 6 | IE75: =lease_codes(IE$2,IE$3,$I75,$N75,$S75,$W75) -> 6 | IF75: 6 | IG75: 6 | IH75: 6 | II75: 6 | IJ75: 6 | IK75: 6 | IL75: 6 | IM75: 6 | IN75: 6 | IO75: 6 | IP75: 6 | IQ75: 6 | IR75: 6 | IS75: 6 | IT75: 6 | IU75: 6 | IV75: 6 | IW75: 6 | IX75: 6 | IY75: 6 | IZ75: 6 | JA75: 6 | JB75: 6 | JC75: 6 | JD75: 6 | JE75: 6
D76: 4 | E76: Second Lease | F76: 7000 | G76: 7 | H76: 7 | I76: ='Lease Roll Scenarios'!E12 -> 2015-05-07 | J76: 41 | K76: 0.8 | L76: 0 | M76: TRUE | N76: 5 | O76: 2015-10-07 | P76: 47 | Q76: 1.4 | R76: 10.34721714 | S76: 36 | T76: 2018-10-07 | U76: 83 | V76: TRUE | W76: 7 | X76: 2019-05-07 | Z76: 1 | AA76: 1 | AB76: 1 | AC76: 1 | AD76: 1 | AE76: 1 | AF76: 1 | AG76: 1 | AH76: 1 | AI76: 1 | AJ76: 1 | AK76: 1 | AL76: 1 | AM76: 1 | AN76: 1 | AO76: 1 | AP76: 2 | AQ76: 3 | AR76: 3 | AS76: 3 | AT76: 3 | AU76: 3 | AV76: 4 | AW76: 4 | AX76: 4 | AY76: 4 | AZ76: 4 | BA76: 4 | BB76: 4 | BC76: 4 | BD76: 4 | BE76: 4 | BF76: 4 | BG76: 4 | BH76: 4 | BI76: 4 | BJ76: 4 | BK76: 4 | BL76: 4 | BM76: 4 | BN76: 4 | BO76: 4 | BP76: 4 | BQ76: 4 | BR76: 4 | BS76: 4 | BT76: 4 | BU76: 4 | BV76: 4 | BW76: 4 | BX76: 4 | BY76: 4 | BZ76: 4 | CA76: 4 | CB76: 4 | CC76: 4 | CD76: 4 | CE76: 4 | CF76: 5 | CG76: 5 | CH76: 5 | CI76: 5 | CJ76: 5 | CK76: 5 | CL76: 5 | CM76: 6 | CN76: 6 | CO76: 6 | CP76: 6 | CQ76: 6 | CR76: 6 | CS76: 6 | CT76: 6 | CU76: 6 | CV76: 6 | CW76: 6 | CX76: 6 | CY76: 6 | CZ76: 6 | DA76: 6 | DB76: 6 | DC76: 6 | DD76: 6 | DE76: 6 | DF76: 6 | DG76: 6 | DH76: 6 | DI76: 6 | DJ76: 6 | DK76: 6 | DL76: 6 | DM76: 6 | DN76: 6 | DO76: 6 | DP76: 6 | DQ76: 6 | DR76: 6 | DS76: 6 | DT76: 6 | DU76: 6 | DV76: 6 | DW76: 6 | DX76: 6 | DY76: 6 | DZ76: 6 | EA76: 6 | EB76: 6 | EC76: 6 | ED76: 6 | EE76: 6 | EF76: 6 | EG76: 6 | EH76: 6 | EI76: 6 | EJ76: 6 | EK76: 6 | EL76: 6 | EM76: 6 | EN76: 6 | EO76: 6 | EP76: 6 | EQ76: 6 | ER76: 6 | ES76: 6 | ET76: 6 | EU76: 6 | EV76: 6 | EW76: 6 | EX76: 6 | EY76: 6 | EZ76: 6 | FA76: 6 | FB76: 6 | FC76: 6 | FD76: 6 | FE76: 6 | FF76: 6 | FG76: 6 | FH76: 6 | FI76: 6 | FJ76: 6 | FK76: 6 | FL76: 6 | FM76: 6 | FN76: 6 | FO76: 6 | FP76: 6 | FQ76: 6 | FR76: 6 | FS76: 6 | FT76: 6 | FU76: 6 | FV76: 6 | FW76: 6 | FX76: 6 | FY76: 6 | FZ76: 6 | GA76: 6 | GB76: 6 | GC76: 6 | GD76: 6 | GE76: 6 | GF76: 6 | GG76: 6 | GH76: 6 | GI76: 6 | GJ76: 6 | GK76: 6 | GL76: 6 | GM76: 6 | GN76: 6 | GO76: 6 | GP76: 6 | GQ76: 6 | GR76: 6 | GS76: 6 | GT76: 6 | GU76: 6 | GV76: 6 | GW76: 6 | GX76: 6 | GY76: 6 | GZ76: 6 | HA76: 6 | HB76: 6 | HC76: 6 | HD76: 6 | HE76: 6 | HF76: 6 | HG76: 6 | HH76: 6 | HI76: 6 | HJ76: =lease_codes(HJ$2,HJ$3,$I76,$N76,$S76,$W76) -> 6 | HK76: =lease_codes(HK$2,HK$3,$I76,$N76,$S76,$W76) -> 6 | HL76: 6 | HM76: 6 | HN76: 6 | HO76: 6 | HP76: =lease_codes(HP$2,HP$3,$I76,$N76,$S76,$W76) -> 6 | HQ76: 6 | HR76: 6 | HS76: 6 | HT76: 6 | HU76: 6 | HV76: 6 | HW76: 6 | HX76: 6 | HY76: 6 | HZ76: 6 | IA76: 6 | IB76: 6 | IC76: 6 | ID76: 6 | IE76: 6 | IF76: 6 | IG76: 6 | IH76: 6 | II76: 6 | IJ76: 6 | IK76: 6 | IL76: 6 | IM76: 6 | IN76: 6 | IO76: 6 | IP76: 6 | IQ76: 6 | IR76: 6 | IS76: 6 | IT76: 6 | IU76: 6 | IV76: 6 | IW76: 6 | IX76: 6 | IY76: 6 | IZ76: 6 | JA76: 6 | JB76: 6 | JC76: 6 | JD76: 6 | JE76: 6
D77: 5 | E77: Idle Time | F77: 4000 | G77: 8 | H77: 7 | I77: ='Lease Roll Scenarios'!E13 -> 2014-05-07 | J77: 29 | K77: 0.8 | L77: 0 | M77: TRUE | N77: 6 | O77: 2014-11-07 | P77: 36 | Q77: 1.4 | R77: 7.064475327 | S77: 36 | T77: 2017-11-07 | U77: 72 | V77: TRUE | W77: 5 | X77: 2018-04-07 | Z77: 1 | AA77: 1 | AB77: 1 | AC77: 1 | AD77: 2 | AE77: 3 | AF77: 3 | AG77: 3 | AH77: 3 | AI77: 3 | AJ77: 3 | AK77: 4 | AL77: 4 | AM77: 4 | AN77: 4 | AO77: 4 | AP77: 4 | AQ77: 4 | AR77: 4 | AS77: 4 | AT77: 4 | AU77: 4 | AV77: 4 | AW77: 4 | AX77: 4 | AY77: 4 | AZ77: 4 | BA77: 4 | BB77: 4 | BC77: 4 | BD77: 4 | BE77: 4 | BF77: 4 | BG77: 4 | BH77: 4 | BI77: 4 | BJ77: 4 | BK77: 4 | BL77: 4 | BM77: 4 | BN77: 4 | BO77: 4 | BP77: 4 | BQ77: 4 | BR77: 4 | BS77: 4 | BT77: 4 | BU77: 5 | BV77: 5 | BW77: 5 | BX77: 5 | BY77: 5 | BZ77: 6 | CA77: 6 | CB77: 6 | CC77: 6 | CD77: 6 | CE77: 6 | CF77: 6 | CG77: 6 | CH77: 6 | CI77: 6 | CJ77: 6 | CK77: 6 | CL77: 6 | CM77: 6 | CN77: 6 | CO77: 6 | CP77: 6 | CQ77: 6 | CR77: 6 | CS77: 6 | CT77: 6 | CU77: 6 | CV77: 6 | CW77: 6 | CX77: 6 | CY77: 6 | CZ77: 6 | DA77: 6 | DB77: 6 | DC77: 6 | DD77: 6 | DE77: 6 | DF77: 6 | DG77: 6 | DH77: 6 | DI77: 6 | DJ77: 6 | DK77: 6 | DL77: 6 | DM77: 6 | DN77: 6 | DO77: 6 | DP77: 6 | DQ77: 6 | DR77: 6 | DS77: 6 | DT77: 6 | DU77: 6 | DV77: 6 | DW77: 6 | DX77: 6 | DY77: 6 | DZ77: 6 | EA77: 6 | EB77: 6 | EC77: 6 | ED77: 6 | EE77: 6 | EF77: 6 | EG77: 6 | EH77: 6 | EI77: 6 | EJ77: 6 | EK77: 6 | EL77: 6 | EM77: 6 | EN77: 6 | EO77: 6 | EP77: 6 | EQ77: 6 | ER77: 6 | ES77: 6 | ET77: 6 | EU77: 6 | EV77: 6 | EW77: 6 | EX77: 6 | EY77: 6 | EZ77: 6 | FA77: 6 | FB77: 6 | FC77: =lease_codes(FC$2,FC$3,$I77,$N77,$S77,$W77) -> 6 | FD77: 6 | FE77: 6 | FF77: 6 | FG77: 6 | FH77: 6 | FI77: 6 | FJ77: 6 | FK77: 6 | FL77: 6 | FM77: 6 | FN77: 6 | FO77: 6 | FP77: 6 | FQ77: 6 | FR77: 6 | FS77: 6 | FT77: 6 | FU77: 6 | FV77: 6 | FW77: 6 | FX77: 6 | FY77: 6 | FZ77: 6 | GA77: 6 | GB77: 6 | GC77: 6 | GD77: 6 | GE77: 6 | GF77: 6 | GG77: 6 | GH77: 6 | GI77: 6 | GJ77: 6 | GK77: 6 | GL77: 6 | GM77: 6 | GN77: 6 | GO77: 6 | GP77: 6 | GQ77: 6 | GR77: 6 | GS77: 6 | GT77: 6 | GU77: 6 | GV77: 6 | GW77: 6 | GX77: 6 | GY77: 6 | GZ77: 6 | HA77: 6 | HB77: 6 | HC77: 6 | HD77: 6 | HE77: 6 | HF77: 6 | HG77: 6 | HH77: 6 | HI77: 6 | HJ77: 6 | HK77: 6 | HL77: 6 | HM77: 6 | HN77: 6 | HO77: 6 | HP77: 6 | HQ77: 6 | HR77: 6 | HS77: 6 | HT77: 6 | HU77: 6 | HV77: 6 | HW77: 6 | HX77: 6 | HY77: 6 | HZ77: 6 | IA77: 6 | IB77: 6 | IC77: 6 | ID77: 6 | IE77: 6 | IF77: 6 | IG77: 6 | IH77: 6 | II77: 6 | IJ77: 6 | IK77: 6 | IL77: 6 | IM77: 6 | IN77: 6 | IO77: 6 | IP77: 6 | IQ77: 6 | IR77: 6 | IS77: 6 | IT77: 6 | IU77: 6 | IV77: 6 | IW77: 6 | IX77: 6 | IY77: 6 | IZ77: 6 | JA77: 6 | JB77: 6 | JC77: 6 | JD77: 6 | JE77: 6
D78: 6 | E78: Third Lease (Market) | F78: 6000 | G78: 9 | H78: 7 | I78: ='Lease Roll Scenarios'!E14 -> 2016-05-04 | J78: 53 | K78: 0.9 | L78: 0 | M78: TRUE | N78: 6 | O78: 2016-11-04 | P78: 60 | Q78: 0.7 | R78: 7.929114027 | S78: 36 | T78: 2019-11-04 | U78: 96 | V78: TRUE | W78: 4 | X78: 2020-03-04 | Z78: 1 | AA78: 1 | AB78: 1 | AC78: 1 | AD78: 1 | AE78: 1 | AF78: 1 | AG78: 1 | AH78: 1 | AI78: 1 | AJ78: 1 | AK78: 1 | AL78: 1 | AM78: 1 | AN78: 1 | AO78: 1 | AP78: 1 | AQ78: 1 | AR78: 1 | AS78: 1 | AT78: 1 | AU78: 1 | AV78: 1 | AW78: 1 | AX78: 1 | AY78: 1 | AZ78: 1 | BA78: 1 | BB78: 2 | BC78: 3 | BD78: 3 | BE78: 3 | BF78: 3 | BG78: 3 | BH78: 3 | BI78: 4 | BJ78: 4 | BK78: 4 | BL78: 4 | BM78: 4 | BN78: 4 | BO78: 4 | BP78: 4 | BQ78: 4 | BR78: 4 | BS78: 4 | BT78: 4 | BU78: 4 | BV78: 4 | BW78: 4 | BX78: 4 | BY78: 4 | BZ78: 4 | CA78: 4 | CB78: 4 | CC78: 4 | CD78: 4 | CE78: 4 | CF78: 4 | CG78: 4 | CH78: 4 | CI78: 4 | CJ78: 4 | CK78: 4 | CL78: 4 | CM78: 4 | CN78: 4 | CO78: 4 | CP78: 4 | CQ78: 4 | CR78: =lease_codes(CR$2,CR$3,$I78,$N78,$S78,$W78) -> 4 | CS78: 5 | CT78: 5 | CU78: 5 | CV78: 5 | CW78: 6 | CX78: 6 | CY78: 6 | CZ78: 6 | DA78: 6 | DB78: 6 | DC78: 6 | DD78: 6 | DE78: 6 | DF78: 6 | DG78: 6 | DH78: 6 | DI78: 6 | DJ78: 6 | DK78: 6 | DL78: 6 | DM78: 6 | DN78: 6 | DO78: 6 | DP78: 6 | DQ78: 6 | DR78: 6 | DS78: 6 | DT78: 6 | DU78: 6 | DV78: 6 | DW78: 6 | DX78: 6 | DY78: 6 | DZ78: 6 | EA78: 6 | EB78: 6 | EC78: 6 | ED78: 6 | EE78: 6 | EF78: 6 | EG78: 6 | EH78: 6 | EI78: 6 | EJ78: 6 | EK78: 6 | EL78: 6 | EM78: 6 | EN78: 6 | EO78: 6 | EP78: 6 | EQ78: 6 | ER78: 6 | ES78: 6 | ET78: 6 | EU78: 6 | EV78: 6 | EW78: 6 | EX78: 6 | EY78: 6 | EZ78: 6 | FA78: 6 | FB78: 6 | FC78: 6 | FD78: 6 | FE78: 6 | FF78: 6 | FG78: 6 | FH78: 6 | FI78: 6 | FJ78: 6 | FK78: 6 | FL78: 6 | FM78: 6 | FN78: 6 | FO78: 6 | FP78: 6 | FQ78: 6 | FR78: 6 | FS78: 6 | FT78: 6 | FU78: 6 | FV78: 6 | FW78: 6 | FX78: 6 | FY78: 6 | FZ78: 6 | GA78: 6 | GB78: 6 | GC78: 6 | GD78: 6 | GE78: 6 | GF78: 6 | GG78: 6 | GH78: 6 | GI78: 6 | GJ78: 6 | GK78: 6 | GL78: 6 | GM78: 6 | GN78: 6 | GO78: 6 | GP78: 6 | GQ78: 6 | GR78: 6 | GS78: 6 | GT78: 6 | GU78: 6 | GV78: 6 | GW78: 6 | GX78: 6 | GY78: 6 | GZ78: 6 | HA78: 6 | HB78: 6 | HC78: 6 | HD78: 6 | HE78: 6 | HF78: 6 | HG78: 6 | HH78: 6 | HI78: 6 | HJ78: 6 | HK78: 6 | HL78: 6 | HM78: 6 | HN78: 6 | HO78: 6 | HP78: 6 | HQ78: 6 | HR78: 6 | HS78: 6 | HT78: 6 | HU78: 6 | HV78: 6 | HW78: 6 | HX78: 6 | HY78: 6 | HZ78: 6 | IA78: 6 | IB78: 6 | IC78: 6 | ID78: 6 | IE78: 6 | IF78: 6 | IG78: 6 | IH78: 6 | II78: 6 | IJ78: 6 | IK78: 6 | IL78: 6 | IM78: 6 | IN78: 6 | IO78: 6 | IP78: 6 | IQ78: 6 | IR78: 6 | IS78: 6 | IT78: 6 | IU78: 6 | IV78: 6 | IW78: 6 | IX78: 6 | IY78: 6 | IZ78: 6 | JA78: 6 | JB78: 6 | JC78: 6 | JD78: 6 | JE78: 6
F79: 7000 | G79: 10 | H79: 7 | I79: ='Lease Roll Scenarios'!E15 -> 2017-05-05 | J79: 65 | K79: 0.8666666667 | L79: 0 | M79: TRUE | N79: 5 | O79: 2017-10-05 | P79: 71 | Q79: 0.9333333333 | R79: 8.112243867 | S79: 36 | T79: 2020-10-05 | U79: 107 | V79: TRUE | W79: 3 | X79: 2021-01-05 | Z79: 1 | AA79: 1 | AB79: 1 | AC79: 1 | AD79: 1 | AE79: 1 | AF79: 1 | AG79: 1 | AH79: =lease_codes(AH$2,AH$3,$I79,$N79,$S79,$W79) -> 1 | AI79: 1 | AJ79: 1 | AK79: 1 | AL79: 1 | AM79: 1 | AN79: 1 | AO79: 1 | AP79: 1 | AQ79: 1 | AR79: 1 | AS79: 1 | AT79: 1 | AU79: 1 | AV79: 1 | AW79: 1 | AX79: 1 | AY79: 1 | AZ79: 1 | BA79: 1 | BB79: 1 | BC79: 1 | BD79: 1 | BE79: 1 | BF79: 1 | BG79: 1 | BH79: 1 | BI79: 1 | BJ79: 1 | BK79: 1 | BL79: 1 | BM79: 1 | BN79: 2 | BO79: 3 | BP79: 3 | BQ79: 3 | BR79: 3 | BS79: 3 | BT79: 4 | BU79: 4 | BV79: 4 | BW79: 4 | BX79: 4 | BY79: 4 | BZ79: 4 | CA79: 4 | CB79: 4 | CC79: 4 | CD79: 4 | CE79: 4 | CF79: 4 | CG79: 4 | CH79: 4 | CI79: 4 | CJ79: 4 | CK79: 4 | CL79: 4 | CM79: 4 | CN79: 4 | CO79: 4 | CP79: 4 | CQ79: 4 | CR79: 4 | CS79: 4 | CT79: 4 | CU79: 4 | CV79: 4 | CW79: 4 | CX79: 4 | CY79: 4 | CZ79: 4 | DA79: 4 | DB79: 4 | DC79: 4 | DD79: 5 | DE79: 5 | DF79: 5 | DG79: 6 | DH79: 6 | DI79: 6 | DJ79: 6 | DK79: 6 | DL79: 6 | DM79: 6 | DN79: 6 | DO79: 6 | DP79: 6 | DQ79: 6 | DR79: 6 | DS79: 6 | DT79: 6 | DU79: 6 | DV79: 6 | DW79: 6 | DX79: 6 | DY79: 6 | DZ79: 6 | EA79: 6 | EB79: 6 | EC79: 6 | ED79: 6 | EE79: 6 | EF79: 6 | EG79: 6 | EH79: 6 | EI79: 6 | EJ79: 6 | EK79: 6 | EL79: 6 | EM79: 6 | EN79: 6 | EO79: 6 | EP79: 6 | EQ79: 6 | ER79: 6 | ES79: 6 | ET79: 6 | EU79: 6 | EV79: 6 | EW79: 6 | EX79: 6 | EY79: 6 | EZ79: 6 | FA79: 6 | FB79: 6 | FC79: 6 | FD79: 6 | FE79: 6 | FF79: 6 | FG79: 6 | FH79: 6 | FI79: 6 | FJ79: 6 | FK79: 6 | FL79: 6 | FM79: 6 | FN79: 6 | FO79: 6 | FP79: 6 | FQ79: 6 | FR79: 6 | FS79: 6 | FT79: 6 | FU79: 6 | FV79: 6 | FW79: 6 | FX79: 6 | FY79: 6 | FZ79: 6 | GA79: 6 | GB79: 6 | GC79: 6 | GD79: 6 | GE79: 6 | GF79: 6 | GG79: 6 | GH79: 6 | GI79: 6 | GJ79: 6 | GK79: 6 | GL79: 6 | GM79: 6 | GN79: 6 | GO79: 6 | GP79: 6 | GQ79: 6 | GR79: 6 | GS79: 6 | GT79: 6 | GU79: 6 | GV79: 6 | GW79: 6 | GX79: 6 | GY79: 6 | GZ79: 6 | HA79: 6 | HB79: 6 | HC79: 6 | HD79: 6 | HE79: 6 | HF79: 6 | HG79: 6 | HH79: 6 | HI79: 6 | HJ79: 6 | HK79: 6 | HL79: 6 | HM79: 6 | HN79: 6 | HO79: 6 | HP79: 6 | HQ79: 6 | HR79: 6 | HS79: 6 | HT79: 6 | HU79: 6 | HV79: 6 | HW79: 6 | HX79: 6 | HY79: 6 | HZ79: 6 | IA79: 6 | IB79: 6 | IC79: 6 | ID79: 6 | IE79: 6 | IF79: 6 | IG79: 6 | IH79: 6 | II79: 6 | IJ79: 6 | IK79: 6 | IL79: 6 | IM79: 6 | IN79: 6 | IO79: 6 | IP79: 6 | IQ79: 6 | IR79: 6 | IS79: 6 | IT79: 6 | IU79: 6 | IV79: 6 | IW79: 6 | IX79: 6 | IY79: 6 | IZ79: 6 | JA79: 6 | JB79: 6 | JC79: 6 | JD79: 6 | JE79: 6
F80: 3000 | G80: 11 | H80: 9 | I80: ='Lease Roll Scenarios'!E16 -> 2020-05-06 | J80: 101 | K80: 0.8333333333 | L80: 0 | M80: TRUE | N80: 4 | O80: 2020-09-06 | P80: 106 | Q80: 1.5 | R80: 10.59916384 | S80: 36 | T80: 2023-09-06 | U80: 142 | V80: TRUE | W80: 5 | X80: 2024-02-06 | Z80: 1 | AA80: =lease_codes(AA$2,AA$3,$I80,$N80,$S80,$W80) -> 1 | AB80: 1 | AC80: 1 | AD80: 1 | AE80: 1 | AF80: 1 | AG80: 1 | AH80: 1 | AI80: 1 | AJ80: 1 | AK80: 1 | AL80: 1 | AM80: 1 | AN80: 1 | AO80: 1 | AP80: 1 | AQ80: 1 | AR80: 1 | AS80: 1 | AT80: 1 | AU80: 1 | AV80: 1 | AW80: 1 | AX80: 1 | AY80: 1 | AZ80: 1 | BA80: 1 | BB80: 1 | BC80: 1 | BD80: 1 | BE80: 1 | BF80: 1 | BG80: 1 | BH80: 1 | BI80: 1 | BJ80: 1 | BK80: 1 | BL80: 1 | BM80: 1 | BN80: 1 | BO80: 1 | BP80: 1 | BQ80: 1 | BR80: 1 | BS80: 1 | BT80: 1 | BU80: 1 | BV80: 1 | BW80: 1 | BX80: 1 | BY80: 1 | BZ80: 1 | CA80: 1 | CB80: 1 | CC80: 1 | CD80: 1 | CE80: 1 | CF80: 1 | CG80: 1 | CH80: 1 | CI80: 1 | CJ80: 1 | CK80: 1 | CL80: 1 | CM80: 1 | CN80: 1 | CO80: 1 | CP80: 1 | CQ80: 1 | CR80: 1 | CS80: 1 | CT80: 1 | CU80: 1 | CV80: 1 | CW80: 1 | CX80: 2 | CY80: 3 | CZ80: 3 | DA80: 3 | DB80: 3 | DC80: 4 | DD80: 4 | DE80: 4 | DF80: 4 | DG80: 4 | DH80: 4 | DI80: 4 | DJ80: 4 | DK80: 4 | DL80: 4 | DM80: 4 | DN80: 4 | DO80: 4 | DP80: 4 | DQ80: 4 | DR80: 4 | DS80: 4 | DT80: 4 | DU80: 4 | DV80: 4 | DW80: 4 | DX80: 4 | DY80: 4 | DZ80: 4 | EA80: 4 | EB80: 4 | EC80: 4 | ED80: 4 | EE80: 4 | EF80: 4 | EG80: 4 | EH80: 4 | EI80: 4 | EJ80: 4 | EK80: 4 | EL80: 4 | EM80: 5 | EN80: 5 | EO80: 5 | EP80: 5 | EQ80: 5 | ER80: 6 | ES80: 6 | ET80: 6 | EU80: 6 | EV80: 6 | EW80: 6 | EX80: 6 | EY80: 6 | EZ80: 6 | FA80: 6 | FB80: 6 | FC80: 6 | FD80: 6 | FE80: 6 | FF80: 6 | FG80: 6 | FH80: 6 | FI80: 6 | FJ80: 6 | FK80: 6 | FL80: 6 | FM80: 6 | FN80: 6 | FO80: 6 | FP80: 6 | FQ80: 6 | FR80: 6 | FS80: 6 | FT80: 6 | FU80: 6 | FV80: 6 | FW80: 6 | FX80: 6 | FY80: 6 | FZ80: 6 | GA80: 6 | GB80: 6 | GC80: 6 | GD80: 6 | GE80: 6 | GF80: 6 | GG80: 6 | GH80: 6 | GI80: 6 | GJ80: 6 | GK80: 6 | GL80: 6 | GM80: 6 | GN80: 6 | GO80: 6 | GP80: 6 | GQ80: 6 | GR80: 6 | GS80: 6 | GT80: 6 | GU80: 6 | GV80: 6 | GW80: 6 | GX80: 6 | GY80: 6 | GZ80: 6 | HA80: 6 | HB80: 6 | HC80: 6 | HD80: 6 | HE80: 6 | HF80: 6 | HG80: 6 | HH80: 6 | HI80: 6 | HJ80: 6 | HK80: 6 | HL80: 6 | HM80: 6 | HN80: 6 | HO80: 6 | HP80: 6 | HQ80: 6 | HR80: 6 | HS80: 6 | HT80: 6 | HU80: 6 | HV80: 6 | HW80: 6 | HX80: 6 | HY80: 6 | HZ80: 6 | IA80: 6 | IB80: 6 | IC80: 6 | ID80: 6 | IE80: 6 | IF80: 6 | IG80: 6 | IH80: 6 | II80: 6 | IJ80: 6 | IK80: 6 | IL80: 6 | IM80: 6 | IN80: 6 | IO80: 6 | IP80: 6 | IQ80: 6 | IR80: 6 | IS80: 6 | IT80: 6 | IU80: 6 | IV80: 6 | IW80: 6 | IX80: 6 | IY80: 6 | IZ80: 6 | JA80: 6 | JB80: 6 | JC80: 6 | JD80: 6 | JE80: 6
F81: 5000 | G81: 12 | H81: 6 | I81: ='Lease Roll Scenarios'!E17 -> 2014-01-01 | J81: 25 | K81: 1 | L81: 0 | M81: TRUE | N81: 6 | O81: 2014-07-01 | P81: 32 | Q81: 0 | R81: 8.462607362 | S81: 36 | T81: 2017-07-01 | U81: 68 | V81: TRUE | W81: 5 | X81: 2017-12-01 | Z81: 3 | AA81: 3 | AB81: 3 | AC81: 3 | AD81: 3 | AE81: 3 | AF81: 3 | AG81: 4 | AH81: 4 | AI81: 4 | AJ81: 4 | AK81: 4 | AL81: 4 | AM81: 4 | AN81: 4 | AO81: 4 | AP81: 4 | AQ81: 4 | AR81: 4 | AS81: 4 | AT81: 4 | AU81: 4 | AV81: 4 | AW81: 4 | AX81: 4 | AY81: 4 | AZ81: 4 | BA81: 4 | BB81: 4 | BC81: 4 | BD81: 4 | BE81: 4 | BF81: 4 | BG81: 4 | BH81: 4 | BI81: 4 | BJ81: 4 | BK81: 4 | BL81: 4 | BM81: 4 | BN81: 4 | BO81: 4 | BP81: 4 | BQ81: 5 | BR81: 5 | BS81: 5 | BT81: 5 | BU81: 5 | BV81: 6 | BW81: 6 | BX81: 6 | BY81: 6 | BZ81: 6 | CA81: 6 | CB81: 6 | CC81: 6 | CD81: 6 | CE81: 6 | CF81: 6 | CG81: 6 | CH81: 6 | CI81: 6 | CJ81: 6 | CK81: 6 | CL81: 6 | CM81: 6 | CN81: 6 | CO81: 6 | CP81: 6 | CQ81: 6 | CR81: 6 | CS81: 6 | CT81: 6 | CU81: 6 | CV81: 6 | CW81: 6 | CX81: 6 | CY81: 6 | CZ81: 6 | DA81: 6 | DB81: 6 | DC81: 6 | DD81: 6 | DE81: 6 | DF81: 6 | DG81: 6 | DH81: 6 | DI81: 6 | DJ81: 6 | DK81: 6 | DL81: 6 | DM81: 6 | DN81: 6 | DO81: 6 | DP81: 6 | DQ81: 6 | DR81: 6 | DS81: 6 | DT81: 6 | DU81: 6 | DV81: 6 | DW81: 6 | DX81: 6 | DY81: 6 | DZ81: 6 | EA81: 6 | EB81: 6 | EC81: 6 | ED81: 6 | EE81: 6 | EF81: 6 | EG81: 6 | EH81: 6 | EI81: 6 | EJ81: 6 | EK81: 6 | EL81: 6 | EM81: 6 | EN81: 6 | EO81: 6 | EP81: 6 | EQ81: 6 | ER81: 6 | ES81: 6 | ET81: 6 | EU81: 6 | EV81: 6 | EW81: 6 | EX81: 6 | EY81: 6 | EZ81: 6 | FA81: 6 | FB81: 6 | FC81: =lease_codes(FC$2,FC$3,$I81,$N81,$S81,$W81) -> 6 | FD81: 6 | FE81: 6 | FF81: 6 | FG81: 6 | FH81: 6 | FI81: 6 | FJ81: 6 | FK81: 6 | FL81: 6 | FM81: 6 | FN81: 6 | FO81: 6 | FP81: 6 | FQ81: 6 | FR81: 6 | FS81: 6 | FT81: 6 | FU81: 6 | FV81: 6 | FW81: 6 | FX81: 6 | FY81: 6 | FZ81: 6 | GA81: 6 | GB81: 6 | GC81: 6 | GD81: 6 | GE81: 6 | GF81: 6 | GG81: 6 | GH81: 6 | GI81: 6 | GJ81: 6 | GK81: 6 | GL81: 6 | GM81: 6 | GN81: 6 | GO81: 6 | GP81: 6 | GQ81: 6 | GR81: 6 | GS81: 6 | GT81: 6 | GU81: 6 | GV81: 6 | GW81: 6 | GX81: 6 | GY81: 6 | GZ81: 6 | HA81: 6 | HB81: 6 | HC81: 6 | HD81: 6 | HE81: 6 | HF81: 6 | HG81: 6 | HH81: 6 | HI81: 6 | HJ81: 6 | HK81: 6 | HL81: 6 | HM81: 6 | HN81: 6 | HO81: 6 | HP81: 6 | HQ81: 6 | HR81: 6 | HS81: 6 | HT81: 6 | HU81: 6 | HV81: 6 | HW81: 6 | HX81: 6 | HY81: 6 | HZ81: 6 | IA81: 6 | IB81: 6 | IC81: 6 | ID81: 6 | IE81: 6 | IF81: 6 | IG81: 6 | IH81: 6 | II81: 6 | IJ81: 6 | IK81: 6 | IL81: 6 | IM81: 6 | IN81: 6 | IO81: 6 | IP81: 6 | IQ81: 6 | IR81: 6 | IS81: 6 | IT81: 6 | IU81: 6 | IV81: 6 | IW81: 6 | IX81: 6 | IY81: 6 | IZ81: 6 | JA81: 6 | JB81: 6 | JC81: 6 | JD81: 6 | JE81: 6
F82: 9000 | G82: 13 | H82: 7 | I82: ='Lease Roll Scenarios'!E18 -> 2015-05-07 | J82: 41 | K82: 0.8 | L82: 0 | M82: TRUE | N82: 5 | O82: 2015-10-07 | P82: 47 | Q82: 1.4 | R82: 10.34721714 | S82: 36 | T82: 2018-10-07 | U82: 83 | V82: TRUE | W82: 7 | X82: 2019-05-07 | Z82: 1 | AA82: 1 | AB82: 1 | AC82: 1 | AD82: 1 | AE82: 1 | AF82: 1 | AG82: 1 | AH82: 1 | AI82: 1 | AJ82: 1 | AK82: 1 | AL82: 1 | AM82: 1 | AN82: 1 | AO82: 1 | AP82: 2 | AQ82: 3 | AR82: 3 | AS82: 3 | AT82: 3 | AU82: 3 | AV82: 4 | AW82: 4 | AX82: 4 | AY82: 4 | AZ82: 4 | BA82: 4 | BB82: 4 | BC82: 4 | BD82: 4 | BE82: 4 | BF82: 4 | BG82: 4 | BH82: 4 | BI82: 4 | BJ82: 4 | BK82: 4 | BL82: 4 | BM82: 4 | BN82: 4 | BO82: 4 | BP82: 4 | BQ82: 4 | BR82: 4 | BS82: 4 | BT82: 4 | BU82: 4 | BV82: 4 | BW82: 4 | BX82: 4 | BY82: 4 | BZ82: 4 | CA82: 4 | CB82: 4 | CC82: 4 | CD82: 4 | CE82: 4 | CF82: 5 | CG82: 5 | CH82: 5 | CI82: 5 | CJ82: 5 | CK82: 5 | CL82: 5 | CM82: 6 | CN82: 6 | CO82: 6 | CP82: 6 | CQ82: 6 | CR82: =lease_codes(CR$2,CR$3,$I82,$N82,$S82,$W82) -> 6 | CS82: 6 | CT82: =lease_codes(CT$2,CT$3,$I82,$N82,$S82,$W82) -> 6 | CU82: 6 | CV82: 6 | CW82: 6 | CX82: 6 | CY82: 6 | CZ82: 6 | DA82: 6 | DB82: 6 | DC82: 6 | DD82: 6 | DE82: 6 | DF82: 6 | DG82: 6 | DH82: 6 | DI82: 6 | DJ82: 6 | DK82: 6 | DL82: 6 | DM82: 6 | DN82: 6 | DO82: 6 | DP82: 6 | DQ82: 6 | DR82: 6 | DS82: 6 | DT82: 6 | DU82: 6 | DV82: 6 | DW82: 6 | DX82: 6 | DY82: 6 | DZ82: 6 | EA82: 6 | EB82: 6 | EC82: 6 | ED82: 6 | EE82: 6 | EF82: 6 | EG82: 6 | EH82: 6 | EI82: 6 | EJ82: 6 | EK82: 6 | EL82: 6 | EM82: 6 | EN82: 6 | EO82: 6 | EP82: 6 | EQ82: 6 | ER82: 6 | ES82: 6 | ET82: 6 | EU82: 6 | EV82: 6 | EW82: 6 | EX82: 6 | EY82: 6 | EZ82: 6 | FA82: 6 | FB82: 6 | FC82: 6 | FD82: 6 | FE82: 6 | FF82: 6 | FG82: 6 | FH82: 6 | FI82: 6 | FJ82: 6 | FK82: 6 | FL82: 6 | FM82: 6 | FN82: 6 | FO82: 6 | FP82: 6 | FQ82: 6 | FR82: 6 | FS82: 6 | FT82: 6 | FU82: 6 | FV82: 6 | FW82: 6 | FX82: 6 | FY82: 6 | FZ82: 6 | GA82: 6 | GB82: 6 | GC82: 6 | GD82: 6 | GE82: 6 | GF82: 6 | GG82: 6 | GH82: 6 | GI82: 6 | GJ82: 6 | GK82: 6 | GL82: 6 | GM82: 6 | GN82: 6 | GO82: 6 | GP82: 6 | GQ82: 6 | GR82: 6 | GS82: 6 | GT82: 6 | GU82: 6 | GV82: 6 | GW82: 6 | GX82: 6 | GY82: 6 | GZ82: 6 | HA82: 6 | HB82: 6 | HC82: 6 | HD82: 6 | HE82: 6 | HF82: 6 | HG82: 6 | HH82: 6 | HI82: 6 | HJ82: 6 | HK82: 6 | HL82: 6 | HM82: 6 | HN82: 6 | HO82: 6 | HP82: 6 | HQ82: 6 | HR82: 6 | HS82: =lease_codes(HS$2,HS$3,$I82,$N82,$S82,$W82) -> 6 | HT82: 6 | HU82: 6 | HV82: 6 | HW82: 6 | HX82: 6 | HY82: 6 | HZ82: 6 | IA82: 6 | IB82: 6 | IC82: 6 | ID82: 6 | IE82: 6 | IF82: 6 | IG82: 6 | IH82: 6 | II82: 6 | IJ82: 6 | IK82: 6 | IL82: 6 | IM82: 6 | IN82: 6 | IO82: 6 | IP82: 6 | IQ82: 6 | IR82: 6 | IS82: 6 | IT82: 6 | IU82: 6 | IV82: 6 | IW82: 6 | IX82: 6 | IY82: 6 | IZ82: 6 | JA82: 6 | JB82: 6 | JC82: 6 | JD82: 6 | JE82: 6
F83: 10000 | G83: 14 | H83: 7 | I83: ='Lease Roll Scenarios'!E19 -> 2015-05-07 | J83: 41 | K83: 0.8 | L83: 0 | M83: TRUE | N83: 5 | O83: 2015-10-07 | P83: 47 | Q83: 1.4 | R83: 10.34721714 | S83: 36 | T83: 2018-10-07 | U83: 83 | V83: TRUE | W83: 7 | X83: 2019-05-07 | Z83: 1 | AA83: 1 | AB83: 1 | AC83: 1 | AD83: 1 | AE83: 1 | AF83: 1 | AG83: 1 | AH83: 1 | AI83: 1 | AJ83: 1 | AK83: 1 | AL83: 1 | AM83: 1 | AN83: 1 | AO83: 1 | AP83: 2 | AQ83: 3 | AR83: 3 | AS83: 3 | AT83: 3 | AU83: 3 | AV83: 4 | AW83: 4 | AX83: 4 | AY83: 4 | AZ83: 4 | BA83: 4 | BB83: 4 | BC83: 4 | BD83: 4 | BE83: 4 | BF83: 4 | BG83: 4 | BH83: 4 | BI83: 4 | BJ83: 4 | BK83: 4 | BL83: 4 | BM83: 4 | BN83: 4 | BO83: 4 | BP83: 4 | BQ83: 4 | BR83: 4 | BS83: 4 | BT83: 4 | BU83: 4 | BV83: 4 | BW83: 4 | BX83: 4 | BY83: 4 | BZ83: 4 | CA83: 4 | CB83: 4 | CC83: 4 | CD83: 4 | CE83: 4 | CF83: 5 | CG83: 5 | CH83: 5 | CI83: 5 | CJ83: 5 | CK83: 5 | CL83: 5 | CM83: 6 | CN83: 6 | CO83: 6 | CP83: 6 | CQ83: 6 | CR83: 6 | CS83: 6 | CT83: 6 | CU83: 6 | CV83: 6 | CW83: 6 | CX83: 6 | CY83: 6 | CZ83: 6 | DA83: 6 | DB83: 6 | DC83: 6 | DD83: 6 | DE83: 6 | DF83: 6 | DG83: 6 | DH83: 6 | DI83: 6 | DJ83: 6 | DK83: 6 | DL83: 6 | DM83: 6 | DN83: 6 | DO83: 6 | DP83: 6 | DQ83: 6 | DR83: 6 | DS83: 6 | DT83: 6 | DU83: 6 | DV83: 6 | DW83: 6 | DX83: 6 | DY83: 6 | DZ83: 6 | EA83: 6 | EB83: 6 | EC83: 6 | ED83: 6 | EE83: 6 | EF83: 6 | EG83: 6 | EH83: 6 | EI83: 6 | EJ83: 6 | EK83: 6 | EL83: 6 | EM83: 6 | EN83: 6 | EO83: 6 | EP83: 6 | EQ83: 6 | ER83: 6 | ES83: 6 | ET83: 6 | EU83: 6 | EV83: 6 | EW83: 6 | EX83: 6 | EY83: 6 | EZ83: 6 | FA83: 6 | FB83: 6 | FC83: 6 | FD83: 6 | FE83: 6 | FF83: 6 | FG83: 6 | FH83: 6 | FI83: 6 | FJ83: 6 | FK83: 6 | FL83: 6 | FM83: 6 | FN83: 6 | FO83: 6 | FP83: 6 | FQ83: 6 | FR83: 6 | FS83: 6 | FT83: 6 | FU83: 6 | FV83: 6 | FW83: 6 | FX83: 6 | FY83: 6 | FZ83: 6 | GA83: 6 | GB83: 6 | GC83: 6 | GD83: 6 | GE83: 6 | GF83: 6 | GG83: 6 | GH83: 6 | GI83: 6 | GJ83: 6 | GK83: 6 | GL83: 6 | GM83: 6 | GN83: 6 | GO83: 6 | GP83: 6 | GQ83: 6 | GR83: 6 | GS83: 6 | GT83: 6 | GU83: 6 | GV83: 6 | GW83: 6 | GX83: 6 | GY83: 6 | GZ83: 6 | HA83: 6 | HB83: 6 | HC83: 6 | HD83: 6 | HE83: 6 | HF83: 6 | HG83: 6 | HH83: 6 | HI83: 6 | HJ83: 6 | HK83: 6 | HL83: 6 | HM83: 6 | HN83: 6 | HO83: 6 | HP83: =lease_codes(HP$2,HP$3,$I83,$N83,$S83,$W83) -> 6 | HQ83: 6 | HR83: 6 | HS83: 6 | HT83: 6 | HU83: 6 | HV83: 6 | HW83: 6 | HX83: 6 | HY83: 6 | HZ83: 6 | IA83: 6 | IB83: 6 | IC83: 6 | ID83: 6 | IE83: 6 | IF83: 6 | IG83: 6 | IH83: 6 | II83: 6 | IJ83: 6 | IK83: 6 | IL83: 6 | IM83: 6 | IN83: 6 | IO83: 6 | IP83: 6 | IQ83: 6 | IR83: 6 | IS83: 6 | IT83: 6 | IU83: 6 | IV83: 6 | IW83: 6 | IX83: 6 | IY83: 6 | IZ83: 6 | JA83: 6 | JB83: 6 | JC83: 6 | JD83: 6 | JE83: 6
F84: 8000 | G84: 15 | H84: 6 | I84: ='Lease Roll Scenarios'!E20 -> 2015-05-07 | J84: 41 | K84: 0.8 | L84: 0 | M84: TRUE | N84: 5 | O84: 2015-10-07 | P84: 47 | Q84: 1.2 | R84: 10.34721714 | S84: 36 | T84: 2018-10-07 | U84: 83 | V84: TRUE | W84: 7 | X84: 2019-05-07 | Z84: 1 | AA84: 1 | AB84: 1 | AC84: 1 | AD84: 1 | AE84: 1 | AF84: 1 | AG84: 1 | AH84: =lease_codes(AH$2,AH$3,$I84,$N84,$S84,$W84) -> 1 | AI84: 1 | AJ84: 1 | AK84: 1 | AL84: 1 | AM84: 1 | AN84: 1 | AO84: 1 | AP84: 2 | AQ84: 3 | AR84: 3 | AS84: 3 | AT84: 3 | AU84: 3 | AV84: 4 | AW84: 4 | AX84: 4 | AY84: 4 | AZ84: 4 | BA84: 4 | BB84: 4 | BC84: 4 | BD84: 4 | BE84: 4 | BF84: 4 | BG84: 4 | BH84: 4 | BI84: 4 | BJ84: 4 | BK84: 4 | BL84: 4 | BM84: 4 | BN84: 4 | BO84: 4 | BP84: 4 | BQ84: 4 | BR84: 4 | BS84: 4 | BT84: 4 | BU84: 4 | BV84: 4 | BW84: 4 | BX84: 4 | BY84: 4 | BZ84: 4 | CA84: 4 | CB84: 4 | CC84: 4 | CD84: 4 | CE84: 4 | CF84: 5 | CG84: 5 | CH84: 5 | CI84: 5 | CJ84: 5 | CK84: 5 | CL84: 5 | CM84: 6 | CN84: 6 | CO84: 6 | CP84: 6 | CQ84: 6 | CR84: 6 | CS84: 6 | CT84: 6 | CU84: 6 | CV84: 6 | CW84: 6 | CX84: 6 | CY84: 6 | CZ84: 6 | DA84: 6 | DB84: 6 | DC84: 6 | DD84: 6 | DE84: 6 | DF84: 6 | DG84: 6 | DH84: 6 | DI84: 6 | DJ84: 6 | DK84: 6 | DL84: 6 | DM84: 6 | DN84: 6 | DO84: 6 | DP84: 6 | DQ84: 6 | DR84: 6 | DS84: 6 | DT84: 6 | DU84: 6 | DV84: 6 | DW84: 6 | DX84: 6 | DY84: 6 | DZ84: 6 | EA84: 6 | EB84: 6 | EC84: 6 | ED84: 6 | EE84: 6 | EF84: 6 | EG84: 6 | EH84: 6 | EI84: 6 | EJ84: 6 | EK84: 6 | EL84: 6 | EM84: 6 | EN84: 6 | EO84: 6 | EP84: 6 | EQ84: 6 | ER84: 6 | ES84: 6 | ET84: 6 | EU84: 6 | EV84: 6 | EW84: 6 | EX84: 6 | EY84: 6 | EZ84: 6 | FA84: 6 | FB84: 6 | FC84: 6 | FD84: 6 | FE84: 6 | FF84: 6 | FG84: 6 | FH84: 6 | FI84: 6 | FJ84: 6 | FK84: 6 | FL84: 6 | FM84: 6 | FN84: 6 | FO84: 6 | FP84: 6 | FQ84: 6 | FR84: 6 | FS84: 6 | FT84: 6 | FU84: 6 | FV84: 6 | FW84: 6 | FX84: 6 | FY84: 6 | FZ84: 6 | GA84: 6 | GB84: 6 | GC84: 6 | GD84: 6 | GE84: 6 | GF84: 6 | GG84: 6 | GH84: 6 | GI84: 6 | GJ84: 6 | GK84: 6 | GL84: 6 | GM84: 6 | GN84: 6 | GO84: 6 | GP84: 6 | GQ84: 6 | GR84: 6 | GS84: 6 | GT84: 6 | GU84: 6 | GV84: 6 | GW84: 6 | GX84: 6 | GY84: 6 | GZ84: 6 | HA84: 6 | HB84: 6 | HC84: 6 | HD84: 6 | HE84: 6 | HF84: 6 | HG84: 6 | HH84: 6 | HI84: 6 | HJ84: 6 | HK84: 6 | HL84: 6 | HM84: 6 | HN84: 6 | HO84: 6 | HP84: 6 | HQ84: 6 | HR84: 6 | HS84: 6 | HT84: 6 | HU84: 6 | HV84: 6 | HW84: 6 | HX84: 6 | HY84: 6 | HZ84: 6 | IA84: 6 | IB84: 6 | IC84: 6 | ID84: 6 | IE84: 6 | IF84: 6 | IG84: 6 | IH84: 6 | II84: 6 | IJ84: 6 | IK84: 6 | IL84: 6 | IM84: 6 | IN84: 6 | IO84: 6 | IP84: 6 | IQ84: 6 | IR84: 6 | IS84: 6 | IT84: 6 | IU84: 6 | IV84: 6 | IW84: 6 | IX84: 6 | IY84: 6 | IZ84: 6 | JA84: 6 | JB84: 6 | JC84: 6 | JD84: 6 | JE84: 6
F85: 5000 | G85: 16 | H85: 9 | I85: ='Lease Roll Scenarios'!E21 -> 2014-01-01 | J85: 25 | K85: 1 | L85: 0 | M85: TRUE | N85: 6 | O85: 2014-07-01 | P85: 32 | Q85: 0 | R85: 8.462607362 | S85: 36 | T85: 2017-07-01 | U85: 68 | V85: TRUE | W85: 5 | X85: 2017-12-01 | Z85: 3 | AA85: =lease_codes(AA$2,AA$3,$I85,$N85,$S85,$W85) -> 3 | AB85: 3 | AC85: 3 | AD85: 3 | AE85: 3 | AF85: 3 | AG85: 4 | AH85: 4 | AI85: 4 | AJ85: 4 | AK85: 4 | AL85: 4 | AM85: 4 | AN85: 4 | AO85: 4 | AP85: 4 | AQ85: 4 | AR85: 4 | AS85: 4 | AT85: 4 | AU85: 4 | AV85: 4 | AW85: 4 | AX85: 4 | AY85: 4 | AZ85: 4 | BA85: 4 | BB85: 4 | BC85: 4 | BD85: 4 | BE85: 4 | BF85: 4 | BG85: 4 | BH85: 4 | BI85: 4 | BJ85: 4 | BK85: 4 | BL85: 4 | BM85: 4 | BN85: 4 | BO85: 4 | BP85: 4 | BQ85: 5 | BR85: 5 | BS85: 5 | BT85: 5 | BU85: 5 | BV85: 6 | BW85: 6 | BX85: 6 | BY85: 6 | BZ85: 6 | CA85: 6 | CB85: 6 | CC85: 6 | CD85: 6 | CE85: 6 | CF85: 6 | CG85: 6 | CH85: 6 | CI85: 6 | CJ85: 6 | CK85: 6 | CL85: 6 | CM85: 6 | CN85: 6 | CO85: 6 | CP85: 6 | CQ85: 6 | CR85: 6 | CS85: 6 | CT85: 6 | CU85: 6 | CV85: 6 | CW85: 6 | CX85: 6 | CY85: 6 | CZ85: 6 | DA85: 6 | DB85: 6 | DC85: 6 | DD85: 6 | DE85: 6 | DF85: 6 | DG85: 6 | DH85: 6 | DI85: 6 | DJ85: 6 | DK85: 6 | DL85: 6 | DM85: 6 | DN85: 6 | DO85: 6 | DP85: 6 | DQ85: 6 | DR85: 6 | DS85: 6 | DT85: 6 | DU85: 6 | DV85: 6 | DW85: 6 | DX85: 6 | DY85: 6 | DZ85: 6 | EA85: 6 | EB85: 6 | EC85: 6 | ED85: 6 | EE85: 6 | EF85: 6 | EG85: 6 | EH85: 6 | EI85: 6 | EJ85: 6 | EK85: 6 | EL85: 6 | EM85: 6 | EN85: 6 | EO85: 6 | EP85: 6 | EQ85: 6 | ER85: 6 | ES85: 6 | ET85: 6 | EU85: 6 | EV85: 6 | EW85: 6 | EX85: 6 | EY85: 6 | EZ85: 6 | FA85: 6 | FB85: 6 | FC85: =lease_codes(FC$2,FC$3,$I85,$N85,$S85,$W85) -> 6 | FD85: 6 | FE85: 6 | FF85: 6 | FG85: 6 | FH85: 6 | FI85: 6 | FJ85: 6 | FK85: 6 | FL85: 6 | FM85: 6 | FN85: 6 | FO85: 6 | FP85: 6 | FQ85: 6 | FR85: 6 | FS85: 6 | FT85: 6 | FU85: 6 | FV85: 6 | FW85: 6 | FX85: 6 | FY85: 6 | FZ85: 6 | GA85: 6 | GB85: 6 | GC85: 6 | GD85: 6 | GE85: 6 | GF85: 6 | GG85: 6 | GH85: 6 | GI85: 6 | GJ85: 6 | GK85: 6 | GL85: 6 | GM85: 6 | GN85: 6 | GO85: 6 | GP85: 6 | GQ85: 6 | GR85: 6 | GS85: 6 | GT85: 6 | GU85: 6 | GV85: 6 | GW85: 6 | GX85: 6 | GY85: 6 | GZ85: 6 | HA85: 6 | HB85: 6 | HC85: 6 | HD85: 6 | HE85: 6 | HF85: 6 | HG85: 6 | HH85: 6 | HI85: 6 | HJ85: 6 | HK85: 6 | HL85: 6 | HM85: 6 | HN85: 6 | HO85: 6 | HP85: 6 | HQ85: 6 | HR85: 6 | HS85: 6 | HT85: 6 | HU85: 6 | HV85: 6 | HW85: 6 | HX85: 6 | HY85: 6 | HZ85: 6 | IA85: 6 | IB85: 6 | IC85: 6 | ID85: 6 | IE85: 6 | IF85: 6 | IG85: 6 | IH85: 6 | II85: 6 | IJ85: 6 | IK85: 6 | IL85: 6 | IM85: 6 | IN85: 6 | IO85: 6 | IP85: 6 | IQ85: 6 | IR85: 6 | IS85: 6 | IT85: 6 | IU85: 6 | IV85: 6 | IW85: 6 | IX85: 6 | IY85: 6 | IZ85: 6 | JA85: 6 | JB85: 6 | JC85: 6 | JD85: 6 | JE85: 6
F86: 6000 | G86: 17 | H86: 5 | I86: ='Lease Roll Scenarios'!E22 -> 2014-01-01 | J86: 25 | K86: 1 | L86: 0 | M86: TRUE | N86: 6 | O86: 2014-07-01 | P86: 32 | Q86: 0 | R86: 8.462607362 | S86: 36 | T86: 2017-07-01 | U86: 68 | V86: TRUE | W86: 5 | X86: 2017-12-01 | Z86: 3 | AA86: 3 | AB86: 3 | AC86: 3 | AD86: 3 | AE86: 3 | AF86: =lease_codes(AF$2,AF$3,$I86,$N86,$S86,$W86) -> 3 | AG86: 4 | AH86: 4 | AI86: 4 | AJ86: 4 | AK86: 4 | AL86: 4 | AM86: 4 | AN86: 4 | AO86: 4 | AP86: 4 | AQ86: 4 | AR86: 4 | AS86: 4 | AT86: 4 | AU86: 4 | AV86: 4 | AW86: 4 | AX86: 4 | AY86: 4 | AZ86: 4 | BA86: 4 | BB86: 4 | BC86: 4 | BD86: 4 | BE86: 4 | BF86: 4 | BG86: 4 | BH86: 4 | BI86: 4 | BJ86: 4 | BK86: 4 | BL86: 4 | BM86: 4 | BN86: 4 | BO86: 4 | BP86: 4 | BQ86: 5 | BR86: 5 | BS86: 5 | BT86: 5 | BU86: 5 | BV86: 6 | BW86: 6 | BX86: 6 | BY86: 6 | BZ86: 6 | CA86: 6 | CB86: 6 | CC86: 6 | CD86: 6 | CE86: 6 | CF86: 6 | CG86: 6 | CH86: 6 | CI86: 6 | CJ86: 6 | CK86: 6 | CL86: 6 | CM86: 6 | CN86: 6 | CO86: 6 | CP86: 6 | CQ86: 6 | CR86: =lease_codes(CR$2,CR$3,$I86,$N86,$S86,$W86) -> 6 | CS86: 6 | CT86: 6 | CU86: 6 | CV86: 6 | CW86: 6 | CX86: 6 | CY86: 6 | CZ86: 6 | DA86: 6 | DB86: 6 | DC86: 6 | DD86: 6 | DE86: 6 | DF86: 6 | DG86: 6 | DH86: 6 | DI86: 6 | DJ86: 6 | DK86: 6 | DL86: 6 | DM86: 6 | DN86: 6 | DO86: 6 | DP86: 6 | DQ86: 6 | DR86: 6 | DS86: 6 | DT86: 6 | DU86: 6 | DV86: 6 | DW86: 6 | DX86: 6 | DY86: 6 | DZ86: 6 | EA86: 6 | EB86: 6 | EC86: 6 | ED86: 6 | EE86: 6 | EF86: 6 | EG86: 6 | EH86: 6 | EI86: 6 | EJ86: 6 | EK86: 6 | EL86: 6 | EM86: 6 | EN86: 6 | EO86: 6 | EP86: 6 | EQ86: 6 | ER86: 6 | ES86: 6 | ET86: 6 | EU86: 6 | EV86: 6 | EW86: 6 | EX86: 6 | EY86: 6 | EZ86: 6 | FA86: 6 | FB86: 6 | FC86: 6 | FD86: 6 | FE86: 6 | FF86: 6 | FG86: 6 | FH86: 6 | FI86: 6 | FJ86: 6 | FK86: 6 | FL86: 6 | FM86: 6 | FN86: 6 | FO86: 6 | FP86: 6 | FQ86: 6 | FR86: 6 | FS86: 6 | FT86: 6 | FU86: 6 | FV86: 6 | FW86: 6 | FX86: 6 | FY86: 6 | FZ86: 6 | GA86: 6 | GB86: 6 | GC86: 6 | GD86: 6 | GE86: 6 | GF86: 6 | GG86: 6 | GH86: 6 | GI86: 6 | GJ86: 6 | GK86: 6 | GL86: 6 | GM86: 6 | GN86: 6 | GO86: 6 | GP86: 6 | GQ86: 6 | GR86: 6 | GS86: 6 | GT86: 6 | GU86: 6 | GV86: 6 | GW86: 6 | GX86: 6 | GY86: 6 | GZ86: 6 | HA86: 6 | HB86: 6 | HC86: 6 | HD86: 6 | HE86: 6 | HF86: 6 | HG86: 6 | HH86: 6 | HI86: 6 | HJ86: 6 | HK86: 6 | HL86: 6 | HM86: 6 | HN86: 6 | HO86: 6 | HP86: 6 | HQ86: 6 | HR86: 6 | HS86: 6 | HT86: 6 | HU86: 6 | HV86: 6 | HW86: 6 | HX86: 6 | HY86: 6 | HZ86: 6 | IA86: 6 | IB86: 6 | IC86: 6 | ID86: 6 | IE86: 6 | IF86: 6 | IG86: 6 | IH86: 6 | II86: 6 | IJ86: 6 | IK86: 6 | IL86: 6 | IM86: 6 | IN86: 6 | IO86: 6 | IP86: 6 | IQ86: 6 | IR86: 6 | IS86: 6 | IT86: 6 | IU86: 6 | IV86: 6 | IW86: 6 | IX86: 6 | IY86: 6 | IZ86: 6 | JA86: 6 | JB86: 6 | JC86: 6 | JD86: 6 | JE86: 6
F88: =SUM(F70:F86) -> 90000 | H88: =SUMPRODUCT(F70:F86*H70:H86)/F88 -> 7.005555556
F91: =F69 -> Net Lettable Area | G91: =G69 -> Lease No
F92: =F70 -> 2000 | G92: =G70 -> 1 | Z92: =CHOOSE(Z70,$H70,$Q70,0,$R70,0,Z$53) -> 8 | AA92: =CHOOSE(AA70,$H70,$Q70,0,$R70,0,AA$53) -> 8 | AB92: 8 | AC92: 8 | AD92: 8 | AE92: 8 | AF92: 8 | AG92: 8 | AH92: 8 | AI92: 8 | AJ92: 8 | AK92: 8 | AL92: 8 | AM92: 8 | AN92: 8 | AO92: 8 | AP92: 0.2666666667 | AQ92: 0 | AR92: 0 | AS92: 0 | AT92: 0 | AU92: 0 | AV92: 10.34721714 | AW92: 10.34721714 | AX92: 10.34721714 | AY92: 10.34721714 | AZ92: 10.34721714 | BA92: 10.34721714 | BB92: 10.34721714 | BC92: 10.34721714 | BD92: 10.34721714 | BE92: 10.34721714 | BF92: 10.34721714 | BG92: 10.34721714 | BH92: 10.34721714 | BI92: 10.34721714 | BJ92: 10.34721714 | BK92: 10.34721714 | BL92: 10.34721714 | BM92: 10.34721714 | BN92: 10.34721714 | BO92: 10.34721714 | BP92: 10.34721714 | BQ92: 10.34721714 | BR92: 10.34721714 | BS92: 10.34721714 | BT92: 10.34721714 | BU92: 10.34721714 | BV92: 10.34721714 | BW92: 10.34721714 | BX92: 10.34721714 | BY92: 10.34721714 | BZ92: 10.34721714 | CA92: 10.34721714 | CB92: 10.34721714 | CC92: 10.34721714 | CD92: 10.34721714 | CE92: 10.34721714 | CF92: 0 | CG92: 0 | CH92: 0 | CI92: 0 | CJ92: 0 | CK92: 0 | CL92: 0 | CM92: =CHOOSE(CM70,$H70,$Q70,0,$R70,0,CM$53) -> 8.822674749 | CN92: 8.715652005 | CO92: 9.46538225 | CP92: 10.77432346 | CQ92: 10.37050585 | CR92: 9.678951734 | CS92: 9.629932843 | CT92: 9.801809036 | CU92: 10.24862226 | CV92: 10.08172039 | CW92: 9.768770062 | CX92: 9.035171752 | CY92: 10.39057715 | CZ92: 10.44231342 | DA92: 10.88290682 | DB92: 10.59916384 | DC92: 10.07999119 | DD92: 9.58724775 | DE92: 10.74047977 | DF92: 11.65963147 | DG92: 10.83625306 | DH92: 10.94406242 | DI92: 10.99395298 | DJ92: 9.324967128 | DK92: 8.491729649 | DL92: 8.564404282 | DM92: 8.317490115 | DN92: 8.23106738 | DO92: 7.525378551 | DP92: 7.361164267 | DQ92: 6.847839165 | DR92: 7.027033467 | DS92: 7.238840893 | DT92: 7.772376843 | DU92: 7.792102425 | DV92: 7.64541816 | DW92: 8.203624883 | DX92: 8.249739312 | DY92: 8.191336212 | DZ92: 7.779396497 | EA92: 7.246841857 | EB92: 6.917513601 | EC92: 7.270877116 | ED92: 7.553935139 | EE92: 7.524868038 | EF92: 8.395447131 | EG92: 8.002671628 | EH92: 8.032629104 | EI92: 7.662249027 | EJ92: 7.825386323 | EK92: 7.642370769 | EL92: 8.578851044 | EM92: 8.399901725 | EN92: 8.658101048 | EO92: 8.029905004 | EP92: 8.377231203 | EQ92: 8.830780976 | ER92: 8.378812019 | ES92: 8.057523938 | ET92: 8.101024137 | EU92: 6.867002302 | EV92: 6.89882614 | EW92: 6.447979558 | EX92: 6.858579303 | EY92: =CHOOSE(EY70,$H70,$Q70,0,$R70,0,EY$53) -> 6.428236363 | EZ92: 6.991120556 | FA92: 6.886455006 | FB92: 5.89762008 | FC92: 6.339483319 | FD92: 6.316384536 | FE92: 6.45106299 | FF92: 6.248927219 | FG92: 5.917203929 | FH92: 6.83908208 | FI92: 6.652537182 | FJ92: 7.039207479 | FK92: 6.801994749 | FL92: 7.121958321 | FM92: 6.362830195 | FN92: 6.202591632 | FO92: 5.841231197 | FP92: 5.458467051 | FQ92: 6.223589256 | FR92: 6.12033305 | FS92: 6.06784531 | FT92: 5.889897183 | FU92: 5.915712625 | FV92: 5.987443965 | FW92: 6.167654631 | FX92: 5.515440422 | FY92: 6.278161716 | FZ92: 6.325313879 | GA92: 6.37639684 | GB92: 5.958366705 | GC92: 6.486237297 | GD92: 6.878738032 | GE92: 7.09466622 | GF92: 7.188827395 | GG92: 6.800604023 | GH92: 7.826937155 | GI92: 7.353909506 | GJ92: 6.892979859 | GK92: 6.595540244 | GL92: 6.800242502 | GM92: 6.523681449 | GN92: 6.741135043 | GO92: 7.267140561 | GP92: 6.773151092 | GQ92: 6.381378734 | GR92: 6.589438097 | GS92: 6.919993554 | GT92: 7.222500589 | GU92: 7.547861647 | GV92: 7.006778846 | GW92: 6.69452696 | GX92: 6.811343665 | GY92: 6.678218036 | GZ92: 5.968579084 | HA92: 5.64837562 | HB92: 5.470914131 | HC92: 5.153553866 | HD92: 5.093087452 | HE92: 5.192430594 | HF92: 5.176494133 | HG92: 4.860528564 | HH92: 4.461300727 | HI92: 3.9902797 | HJ92: 3.595311896 | HK92: =CHOOSE(HK70,$H70,$Q70,0,$R70,0,HK$53) -> 3.816760928 | HL92: 3.916993964 | HM92: 4.063402211 | HN92: 4.311724667 | HO92: 4.289464631 | HP92: 5.099312402 | HQ92: 4.921442194 | HR92: 6.117533797 | HS92: 6.050020826 | HT92: 5.893444233 | HU92: 7.25561192 | HV92: 6.541941527 | HW92: 6.908269198 | HX92: 6.393216452 | HY92: 6.315796661 | HZ92: 6.007168033 | IA92: 6.784702033 | IB92: 7.203985423 | IC92: 7.734773502 | ID92: 7.523563783 | IE92: 7.938087741 | IF92: 7.100515071 | IG92: 6.877574069 | IH92: 7.709612693 | II92: 9.862907551 | IJ92: 8.488303814 | IK92: 8.639004048 | IL92: 9.413986477 | IM92: 9.763341267 | IN92: 10.19225957 | IO92: 9.34156656 | IP92: 8.672152671 | IQ92: 8.454120365 | IR92: 8.600405442 | IS92: 9.697140094 | IT92: 9.140935559 | IU92: 10.3098779 | IV92: 9.368514855 | IW92: 10.2219415 | IX92: 9.819032099 | IY92: 9.717132591 | IZ92: 9.38991112 | JA92: 9.702032523 | JB92: 10.54105516 | JC92: 9.872066855 | JD92: 9.184014104 | JE92: 10.24552315
F93: =F71 -> 1000 | G93: 2 | Z93: =CHOOSE(Z71,$H71,$Q71,0,$R71,0,Z$53) -> 7 | AA93: 7 | AB93: 7 | AC93: 7 | AD93: 0.4666666667 | AE93: 0 | AF93: 0 | AG93: 0 | AH93: 0 | AI93: 0 | AJ93: 0 | AK93: 7.064475327 | AL93: 7.064475327 | AM93: 7.064475327 | AN93: 7.064475327 | AO93: 7.064475327 | AP93: 7.064475327 | AQ93: 7.064475327 | AR93: 7.064475327 | AS93: 7.064475327 | AT93: 7.064475327 | AU93: 7.064475327 | AV93: 7.064475327 | AW93: 7.064475327 | AX93: 7.064475327 | AY93: 7.064475327 | AZ93: 7.064475327 | BA93: 7.064475327 | BB93: 7.064475327 | BC93: 7.064475327 | BD93: 7.064475327 | BE93: 7.064475327 | BF93: 7.064475327 | BG93: 7.064475327 | BH93: 7.064475327 | BI93: 7.064475327 | BJ93: 7.064475327 | BK93: 7.064475327 | BL93: 7.064475327 | BM93: 7.064475327 | BN93: 7.064475327 | BO93: 7.064475327 | BP93: 7.064475327 | BQ93: 7.064475327 | BR93: 7.064475327 | BS93: 7.064475327 | BT93: 7.064475327 | BU93: 0 | BV93: 0 | BW93: 0 | BX93: 0 | BY93: 0 | BZ93: 7.526764742 | CA93: 7.580396039 | CB93: 6.682067024 | CC93: 7.055800456 | CD93: 6.396009587 | CE93: 6.582570697 | CF93: 6.838381866 | CG93: 7.298210508 | CH93: 7.495844903 | CI93: 7.899392966 | CJ93: 7.524748173 | CK93: 8.64421614 | CL93: =CHOOSE(CL71,$H71,$Q71,0,$R71,0,CL$53) -> 9.07427238 | CM93: 8.822674749 | CN93: 8.715652005 | CO93: 9.46538225 | CP93: 10.77432346 | CQ93: 10.37050585 | CR93: 9.678951734 | CS93: 9.629932843 | CT93: 9.801809036 | CU93: 10.24862226 | CV93: 10.08172039 | CW93: 9.768770062 | CX93: 9.035171752 | CY93: 10.39057715 | CZ93: 10.44231342 | DA93: 10.88290682 | DB93: 10.59916384 | DC93: 10.07999119 | DD93: 9.58724775 | DE93: 10.74047977 | DF93: 11.65963147 | DG93: 10.83625306 | DH93: 10.94406242 | DI93: 10.99395298 | DJ93: 9.324967128 | DK93: 8.491729649 | DL93: 8.564404282 | DM93: 8.317490115 | DN93: 8.23106738 | DO93: 7.525378551 | DP93: 7.361164267 | DQ93: 6.847839165 | DR93: 7.027033467 | DS93: 7.238840893 | DT93: 7.772376843 | DU93: 7.792102425 | DV93: 7.64541816 | DW93: 8.203624883 | DX93: 8.249739312 | DY93: 8.191336212 | DZ93: 7.779396497 | EA93: 7.246841857 | EB93: 6.917513601 | EC93: 7.270877116 | ED93: 7.553935139 | EE93: 7.524868038 | EF93: 8.395447131 | EG93: 8.002671628 | EH93: 8.032629104 | EI93: 7.662249027 | EJ93: 7.825386323 | EK93: 7.642370769 | EL93: 8.578851044 | EM93: 8.399901725 | EN93: 8.658101048 | EO93: 8.029905004 | EP93: 8.377231203 | EQ93: 8.830780976 | ER93: 8.378812019 | ES93: 8.057523938 | ET93: 8.101024137 | EU93: 6.867002302 | EV93: 6.89882614 | EW93: 6.447979558 | EX93: =CHOOSE(EX71,$H71,$Q71,0,$R71,0,EX$53) -> 6.858579303 | EY93: 6.428236363 | EZ93: 6.991120556 | FA93: 6.886455006 | FB93: 5.89762008 | FC93: 6.339483319 | FD93: 6.316384536 | FE93: 6.45106299 | FF93: 6.248927219 | FG93: 5.917203929 | FH93: 6.83908208 | FI93: 6.652537182 | FJ93: 7.039207479 | FK93: 6.801994749 | FL93: 7.121958321 | FM93: 6.362830195 | FN93: 6.202591632 | FO93: 5.841231197 | FP93: 5.458467051 | FQ93: 6.223589256 | FR93: 6.12033305 | FS93: 6.06784531 | FT93: 5.889897183 | FU93: 5.915712625 | FV93: 5.987443965 | FW93: 6.167654631 | FX93: 5.515440422 | FY93: 6.278161716 | FZ93: 6.325313879 | GA93: 6.37639684 | GB93: 5.958366705 | GC93: 6.486237297 | GD93: 6.878738032 | GE93: 7.09466622 | GF93: 7.188827395 | GG93: 6.800604023 | GH93: 7.826937155 | GI93: 7.353909506 | GJ93: 6.892979859 | GK93: 6.595540244 | GL93: 6.800242502 | GM93: 6.523681449 | GN93: 6.741135043 | GO93: 7.267140561 | GP93: 6.773151092 | GQ93: 6.381378734 | GR93: 6.589438097 | GS93: 6.919993554 | GT93: 7.222500589 | GU93: 7.547861647 | GV93: 7.006778846 | GW93: 6.69452696 | GX93: 6.811343665 | GY93: 6.678218036 | GZ93: 5.968579084 | HA93: 5.64837562 | HB93: 5.470914131 | HC93: 5.153553866 | HD93: 5.093087452 | HE93: 5.192430594 | HF93: 5.176494133 | HG93: 4.860528564 | HH93: 4.461300727 | HI93: 3.9902797 | HJ93: =CHOOSE(HJ71,$H71,$Q71,0,$R71,0,HJ$53) -> 3.595311896 | HK93: 3.816760928 | HL93: 3.916993964 | HM93: 4.063402211 | HN93: 4.311724667 | HO93: 4.289464631 | HP93: 5.099312402 | HQ93: 4.921442194 | HR93: 6.117533797 | HS93: 6.050020826 | HT93: 5.893444233 | HU93: 7.25561192 | HV93: 6.541941527 | HW93: 6.908269198 | HX93: 6.393216452 | HY93: 6.315796661 | HZ93: 6.007168033 | IA93: 6.784702033 | IB93: 7.203985423 | IC93: 7.734773502 | ID93: 7.523563783 | IE93: 7.938087741 | IF93: 7.100515071 | IG93: 6.877574069 | IH93: 7.709612693 | II93: 9.862907551 | IJ93: 8.488303814 | IK93: 8.639004048 | IL93: 9.413986477 | IM93: 9.763341267 | IN93: 10.19225957 | IO93: 9.34156656 | IP93: 8.672152671 | IQ93: 8.454120365 | IR93: 8.600405442 | IS93: 9.697140094 | IT93: 9.140935559 | IU93: 10.3098779 | IV93: 9.368514855 | IW93: 10.2219415 | IX93: 9.819032099 | IY93: 9.717132591 | IZ93: 9.38991112 | JA93: 9.702032523 | JB93: 10.54105516 | JC93: 9.872066855 | JD93: 9.184014104 | JE93: 10.24552315
F94: =F72 -> 5000 | G94: 3 | Z94: =CHOOSE(Z72,$H72,$Q72,0,$R72,0,Z$53) -> 9 | AA94: 9 | AB94: 9 | AC94: 9 | AD94: 9 | AE94: 9 | AF94: =CHOOSE(AF72,$H72,$Q72,0,$R72,0,AF$53) -> 9 | AG94: 9 | AH94: 9 | AI94: 9 | AJ94: 9 | AK94: 9 | AL94: 9 | AM94: 9 | AN94: 9 | AO94: 9 | AP94: 9 | AQ94: 9 | AR94: 9 | AS94: 9 | AT94: 9 | AU94: 9 | AV94: 9 | AW94: 9 | AX94: 9 | AY94: 9 | AZ94: 9 | BA94: 9 | BB94: 0.9 | BC94: 0 | BD94: 0 | BE94: 0 | BF94: 0 | BG94: 0 | BH94: 0 | BI94: 7.929114027 | BJ94: 7.929114027 | BK94: 7.929114027 | BL94: 7.929114027 | BM94: 7.929114027 | BN94: 7.929114027 | BO94: 7.929114027 | BP94: 7.929114027 | BQ94: 7.929114027 | BR94: 7.929114027 | BS94: 7.929114027 | BT94: 7.929114027 | BU94: 7.929114027 | BV94: 7.929114027 | BW94: 7.929114027 | BX94: 7.929114027 | BY94: 7.929114027 | BZ94: 7.929114027 | CA94: 7.929114027 | CB94: 7.929114027 | CC94: 7.929114027 | CD94: 7.929114027 | CE94: 7.929114027 | CF94: 7.929114027 | CG94: 7.929114027 | CH94: 7.929114027 | CI94: 7.929114027 | CJ94: 7.929114027 | CK94: 7.929114027 | CL94: =CHOOSE(CL72,$H72,$Q72,0,$R72,0,CL$53) -> 7.929114027 | CM94: 7.929114027 | CN94: 7.929114027 | CO94: 7.929114027 | CP94: 7.929114027 | CQ94: 7.929114027 | CR94: 7.929114027 | CS94: 0 | CT94: 0 | CU94: 0 | CV94: 0 | CW94: 9.768770062 | CX94: 9.035171752 | CY94: 10.39057715 | CZ94: 10.44231342 | DA94: 10.88290682 | DB94: 10.59916384 | DC94: 10.07999119 | DD94: 9.58724775 | DE94: 10.74047977 | DF94: 11.65963147 | DG94: 10.83625306 | DH94: 10.94406242 | DI94: 10.99395298 | DJ94: 9.324967128 | DK94: 8.491729649 | DL94: 8.564404282 | DM94: 8.317490115 | DN94: 8.23106738 | DO94: 7.525378551 | DP94: 7.361164267 | DQ94: 6.847839165 | DR94: 7.027033467 | DS94: 7.238840893 | DT94: 7.772376843 | DU94: 7.792102425 | DV94: 7.64541816 | DW94: 8.203624883 | DX94: 8.249739312 | DY94: 8.191336212 | DZ94: 7.779396497 | EA94: 7.246841857 | EB94: 6.917513601 | EC94: 7.270877116 | ED94: 7.553935139 | EE94: 7.524868038 | EF94: 8.395447131 | EG94: 8.002671628 | EH94: 8.032629104 | EI94: 7.662249027 | EJ94: 7.825386323 | EK94: 7.642370769 | EL94: 8.578851044 | EM94: 8.399901725 | EN94: 8.658101048 | EO94: 8.029905004 | EP94: 8.377231203 | EQ94: 8.830780976 | ER94: 8.378812019 | ES94: 8.057523938 | ET94: 8.101024137 | EU94: 6.867002302 | EV94: 6.89882614 | EW94: 6.447979558 | EX94: =CHOOSE(EX72,$H72,$Q72,0,$R72,0,EX$53) -> 6.858579303 | EY94: 6.428236363 | EZ94: 6.991120556 | FA94: 6.886455006 | FB94: 5.89762008 | FC94: 6.339483319 | FD94: 6.316384536 | FE94: 6.45106299 | FF94: 6.248927219 | FG94: 5.917203929 | FH94: 6.83908208 | FI94: 6.652537182 | FJ94: 7.039207479 | FK94: 6.801994749 | FL94: 7.121958321 | FM94: 6.362830195 | FN94: 6.202591632 | FO94: 5.841231197 | FP94: 5.458467051 | FQ94: 6.223589256 | FR94: 6.12033305 | FS94: 6.06784531 | FT94: 5.889897183 | FU94: 5.915712625 | FV94: 5.987443965 | FW94: 6.167654631 | FX94: 5.515440422 | FY94: 6.278161716 | FZ94: 6.325313879 | GA94: 6.37639684 | GB94: 5.958366705 | GC94: 6.486237297 | GD94: 6.878738032 | GE94: 7.09466622 | GF94: 7.188827395 | GG94: 6.800604023 | GH94: 7.826937155 | GI94: 7.353909506 | GJ94: 6.892979859 | GK94: 6.595540244 | GL94: 6.800242502 | GM94: 6.523681449 | GN94: 6.741135043 | GO94: 7.267140561 | GP94: 6.773151092 | GQ94: 6.381378734 | GR94: 6.589438097 | GS94: 6.919993554 | GT94: 7.222500589 | GU94: 7.547861647 | GV94: 7.006778846 | GW94: 6.69452696 | GX94: 6.811343665 | GY94: 6.678218036 | GZ94: 5.968579084 | HA94: 5.64837562 | HB94: 5.470914131 | HC94: 5.153553866 | HD94: 5.093087452 | HE94: 5.192430594 | HF94: 5.176494133 | HG94: 4.860528564 | HH94: 4.461300727 | HI94: 3.9902797 | HJ94: =CHOOSE(HJ72,$H72,$Q72,0,$R72,0,HJ$53) -> 3.595311896 | HK94: 3.816760928 | HL94: 3.916993964 | HM94: 4.063402211 | HN94: 4.311724667 | HO94: 4.289464631 | HP94: 5.099312402 | HQ94: 4.921442194 | HR94: 6.117533797 | HS94: 6.050020826 | HT94: 5.893444233 | HU94: 7.25561192 | HV94: 6.541941527 | HW94: 6.908269198 | HX94: 6.393216452 | HY94: 6.315796661 | HZ94: 6.007168033 | IA94: 6.784702033 | IB94: 7.203985423 | IC94: 7.734773502 | ID94: 7.523563783 | IE94: 7.938087741 | IF94: 7.100515071 | IG94: 6.877574069 | IH94: 7.709612693 | II94: 9.862907551 | IJ94: 8.488303814 | IK94: 8.639004048 | IL94: 9.413986477 | IM94: 9.763341267 | IN94: 10.19225957 | IO94: 9.34156656 | IP94: 8.672152671 | IQ94: 8.454120365 | IR94: 8.600405442 | IS94: 9.697140094 | IT94: 9.140935559 | IU94: 10.3098779 | IV94: 9.368514855 | IW94: 10.2219415 | IX94: 9.819032099 | IY94: 9.717132591 | IZ94: 9.38991112 | JA94: 9.702032523 | JB94: 10.54105516 | JC94: 9.872066855 | JD94: 9.184014104 | JE94: 10.24552315
F95: =F73 -> 3000 | G95: 4 | Z95: =CHOOSE(Z73,$H73,$Q73,0,$R73,0,Z$53) -> 7.5 | AA95: 7.5 | AB95: 7.5 | AC95: 7.5 | AD95: 7.5 | AE95: 7.5 | AF95: 7.5 | AG95: 7.5 | AH95: 7.5 | AI95: 7.5 | AJ95: 7.5 | AK95: 7.5 | AL95: 7.5 | AM95: 7.5 | AN95: 7.5 | AO95: 7.5 | AP95: 7.5 | AQ95: 7.5 | AR95: 7.5 | AS95: 7.5 | AT95: 7.5 | AU95: 7.5 | AV95: 7.5 | AW95: 7.5 | AX95: 7.5 | AY95: 7.5 | AZ95: 7.5 | BA95: 7.5 | BB95: 7.5 | BC95: 7.5 | BD95: 7.5 | BE95: 7.5 | BF95: 7.5 | BG95: 7.5 | BH95: 7.5 | BI95: 7.5 | BJ95: 7.5 | BK95: 7.5 | BL95: 7.5 | BM95: 7.5 | BN95: 1 | BO95: 0 | BP95: 0 | BQ95: 0 | BR95: 0 | BS95: 0 | BT95: 8.112243867 | BU95: 8.112243867 | BV95: 8.112243867 | BW95: 8.112243867 | BX95: 8.112243867 | BY95: 8.112243867 | BZ95: 8.112243867 | CA95: 8.112243867 | CB95: 8.112243867 | CC95: 8.112243867 | CD95: 8.112243867 | CE95: 8.112243867 | CF95: 8.112243867 | CG95: 8.112243867 | CH95: 8.112243867 | CI95: 8.112243867 | CJ95: 8.112243867 | CK95: 8.112243867 | CL95: =CHOOSE(CL73,$H73,$Q73,0,$R73,0,CL$53) -> 8.112243867 | CM95: 8.112243867 | CN95: 8.112243867 | CO95: 8.112243867 | CP95: 8.112243867 | CQ95: 8.112243867 | CR95: 8.112243867 | CS95: 8.112243867 | CT95: 8.112243867 | CU95: 8.112243867 | CV95: 8.112243867 | CW95: 8.112243867 | CX95: 8.112243867 | CY95: 8.112243867 | CZ95: 8.112243867 | DA95: 8.112243867 | DB95: 8.112243867 | DC95: 8.112243867 | DD95: 0 | DE95: 0 | DF95: 0 | DG95: 10.83625306 | DH95: 10.94406242 | DI95: 10.99395298 | DJ95: 9.324967128 | DK95: 8.491729649 | DL95: 8.564404282 | DM95: 8.317490115 | DN95: 8.23106738 | DO95: 7.525378551 | DP95: 7.361164267 | DQ95: 6.847839165 | DR95: 7.027033467 | DS95: 7.238840893 | DT95: 7.772376843 | DU95: 7.792102425 | DV95: 7.64541816 | DW95: 8.203624883 | DX95: 8.249739312 | DY95: 8.191336212 | DZ95: 7.779396497 | EA95: 7.246841857 | EB95: 6.917513601 | EC95: 7.270877116 | ED95: 7.553935139 | EE95: 7.524868038 | EF95: 8.395447131 | EG95: 8.002671628 | EH95: 8.032629104 | EI95: 7.662249027 | EJ95: 7.825386323 | EK95: 7.642370769 | EL95: 8.578851044 | EM95: 8.399901725 | EN95: 8.658101048 | EO95: 8.029905004 | EP95: 8.377231203 | EQ95: 8.830780976 | ER95: 8.378812019 | ES95: 8.057523938 | ET95: 8.101024137 | EU95: 6.867002302 | EV95: 6.89882614 | EW95: 6.447979558 | EX95: =CHOOSE(EX73,$H73,$Q73,0,$R73,0,EX$53) -> 6.858579303 | EY95: 6.428236363 | EZ95: 6.991120556 | FA95: 6.886455006 | FB95: 5.89762008 | FC95: 6.339483319 | FD95: 6.316384536 | FE95: 6.45106299 | FF95: 6.248927219 | FG95: 5.917203929 | FH95: 6.83908208 | FI95: 6.652537182 | FJ95: 7.039207479 | FK95: 6.801994749 | FL95: 7.121958321 | FM95: 6.362830195 | FN95: 6.202591632 | FO95: 5.841231197 | FP95: 5.458467051 | FQ95: 6.223589256 | FR95: 6.12033305 | FS95: 6.06784531 | FT95: 5.889897183 | FU95: 5.915712625 | FV95: 5.987443965 | FW95: 6.167654631 | FX95: 5.515440422 | FY95: 6.278161716 | FZ95: 6.325313879 | GA95: 6.37639684 | GB95: 5.958366705 | GC95: 6.486237297 | GD95: 6.878738032 | GE95: 7.09466622 | GF95: 7.188827395 | GG95: 6.800604023 | GH95: 7.826937155 | GI95: 7.353909506 | GJ95: 6.892979859 | GK95: 6.595540244 | GL95: 6.800242502 | GM95: 6.523681449 | GN95: 6.741135043 | GO95: 7.267140561 | GP95: 6.773151092 | GQ95: 6.381378734 | GR95: 6.589438097 | GS95: 6.919993554 | GT95: 7.222500589 | GU95: 7.547861647 | GV95: 7.006778846 | GW95: 6.69452696 | GX95: 6.811343665 | GY95: 6.678218036 | GZ95: 5.968579084 | HA95: 5.64837562 | HB95: 5.470914131 | HC95: 5.153553866 | HD95: 5.093087452 | HE95: 5.192430594 | HF95: 5.176494133 | HG95: 4.860528564 | HH95: 4.461300727 | HI95: 3.9902797 | HJ95: =CHOOSE(HJ73,$H73,$Q73,0,$R73,0,HJ$53) -> 3.595311896 | HK95: 3.816760928 | HL95: 3.916993964 | HM95: 4.063402211 | HN95: 4.311724667 | HO95: 4.289464631 | HP95: 5.099312402 | HQ95: 4.921442194 | HR95: 6.117533797 | HS95: 6.050020826 | HT95: 5.893444233 | HU95: 7.25561192 | HV95: 6.541941527 | HW95: 6.908269198 | HX95: 6.393216452 | HY95: 6.315796661 | HZ95: 6.007168033 | IA95: 6.784702033 | IB95: 7.203985423 | IC95: 7.734773502 | ID95: 7.523563783 | IE95: 7.938087741 | IF95: 7.100515071 | IG95: 6.877574069 | IH95: 7.709612693 | II95: 9.862907551 | IJ95: 8.488303814 | IK95: 8.639004048 | IL95: 9.413986477 | IM95: 9.763341267 | IN95: 10.19225957 | IO95: 9.34156656 | IP95: 8.672152671 | IQ95: 8.454120365 | IR95: 8.600405442 | IS95: 9.697140094 | IT95: 9.140935559 | IU95: 10.3098779 | IV95: 9.368514855 | IW95: 10.2219415 | IX95: 9.819032099 | IY95: 9.717132591 | IZ95: 9.38991112 | JA95: 9.702032523 | JB95: 10.54105516 | JC95: 9.872066855 | JD95: 9.184014104 | JE95: 10.24552315
F96: =F74 -> 4000 | G96: 5 | Z96: =CHOOSE(Z74,$H74,$Q74,0,$R74,0,Z$53) -> 6 | AA96: 6 | AB96: 6 | AC96: 6 | AD96: 6 | AE96: 6 | AF96: 6 | AG96: 6 | AH96: 6 | AI96: 6 | AJ96: 6 | AK96: 6 | AL96: 6 | AM96: 6 | AN96: 6 | AO96: 6 | AP96: 6 | AQ96: 6 | AR96: 6 | AS96: 6 | AT96: 6 | AU96: 6 | AV96: 6 | AW96: 6 | AX96: 6 | AY96: 6 | AZ96: 6 | BA96: 6 | BB96: 6 | BC96: 6 | BD96: 6 | BE96: 6 | BF96: 6 | BG96: 6 | BH96: 6 | BI96: 6 | BJ96: 6 | BK96: 6 | BL96: 6 | BM96: 6 | BN96: 6 | BO96: 6 | BP96: 6 | BQ96: 6 | BR96: 6 | BS96: 6 | BT96: 6 | BU96: 6 | BV96: 6 | BW96: 6 | BX96: 6 | BY96: 6 | BZ96: 6 | CA96: 6 | CB96: 6 | CC96: 6 | CD96: 6 | CE96: 6 | CF96: 6 | CG96: 6 | CH96: 6 | CI96: 6 | CJ96: 6 | CK96: 6 | CL96: =CHOOSE(CL74,$H74,$Q74,0,$R74,0,CL$53) -> 6 | CM96: 6 | CN96: 6 | CO96: 6 | CP96: 6 | CQ96: 6 | CR96: 6 | CS96: 6 | CT96: 6 | CU96: 6 | CV96: 6 | CW96: 6 | CX96: 1 | CY96: 0 | CZ96: 0 | DA96: 0 | DB96: 0 | DC96: 10.59916384 | DD96: 10.59916384 | DE96: 10.59916384 | DF96: 10.59916384 | DG96: 10.59916384 | DH96: 10.59916384 | DI96: 10.59916384 | DJ96: 10.59916384 | DK96: 10.59916384 | DL96: 10.59916384 | DM96: 10.59916384 | DN96: 10.59916384 | DO96: 10.59916384 | DP96: 10.59916384 | DQ96: 10.59916384 | DR96: 10.59916384 | DS96: 10.59916384 | DT96: 10.59916384 | DU96: 10.59916384 | DV96: 10.59916384 | DW96: 10.59916384 | DX96: 10.59916384 | DY96: 10.59916384 | DZ96: 10.59916384 | EA96: 10.59916384 | EB96: 10.59916384 | EC96: 10.59916384 | ED96: 10.59916384 | EE96: 10.59916384 | EF96: 10.59916384 | EG96: 10.59916384 | EH96: 10.59916384 | EI96: 10.59916384 | EJ96: 10.59916384 | EK96: 10.59916384 | EL96: 10.59916384 | EM96: 0 | EN96: 0 | EO96: 0 | EP96: 0 | EQ96: 0 | ER96: 8.378812019 | ES96: 8.057523938 | ET96: 8.101024137 | EU96: 6.867002302 | EV96: 6.89882614 | EW96: 6.447979558 | EX96: =CHOOSE(EX74,$H74,$Q74,0,$R74,0,EX$53) -> 6.858579303 | EY96: 6.428236363 | EZ96: 6.991120556 | FA96: 6.886455006 | FB96: 5.89762008 | FC96: 6.339483319 | FD96: 6.316384536 | FE96: 6.45106299 | FF96: 6.248927219 | FG96: 5.917203929 | FH96: 6.83908208 | FI96: 6.652537182 | FJ96: 7.039207479 | FK96: 6.801994749 | FL96: 7.121958321 | FM96: 6.362830195 | FN96: 6.202591632 | FO96: 5.841231197 | FP96: 5.458467051 | FQ96: 6.223589256 | FR96: 6.12033305 | FS96: 6.06784531 | FT96: 5.889897183 | FU96: 5.915712625 | FV96: 5.987443965 | FW96: 6.167654631 | FX96: 5.515440422 | FY96: 6.278161716 | FZ96: 6.325313879 | GA96: 6.37639684 | GB96: 5.958366705 | GC96: 6.486237297 | GD96: 6.878738032 | GE96: 7.09466622 | GF96: 7.188827395 | GG96: 6.800604023 | GH96: 7.826937155 | GI96: 7.353909506 | GJ96: 6.892979859 | GK96: 6.595540244 | GL96: 6.800242502 | GM96: 6.523681449 | GN96: 6.741135043 | GO96: 7.267140561 | GP96: 6.773151092 | GQ96: 6.381378734 | GR96: 6.589438097 | GS96: 6.919993554 | GT96: 7.222500589 | GU96: 7.547861647 | GV96: 7.006778846 | GW96: 6.69452696 | GX96: 6.811343665 | GY96: 6.678218036 | GZ96: 5.968579084 | HA96: 5.64837562 | HB96: 5.470914131 | HC96: 5.153553866 | HD96: 5.093087452 | HE96: 5.192430594 | HF96: 5.176494133 | HG96: 4.860528564 | HH96: 4.461300727 | HI96: 3.9902797 | HJ96: =CHOOSE(HJ74,$H74,$Q74,0,$R74,0,HJ$53) -> 3.595311896 | HK96: 3.816760928 | HL96: 3.916993964 | HM96: 4.063402211 | HN96: 4.311724667 | HO96: 4.289464631 | HP96: 5.099312402 | HQ96: 4.921442194 | HR96: 6.117533797 | HS96: 6.050020826 | HT96: 5.893444233 | HU96: 7.25561192 | HV96: 6.541941527 | HW96: 6.908269198 | HX96: 6.393216452 | HY96: 6.315796661 | HZ96: 6.007168033 | IA96: 6.784702033 | IB96: 7.203985423 | IC96: 7.734773502 | ID96: 7.523563783 | IE96: 7.938087741 | IF96: 7.100515071 | IG96: 6.877574069 | IH96: 7.709612693 | II96: 9.862907551 | IJ96: 8.488303814 | IK96: 8.639004048 | IL96: 9.413986477 | IM96: 9.763341267 | IN96: 10.19225957 | IO96: 9.34156656 | IP96: 8.672152671 | IQ96: 8.454120365 | IR96: 8.600405442 | IS96: 9.697140094 | IT96: 9.140935559 | IU96: 10.3098779 | IV96: 9.368514855 | IW96: 10.2219415 | IX96: 9.819032099 | IY96: 9.717132591 | IZ96: 9.38991112 | JA96: 9.702032523 | JB96: 10.54105516 | JC96: 9.872066855 | JD96: 9.184014104 | JE96: 10.24552315
F97: =F75 -> 5000 | G97: 6 | Z97: =CHOOSE(Z75,$H75,$Q75,0,$R75,0,Z$53) -> 0 | AA97: 0 | AB97: 0 | AC97: 0 | AD97: 0 | AE97: 0 | AF97: 0 | AG97: 8.462607362 | AH97: 8.462607362 | AI97: 8.462607362 | AJ97: 8.462607362 | AK97: 8.462607362 | AL97: 8.462607362 | AM97: 8.462607362 | AN97: 8.462607362 | AO97: 8.462607362 | AP97: 8.462607362 | AQ97: 8.462607362 | AR97: 8.462607362 | AS97: 8.462607362 | AT97: 8.462607362 | AU97: 8.462607362 | AV97: 8.462607362 | AW97: 8.462607362 | AX97: 8.462607362 | AY97: 8.462607362 | AZ97: 8.462607362 | BA97: 8.462607362 | BB97: 8.462607362 | BC97: 8.462607362 | BD97: 8.462607362 | BE97: 8.462607362 | BF97: 8.462607362 | BG97: 8.462607362 | BH97: 8.462607362 | BI97: 8.462607362 | BJ97: 8.462607362 | BK97: 8.462607362 | BL97: 8.462607362 | BM97: 8.462607362 | BN97: 8.462607362 | BO97: 8.462607362 | BP97: 8.462607362 | BQ97: 0 | BR97: 0 | BS97: 0 | BT97: 0 | BU97: 0 | BV97: 7.94682963 | BW97: 8.67208748 | BX97: 8.424118864 | BY97: 8.050621272 | BZ97: 7.526764742 | CA97: 7.580396039 | CB97: 6.682067024 | CC97: 7.055800456 | CD97: 6.396009587 | CE97: 6.582570697 | CF97: 6.838381866 | CG97: 7.298210508 | CH97: 7.495844903 | CI97: 7.899392966 | CJ97: 7.524748173 | CK97: 8.64421614 | CL97: =CHOOSE(CL75,$H75,$Q75,0,$R75,0,CL$53) -> 9.07427238 | CM97: 8.822674749 | CN97: 8.715652005 | CO97: 9.46538225 | CP97: 10.77432346 | CQ97: 10.37050585 | CR97: 9.678951734 | CS97: 9.629932843 | CT97: 9.801809036 | CU97: 10.24862226 | CV97: 10.08172039 | CW97: 9.768770062 | CX97: 9.035171752 | CY97: 10.39057715 | CZ97: 10.44231342 | DA97: 10.88290682 | DB97: 10.59916384 | DC97: 10.07999119 | DD97: 9.58724775 | DE97: 10.74047977 | DF97: 11.65963147 | DG97: 10.83625306 | DH97: 10.94406242 | DI97: 10.99395298 | DJ97: 9.324967128 | DK97: 8.491729649 | DL97: 8.564404282 | DM97: 8.317490115 | DN97: 8.23106738 | DO97: 7.525378551 | DP97: 7.361164267 | DQ97: 6.847839165 | DR97: 7.027033467 | DS97: 7.238840893 | DT97: 7.772376843 | DU97: 7.792102425 | DV97: 7.64541816 | DW97: 8.203624883 | DX97: 8.249739312 | DY97: 8.191336212 | DZ97: 7.779396497 | EA97: 7.246841857 | EB97: 6.917513601 | EC97: 7.270877116 | ED97: 7.553935139 | EE97: 7.524868038 | EF97: 8.395447131 | EG97: 8.002671628 | EH97: 8.032629104 | EI97: 7.662249027 | EJ97: 7.825386323 | EK97: 7.642370769 | EL97: 8.578851044 | EM97: 8.399901725 | EN97: 8.658101048 | EO97: 8.029905004 | EP97: 8.377231203 | EQ97: 8.830780976 | ER97: 8.378812019 | ES97: 8.057523938 | ET97: 8.101024137 | EU97: 6.867002302 | EV97: 6.89882614 | EW97: 6.447979558 | EX97: =CHOOSE(EX75,$H75,$Q75,0,$R75,0,EX$53) -> 6.858579303 | EY97: 6.428236363 | EZ97: 6.991120556 | FA97: 6.886455006 | FB97: 5.89762008 | FC97: 6.339483319 | FD97: 6.316384536 | FE97: 6.45106299 | FF97: 6.248927219 | FG97: 5.917203929 | FH97: 6.83908208 | FI97: 6.652537182 | FJ97: 7.039207479 | FK97: 6.801994749 | FL97: 7.121958321 | FM97: 6.362830195 | FN97: 6.202591632 | FO97: 5.841231197 | FP97: 5.458467051 | FQ97: 6.223589256 | FR97: 6.12033305 | FS97: 6.06784531 | FT97: 5.889897183 | FU97: 5.915712625 | FV97: 5.987443965 | FW97: 6.167654631 | FX97: 5.515440422 | FY97: 6.278161716 | FZ97: 6.325313879 | GA97: 6.37639684 | GB97: 5.958366705 | GC97: 6.486237297 | GD97: 6.878738032 | GE97: 7.09466622 | GF97: 7.188827395 | GG97: 6.800604023 | GH97: 7.826937155 | GI97: 7.353909506 | GJ97: 6.892979859 | GK97: 6.595540244 | GL97: 6.800242502 | GM97: 6.523681449 | GN97: 6.741135043 | GO97: 7.267140561 | GP97: 6.773151092 | GQ97: 6.381378734 | GR97: 6.589438097 | GS97: 6.919993554 | GT97: 7.222500589 | GU97: 7.547861647 | GV97: 7.006778846 | GW97: 6.69452696 | GX97: 6.811343665 | GY97: 6.678218036 | GZ97: 5.968579084 | HA97: 5.64837562 | HB97: 5.470914131 | HC97: 5.153553866 | HD97: 5.093087452 | HE97: 5.192430594 | HF97: 5.176494133 | HG97: 4.860528564 | HH97: 4.461300727 | HI97: 3.9902797 | HJ97: =CHOOSE(HJ75,$H75,$Q75,0,$R75,0,HJ$53) -> 3.595311896 | HK97: 3.816760928 | HL97: 3.916993964 | HM97: 4.063402211 | HN97: 4.311724667 | HO97: 4.289464631 | HP97: 5.099312402 | HQ97: 4.921442194 | HR97: 6.117533797 | HS97: 6.050020826 | HT97: 5.893444233 | HU97: 7.25561192 | HV97: 6.541941527 | HW97: 6.908269198 | HX97: 6.393216452 | HY97: 6.315796661 | HZ97: 6.007168033 | IA97: 6.784702033 | IB97: 7.203985423 | IC97: 7.734773502 | ID97: 7.523563783 | IE97: 7.938087741 | IF97: 7.100515071 | IG97: 6.877574069 | IH97: 7.709612693 | II97: 9.862907551 | IJ97: 8.488303814 | IK97: 8.639004048 | IL97: 9.413986477 | IM97: 9.763341267 | IN97: 10.19225957 | IO97: 9.34156656 | IP97: 8.672152671 | IQ97: 8.454120365 | IR97: 8.600405442 | IS97: 9.697140094 | IT97: 9.140935559 | IU97: 10.3098779 | IV97: 9.368514855 | IW97: 10.2219415 | IX97: 9.819032099 | IY97: 9.717132591 | IZ97: 9.38991112 | JA97: 9.702032523 | JB97: 10.54105516 | JC97: 9.872066855 | JD97: 9.184014104 | JE97: 10.24552315
F98: =F76 -> 7000 | G98: 7 | Z98: =CHOOSE(Z76,$H76,$Q76,0,$R76,0,Z$53) -> 7 | AA98: 7 | AB98: 7 | AC98: 7 | AD98: 7 | AE98: 7 | AF98: 7 | AG98: 7 | AH98: 7 | AI98: 7 | AJ98: 7 | AK98: 7 | AL98: 7 | AM98: 7 | AN98: 7 | AO98: 7 | AP98: 1.4 | AQ98: 0 | AR98: 0 | AS98: 0 | AT98: 0 | AU98: 0 | AV98: 10.34721714 | AW98: 10.34721714 | AX98: 10.34721714 | AY98: 10.34721714 | AZ98: 10.34721714 | BA98: 10.34721714 | BB98: 10.34721714 | BC98: 10.34721714 | BD98: 10.34721714 | BE98: 10.34721714 | BF98: 10.34721714 | BG98: 10.34721714 | BH98: 10.34721714 | BI98: 10.34721714 | BJ98: 10.34721714 | BK98: 10.34721714 | BL98: 10.34721714 | BM98: 10.34721714 | BN98: 10.34721714 | BO98: 10.34721714 | BP98: 10.34721714 | BQ98: 10.34721714 | BR98: 10.34721714 | BS98: 10.34721714 | BT98: 10.34721714 | BU98: 10.34721714 | BV98: 10.34721714 | BW98: 10.34721714 | BX98: 10.34721714 | BY98: 10.34721714 | BZ98: 10.34721714 | CA98: 10.34721714 | CB98: 10.34721714 | CC98: 10.34721714 | CD98: 10.34721714 | CE98: 10.34721714 | CF98: 0 | CG98: 0 | CH98: 0 | CI98: 0 | CJ98: 0 | CK98: 0 | CL98: =CHOOSE(CL76,$H76,$Q76,0,$R76,0,CL$53) -> 0 | CM98: 8.822674749 | CN98: 8.715652005 | CO98: 9.46538225 | CP98: 10.77432346 | CQ98: 10.37050585 | CR98: 9.678951734 | CS98: 9.629932843 | CT98: 9.801809036 | CU98: 10.24862226 | CV98: 10.08172039 | CW98: 9.768770062 | CX98: 9.035171752 | CY98: 10.39057715 | CZ98: 10.44231342 | DA98: 10.88290682 | DB98: 10.59916384 | DC98: 10.07999119 | DD98: 9.58724775 | DE98: 10.74047977 | DF98: 11.65963147 | DG98: 10.83625306 | DH98: 10.94406242 | DI98: 10.99395298 | DJ98: 9.324967128 | DK98: 8.491729649 | DL98: 8.564404282 | DM98: 8.317490115 | DN98: 8.23106738 | DO98: 7.525378551 | DP98: 7.361164267 | DQ98: 6.847839165 | DR98: 7.027033467 | DS98: 7.238840893 | DT98: 7.772376843 | DU98: 7.792102425 | DV98: 7.64541816 | DW98: 8.203624883 | DX98: 8.249739312 | DY98: 8.191336212 | DZ98: 7.779396497 | EA98: 7.246841857 | EB98: 6.917513601 | EC98: 7.270877116 | ED98: 7.553935139 | EE98: 7.524868038 | EF98: 8.395447131 | EG98: 8.002671628 | EH98: 8.032629104 | EI98: 7.662249027 | EJ98: 7.825386323 | EK98: 7.642370769 | EL98: 8.578851044 | EM98: 8.399901725 | EN98: 8.658101048 | EO98: 8.029905004 | EP98: 8.377231203 | EQ98: 8.830780976 | ER98: 8.378812019 | ES98: 8.057523938 | ET98: 8.101024137 | EU98: 6.867002302 | EV98: 6.89882614 | EW98: 6.447979558 | EX98: =CHOOSE(EX76,$H76,$Q76,0,$R76,0,EX$53) -> 6.858579303 | EY98: 6.428236363 | EZ98: 6.991120556 | FA98: 6.886455006 | FB98: 5.89762008 | FC98: 6.339483319 | FD98: 6.316384536 | FE98: 6.45106299 | FF98: 6.248927219 | FG98: 5.917203929 | FH98: 6.83908208 | FI98: 6.652537182 | FJ98: 7.039207479 | FK98: 6.801994749 | FL98: 7.121958321 | FM98: 6.362830195 | FN98: 6.202591632 | FO98: 5.841231197 | FP98: 5.458467051 | FQ98: 6.223589256 | FR98: 6.12033305 | FS98: 6.06784531 | FT98: 5.889897183 | FU98: 5.915712625 | FV98: 5.987443965 | FW98: 6.167654631 | FX98: 5.515440422 | FY98: 6.278161716 | FZ98: 6.325313879 | GA98: 6.37639684 | GB98: 5.958366705 | GC98: 6.486237297 | GD98: 6.878738032 | GE98: 7.09466622 | GF98: 7.188827395 | GG98: 6.800604023 | GH98: 7.826937155 | GI98: 7.353909506 | GJ98: 6.892979859 | GK98: 6.595540244 | GL98: 6.800242502 | GM98: 6.523681449 | GN98: 6.741135043 | GO98: 7.267140561 | GP98: 6.773151092 | GQ98: 6.381378734 | GR98: 6.589438097 | GS98: 6.919993554 | GT98: 7.222500589 | GU98: 7.547861647 | GV98: 7.006778846 | GW98: 6.69452696 | GX98: 6.811343665 | GY98: 6.678218036 | GZ98: 5.968579084 | HA98: 5.64837562 | HB98: 5.470914131 | HC98: 5.153553866 | HD98: 5.093087452 | HE98: 5.192430594 | HF98: 5.176494133 | HG98: 4.860528564 | HH98: 4.461300727 | HI98: 3.9902797 | HJ98: =CHOOSE(HJ76,$H76,$Q76,0,$R76,0,HJ$53) -> 3.595311896 | HK98: 3.816760928 | HL98: 3.916993964 | HM98: 4.063402211 | HN98: 4.311724667 | HO98: 4.289464631 | HP98: 5.099312402 | HQ98: 4.921442194 | HR98: 6.117533797 | HS98: 6.050020826 | HT98: 5.893444233 | HU98: 7.25561192 | HV98: 6.541941527 | HW98: 6.908269198 | HX98: 6.393216452 | HY98: 6.315796661 | HZ98: 6.007168033 | IA98: 6.784702033 | IB98: 7.203985423 | IC98: 7.734773502 | ID98: 7.523563783 | IE98: 7.938087741 | IF98: 7.100515071 | IG98: 6.877574069 | IH98: 7.709612693 | II98: 9.862907551 | IJ98: 8.488303814 | IK98: 8.639004048 | IL98: 9.413986477 | IM98: 9.763341267 | IN98: 10.19225957 | IO98: 9.34156656 | IP98: 8.672152671 | IQ98: 8.454120365 | IR98: 8.600405442 | IS98: 9.697140094 | IT98: 9.140935559 | IU98: 10.3098779 | IV98: 9.368514855 | IW98: 10.2219415 | IX98: 9.819032099 | IY98: 9.717132591 | IZ98: 9.38991112 | JA98: 9.702032523 | JB98: 10.54105516 | JC98: 9.872066855 | JD98: 9.184014104 | JE98: 10.24552315
F99: =F77 -> 4000 | G99: 8 | Z99: =CHOOSE(Z77,$H77,$Q77,0,$R77,0,Z$53) -> 7 | AA99: 7 | AB99: 7 | AC99: 7 | AD99: 1.4 | AE99: 0 | AF99: 0 | AG99: 0 | AH99: 0 | AI99: 0 | AJ99: 0 | AK99: 7.064475327 | AL99: 7.064475327 | AM99: 7.064475327 | AN99: 7.064475327 | AO99: 7.064475327 | AP99: 7.064475327 | AQ99: 7.064475327 | AR99: 7.064475327 | AS99: 7.064475327 | AT99: 7.064475327 | AU99: 7.064475327 | AV99: 7.064475327 | AW99: 7.064475327 | AX99: 7.064475327 | AY99: 7.064475327 | AZ99: 7.064475327 | BA99: 7.064475327 | BB99: 7.064475327 | BC99: 7.064475327 | BD99: 7.064475327 | BE99: 7.064475327 | BF99: 7.064475327 | BG99: 7.064475327 | BH99: 7.064475327 | BI99: 7.064475327 | BJ99: 7.064475327 | BK99: 7.064475327 | BL99: 7.064475327 | BM99: 7.064475327 | BN99: 7.064475327 | BO99: 7.064475327 | BP99: 7.064475327 | BQ99: 7.064475327 | BR99: 7.064475327 | BS99: 7.064475327 | BT99: 7.064475327 | BU99: 0 | BV99: 0 | BW99: 0 | BX99: 0 | BY99: 0 | BZ99: 7.526764742 | CA99: 7.580396039 | CB99: 6.682067024 | CC99: 7.055800456 | CD99: 6.396009587 | CE99: 6.582570697 | CF99: 6.838381866 | CG99: 7.298210508 | CH99: 7.495844903 | CI99: 7.899392966 | CJ99: 7.524748173 | CK99: 8.64421614 | CL99: =CHOOSE(CL77,$H77,$Q77,0,$R77,0,CL$53) -> 9.07427238 | CM99: 8.822674749 | CN99: 8.715652005 | CO99: 9.46538225 | CP99: 10.77432346 | CQ99: 10.37050585 | CR99: 9.678951734 | CS99: 9.629932843 | CT99: 9.801809036 | CU99: 10.24862226 | CV99: 10.08172039 | CW99: 9.768770062 | CX99: 9.035171752 | CY99: 10.39057715 | CZ99: 10.44231342 | DA99: 10.88290682 | DB99: 10.59916384 | DC99: 10.07999119 | DD99: 9.58724775 | DE99: 10.74047977 | DF99: 11.65963147 | DG99: 10.83625306 | DH99: 10.94406242 | DI99: 10.99395298 | DJ99: 9.324967128 | DK99: 8.491729649 | DL99: 8.564404282 | DM99: 8.317490115 | DN99: 8.23106738 | DO99: 7.525378551 | DP99: 7.361164267 | DQ99: 6.847839165 | DR99: 7.027033467 | DS99: 7.238840893 | DT99: 7.772376843 | DU99: 7.792102425 | DV99: 7.64541816 | DW99: 8.203624883 | DX99: 8.249739312 | DY99: 8.191336212 | DZ99: 7.779396497 | EA99: 7.246841857 | EB99: 6.917513601 | EC99: 7.270877116 | ED99: 7.553935139 | EE99: 7.524868038 | EF99: 8.395447131 | EG99: 8.002671628 | EH99: 8.032629104 | EI99: 7.662249027 | EJ99: 7.825386323 | EK99: 7.642370769 | EL99: 8.578851044 | EM99: 8.399901725 | EN99: 8.658101048 | EO99: 8.029905004 | EP99: 8.377231203 | EQ99: 8.830780976 | ER99: 8.378812019 | ES99: 8.057523938 | ET99: 8.101024137 | EU99: 6.867002302 | EV99: 6.89882614 | EW99: 6.447979558 | EX99: =CHOOSE(EX77,$H77,$Q77,0,$R77,0,EX$53) -> 6.858579303 | EY99: 6.428236363 | EZ99: 6.991120556 | FA99: 6.886455006 | FB99: 5.89762008 | FC99: 6.339483319 | FD99: 6.316384536 | FE99: 6.45106299 | FF99: 6.248927219 | FG99: 5.917203929 | FH99: 6.83908208 | FI99: 6.652537182 | FJ99: 7.039207479 | FK99: 6.801994749 | FL99: 7.121958321 | FM99: 6.362830195 | FN99: 6.202591632 | FO99: 5.841231197 | FP99: 5.458467051 | FQ99: 6.223589256 | FR99: 6.12033305 | FS99: 6.06784531 | FT99: 5.889897183 | FU99: 5.915712625 | FV99: 5.987443965 | FW99: 6.167654631 | FX99: 5.515440422 | FY99: 6.278161716 | FZ99: 6.325313879 | GA99: 6.37639684 | GB99: 5.958366705 | GC99: 6.486237297 | GD99: 6.878738032 | GE99: 7.09466622 | GF99: 7.188827395 | GG99: 6.800604023 | GH99: 7.826937155 | GI99: 7.353909506 | GJ99: 6.892979859 | GK99: 6.595540244 | GL99: 6.800242502 | GM99: 6.523681449 | GN99: 6.741135043 | GO99: 7.267140561 | GP99: 6.773151092 | GQ99: 6.381378734 | GR99: 6.589438097 | GS99: 6.919993554 | GT99: 7.222500589 | GU99: 7.547861647 | GV99: 7.006778846 | GW99: 6.69452696 | GX99: 6.811343665 | GY99: 6.678218036 | GZ99: 5.968579084 | HA99: 5.64837562 | HB99: 5.470914131 | HC99: 5.153553866 | HD99: 5.093087452 | HE99: 5.192430594 | HF99: 5.176494133 | HG99: 4.860528564 | HH99: 4.461300727 | HI99: 3.9902797 | HJ99: =CHOOSE(HJ77,$H77,$Q77,0,$R77,0,HJ$53) -> 3.595311896 | HK99: 3.816760928 | HL99: 3.916993964 | HM99: 4.063402211 | HN99: 4.311724667 | HO99: 4.289464631 | HP99: 5.099312402 | HQ99: 4.921442194 | HR99: 6.117533797 | HS99: 6.050020826 | HT99: 5.893444233 | HU99: 7.25561192 | HV99: 6.541941527 | HW99: 6.908269198 | HX99: 6.393216452 | HY99: 6.315796661 | HZ99: 6.007168033 | IA99: 6.784702033 | IB99: 7.203985423 | IC99: 7.734773502 | ID99: 7.523563783 | IE99: 7.938087741 | IF99: 7.100515071 | IG99: 6.877574069 | IH99: 7.709612693 | II99: 9.862907551 | IJ99: 8.488303814 | IK99: 8.639004048 | IL99: 9.413986477 | IM99: 9.763341267 | IN99: 10.19225957 | IO99: 9.34156656 | IP99: 8.672152671 | IQ99: 8.454120365 | IR99: 8.600405442 | IS99: 9.697140094 | IT99: 9.140935559 | IU99: 10.3098779 | IV99: 9.368514855 | IW99: 10.2219415 | IX99: 9.819032099 | IY99: 9.717132591 | IZ99: 9.38991112 | JA99: 9.702032523 | JB99: 10.54105516 | JC99: 9.872066855 | JD99: 9.184014104 | JE99: 10.24552315
F100: =F78 -> 6000 | G100: 9 | Z100: =CHOOSE(Z78,$H78,$Q78,0,$R78,0,Z$53) -> 7 | AA100: 7 | AB100: 7 | AC100: 7 | AD100: 7 | AE100: 7 | AF100: 7 | AG100: 7 | AH100: 7 | AI100: 7 | AJ100: 7 | AK100: 7 | AL100: 7 | AM100: 7 | AN100: 7 | AO100: 7 | AP100: 7 | AQ100: 7 | AR100: 7 | AS100: 7 | AT100: 7 | AU100: 7 | AV100: 7 | AW100: 7 | AX100: 7 | AY100: 7 | AZ100: 7 | BA100: 7 | BB100: 0.7 | BC100: 0 | BD100: 0 | BE100: 0 | BF100: 0 | BG100: 0 | BH100: 0 | BI100: 7.929114027 | BJ100: 7.929114027 | BK100: 7.929114027 | BL100: 7.929114027 | BM100: 7.929114027 | BN100: 7.929114027 | BO100: 7.929114027 | BP100: 7.929114027 | BQ100: 7.929114027 | BR100: 7.929114027 | BS100: 7.929114027 | BT100: 7.929114027 | BU100: 7.929114027 | BV100: 7.929114027 | BW100: 7.929114027 | BX100: 7.929114027 | BY100: 7.929114027 | BZ100: 7.929114027 | CA100: 7.929114027 | CB100: 7.929114027 | CC100: 7.929114027 | CD100: 7.929114027 | CE100: 7.929114027 | CF100: 7.929114027 | CG100: 7.929114027 | CH100: 7.929114027 | CI100: 7.929114027 | CJ100: 7.929114027 | CK100: 7.929114027 | CL100: =CHOOSE(CL78,$H78,$Q78,0,$R78,0,CL$53) -> 7.929114027 | CM100: 7.929114027 | CN100: 7.929114027 | CO100: 7.929114027 | CP100: 7.929114027 | CQ100: 7.929114027 | CR100: 7.929114027 | CS100: 0 | CT100: 0 | CU100: 0 | CV100: 0 | CW100: 9.768770062 | CX100: 9.035171752 | CY100: 10.39057715 | CZ100: 10.44231342 | DA100: 10.88290682 | DB100: 10.59916384 | DC100: 10.07999119 | DD100: 9.58724775 | DE100: 10.74047977 | DF100: 11.65963147 | DG100: 10.83625306 | DH100: 10.94406242 | DI100: 10.99395298 | DJ100: 9.324967128 | DK100: 8.491729649 | DL100: 8.564404282 | DM100: 8.317490115 | DN100: 8.23106738 | DO100: 7.525378551 | DP100: 7.361164267 | DQ100: 6.847839165 | DR100: 7.027033467 | DS100: 7.238840893 | DT100: 7.772376843 | DU100: 7.792102425 | DV100: 7.64541816 | DW100: 8.203624883 | DX100: 8.249739312 | DY100: 8.191336212 | DZ100: 7.779396497 | EA100: 7.246841857 | EB100: 6.917513601 | EC100: 7.270877116 | ED100: 7.553935139 | EE100: 7.524868038 | EF100: 8.395447131 | EG100: 8.002671628 | EH100: 8.032629104 | EI100: 7.662249027 | EJ100: 7.825386323 | EK100: 7.642370769 | EL100: 8.578851044 | EM100: 8.399901725 | EN100: 8.658101048 | EO100: 8.029905004 | EP100: 8.377231203 | EQ100: 8.830780976 | ER100: 8.378812019 | ES100: 8.057523938 | ET100: 8.101024137 | EU100: 6.867002302 | EV100: 6.89882614 | EW100: 6.447979558 | EX100: =CHOOSE(EX78,$H78,$Q78,0,$R78,0,EX$53) -> 6.858579303 | EY100: 6.428236363 | EZ100: 6.991120556 | FA100: 6.886455006 | FB100: 5.89762008 | FC100: 6.339483319 | FD100: 6.316384536 | FE100: 6.45106299 | FF100: 6.248927219 | FG100: 5.917203929 | FH100: 6.83908208 | FI100: 6.652537182 | FJ100: 7.039207479 | FK100: 6.801994749 | FL100: 7.121958321 | FM100: 6.362830195 | FN100: 6.202591632 | FO100: 5.841231197 | FP100: 5.458467051 | FQ100: 6.223589256 | FR100: 6.12033305 | FS100: 6.06784531 | FT100: 5.889897183 | FU100: 5.915712625 | FV100: 5.987443965 | FW100: 6.167654631 | FX100: 5.515440422 | FY100: 6.278161716 | FZ100: 6.325313879 | GA100: 6.37639684 | GB100: 5.958366705 | GC100: 6.486237297 | GD100: 6.878738032 | GE100: 7.09466622 | GF100: 7.188827395 | GG100: 6.800604023 | GH100: 7.826937155 | GI100: 7.353909506 | GJ100: 6.892979859 | GK100: 6.595540244 | GL100: 6.800242502 | GM100: 6.523681449 | GN100: 6.741135043 | GO100: 7.267140561 | GP100: 6.773151092 | GQ100: 6.381378734 | GR100: 6.589438097 | GS100: 6.919993554 | GT100: 7.222500589 | GU100: 7.547861647 | GV100: 7.006778846 | GW100: 6.69452696 | GX100: 6.811343665 | GY100: 6.678218036 | GZ100: 5.968579084 | HA100: 5.64837562 | HB100: 5.470914131 | HC100: 5.153553866 | HD100: 5.093087452 | HE100: 5.192430594 | HF100: 5.176494133 | HG100: 4.860528564 | HH100: 4.461300727 | HI100: 3.9902797 | HJ100: =CHOOSE(HJ78,$H78,$Q78,0,$R78,0,HJ$53) -> 3.595311896 | HK100: 3.816760928 | HL100: 3.916993964 | HM100: 4.063402211 | HN100: 4.311724667 | HO100: 4.289464631 | HP100: 5.099312402 | HQ100: 4.921442194 | HR100: 6.117533797 | HS100: 6.050020826 | HT100: 5.893444233 | HU100: 7.25561192 | HV100: 6.541941527 | HW100: 6.908269198 | HX100: 6.393216452 | HY100: 6.315796661 | HZ100: 6.007168033 | IA100: 6.784702033 | IB100: 7.203985423 | IC100: 7.734773502 | ID100: 7.523563783 | IE100: 7.938087741 | IF100: 7.100515071 | IG100: 6.877574069 | IH100: 7.709612693 | II100: 9.862907551 | IJ100: 8.488303814 | IK100: 8.639004048 | IL100: 9.413986477 | IM100: 9.763341267 | IN100: 10.19225957 | IO100: 9.34156656 | IP100: 8.672152671 | IQ100: 8.454120365 | IR100: 8.600405442 | IS100: 9.697140094 | IT100: 9.140935559 | IU100: 10.3098779 | IV100: 9.368514855 | IW100: 10.2219415 | IX100: 9.819032099 | IY100: 9.717132591 | IZ100: 9.38991112 | JA100: 9.702032523 | JB100: 10.54105516 | JC100: 9.872066855 | JD100: 9.184014104 | JE100: 10.24552315
F101: =F79 -> 7000 | G101: 10 | Z101: =CHOOSE(Z79,$H79,$Q79,0,$R79,0,Z$53) -> 7 | AA101: 7 | AB101: 7 | AC101: 7 | AD101: 7 | AE101: 7 | AF101: 7 | AG101: 7 | AH101: 7 | AI101: 7 | AJ101: 7 | AK101: 7 | AL101: 7 | AM101: 7 | AN101: 7 | AO101: 7 | AP101: 7 | AQ101: 7 | AR101: 7 | AS101: 7 | AT101: 7 | AU101: 7 | AV101: 7 | AW101: 7 | AX101: 7 | AY101: 7 | AZ101: 7 | BA101: 7 | BB101: 7 | BC101: 7 | BD101: 7 | BE101: 7 | BF101: 7 | BG101: 7 | BH101: 7 | BI101: 7 | BJ101: 7 | BK101: 7 | BL101: 7 | BM101: 7 | BN101: 0.9333333333 | BO101: 0 | BP101: 0 | BQ101: 0 | BR101: 0 | BS101: 0 | BT101: 8.112243867 | BU101: 8.112243867 | BV101: 8.112243867 | BW101: 8.112243867 | BX101: 8.112243867 | BY101: 8.112243867 | BZ101: 8.112243867 | CA101: 8.112243867 | CB101: 8.112243867 | CC101: 8.112243867 | CD101: 8.112243867 | CE101: 8.112243867 | CF101: 8.112243867 | CG101: 8.112243867 | CH101: 8.112243867 | CI101: 8.112243867 | CJ101: 8.112243867 | CK101: 8.112243867 | CL101: =CHOOSE(CL79,$H79,$Q79,0,$R79,0,CL$53) -> 8.112243867 | CM101: 8.112243867 | CN101: 8.112243867 | CO101: 8.112243867 | CP101: 8.112243867 | CQ101: 8.112243867 | CR101: 8.112243867 | CS101: 8.112243867 | CT101: 8.112243867 | CU101: 8.112243867 | CV101: 8.112243867 | CW101: 8.112243867 | CX101: 8.112243867 | CY101: 8.112243867 | CZ101: 8.112243867 | DA101: 8.112243867 | DB101: 8.112243867 | DC101: 8.112243867 | DD101: 0 | DE101: 0 | DF101: 0 | DG101: 10.83625306 | DH101: 10.94406242 | DI101: 10.99395298 | DJ101: 9.324967128 | DK101: 8.491729649 | DL101: 8.564404282 | DM101: 8.317490115 | DN101: 8.23106738 | DO101: 7.525378551 | DP101: 7.361164267 | DQ101: 6.847839165 | DR101: 7.027033467 | DS101: 7.238840893 | DT101: 7.772376843 | DU101: 7.792102425 | DV101: 7.64541816 | DW101: 8.203624883 | DX101: 8.249739312 | DY101: 8.191336212 | DZ101: 7.779396497 | EA101: 7.246841857 | EB101: 6.917513601 | EC101: 7.270877116 | ED101: 7.553935139 | EE101: 7.524868038 | EF101: 8.395447131 | EG101: 8.002671628 | EH101: 8.032629104 | EI101: 7.662249027 | EJ101: 7.825386323 | EK101: 7.642370769 | EL101: 8.578851044 | EM101: 8.399901725 | EN101: 8.658101048 | EO101: 8.029905004 | EP101: 8.377231203 | EQ101: 8.830780976 | ER101: 8.378812019 | ES101: 8.057523938 | ET101: 8.101024137 | EU101: 6.867002302 | EV101: 6.89882614 | EW101: 6.447979558 | EX101: =CHOOSE(EX79,$H79,$Q79,0,$R79,0,EX$53) -> 6.858579303 | EY101: 6.428236363 | EZ101: 6.991120556 | FA101: 6.886455006 | FB101: 5.89762008 | FC101: 6.339483319 | FD101: 6.316384536 | FE101: 6.45106299 | FF101: 6.248927219 | FG101: 5.917203929 | FH101: 6.83908208 | FI101: 6.652537182 | FJ101: 7.039207479 | FK101: 6.801994749 | FL101: 7.121958321 | FM101: 6.362830195 | FN101: 6.202591632 | FO101: 5.841231197 | FP101: 5.458467051 | FQ101: 6.223589256 | FR101: 6.12033305 | FS101: 6.06784531 | FT101: 5.889897183 | FU101: 5.915712625 | FV101: 5.987443965 | FW101: 6.167654631 | FX101: 5.515440422 | FY101: 6.278161716 | FZ101: 6.325313879 | GA101: 6.37639684 | GB101: 5.958366705 | GC101: 6.486237297 | GD101: 6.878738032 | GE101: 7.09466622 | GF101: 7.188827395 | GG101: 6.800604023 | GH101: 7.826937155 | GI101: 7.353909506 | GJ101: 6.892979859 | GK101: 6.595540244 | GL101: 6.800242502 | GM101: 6.523681449 | GN101: 6.741135043 | GO101: 7.267140561 | GP101: 6.773151092 | GQ101: 6.381378734 | GR101: 6.589438097 | GS101: 6.919993554 | GT101: 7.222500589 | GU101: 7.547861647 | GV101: 7.006778846 | GW101: 6.69452696 | GX101: 6.811343665 | GY101: 6.678218036 | GZ101: 5.968579084 | HA101: 5.64837562 | HB101: 5.470914131 | HC101: 5.153553866 | HD101: 5.093087452 | HE101: 5.192430594 | HF101: 5.176494133 | HG101: 4.860528564 | HH101: 4.461300727 | HI101: 3.9902797 | HJ101: =CHOOSE(HJ79,$H79,$Q79,0,$R79,0,HJ$53) -> 3.595311896 | HK101: 3.816760928 | HL101: 3.916993964 | HM101: 4.063402211 | HN101: 4.311724667 | HO101: 4.289464631 | HP101: 5.099312402 | HQ101: 4.921442194 | HR101: 6.117533797 | HS101: 6.050020826 | HT101: 5.893444233 | HU101: 7.25561192 | HV101: 6.541941527 | HW101: 6.908269198 | HX101: 6.393216452 | HY101: 6.315796661 | HZ101: 6.007168033 | IA101: 6.784702033 | IB101: 7.203985423 | IC101: 7.734773502 | ID101: 7.523563783 | IE101: 7.938087741 | IF101: 7.100515071 | IG101: 6.877574069 | IH101: 7.709612693 | II101: 9.862907551 | IJ101: 8.488303814 | IK101: 8.639004048 | IL101: 9.413986477 | IM101: 9.763341267 | IN101: 10.19225957 | IO101: 9.34156656 | IP101: 8.672152671 | IQ101: 8.454120365 | IR101: 8.600405442 | IS101: 9.697140094 | IT101: 9.140935559 | IU101: 10.3098779 | IV101: 9.368514855 | IW101: 10.2219415 | IX101: 9.819032099 | IY101: 9.717132591 | IZ101: 9.38991112 | JA101: 9.702032523 | JB101: 10.54105516 | JC101: 9.872066855 | JD101: 9.184014104 | JE101: 10.24552315
F102: =F80 -> 3000 | G102: 11 | Z102: =CHOOSE(Z80,$H80,$Q80,0,$R80,0,Z$53) -> 9 | AA102: 9 | AB102: 9 | AC102: 9 | AD102: 9 | AE102: 9 | AF102: 9 | AG102: 9 | AH102: 9 | AI102: 9 | AJ102: 9 | AK102: 9 | AL102: 9 | AM102: 9 | AN102: 9 | AO102: 9 | AP102: 9 | AQ102: 9 | AR102: 9 | AS102: 9 | AT102: 9 | AU102: 9 | AV102: 9 | AW102: 9 | AX102: 9 | AY102: 9 | AZ102: 9 | BA102: 9 | BB102: 9 | BC102: 9 | BD102: 9 | BE102: 9 | BF102: 9 | BG102: 9 | BH102: 9 | BI102: 9 | BJ102: 9 | BK102: 9 | BL102: 9 | BM102: 9 | BN102: 9 | BO102: 9 | BP102: 9 | BQ102: 9 | BR102: 9 | BS102: 9 | BT102: 9 | BU102: 9 | BV102: 9 | BW102: 9 | BX102: 9 | BY102: 9 | BZ102: 9 | CA102: 9 | CB102: 9 | CC102: 9 | CD102: 9 | CE102: 9 | CF102: 9 | CG102: 9 | CH102: 9 | CI102: 9 | CJ102: 9 | CK102: 9 | CL102: =CHOOSE(CL80,$H80,$Q80,0,$R80,0,CL$53) -> 9 | CM102: 9 | CN102: 9 | CO102: 9 | CP102: 9 | CQ102: 9 | CR102: 9 | CS102: 9 | CT102: 9 | CU102: 9 | CV102: 9 | CW102: 9 | CX102: 1.5 | CY102: 0 | CZ102: 0 | DA102: 0 | DB102: 0 | DC102: 10.59916384 | DD102: 10.59916384 | DE102: 10.59916384 | DF102: 10.59916384 | DG102: 10.59916384 | DH102: 10.59916384 | DI102: 10.59916384 | DJ102: 10.59916384 | DK102: 10.59916384 | DL102: 10.59916384 | DM102: 10.59916384 | DN102: 10.59916384 | DO102: 10.59916384 | DP102: 10.59916384 | DQ102: 10.59916384 | DR102: 10.59916384 | DS102: 10.59916384 | DT102: 10.59916384 | DU102: 10.59916384 | DV102: 10.59916384 | DW102: 10.59916384 | DX102: 10.59916384 | DY102: 10.59916384 | DZ102: 10.59916384 | EA102: 10.59916384 | EB102: 10.59916384 | EC102: 10.59916384 | ED102: 10.59916384 | EE102: 10.59916384 | EF102: 10.59916384 | EG102: 10.59916384 | EH102: 10.59916384 | EI102: 10.59916384 | EJ102: 10.59916384 | EK102: 10.59916384 | EL102: 10.59916384 | EM102: 0 | EN102: 0 | EO102: 0 | EP102: 0 | EQ102: 0 | ER102: 8.378812019 | ES102: 8.057523938 | ET102: 8.101024137 | EU102: 6.867002302 | EV102: 6.89882614 | EW102: 6.447979558 | EX102: =CHOOSE(EX80,$H80,$Q80,0,$R80,0,EX$53) -> 6.858579303 | EY102: 6.428236363 | EZ102: 6.991120556 | FA102: 6.886455006 | FB102: 5.89762008 | FC102: 6.339483319 | FD102: 6.316384536 | FE102: 6.45106299 | FF102: 6.248927219 | FG102: 5.917203929 | FH102: 6.83908208 | FI102: 6.652537182 | FJ102: 7.039207479 | FK102: 6.801994749 | FL102: 7.121958321 | FM102: 6.362830195 | FN102: 6.202591632 | FO102: 5.841231197 | FP102: 5.458467051 | FQ102: 6.223589256 | FR102: 6.12033305 | FS102: 6.06784531 | FT102: 5.889897183 | FU102: 5.915712625 | FV102: 5.987443965 | FW102: 6.167654631 | FX102: 5.515440422 | FY102: 6.278161716 | FZ102: 6.325313879 | GA102: 6.37639684 | GB102: 5.958366705 | GC102: 6.486237297 | GD102: 6.878738032 | GE102: 7.09466622 | GF102: 7.188827395 | GG102: 6.800604023 | GH102: 7.826937155 | GI102: 7.353909506 | GJ102: 6.892979859 | GK102: 6.595540244 | GL102: 6.800242502 | GM102: 6.523681449 | GN102: 6.741135043 | GO102: 7.267140561 | GP102: 6.773151092 | GQ102: 6.381378734 | GR102: 6.589438097 | GS102: 6.919993554 | GT102: 7.222500589 | GU102: 7.547861647 | GV102: 7.006778846 | GW102: 6.69452696 | GX102: 6.811343665 | GY102: 6.678218036 | GZ102: 5.968579084 | HA102: 5.64837562 | HB102: 5.470914131 | HC102: 5.153553866 | HD102: 5.093087452 | HE102: 5.192430594 | HF102: 5.176494133 | HG102: 4.860528564 | HH102: 4.461300727 | HI102: 3.9902797 | HJ102: =CHOOSE(HJ80,$H80,$Q80,0,$R80,0,HJ$53) -> 3.595311896 | HK102: 3.816760928 | HL102: 3.916993964 | HM102: 4.063402211 | HN102: 4.311724667 | HO102: 4.289464631 | HP102: 5.099312402 | HQ102: 4.921442194 | HR102: 6.117533797 | HS102: 6.050020826 | HT102: 5.893444233 | HU102: 7.25561192 | HV102: 6.541941527 | HW102: 6.908269198 | HX102: 6.393216452 | HY102: 6.315796661 | HZ102: 6.007168033 | IA102: 6.784702033 | IB102: 7.203985423 | IC102: 7.734773502 | ID102: 7.523563783 | IE102: 7.938087741 | IF102: 7.100515071 | IG102: 6.877574069 | IH102: 7.709612693 | II102: 9.862907551 | IJ102: 8.488303814 | IK102: 8.639004048 | IL102: 9.413986477 | IM102: 9.763341267 | IN102: 10.19225957 | IO102: 9.34156656 | IP102: 8.672152671 | IQ102: 8.454120365 | IR102: 8.600405442 | IS102: 9.697140094 | IT102: 9.140935559 | IU102: 10.3098779 | IV102: 9.368514855 | IW102: 10.2219415 | IX102: 9.819032099 | IY102: 9.717132591 | IZ102: 9.38991112 | JA102: 9.702032523 | JB102: 10.54105516 | JC102: 9.872066855 | JD102: 9.184014104 | JE102: 10.24552315
F103: =F81 -> 5000 | G103: 12 | Z103: =CHOOSE(Z81,$H81,$Q81,0,$R81,0,Z$53) -> 0 | AA103: 0 | AB103: 0 | AC103: 0 | AD103: 0 | AE103: 0 | AF103: 0 | AG103: 8.462607362 | AH103: 8.462607362 | AI103: 8.462607362 | AJ103: 8.462607362 | AK103: 8.462607362 | AL103: 8.462607362 | AM103: 8.462607362 | AN103: 8.462607362 | AO103: 8.462607362 | AP103: 8.462607362 | AQ103: 8.462607362 | AR103: 8.462607362 | AS103: 8.462607362 | AT103: 8.462607362 | AU103: 8.462607362 | AV103: 8.462607362 | AW103: 8.462607362 | AX103: 8.462607362 | AY103: 8.462607362 | AZ103: 8.462607362 | BA103: 8.462607362 | BB103: 8.462607362 | BC103: 8.462607362 | BD103: 8.462607362 | BE103: 8.462607362 | BF103: 8.462607362 | BG103: 8.462607362 | BH103: 8.462607362 | BI103: 8.462607362 | BJ103: 8.462607362 | BK103: 8.462607362 | BL103: 8.462607362 | BM103: 8.462607362 | BN103: 8.462607362 | BO103: 8.462607362 | BP103: 8.462607362 | BQ103: 0 | BR103: 0 | BS103: 0 | BT103: 0 | BU103: 0 | BV103: 7.94682963 | BW103: 8.67208748 | BX103: 8.424118864 | BY103: 8.050621272 | BZ103: 7.526764742 | CA103: 7.580396039 | CB103: 6.682067024 | CC103: 7.055800456 | CD103: 6.396009587 | CE103: 6.582570697 | CF103: 6.838381866 | CG103: 7.298210508 | CH103: 7.495844903 | CI103: 7.899392966 | CJ103: 7.524748173 | CK103: 8.64421614 | CL103: =CHOOSE(CL81,$H81,$Q81,0,$R81,0,CL$53) -> 9.07427238 | CM103: 8.822674749 | CN103: 8.715652005 | CO103: 9.46538225 | CP103: 10.77432346 | CQ103: 10.37050585 | CR103: 9.678951734 | CS103: 9.629932843 | CT103: 9.801809036 | CU103: 10.24862226 | CV103: 10.08172039 | CW103: 9.768770062 | CX103: 9.035171752 | CY103: 10.39057715 | CZ103: 10.44231342 | DA103: 10.88290682 | DB103: 10.59916384 | DC103: 10.07999119 | DD103: 9.58724775 | DE103: 10.74047977 | DF103: 11.65963147 | DG103: 10.83625306 | DH103: 10.94406242 | DI103: 10.99395298 | DJ103: 9.324967128 | DK103: 8.491729649 | DL103: 8.564404282 | DM103: 8.317490115 | DN103: 8.23106738 | DO103: 7.525378551 | DP103: 7.361164267 | DQ103: 6.847839165 | DR103: 7.027033467 | DS103: 7.238840893 | DT103: 7.772376843 | DU103: 7.792102425 | DV103: 7.64541816 | DW103: 8.203624883 | DX103: 8.249739312 | DY103: 8.191336212 | DZ103: 7.779396497 | EA103: 7.246841857 | EB103: 6.917513601 | EC103: 7.270877116 | ED103: 7.553935139 | EE103: 7.524868038 | EF103: 8.395447131 | EG103: 8.002671628 | EH103: 8.032629104 | EI103: 7.662249027 | EJ103: 7.825386323 | EK103: 7.642370769 | EL103: 8.578851044 | EM103: 8.399901725 | EN103: 8.658101048 | EO103: 8.029905004 | EP103: 8.377231203 | EQ103: 8.830780976 | ER103: 8.378812019 | ES103: 8.057523938 | ET103: 8.101024137 | EU103: 6.867002302 | EV103: 6.89882614 | EW103: 6.447979558 | EX103: =CHOOSE(EX81,$H81,$Q81,0,$R81,0,EX$53) -> 6.858579303 | EY103: 6.428236363 | EZ103: 6.991120556 | FA103: 6.886455006 | FB103: 5.89762008 | FC103: 6.339483319 | FD103: 6.316384536 | FE103: 6.45106299 | FF103: 6.248927219 | FG103: 5.917203929 | FH103: 6.83908208 | FI103: 6.652537182 | FJ103: 7.039207479 | FK103: 6.801994749 | FL103: 7.121958321 | FM103: 6.362830195 | FN103: 6.202591632 | FO103: 5.841231197 | FP103: 5.458467051 | FQ103: 6.223589256 | FR103: 6.12033305 | FS103: 6.06784531 | FT103: 5.889897183 | FU103: 5.915712625 | FV103: 5.987443965 | FW103: 6.167654631 | FX103: 5.515440422 | FY103: 6.278161716 | FZ103: 6.325313879 | GA103: 6.37639684 | GB103: 5.958366705 | GC103: 6.486237297 | GD103: 6.878738032 | GE103: 7.09466622 | GF103: 7.188827395 | GG103: 6.800604023 | GH103: 7.826937155 | GI103: 7.353909506 | GJ103: 6.892979859 | GK103: 6.595540244 | GL103: 6.800242502 | GM103: 6.523681449 | GN103: 6.741135043 | GO103: 7.267140561 | GP103: 6.773151092 | GQ103: 6.381378734 | GR103: 6.589438097 | GS103: 6.919993554 | GT103: 7.222500589 | GU103: 7.547861647 | GV103: 7.006778846 | GW103: 6.69452696 | GX103: 6.811343665 | GY103: 6.678218036 | GZ103: 5.968579084 | HA103: 5.64837562 | HB103: 5.470914131 | HC103: 5.153553866 | HD103: 5.093087452 | HE103: 5.192430594 | HF103: 5.176494133 | HG103: 4.860528564 | HH103: 4.461300727 | HI103: 3.9902797 | HJ103: =CHOOSE(HJ81,$H81,$Q81,0,$R81,0,HJ$53) -> 3.595311896 | HK103: 3.816760928 | HL103: 3.916993964 | HM103: 4.063402211 | HN103: 4.311724667 | HO103: 4.289464631 | HP103: 5.099312402 | HQ103: 4.921442194 | HR103: 6.117533797 | HS103: 6.050020826 | HT103: 5.893444233 | HU103: 7.25561192 | HV103: 6.541941527 | HW103: 6.908269198 | HX103: 6.393216452 | HY103: 6.315796661 | HZ103: 6.007168033 | IA103: 6.784702033 | IB103: 7.203985423 | IC103: 7.734773502 | ID103: 7.523563783 | IE103: 7.938087741 | IF103: 7.100515071 | IG103: 6.877574069 | IH103: 7.709612693 | II103: 9.862907551 | IJ103: 8.488303814 | IK103: 8.639004048 | IL103: 9.413986477 | IM103: 9.763341267 | IN103: 10.19225957 | IO103: 9.34156656 | IP103: 8.672152671 | IQ103: 8.454120365 | IR103: 8.600405442 | IS103: 9.697140094 | IT103: 9.140935559 | IU103: 10.3098779 | IV103: 9.368514855 | IW103: 10.2219415 | IX103: 9.819032099 | IY103: 9.717132591 | IZ103: 9.38991112 | JA103: 9.702032523 | JB103: 10.54105516 | JC103: 9.872066855 | JD103: 9.184014104 | JE103: 10.24552315
F104: =F82 -> 9000 | G104: 13 | Z104: =CHOOSE(Z82,$H82,$Q82,0,$R82,0,Z$53) -> 7 | AA104: 7 | AB104: 7 | AC104: 7 | AD104: 7 | AE104: 7 | AF104: 7 | AG104: 7 | AH104: 7 | AI104: 7 | AJ104: 7 | AK104: 7 | AL104: 7 | AM104: 7 | AN104: 7 | AO104: 7 | AP104: 1.4 | AQ104: 0 | AR104: 0 | AS104: 0 | AT104: 0 | AU104: 0 | AV104: 10.34721714 | AW104: 10.34721714 | AX104: 10.34721714 | AY104: 10.34721714 | AZ104: 10.34721714 | BA104: 10.34721714 | BB104: 10.34721714 | BC104: 10.34721714 | BD104: 10.34721714 | BE104: 10.34721714 | BF104: 10.34721714 | BG104: 10.34721714 | BH104: 10.34721714 | BI104: 10.34721714 | BJ104: 10.34721714 | BK104: 10.34721714 | BL104: 10.34721714 | BM104: 10.34721714 | BN104: 10.34721714 | BO104: 10.34721714 | BP104: 10.34721714 | BQ104: 10.34721714 | BR104: 10.34721714 | BS104: 10.34721714 | BT104: 10.34721714 | BU104: 10.34721714 | BV104: 10.34721714 | BW104: 10.34721714 | BX104: 10.34721714 | BY104: 10.34721714 | BZ104: 10.34721714 | CA104: 10.34721714 | CB104: 10.34721714 | CC104: 10.34721714 | CD104: 10.34721714 | CE104: 10.34721714 | CF104: 0 | CG104: 0 | CH104: 0 | CI104: 0 | CJ104: 0 | CK104: 0 | CL104: =CHOOSE(CL82,$H82,$Q82,0,$R82,0,CL$53) -> 0 | CM104: 8.822674749 | CN104: 8.715652005 | CO104: 9.46538225 | CP104: 10.77432346 | CQ104: 10.37050585 | CR104: 9.678951734 | CS104: 9.629932843 | CT104: 9.801809036 | CU104: 10.24862226 | CV104: 10.08172039 | CW104: 9.768770062 | CX104: 9.035171752 | CY104: 10.39057715 | CZ104: 10.44231342 | DA104: 10.88290682 | DB104: 10.59916384 | DC104: 10.07999119 | DD104: 9.58724775 | DE104: 10.74047977 | DF104: 11.65963147 | DG104: 10.83625306 | DH104: 10.94406242 | DI104: 10.99395298 | DJ104: 9.324967128 | DK104: 8.491729649 | DL104: 8.564404282 | DM104: 8.317490115 | DN104: 8.23106738 | DO104: 7.525378551 | DP104: 7.361164267 | DQ104: 6.847839165 | DR104: 7.027033467 | DS104: 7.238840893 | DT104: 7.772376843 | DU104: 7.792102425 | DV104: 7.64541816 | DW104: 8.203624883 | DX104: 8.249739312 | DY104: 8.191336212 | DZ104: 7.779396497 | EA104: 7.246841857 | EB104: 6.917513601 | EC104: 7.270877116 | ED104: 7.553935139 | EE104: 7.524868038 | EF104: 8.395447131 | EG104: 8.002671628 | EH104: 8.032629104 | EI104: 7.662249027 | EJ104: 7.825386323 | EK104: 7.642370769 | EL104: 8.578851044 | EM104: 8.399901725 | EN104: 8.658101048 | EO104: 8.029905004 | EP104: 8.377231203 | EQ104: 8.830780976 | ER104: 8.378812019 | ES104: 8.057523938 | ET104: 8.101024137 | EU104: 6.867002302 | EV104: 6.89882614 | EW104: 6.447979558 | EX104: =CHOOSE(EX82,$H82,$Q82,0,$R82,0,EX$53) -> 6.858579303 | EY104: 6.428236363 | EZ104: 6.991120556 | FA104: 6.886455006 | FB104: 5.89762008 | FC104: 6.339483319 | FD104: 6.316384536 | FE104: 6.45106299 | FF104: 6.248927219 | FG104: 5.917203929 | FH104: 6.83908208 | FI104: 6.652537182 | FJ104: 7.039207479 | FK104: 6.801994749 | FL104: 7.121958321 | FM104: 6.362830195 | FN104: 6.202591632 | FO104: 5.841231197 | FP104: 5.458467051 | FQ104: 6.223589256 | FR104: 6.12033305 | FS104: 6.06784531 | FT104: 5.889897183 | FU104: 5.915712625 | FV104: 5.987443965 | FW104: 6.167654631 | FX104: 5.515440422 | FY104: 6.278161716 | FZ104: 6.325313879 | GA104: 6.37639684 | GB104: 5.958366705 | GC104: 6.486237297 | GD104: 6.878738032 | GE104: 7.09466622 | GF104: 7.188827395 | GG104: 6.800604023 | GH104: 7.826937155 | GI104: 7.353909506 | GJ104: 6.892979859 | GK104: 6.595540244 | GL104: 6.800242502 | GM104: 6.523681449 | GN104: 6.741135043 | GO104: 7.267140561 | GP104: 6.773151092 | GQ104: 6.381378734 | GR104: 6.589438097 | GS104: 6.919993554 | GT104: 7.222500589 | GU104: 7.547861647 | GV104: 7.006778846 | GW104: 6.69452696 | GX104: 6.811343665 | GY104: 6.678218036 | GZ104: 5.968579084 | HA104: 5.64837562 | HB104: 5.470914131 | HC104: 5.153553866 | HD104: 5.093087452 | HE104: 5.192430594 | HF104: 5.176494133 | HG104: 4.860528564 | HH104: 4.461300727 | HI104: 3.9902797 | HJ104: =CHOOSE(HJ82,$H82,$Q82,0,$R82,0,HJ$53) -> 3.595311896 | HK104: 3.816760928 | HL104: 3.916993964 | HM104: 4.063402211 | HN104: 4.311724667 | HO104: 4.289464631 | HP104: 5.099312402 | HQ104: 4.921442194 | HR104: 6.117533797 | HS104: 6.050020826 | HT104: 5.893444233 | HU104: 7.25561192 | HV104: 6.541941527 | HW104: 6.908269198 | HX104: 6.393216452 | HY104: 6.315796661 | HZ104: 6.007168033 | IA104: 6.784702033 | IB104: 7.203985423 | IC104: 7.734773502 | ID104: 7.523563783 | IE104: 7.938087741 | IF104: 7.100515071 | IG104: 6.877574069 | IH104: 7.709612693 | II104: 9.862907551 | IJ104: 8.488303814 | IK104: 8.639004048 | IL104: 9.413986477 | IM104: 9.763341267 | IN104: 10.19225957 | IO104: 9.34156656 | IP104: 8.672152671 | IQ104: 8.454120365 | IR104: 8.600405442 | IS104: 9.697140094 | IT104: 9.140935559 | IU104: 10.3098779 | IV104: 9.368514855 | IW104: 10.2219415 | IX104: 9.819032099 | IY104: 9.717132591 | IZ104: 9.38991112 | JA104: 9.702032523 | JB104: 10.54105516 | JC104: 9.872066855 | JD104: 9.184014104 | JE104: 10.24552315
F105: =F83 -> 10000 | G105: 14 | Z105: =CHOOSE(Z83,$H83,$Q83,0,$R83,0,Z$53) -> 7 | AA105: 7 | AB105: 7 | AC105: 7 | AD105: 7 | AE105: 7 | AF105: 7 | AG105: 7 | AH105: 7 | AI105: 7 | AJ105: 7 | AK105: 7 | AL105: 7 | AM105: 7 | AN105: 7 | AO105: 7 | AP105: 1.4 | AQ105: 0 | AR105: 0 | AS105: 0 | AT105: 0 | AU105: 0 | AV105: 10.34721714 | AW105: 10.34721714 | AX105: 10.34721714 | AY105: 10.34721714 | AZ105: 10.34721714 | BA105: 10.34721714 | BB105: 10.34721714 | BC105: 10.34721714 | BD105: 10.34721714 | BE105: 10.34721714 | BF105: 10.34721714 | BG105: 10.34721714 | BH105: 10.34721714 | BI105: 10.34721714 | BJ105: 10.34721714 | BK105: 10.34721714 | BL105: 10.34721714 | BM105: 10.34721714 | BN105: 10.34721714 | BO105: 10.34721714 | BP105: 10.34721714 | BQ105: 10.34721714 | BR105: 10.34721714 | BS105: 10.34721714 | BT105: 10.34721714 | BU105: 10.34721714 | BV105: 10.34721714 | BW105: 10.34721714 | BX105: 10.34721714 | BY105: 10.34721714 | BZ105: 10.34721714 | CA105: 10.34721714 | CB105: 10.34721714 | CC105: 10.34721714 | CD105: 10.34721714 | CE105: 10.34721714 | CF105: 0 | CG105: 0 | CH105: 0 | CI105: 0 | CJ105: 0 | CK105: 0 | CL105: =CHOOSE(CL83,$H83,$Q83,0,$R83,0,CL$53) -> 0 | CM105: 8.822674749 | CN105: 8.715652005 | CO105: 9.46538225 | CP105: 10.77432346 | CQ105: 10.37050585 | CR105: 9.678951734 | CS105: 9.629932843 | CT105: 9.801809036 | CU105: 10.24862226 | CV105: 10.08172039 | CW105: 9.768770062 | CX105: 9.035171752 | CY105: 10.39057715 | CZ105: 10.44231342 | DA105: 10.88290682 | DB105: 10.59916384 | DC105: 10.07999119 | DD105: 9.58724775 | DE105: 10.74047977 | DF105: 11.65963147 | DG105: 10.83625306 | DH105: 10.94406242 | DI105: 10.99395298 | DJ105: 9.324967128 | DK105: 8.491729649 | DL105: 8.564404282 | DM105: 8.317490115 | DN105: 8.23106738 | DO105: 7.525378551 | DP105: 7.361164267 | DQ105: 6.847839165 | DR105: 7.027033467 | DS105: 7.238840893 | DT105: 7.772376843 | DU105: 7.792102425 | DV105: 7.64541816 | DW105: 8.203624883 | DX105: 8.249739312 | DY105: 8.191336212 | DZ105: 7.779396497 | EA105: 7.246841857 | EB105: 6.917513601 | EC105: 7.270877116 | ED105: 7.553935139 | EE105: 7.524868038 | EF105: 8.395447131 | EG105: 8.002671628 | EH105: 8.032629104 | EI105: 7.662249027 | EJ105: 7.825386323 | EK105: 7.642370769 | EL105: 8.578851044 | EM105: 8.399901725 | EN105: 8.658101048 | EO105: 8.029905004 | EP105: 8.377231203 | EQ105: 8.830780976 | ER105: 8.378812019 | ES105: 8.057523938 | ET105: 8.101024137 | EU105: 6.867002302 | EV105: 6.89882614 | EW105: 6.447979558 | EX105: =CHOOSE(EX83,$H83,$Q83,0,$R83,0,EX$53) -> 6.858579303 | EY105: 6.428236363 | EZ105: 6.991120556 | FA105: 6.886455006 | FB105: 5.89762008 | FC105: 6.339483319 | FD105: 6.316384536 | FE105: 6.45106299 | FF105: 6.248927219 | FG105: 5.917203929 | FH105: 6.83908208 | FI105: 6.652537182 | FJ105: 7.039207479 | FK105: 6.801994749 | FL105: 7.121958321 | FM105: 6.362830195 | FN105: 6.202591632 | FO105: 5.841231197 | FP105: 5.458467051 | FQ105: 6.223589256 | FR105: 6.12033305 | FS105: 6.06784531 | FT105: 5.889897183 | FU105: 5.915712625 | FV105: 5.987443965 | FW105: 6.167654631 | FX105: 5.515440422 | FY105: 6.278161716 | FZ105: 6.325313879 | GA105: 6.37639684 | GB105: 5.958366705 | GC105: 6.486237297 | GD105: 6.878738032 | GE105: 7.09466622 | GF105: 7.188827395 | GG105: 6.800604023 | GH105: 7.826937155 | GI105: 7.353909506 | GJ105: 6.892979859 | GK105: 6.595540244 | GL105: 6.800242502 | GM105: 6.523681449 | GN105: 6.741135043 | GO105: 7.267140561 | GP105: 6.773151092 | GQ105: 6.381378734 | GR105: 6.589438097 | GS105: 6.919993554 | GT105: 7.222500589 | GU105: 7.547861647 | GV105: 7.006778846 | GW105: 6.69452696 | GX105: 6.811343665 | GY105: 6.678218036 | GZ105: 5.968579084 | HA105: 5.64837562 | HB105: 5.470914131 | HC105: 5.153553866 | HD105: 5.093087452 | HE105: 5.192430594 | HF105: 5.176494133 | HG105: 4.860528564 | HH105: 4.461300727 | HI105: 3.9902797 | HJ105: =CHOOSE(HJ83,$H83,$Q83,0,$R83,0,HJ$53) -> 3.595311896 | HK105: 3.816760928 | HL105: 3.916993964 | HM105: 4.063402211 | HN105: 4.311724667 | HO105: 4.289464631 | HP105: 5.099312402 | HQ105: 4.921442194 | HR105: 6.117533797 | HS105: 6.050020826 | HT105: 5.893444233 | HU105: 7.25561192 | HV105: 6.541941527 | HW105: 6.908269198 | HX105: 6.393216452 | HY105: 6.315796661 | HZ105: 6.007168033 | IA105: 6.784702033 | IB105: 7.203985423 | IC105: 7.734773502 | ID105: 7.523563783 | IE105: 7.938087741 | IF105: 7.100515071 | IG105: 6.877574069 | IH105: 7.709612693 | II105: 9.862907551 | IJ105: 8.488303814 | IK105: 8.639004048 | IL105: 9.413986477 | IM105: 9.763341267 | IN105: 10.19225957 | IO105: 9.34156656 | IP105: 8.672152671 | IQ105: 8.454120365 | IR105: 8.600405442 | IS105: 9.697140094 | IT105: 9.140935559 | IU105: 10.3098779 | IV105: 9.368514855 | IW105: 10.2219415 | IX105: 9.819032099 | IY105: 9.717132591 | IZ105: 9.38991112 | JA105: 9.702032523 | JB105: 10.54105516 | JC105: 9.872066855 | JD105: 9.184014104 | JE105: 10.24552315
F106: =F84 -> 8000 | G106: 15 | Z106: =CHOOSE(Z84,$H84,$Q84,0,$R84,0,Z$53) -> 6 | AA106: 6 | AB106: 6 | AC106: 6 | AD106: 6 | AE106: 6 | AF106: 6 | AG106: 6 | AH106: 6 | AI106: 6 | AJ106: 6 | AK106: 6 | AL106: 6 | AM106: 6 | AN106: 6 | AO106: 6 | AP106: 1.2 | AQ106: 0 | AR106: 0 | AS106: 0 | AT106: 0 | AU106: 0 | AV106: 10.34721714 | AW106: 10.34721714 | AX106: 10.34721714 | AY106: 10.34721714 | AZ106: 10.34721714 | BA106: 10.34721714 | BB106: 10.34721714 | BC106: 10.34721714 | BD106: 10.34721714 | BE106: 10.34721714 | BF106: 10.34721714 | BG106: 10.34721714 | BH106: 10.34721714 | BI106: 10.34721714 | BJ106: 10.34721714 | BK106: 10.34721714 | BL106: 10.34721714 | BM106: 10.34721714 | BN106: 10.34721714 | BO106: 10.34721714 | BP106: 10.34721714 | BQ106: 10.34721714 | BR106: 10.34721714 | BS106: 10.34721714 | BT106: 10.34721714 | BU106: 10.34721714 | BV106: 10.34721714 | BW106: 10.34721714 | BX106: 10.34721714 | BY106: 10.34721714 | BZ106: 10.34721714 | CA106: 10.34721714 | CB106: 10.34721714 | CC106: 10.34721714 | CD106: 10.34721714 | CE106: 10.34721714 | CF106: 0 | CG106: 0 | CH106: 0 | CI106: 0 | CJ106: 0 | CK106: 0 | CL106: =CHOOSE(CL84,$H84,$Q84,0,$R84,0,CL$53) -> 0 | CM106: 8.822674749 | CN106: 8.715652005 | CO106: 9.46538225 | CP106: 10.77432346 | CQ106: 10.37050585 | CR106: 9.678951734 | CS106: 9.629932843 | CT106: 9.801809036 | CU106: 10.24862226 | CV106: 10.08172039 | CW106: 9.768770062 | CX106: 9.035171752 | CY106: 10.39057715 | CZ106: 10.44231342 | DA106: 10.88290682 | DB106: 10.59916384 | DC106: 10.07999119 | DD106: 9.58724775 | DE106: 10.74047977 | DF106: 11.65963147 | DG106: 10.83625306 | DH106: 10.94406242 | DI106: 10.99395298 | DJ106: 9.324967128 | DK106: 8.491729649 | DL106: 8.564404282 | DM106: 8.317490115 | DN106: 8.23106738 | DO106: 7.525378551 | DP106: 7.361164267 | DQ106: 6.847839165 | DR106: 7.027033467 | DS106: 7.238840893 | DT106: 7.772376843 | DU106: 7.792102425 | DV106: 7.64541816 | DW106: 8.203624883 | DX106: 8.249739312 | DY106: 8.191336212 | DZ106: 7.779396497 | EA106: 7.246841857 | EB106: 6.917513601 | EC106: 7.270877116 | ED106: 7.553935139 | EE106: 7.524868038 | EF106: 8.395447131 | EG106: 8.002671628 | EH106: 8.032629104 | EI106: 7.662249027 | EJ106: 7.825386323 | EK106: 7.642370769 | EL106: 8.578851044 | EM106: 8.399901725 | EN106: 8.658101048 | EO106: 8.029905004 | EP106: 8.377231203 | EQ106: 8.830780976 | ER106: 8.378812019 | ES106: 8.057523938 | ET106: 8.101024137 | EU106: 6.867002302 | EV106: 6.89882614 | EW106: 6.447979558 | EX106: =CHOOSE(EX84,$H84,$Q84,0,$R84,0,EX$53) -> 6.858579303 | EY106: 6.428236363 | EZ106: 6.991120556 | FA106: 6.886455006 | FB106: 5.89762008 | FC106: 6.339483319 | FD106: 6.316384536 | FE106: 6.45106299 | FF106: 6.248927219 | FG106: 5.917203929 | FH106: 6.83908208 | FI106: 6.652537182 | FJ106: 7.039207479 | FK106: 6.801994749 | FL106: 7.121958321 | FM106: 6.362830195 | FN106: 6.202591632 | FO106: 5.841231197 | FP106: 5.458467051 | FQ106: 6.223589256 | FR106: 6.12033305 | FS106: 6.06784531 | FT106: 5.889897183 | FU106: 5.915712625 | FV106: 5.987443965 | FW106: 6.167654631 | FX106: 5.515440422 | FY106: 6.278161716 | FZ106: 6.325313879 | GA106: 6.37639684 | GB106: 5.958366705 | GC106: 6.486237297 | GD106: 6.878738032 | GE106: 7.09466622 | GF106: 7.188827395 | GG106: 6.800604023 | GH106: 7.826937155 | GI106: 7.353909506 | GJ106: 6.892979859 | GK106: 6.595540244 | GL106: 6.800242502 | GM106: 6.523681449 | GN106: 6.741135043 | GO106: 7.267140561 | GP106: 6.773151092 | GQ106: 6.381378734 | GR106: 6.589438097 | GS106: 6.919993554 | GT106: 7.222500589 | GU106: 7.547861647 | GV106: 7.006778846 | GW106: 6.69452696 | GX106: 6.811343665 | GY106: 6.678218036 | GZ106: 5.968579084 | HA106: 5.64837562 | HB106: 5.470914131 | HC106: 5.153553866 | HD106: 5.093087452 | HE106: 5.192430594 | HF106: 5.176494133 | HG106: 4.860528564 | HH106: 4.461300727 | HI106: 3.9902797 | HJ106: =CHOOSE(HJ84,$H84,$Q84,0,$R84,0,HJ$53) -> 3.595311896 | HK106: 3.816760928 | HL106: 3.916993964 | HM106: 4.063402211 | HN106: 4.311724667 | HO106: 4.289464631 | HP106: 5.099312402 | HQ106: 4.921442194 | HR106: 6.117533797 | HS106: 6.050020826 | HT106: 5.893444233 | HU106: 7.25561192 | HV106: 6.541941527 | HW106: 6.908269198 | HX106: 6.393216452 | HY106: 6.315796661 | HZ106: 6.007168033 | IA106: 6.784702033 | IB106: 7.203985423 | IC106: 7.734773502 | ID106: 7.523563783 | IE106: 7.938087741 | IF106: 7.100515071 | IG106: 6.877574069 | IH106: 7.709612693 | II106: 9.862907551 | IJ106: 8.488303814 | IK106: 8.639004048 | IL106: 9.413986477 | IM106: 9.763341267 | IN106: 10.19225957 | IO106: 9.34156656 | IP106: 8.672152671 | IQ106: 8.454120365 | IR106: 8.600405442 | IS106: 9.697140094 | IT106: 9.140935559 | IU106: 10.3098779 | IV106: 9.368514855 | IW106: 10.2219415 | IX106: 9.819032099 | IY106: 9.717132591 | IZ106: 9.38991112 | JA106: 9.702032523 | JB106: 10.54105516 | JC106: 9.872066855 | JD106: 9.184014104 | JE106: 10.24552315
F107: =F85 -> 5000 | G107: 16 | Z107: =CHOOSE(Z85,$H85,$Q85,0,$R85,0,Z$53) -> 0 | AA107: 0 | AB107: 0 | AC107: 0 | AD107: 0 | AE107: 0 | AF107: 0 | AG107: 8.462607362 | AH107: 8.462607362 | AI107: 8.462607362 | AJ107: 8.462607362 | AK107: 8.462607362 | AL107: 8.462607362 | AM107: 8.462607362 | AN107: 8.462607362 | AO107: 8.462607362 | AP107: 8.462607362 | AQ107: 8.462607362 | AR107: 8.462607362 | AS107: 8.462607362 | AT107: 8.462607362 | AU107: 8.462607362 | AV107: 8.462607362 | AW107: 8.462607362 | AX107: 8.462607362 | AY107: 8.462607362 | AZ107: 8.462607362 | BA107: 8.462607362 | BB107: 8.462607362 | BC107: 8.462607362 | BD107: 8.462607362 | BE107: 8.462607362 | BF107: 8.462607362 | BG107: 8.462607362 | BH107: 8.462607362 | BI107: 8.462607362 | BJ107: 8.462607362 | BK107: 8.462607362 | BL107: 8.462607362 | BM107: 8.462607362 | BN107: 8.462607362 | BO107: 8.462607362 | BP107: 8.462607362 | BQ107: 0 | BR107: 0 | BS107: 0 | BT107: 0 | BU107: 0 | BV107: 7.94682963 | BW107: 8.67208748 | BX107: 8.424118864 | BY107: 8.050621272 | BZ107: 7.526764742 | CA107: 7.580396039 | CB107: 6.682067024 | CC107: 7.055800456 | CD107: 6.396009587 | CE107: 6.582570697 | CF107: 6.838381866 | CG107: 7.298210508 | CH107: 7.495844903 | CI107: 7.899392966 | CJ107: 7.524748173 | CK107: 8.64421614 | CL107: =CHOOSE(CL85,$H85,$Q85,0,$R85,0,CL$53) -> 9.07427238 | CM107: 8.822674749 | CN107: 8.715652005 | CO107: 9.46538225 | CP107: 10.77432346 | CQ107: 10.37050585 | CR107: 9.678951734 | CS107: 9.629932843 | CT107: 9.801809036 | CU107: 10.24862226 | CV107: 10.08172039 | CW107: 9.768770062 | CX107: 9.035171752 | CY107: 10.39057715 | CZ107: 10.44231342 | DA107: 10.88290682 | DB107: 10.59916384 | DC107: 10.07999119 | DD107: 9.58724775 | DE107: 10.74047977 | DF107: 11.65963147 | DG107: 10.83625306 | DH107: 10.94406242 | DI107: 10.99395298 | DJ107: 9.324967128 | DK107: 8.491729649 | DL107: 8.564404282 | DM107: 8.317490115 | DN107: 8.23106738 | DO107: 7.525378551 | DP107: 7.361164267 | DQ107: 6.847839165 | DR107: 7.027033467 | DS107: 7.238840893 | DT107: 7.772376843 | DU107: 7.792102425 | DV107: 7.64541816 | DW107: 8.203624883 | DX107: 8.249739312 | DY107: 8.191336212 | DZ107: 7.779396497 | EA107: 7.246841857 | EB107: 6.917513601 | EC107: 7.270877116 | ED107: 7.553935139 | EE107: 7.524868038 | EF107: 8.395447131 | EG107: 8.002671628 | EH107: 8.032629104 | EI107: 7.662249027 | EJ107: 7.825386323 | EK107: 7.642370769 | EL107: 8.578851044 | EM107: 8.399901725 | EN107: 8.658101048 | EO107: 8.029905004 | EP107: 8.377231203 | EQ107: 8.830780976 | ER107: 8.378812019 | ES107: 8.057523938 | ET107: 8.101024137 | EU107: 6.867002302 | EV107: 6.89882614 | EW107: 6.447979558 | EX107: =CHOOSE(EX85,$H85,$Q85,0,$R85,0,EX$53) -> 6.858579303 | EY107: 6.428236363 | EZ107: 6.991120556 | FA107: 6.886455006 | FB107: 5.89762008 | FC107: 6.339483319 | FD107: 6.316384536 | FE107: 6.45106299 | FF107: 6.248927219 | FG107: 5.917203929 | FH107: 6.83908208 | FI107: 6.652537182 | FJ107: 7.039207479 | FK107: 6.801994749 | FL107: 7.121958321 | FM107: 6.362830195 | FN107: 6.202591632 | FO107: 5.841231197 | FP107: 5.458467051 | FQ107: 6.223589256 | FR107: 6.12033305 | FS107: 6.06784531 | FT107: 5.889897183 | FU107: 5.915712625 | FV107: 5.987443965 | FW107: 6.167654631 | FX107: 5.515440422 | FY107: 6.278161716 | FZ107: 6.325313879 | GA107: 6.37639684 | GB107: 5.958366705 | GC107: 6.486237297 | GD107: 6.878738032 | GE107: 7.09466622 | GF107: 7.188827395 | GG107: 6.800604023 | GH107: 7.826937155 | GI107: 7.353909506 | GJ107: 6.892979859 | GK107: 6.595540244 | GL107: 6.800242502 | GM107: 6.523681449 | GN107: 6.741135043 | GO107: 7.267140561 | GP107: 6.773151092 | GQ107: 6.381378734 | GR107: 6.589438097 | GS107: 6.919993554 | GT107: 7.222500589 | GU107: 7.547861647 | GV107: 7.006778846 | GW107: 6.69452696 | GX107: 6.811343665 | GY107: 6.678218036 | GZ107: 5.968579084 | HA107: 5.64837562 | HB107: 5.470914131 | HC107: 5.153553866 | HD107: 5.093087452 | HE107: 5.192430594 | HF107: 5.176494133 | HG107: 4.860528564 | HH107: 4.461300727 | HI107: 3.9902797 | HJ107: =CHOOSE(HJ85,$H85,$Q85,0,$R85,0,HJ$53) -> 3.595311896 | HK107: 3.816760928 | HL107: 3.916993964 | HM107: 4.063402211 | HN107: 4.311724667 | HO107: 4.289464631 | HP107: 5.099312402 | HQ107: 4.921442194 | HR107: 6.117533797 | HS107: 6.050020826 | HT107: 5.893444233 | HU107: 7.25561192 | HV107: 6.541941527 | HW107: 6.908269198 | HX107: 6.393216452 | HY107: 6.315796661 | HZ107: 6.007168033 | IA107: 6.784702033 | IB107: 7.203985423 | IC107: 7.734773502 | ID107: 7.523563783 | IE107: 7.938087741 | IF107: 7.100515071 | IG107: 6.877574069 | IH107: 7.709612693 | II107: 9.862907551 | IJ107: 8.488303814 | IK107: 8.639004048 | IL107: 9.413986477 | IM107: 9.763341267 | IN107: 10.19225957 | IO107: 9.34156656 | IP107: 8.672152671 | IQ107: 8.454120365 | IR107: 8.600405442 | IS107: 9.697140094 | IT107: 9.140935559 | IU107: 10.3098779 | IV107: 9.368514855 | IW107: 10.2219415 | IX107: 9.819032099 | IY107: 9.717132591 | IZ107: 9.38991112 | JA107: 9.702032523 | JB107: 10.54105516 | JC107: 9.872066855 | JD107: 9.184014104 | JE107: 10.24552315
F108: =F86 -> 6000 | G108: 17 | Z108: =CHOOSE(Z86,$H86,$Q86,0,$R86,0,Z$53) -> 0 | AA108: 0 | AB108: 0 | AC108: 0 | AD108: 0 | AE108: 0 | AF108: 0 | AG108: 8.462607362 | AH108: 8.462607362 | AI108: 8.462607362 | AJ108: 8.462607362 | AK108: 8.462607362 | AL108: 8.462607362 | AM108: 8.462607362 | AN108: 8.462607362 | AO108: 8.462607362 | AP108: 8.462607362 | AQ108: 8.462607362 | AR108: 8.462607362 | AS108: 8.462607362 | AT108: 8.462607362 | AU108: 8.462607362 | AV108: 8.462607362 | AW108: 8.462607362 | AX108: 8.462607362 | AY108: 8.462607362 | AZ108: 8.462607362 | BA108: 8.462607362 | BB108: 8.462607362 | BC108: 8.462607362 | BD108: 8.462607362 | BE108: 8.462607362 | BF108: 8.462607362 | BG108: 8.462607362 | BH108: 8.462607362 | BI108: 8.462607362 | BJ108: 8.462607362 | BK108: 8.462607362 | BL108: 8.462607362 | BM108: 8.462607362 | BN108: 8.462607362 | BO108: 8.462607362 | BP108: 8.462607362 | BQ108: 0 | BR108: 0 | BS108: 0 | BT108: 0 | BU108: 0 | BV108: 7.94682963 | BW108: 8.67208748 | BX108: 8.424118864 | BY108: 8.050621272 | BZ108: 7.526764742 | CA108: 7.580396039 | CB108: 6.682067024 | CC108: 7.055800456 | CD108: 6.396009587 | CE108: 6.582570697 | CF108: 6.838381866 | CG108: 7.298210508 | CH108: 7.495844903 | CI108: 7.899392966 | CJ108: 7.524748173 | CK108: 8.64421614 | CL108: =CHOOSE(CL86,$H86,$Q86,0,$R86,0,CL$53) -> 9.07427238 | CM108: 8.822674749 | CN108: 8.715652005 | CO108: 9.46538225 | CP108: 10.77432346 | CQ108: 10.37050585 | CR108: 9.678951734 | CS108: 9.629932843 | CT108: 9.801809036 | CU108: 10.24862226 | CV108: 10.08172039 | CW108: 9.768770062 | CX108: 9.035171752 | CY108: 10.39057715 | CZ108: 10.44231342 | DA108: 10.88290682 | DB108: 10.59916384 | DC108: 10.07999119 | DD108: 9.58724775 | DE108: 10.74047977 | DF108: 11.65963147 | DG108: 10.83625306 | DH108: 10.94406242 | DI108: 10.99395298 | DJ108: 9.324967128 | DK108: 8.491729649 | DL108: 8.564404282 | DM108: 8.317490115 | DN108: 8.23106738 | DO108: 7.525378551 | DP108: 7.361164267 | DQ108: 6.847839165 | DR108: 7.027033467 | DS108: 7.238840893 | DT108: 7.772376843 | DU108: 7.792102425 | DV108: 7.64541816 | DW108: 8.203624883 | DX108: 8.249739312 | DY108: 8.191336212 | DZ108: 7.779396497 | EA108: 7.246841857 | EB108: 6.917513601 | EC108: 7.270877116 | ED108: 7.553935139 | EE108: 7.524868038 | EF108: 8.395447131 | EG108: 8.002671628 | EH108: 8.032629104 | EI108: 7.662249027 | EJ108: 7.825386323 | EK108: 7.642370769 | EL108: 8.578851044 | EM108: 8.399901725 | EN108: 8.658101048 | EO108: 8.029905004 | EP108: 8.377231203 | EQ108: 8.830780976 | ER108: 8.378812019 | ES108: 8.057523938 | ET108: 8.101024137 | EU108: 6.867002302 | EV108: 6.89882614 | EW108: 6.447979558 | EX108: =CHOOSE(EX86,$H86,$Q86,0,$R86,0,EX$53) -> 6.858579303 | EY108: 6.428236363 | EZ108: 6.991120556 | FA108: 6.886455006 | FB108: 5.89762008 | FC108: 6.339483319 | FD108: 6.316384536 | FE108: 6.45106299 | FF108: 6.248927219 | FG108: 5.917203929 | FH108: 6.83908208 | FI108: 6.652537182 | FJ108: 7.039207479 | FK108: 6.801994749 | FL108: 7.121958321 | FM108: 6.362830195 | FN108: 6.202591632 | FO108: 5.841231197 | FP108: 5.458467051 | FQ108: 6.223589256 | FR108: 6.12033305 | FS108: 6.06784531 | FT108: 5.889897183 | FU108: 5.915712625 | FV108: 5.987443965 | FW108: 6.167654631 | FX108: 5.515440422 | FY108: 6.278161716 | FZ108: 6.325313879 | GA108: 6.37639684 | GB108: 5.958366705 | GC108: 6.486237297 | GD108: 6.878738032 | GE108: 7.09466622 | GF108: 7.188827395 | GG108: 6.800604023 | GH108: 7.826937155 | GI108: 7.353909506 | GJ108: 6.892979859 | GK108: 6.595540244 | GL108: 6.800242502 | GM108: 6.523681449 | GN108: 6.741135043 | GO108: 7.267140561 | GP108: 6.773151092 | GQ108: 6.381378734 | GR108: 6.589438097 | GS108: 6.919993554 | GT108: 7.222500589 | GU108: 7.547861647 | GV108: 7.006778846 | GW108: 6.69452696 | GX108: 6.811343665 | GY108: 6.678218036 | GZ108: 5.968579084 | HA108: 5.64837562 | HB108: 5.470914131 | HC108: 5.153553866 | HD108: 5.093087452 | HE108: 5.192430594 | HF108: 5.176494133 | HG108: 4.860528564 | HH108: 4.461300727 | HI108: 3.9902797 | HJ108: =CHOOSE(HJ86,$H86,$Q86,0,$R86,0,HJ$53) -> 3.595311896 | HK108: 3.816760928 | HL108: 3.916993964 | HM108: 4.063402211 | HN108: 4.311724667 | HO108: 4.289464631 | HP108: 5.099312402 | HQ108: 4.921442194 | HR108: 6.117533797 | HS108: 6.050020826 | HT108: 5.893444233 | HU108: 7.25561192 | HV108: 6.541941527 | HW108: 6.908269198 | HX108: 6.393216452 | HY108: 6.315796661 | HZ108: 6.007168033 | IA108: 6.784702033 | IB108: 7.203985423 | IC108: 7.734773502 | ID108: 7.523563783 | IE108: 7.938087741 | IF108: 7.100515071 | IG108: 6.877574069 | IH108: 7.709612693 | II108: 9.862907551 | IJ108: 8.488303814 | IK108: 8.639004048 | IL108: 9.413986477 | IM108: 9.763341267 | IN108: 10.19225957 | IO108: 9.34156656 | IP108: 8.672152671 | IQ108: 8.454120365 | IR108: 8.600405442 | IS108: 9.697140094 | IT108: 9.140935559 | IU108: 10.3098779 | IV108: 9.368514855 | IW108: 10.2219415 | IX108: 9.819032099 | IY108: 9.717132591 | IZ108: 9.38991112 | JA108: 9.702032523 | JB108: 10.54105516 | JC108: 9.872066855 | JD108: 9.184014104 | JE108: 10.24552315
E110: Total Revenues Before Inflation | Z110: =SUMPRODUCT(Z92:Z108*$F$92:$F$108) -> 490500 | AA110: =SUMPRODUCT(AA92:AA108*$F$92:$F$108) -> 490500 | AB110: 490500 | AC110: 490500 | AD110: 461566.6667 | AE110: 455500 | AF110: 455500 | AG110: 633214.7546 | AH110: 633214.7546 | AI110: 633214.7546 | AJ110: 633214.7546 | AK110: 668537.1312 | AL110: 668537.1312 | AM110: 668537.1312 | AN110: 668537.1312 | AO110: 668537.1312 | AP110: 469070.4646 | AQ110: 422537.1312 | AR110: 422537.1312 | AS110: 422537.1312 | AT110: 422537.1312 | AU110: 422537.1312 | AV110: 795036.9482 | AW110: 795036.9482 | AX110: 795036.9482 | AY110: 795036.9482 | AZ110: 795036.9482 | BA110: 795036.9482 | BB110: 716736.9482 | BC110: 708036.9482 | BD110: 708036.9482 | BE110: 708036.9482 | BF110: 708036.9482 | BG110: 708036.9482 | BH110: 708036.9482 | BI110: 795257.2025 | BJ110: 795257.2025 | BK110: 795257.2025 | BL110: 795257.2025 | BM110: 795257.2025 | BN110: 733290.5358 | BO110: 723757.2025 | BP110: 723757.2025 | BQ110: 546042.4479 | BR110: 546042.4479 | BS110: 546042.4479 | BT110: 627164.8866 | BU110: 591842.5099 | BV110: 758725.9322 | BW110: 773956.347 | BX110: 768749.0061 | BY110: 760905.5567 | BZ110: 787538.3932 | CA110: 788932.807 | CB110: 765576.2526 | CC110: 775293.3218 | CD110: 758138.7592 | CE110: 762989.3481 | CF110: 397140.6215 | CG110: 409096.1662 | CH110: 414234.6604 | CI110: 424726.9101 | CJ110: 414986.1455 | CK110: 444092.3126 | CL110: 455273.7748 | CM110: =SUMPRODUCT(CM92:CM108*$F$92:$F$108) -> 766348.5274 | CN110: 759713.1173 | CO110: 806196.3924 | CP110: 887350.7477 | CQ110: 862314.0555 | CR110: 819437.7005 | CS110: 729178.275 | CT110: 739834.5989 | CU110: 767537.0185 | CV110: 757189.1026 | CW110: 845242.6532 | CX110: 749189.9766 | CY110: 839634.5709 | CZ110: 843411.3185 | DA110: 875574.6366 | DB110: 854861.3987 | DC110: 891155.9428 | DD110: 774063.2326 | DE110: 858249.1698 | DF110: 925347.2443 | DG110: 973603.1505 | DH110: 982551.3276 | DI110: 986692.2441 | DJ110: 848166.4184 | DK110: 779007.7077 | DL110: 785039.7023 | DM110: 764545.8264 | DN110: 757372.7394 | DO110: 698800.5666 | DP110: 685170.781 | DQ110: 642564.7975 | DR110: 657437.9246 | DS110: 675017.941 | DT110: 719301.4249 | DU110: 720938.6481 | DV110: 708763.8541 | DW110: 755095.0121 | DX110: 758922.5098 | DY110: 754075.0524 | DZ110: 719884.0561 | EA110: 675682.021 | EB110: 648347.7758 | EC110: 677676.9474 | ED110: 701170.7633 | EE110: 698758.194 | EF110: 771016.2587 | EG110: 738415.892 | EH110: 740902.3625 | EI110: 710160.8161 | EJ110: 723701.2116 | EK110: 708510.9207 | EL110: 786238.7835 | EM110: 697191.8432 | EN110: 718622.387 | EO110: 666482.1153 | EP110: 695310.1899 | EQ110: 732954.821 | ER110: 754093.0817 | ES110: 725177.1544 | ET110: 729092.1724 | EU110: 618030.2071 | EV110: 620894.3526 | EW110: 580318.1602 | EX110: 617272.1373 | EY110: =SUMPRODUCT(EY92:EY108*$F$92:$F$108) -> 578541.2726 | EZ110: 629200.8501 | FA110: 619780.9505 | FB110: 530785.8072 | FC110: 570553.4987 | FD110: 568474.6082 | FE110: 580595.6691 | FF110: 562403.4497 | FG110: 532548.3536 | FH110: 615517.3872 | FI110: 598728.3464 | FJ110: 633528.6731 | FK110: 612179.5274 | FL110: 640976.2489 | FM110: 572654.7175 | FN110: 558233.2469 | FO110: 525710.8077 | FP110: 491262.0346 | FQ110: 560123.033 | FR110: 550829.9745 | FS110: 546106.0779 | FT110: 530090.7465 | FU110: 532414.1363 | FV110: 538869.9568 | FW110: 555088.9168 | FX110: 496389.638 | FY110: 565034.5544 | FZ110: 569278.2491 | GA110: 573875.7156 | GB110: 536253.0035 | GC110: 583761.3567 | GD110: 619086.4228 | GE110: 638519.9598 | GF110: 646994.4656 | GG110: 612054.3621 | GH110: 704424.3439 | GI110: 661851.8555 | GJ110: 620368.1873 | GK110: 593598.622 | GL110: 612021.8252 | GM110: 587131.3304 | GN110: 606702.1538 | GO110: 654042.6505 | GP110: 609583.5983 | GQ110: 574324.0861 | GR110: 593049.4288 | GS110: 622799.4199 | GT110: 650025.053 | GU110: 679307.5483 | GV110: 630610.0962 | GW110: 602507.4264 | GX110: 613020.9299 | GY110: 601039.6232 | GZ110: 537172.1176 | HA110: 508353.8058 | HB110: 492382.2718 | HC110: 463819.848 | HD110: 458377.8707 | HE110: 467318.7535 | HF110: 465884.472 | HG110: 437447.5708 | HH110: 401517.0654 | HI110: 359125.173 | HJ110: 323578.0706 | HK110: =SUMPRODUCT(HK92:HK108*$F$92:$F$108) -> 343508.4835 | HL110: 352529.4567 | HM110: 365706.199 | HN110: 388055.22 | HO110: 386051.8168 | HP110: 458938.1162 | HQ110: 442929.7975 | HR110: 550578.0417 | HS110: 544501.8743 | HT110: 530409.981 | HU110: 653005.0728 | HV110: 588774.7375 | HW110: 621744.2279 | HX110: 575389.4807 | HY110: 568421.6995 | HZ110: 540645.123 | IA110: 610623.183 | IB110: 648358.6881 | IC110: 696129.6152 | ID110: 677120.7404 | IE110: 714427.8967 | IF110: 639046.3564 | IG110: 618981.6662 | IH110: 693865.1424 | II110: 887661.6796 | IJ110: 763947.3433 | IK110: 777510.3643 | IL110: 847258.7829 | IM110: 878700.714 | IN110: 917303.3612 | IO110: 840740.9904 | IP110: 780493.7404 | IQ110: 760870.8329 | IR110: 774036.4898 | IS110: 872742.6085 | IT110: 822684.2003 | IU110: 927889.0109 | IV110: 843166.337 | IW110: 919974.735 | IX110: 883712.8889 | IY110: 874541.9332 | IZ110: 845092.0008 | JA110: 873182.9271 | JB110: 948694.9644 | JC110: 888486.0169 | JD110: 826561.2694 | JE110: 922097.0832
E112: Inflation Index | F112: =G20 -> 0.02 | G112: =(1+F112)^(1/12)-1 -> 0.001651581302 | Y112: 1 | Z112: =Y112*(1+$G112) -> 1.001651581 | AA112: =Z112*(1+$G112) -> 1.00330589 | AB112: 1.004962932 | AC112: 1.00662271 | AD112: 1.008285229 | AE112: 1.009950494 | AF112: 1.011618509 | AG112: 1.013289279 | AH112: 1.014962809 | AI112: 1.016639103 | AJ112: 1.018318165 | AK112: 1.02 | AL112: 1.021684613 | AM112: 1.023372008 | AN112: 1.02506219 | AO112: 1.026755164 | AP112: 1.028450933 | AQ112: 1.030149504 | AR112: 1.031850879 | AS112: 1.033555065 | AT112: 1.035262065 | AU112: 1.036971885 | AV112: 1.038684528 | AW112: 1.0404 | AX112: 1.042118305 | AY112: 1.043839448 | AZ112: 1.045563434 | BA112: 1.047290267 | BB112: 1.049019952 | BC112: 1.050752494 | BD112: 1.052487897 | BE112: 1.054226166 | BF112: 1.055967307 | BG112: 1.057711322 | BH112: 1.059458219 | BI112: 1.061208 | BJ112: 1.062960671 | BK112: 1.064716237 | BL112: 1.066474703 | BM112: 1.068236072 | BN112: 1.070000351 | BO112: 1.071767544 | BP112: 1.073537655 | BQ112: 1.07531069 | BR112: 1.077086653 | BS112: 1.078865549 | BT112: 1.080647383 | BU112: 1.08243216 | BV112: 1.084219885 | BW112: 1.086010562 | BX112: 1.087804197 | BY112: 1.089600794 | BZ112: 1.091400358 | CA112: 1.093202895 | CB112: 1.095008408 | CC112: 1.096816903 | CD112: 1.098628386 | CE112: 1.10044286 | CF112: 1.102260331 | CG112: 1.104080803 | CH112: 1.105904282 | CI112: 1.107730773 | CJ112: 1.109560281 | CK112: 1.11139281 | CL112: 1.113228365 | CM112: =CL112*(1+$G112) -> 1.115066952 | CN112: 1.116908576 | CO112: 1.118753241 | CP112: 1.120600953 | CQ112: 1.122451717 | CR112: 1.124305537 | CS112: 1.126162419 | CT112: 1.128022368 | CU112: 1.129885389 | CV112: 1.131751486 | CW112: 1.133620666 | CX112: 1.135492933 | CY112: 1.137368291 | CZ112: 1.139246748 | DA112: 1.141128306 | DB112: 1.143012972 | DC112: 1.144900751 | DD112: 1.146791648 | DE112: 1.148685668 | DF112: 1.150582815 | DG112: 1.152483096 | DH112: 1.154386516 | DI112: 1.156293079 | DJ112: 1.158202791 | DK112: 1.160115657 | DL112: 1.162031683 | DM112: 1.163950872 | DN112: 1.165873232 | DO112: 1.167798766 | DP112: 1.169727481 | DQ112: 1.171659381 | DR112: 1.173594472 | DS112: 1.175532758 | DT112: 1.177474246 | DU112: 1.179418941 | DV112: 1.181366847 | DW112: 1.18331797 | DX112: 1.185272316 | DY112: 1.18722989 | DZ112: 1.189190697 | EA112: 1.191154742 | EB112: 1.193122031 | EC112: 1.195092569 | ED112: 1.197066361 | EE112: 1.199043414 | EF112: 1.201023731 | EG112: 1.20300732 | EH112: 1.204994184 | EI112: 1.20698433 | EJ112: 1.208977763 | EK112: 1.210974488 | EL112: 1.21297451 | EM112: 1.214977837 | EN112: 1.216984471 | EO112: 1.21899442 | EP112: 1.221007688 | EQ112: 1.223024282 | ER112: 1.225044206 | ES112: 1.227067466 | ET112: 1.229094068 | EU112: 1.231124016 | EV112: 1.233157318 | EW112: 1.235193977 | EX112: 1.237234001 | EY112: =EX112*(1+$G112) -> 1.239277393 | EZ112: 1.241324161 | FA112: 1.243374308 | FB112: 1.245427842 | FC112: 1.247484767 | FD112: 1.24954509 | FE112: 1.251608815 | FF112: 1.253675949 | FG112: 1.255746497 | FH112: 1.257820464 | FI112: 1.259897857 | FJ112: 1.261978681 | FK112: 1.264062941 | FL112: 1.266150644 | FM112: 1.268241795 | FN112: 1.270336399 | FO112: 1.272434463 | FP112: 1.274535992 | FQ112: 1.276640992 | FR112: 1.278749468 | FS112: 1.280861427 | FT112: 1.282976874 | FU112: 1.285095814 | FV112: 1.287218254 | FW112: 1.2893442 | FX112: 1.291473657 | FY112: 1.29360663 | FZ112: 1.295743127 | GA112: 1.297883152 | GB112: 1.300026712 | GC112: 1.302173811 | GD112: 1.304324457 | GE112: 1.306478655 | GF112: 1.308636411 | GG112: 1.31079773 | GH112: 1.312962619 | GI112: 1.315131084 | GJ112: 1.31730313 | GK112: 1.319478763 | GL112: 1.32165799 | GM112: 1.323840815 | GN112: 1.326027246 | GO112: 1.328217288 | GP112: 1.330410947 | GQ112: 1.332608228 | GR112: 1.334809139 | GS112: 1.337013685 | GT112: 1.339221872 | GU112: 1.341433706 | GV112: 1.343649192 | GW112: 1.345868338 | GX112: 1.348091149 | GY112: 1.350317631 | GZ112: 1.352547791 | HA112: 1.354781633 | HB112: 1.357019165 | HC112: 1.359260393 | HD112: 1.361505322 | HE112: 1.363753959 | HF112: 1.366006309 | HG112: 1.36826238 | HH112: 1.370522176 | HI112: 1.372785705 | HJ112: 1.375052972 | HK112: =HJ112*(1+$G112) -> 1.377323984 | HL112: 1.379598747 | HM112: 1.381877266 | HN112: 1.384159549 | HO112: 1.386445601 | HP112: 1.388735428 | HQ112: 1.391029038 | HR112: 1.393326435 | HS112: 1.395627627 | HT112: 1.39793262 | HU112: 1.400241419 | HV112: 1.402554032 | HW112: 1.404870464 | HX112: 1.407190722 | HY112: 1.409514811 | HZ112: 1.41184274 | IA112: 1.414174513 | IB112: 1.416510137 | IC112: 1.418849619 | ID112: 1.421192964 | IE112: 1.42354018 | IF112: 1.425891272 | IG112: 1.428246248 | IH112: 1.430605112 | II112: 1.432967873 | IJ112: 1.435334536 | IK112: 1.437705108 | IL112: 1.440079595 | IM112: 1.442458003 | IN112: 1.44484034 | IO112: 1.447226611 | IP112: 1.449616823 | IQ112: 1.452010983 | IR112: 1.454409098 | IS112: 1.456811173 | IT112: 1.459217215 | IU112: 1.46162723 | IV112: 1.464041227 | IW112: 1.46645921 | IX112: 1.468881186 | IY112: 1.471307163 | IZ112: 1.473737147 | JA112: 1.476171143 | JB112: 1.47860916 | JC112: 1.481051203 | JD112: 1.48349728 | JE112: 1.485947396
E114: Revenues Including Inflation | Z114: =Z110*Z112 -> 491310.1006 | AA114: =AA110*AA112 -> 492121.5392 | AB114: 492934.3179 | AC114: 493748.439 | AD114: 465390.8521 | AE114: 460032.4499 | AF114: 460792.2309 | AG114: 641629.7224 | AH114: 642689.4261 | AI114: 643750.8799 | AJ114: 644814.0868 | AK114: 681907.8739 | AL114: 683034.1002 | AM114: 684162.1865 | AN114: 685292.136 | AO114: 686423.9517 | AP114: 482415.9571 | AQ114: 435276.416 | AR114: 435995.3104 | AS114: 436715.3921 | AT114: 437436.6631 | AU114: 438159.1253 | AV114: 825792.5773 | AW114: 827156.4409 | AX114: 828522.557 | AY114: 829890.9294 | AZ114: 831261.5617 | BA114: 832634.4578 | BB114: 751871.3591 | BC114: 743971.589 | BD114: 745200.3186 | BE114: 746431.0775 | BF114: 747663.8691 | BG114: 748898.6968 | BH114: 750135.5639 | BI114: 843933.3054 | BJ114: 845327.1298 | BK114: 846723.2563 | BL114: 848121.6886 | BM114: 849522.4305 | BN114: 784621.1308 | BO114: 775699.4791 | BP114: 776980.6099 | BQ114: 587165.2812 | BR114: 588135.0324 | BS114: 589106.3852 | BT114: 677744.0934 | BU114: 640629.3664 | BV114: 822625.7427 | BW114: 840524.7674 | BX114: 836248.3951 | BY114: 829083.2986 | BZ114: 859519.6844 | CA114: 862463.6282 | CB114: 838312.4335 | CC114: 850354.8205 | CD114: 832912.7612 | CE114: 839626.1802 | CF114: 437752.3528 | CG114: 451675.2237 | CH114: 458103.8849 | CI114: 470483.0685 | CJ114: 460452.144 | CK114: 493561.0031 | CL114: 506823.6801 | CM114: =CM110*CM112 -> 854529.917 | CN114: 848530.0961 | CO114: 901934.8273 | CP114: 994366.0939 | CQ114: 967905.8922 | CR114: 921298.3441 | CS114: 821173.1702 | CT114: 834549.9762 | CU114: 867228.8626 | CV114: 856949.8922 | CW114: 958184.5394 | CX114: 850699.9236 | CY114: 954973.7374 | CZ114: 960853.6016 | DA114: 999143.0021 | DB114: 977117.6684 | DC114: 1020285.108 | DD114: 887689.2502 | DE114: 985858.5207 | DF114: 1064688.638 | DG114: 1122061.174 | DH114: 1134244.004 | DI114: 1140905.413 | DJ114: 982348.7133 | DK114: 903739.0389 | DL114: 912241.0062 | DM114: 889893.7817 | DN114: 883000.6034 | DO114: 816058.4396 | DP114: 801463.0917 | DQ114: 752867.0729 | DR114: 771565.5138 | DS114: 793505.7021 | DT114: 846958.9031 | DU114: 850288.6968 | DV114: 837310.1196 | DW114: 893517.4973 | DX114: 899529.841 | DY114: 895260.4415 | DZ114: 856079.4221 | EA114: 804841.8431 | EB114: 773558.0148 | EC114: 809886.6838 | ED114: 839347.9342 | EE114: 837841.4102 | EF114: 926008.8239 | EG114: 888319.723 | EH114: 892783.0377 | EI114: 857152.9767 | EJ114: 874938.6716 | EK114: 857988.6492 | EL114: 953687.6036 | EM114: 847072.6373 | EN114: 874552.2856 | EO114: 812437.9796 | EP114: 848979.0876 | EQ114: 896421.5436 | ER114: 923797.3604 | ES114: 889841.2932 | ET114: 896122.8638 | EU114: 760871.8309 | EV114: 765660.4146 | EW114: 716805.4965 | EX114: 763710.0759 | EY114: =EY110*EY112 -> 716973.1203 | EZ114: 781042.2171 | FA114: 770619.7107 | FB114: 661055.4225 | FC114: 711756.7987 | FD114: 710334.6555 | FE114: 726678.6576 | FF114: 705071.6785 | FG114: 668745.7294 | FH114: 774210.3657 | FI114: 754336.5606 | FJ114: 799499.6791 | FK114: 773833.4539 | FL114: 811572.4902 | FM114: 726264.6466 | FN114: 709144.0127 | FO114: 668932.5493 | FP114: 626131.1445 | FQ114: 715076.0243 | FR114: 704373.5369 | FS114: 699486.2101 | FT114: 680094.1686 | FU114: 684203.1779 | FV114: 693643.2451 | FW114: 715700.6753 | FX114: 641074.1409 | FY114: 730932.446 | FZ114: 737638.3786 | GA114: 744823.6227 | GB114: 697143.2287 | GC114: 760158.7509 | GD114: 807489.5625 | GE114: 834212.6984 | GF114: 846680.5154 | GG114: 802279.4687 | GH114: 924882.8318 | GI114: 870421.9481 | GJ114: 817212.9548 | GK114: 783240.7755 | GL114: 808883.535 | GM114: 777268.419 | GN114: 804503.5861 | GO114: 868710.7553 | GP114: 810996.692 | GQ114: 765349.0029 | GR114: 791607.7975 | GS114: 832691.3474 | GT114: 870527.7682 | GU114: 911246.0417 | GV114: 847318.7464 | GW114: 810895.6688 | GX114: 826408.0899 | GY114: 811594.4004 | GZ114: 726550.9609 | HA114: 688708.3994 | HB114: 668172.1796 | HC114: 630451.9488 | HD114: 624083.9104 | HE114: 637307.8 | HF114: 636401.1282 | HG114: 598543.0542 | HH114: 550288.0423 | HI114: 493001.9038 | HJ114: 444936.9878 | HK114: =HK110*HK112 -> 473122.4731 | HL114: 486349.1967 | HM114: 505361.0825 | HN114: 537130.3383 | HO114: 535239.8431 | HP114: 637343.6214 | HQ114: 616128.21 | HR114: 767134.9403 | HS114: 759921.8589 | HT114: 741477.4142 | HU114: 914364.7499 | HV114: 825788.3818 | HW114: 873470.1017 | HX114: 809682.7385 | HY114: 801198.8046 | HZ114: 763305.8917 | IA114: 863527.7423 | IB114: 918406.654 | IC114: 987703.239 | ID114: 962319.2322 | IE114: 1017016.817 | IF114: 911210.6221 | IG114: 884058.2421 | IH114: 992647.02 | II114: 1271990.669 | IJ114: 1096520.005 | IK114: 1117830.622 | IL114: 1220120.085 | IM114: 1267488.877 | IN114: 1325356.9 | IO114: 1216742.734 | IP114: 1131416.857 | IQ114: 1104792.806 | IR114: 1125765.713 | IS114: 1271421.183 | IT114: 1200474.947 | IU114: 1356227.845 | IV114: 1234430.278 | IW114: 1349105.423 | IX114: 1298069.237 | IY114: 1286719.811 | IZ114: 1245443.474 | JA114: 1288967.44 | JB114: 1402749.064 | JC114: 1315893.284 | JD114: 1226201.395 | JE114: 1370187.76
A116: Operating Expenses
E118: Occupancy | F118: =F91 -> Net Lettable Area | G118: =G91 -> Lease No
F119: =F92 -> 2000 | G119: =G92 -> 1 | Z119: =IF(Z92,$F119,0) -> 2000 | AA119: =IF(AA92,$F119,0) -> 2000 | AB119: 2000 | AC119: 2000 | AD119: 2000 | AE119: 2000 | AF119: 2000 | AG119: 2000 | AH119: 2000 | AI119: 2000 | AJ119: 2000 | AK119: 2000 | AL119: 2000 | AM119: 2000 | AN119: 2000 | AO119: 2000 | AP119: 2000 | AQ119: 0 | AR119: 0 | AS119: 0 | AT119: 0 | AU119: 0 | AV119: 2000 | AW119: 2000 | AX119: 2000 | AY119: 2000 | AZ119: 2000 | BA119: 2000 | BB119: 2000 | BC119: 2000 | BD119: 2000 | BE119: 2000 | BF119: 2000 | BG119: 2000 | BH119: 2000 | BI119: 2000 | BJ119: 2000 | BK119: 2000 | BL119: 2000 | BM119: 2000 | BN119: 2000 | BO119: 2000 | BP119: 2000 | BQ119: 2000 | BR119: 2000 | BS119: 2000 | BT119: 2000 | BU119: 2000 | BV119: 2000 | BW119: 2000 | BX119: 2000 | BY119: 2000 | BZ119: 2000 | CA119: 2000 | CB119: 2000 | CC119: 2000 | CD119: 2000 | CE119: 2000 | CF119: 0 | CG119: 0 | CH119: 0 | CI119: 0 | CJ119: 0 | CK119: 0 | CL119: 0 | CM119: =IF(CM92,$F119,0) -> 2000 | CN119: 2000 | CO119: 2000 | CP119: 2000 | CQ119: 2000 | CR119: 2000 | CS119: 2000 | CT119: 2000 | CU119: 2000 | CV119: 2000 | CW119: 2000 | CX119: 2000 | CY119: 2000 | CZ119: 2000 | DA119: 2000 | DB119: 2000 | DC119: 2000 | DD119: 2000 | DE119: 2000 | DF119: 2000 | DG119: 2000 | DH119: 2000 | DI119: 2000 | DJ119: 2000 | DK119: 2000 | DL119: 2000 | DM119: 2000 | DN119: 2000 | DO119: 2000 | DP119: 2000 | DQ119: 2000 | DR119: 2000 | DS119: 2000 | DT119: 2000 | DU119: 2000 | DV119: 2000 | DW119: 2000 | DX119: 2000 | DY119: 2000 | DZ119: 2000 | EA119: 2000 | EB119: 2000 | EC119: 2000 | ED119: 2000 | EE119: 2000 | EF119: 2000 | EG119: 2000 | EH119: 2000 | EI119: 2000 | EJ119: 2000 | EK119: 2000 | EL119: 2000 | EM119: 2000 | EN119: 2000 | EO119: 2000 | EP119: 2000 | EQ119: 2000 | ER119: 2000 | ES119: 2000 | ET119: 2000 | EU119: 2000 | EV119: 2000 | EW119: 2000 | EX119: 2000 | EY119: =IF(EY92,$F119,0) -> 2000 | EZ119: 2000 | FA119: 2000 | FB119: 2000 | FC119: 2000 | FD119: 2000 | FE119: 2000 | FF119: 2000 | FG119: 2000 | FH119: 2000 | FI119: 2000 | FJ119: 2000 | FK119: 2000 | FL119: 2000 | FM119: 2000 | FN119: 2000 | FO119: 2000 | FP119: 2000 | FQ119: 2000 | FR119: 2000 | FS119: 2000 | FT119: 2000 | FU119: 2000 | FV119: 2000 | FW119: 2000 | FX119: 2000 | FY119: 2000 | FZ119: 2000 | GA119: 2000 | GB119: 2000 | GC119: 2000 | GD119: 2000 | GE119: 2000 | GF119: 2000 | GG119: 2000 | GH119: 2000 | GI119: 2000 | GJ119: 2000 | GK119: 2000 | GL119: 2000 | GM119: 2000 | GN119: 2000 | GO119: 2000 | GP119: 2000 | GQ119: 2000 | GR119: 2000 | GS119: 2000 | GT119: 2000 | GU119: 2000 | GV119: 2000 | GW119: 2000 | GX119: 2000 | GY119: 2000 | GZ119: 2000 | HA119: 2000 | HB119: 2000 | HC119: 2000 | HD119: 2000 | HE119: 2000 | HF119: 2000 | HG119: 2000 | HH119: 2000 | HI119: 2000 | HJ119: 2000 | HK119: =IF(HK92,$F119,0) -> 2000 | HL119: 2000 | HM119: 2000 | HN119: 2000 | HO119: 2000 | HP119: 2000 | HQ119: 2000 | HR119: 2000 | HS119: 2000 | HT119: 2000 | HU119: 2000 | HV119: 2000 | HW119: 2000 | HX119: 2000 | HY119: 2000 | HZ119: 2000 | IA119: 2000 | IB119: 2000 | IC119: 2000 | ID119: 2000 | IE119: 2000 | IF119: 2000 | IG119: 2000 | IH119: 2000 | II119: 2000 | IJ119: 2000 | IK119: 2000 | IL119: 2000 | IM119: 2000 | IN119: 2000 | IO119: 2000 | IP119: 2000 | IQ119: 2000 | IR119: 2000 | IS119: 2000 | IT119: 2000 | IU119: 2000 | IV119: 2000 | IW119: 2000 | IX119: 2000 | IY119: 2000 | IZ119: 2000 | JA119: 2000 | JB119: 2000 | JC119: 2000 | JD119: 2000 | JE119: 2000
F120: =F93 -> 1000 | G120: 2 | Z120: 1000 | AA120: 1000 | AB120: 1000 | AC120: 1000 | AD120: 1000 | AE120: 0 | AF120: 0 | AG120: 0 | AH120: 0 | AI120: 0 | AJ120: 0 | AK120: 1000 | AL120: 1000 | AM120: 1000 | AN120: 1000 | AO120: 1000 | AP120: 1000 | AQ120: 1000 | AR120: 1000 | AS120: 1000 | AT120: 1000 | AU120: 1000 | AV120: 1000 | AW120: 1000 | AX120: 1000 | AY120: 1000 | AZ120: 1000 | BA120: 1000 | BB120: 1000 | BC120: 1000 | BD120: 1000 | BE120: 1000 | BF120: 1000 | BG120: 1000 | BH120: 1000 | BI120: 1000 | BJ120: 1000 | BK120: 1000 | BL120: 1000 | BM120: 1000 | BN120: 1000 | BO120: 1000 | BP120: 1000 | BQ120: 1000 | BR120: 1000 | BS120: 1000 | BT120: 1000 | BU120: 0 | BV120: 0 | BW120: 0 | BX120: 0 | BY120: 0 | BZ120: 1000 | CA120: 1000 | CB120: 1000 | CC120: 1000 | CD120: 1000 | CE120: 1000 | CF120: 1000 | CG120: 1000 | CH120: 1000 | CI120: 1000 | CJ120: 1000 | CK120: 1000 | CL120: 1000 | CM120: 1000 | CN120: 1000 | CO120: 1000 | CP120: 1000 | CQ120: 1000 | CR120: 1000 | CS120: 1000 | CT120: 1000 | CU120: 1000 | CV120: 1000 | CW120: 1000 | CX120: 1000 | CY120: 1000 | CZ120: 1000 | DA120: 1000 | DB120: 1000 | DC120: 1000 | DD120: 1000 | DE120: 1000 | DF120: 1000 | DG120: 1000 | DH120: 1000 | DI120: 1000 | DJ120: 1000 | DK120: 1000 | DL120: 1000 | DM120: 1000 | DN120: 1000 | DO120: 1000 | DP120: 1000 | DQ120: 1000 | DR120: 1000 | DS120: 1000 | DT120: 1000 | DU120: 1000 | DV120: 1000 | DW120: 1000 | DX120: 1000 | DY120: 1000 | DZ120: 1000 | EA120: 1000 | EB120: 1000 | EC120: 1000 | ED120: 1000 | EE120: 1000 | EF120: 1000 | EG120: 1000 | EH120: 1000 | EI120: 1000 | EJ120: 1000 | EK120: 1000 | EL120: 1000 | EM120: 1000 | EN120: 1000 | EO120: 1000 | EP120: 1000 | EQ120: 1000 | ER120: 1000 | ES120: 1000 | ET120: 1000 | EU120: 1000 | EV120: 1000 | EW120: 1000 | EX120: 1000 | EY120: 1000 | EZ120: 1000 | FA120: 1000 | FB120: 1000 | FC120: 1000 | FD120: 1000 | FE120: 1000 | FF120: 1000 | FG120: 1000 | FH120: 1000 | FI120: 1000 | FJ120: 1000 | FK120: 1000 | FL120: 1000 | FM120: 1000 | FN120: 1000 | FO120: 1000 | FP120: 1000 | FQ120: 1000 | FR120: 1000 | FS120: 1000 | FT120: 1000 | FU120: 1000 | FV120: 1000 | FW120: 1000 | FX120: 1000 | FY120: 1000 | FZ120: 1000 | GA120: 1000 | GB120: 1000 | GC120: 1000 | GD120: 1000 | GE120: 1000 | GF120: 1000 | GG120: 1000 | GH120: 1000 | GI120: 1000 | GJ120: 1000 | GK120: 1000 | GL120: 1000 | GM120: 1000 | GN120: 1000 | GO120: 1000 | GP120: 1000 | GQ120: 1000 | GR120: 1000 | GS120: 1000 | GT120: 1000 | GU120: 1000 | GV120: 1000 | GW120: 1000 | GX120: 1000 | GY120: 1000 | GZ120: 1000 | HA120: 1000 | HB120: 1000 | HC120: 1000 | HD120: 1000 | HE120: 1000 | HF120: 1000 | HG120: 1000 | HH120: 1000 | HI120: 1000 | HJ120: 1000 | HK120: 1000 | HL120: 1000 | HM120: 1000 | HN120: 1000 | HO120: 1000 | HP120: 1000 | HQ120: 1000 | HR120: 1000 | HS120: 1000 | HT120: 1000 | HU120: 1000 | HV120: 1000 | HW120: 1000 | HX120: 1000 | HY120: 1000 | HZ120: 1000 | IA120: 1000 | IB120: 1000 | IC120: 1000 | ID120: 1000 | IE120: 1000 | IF120: 1000 | IG120: 1000 | IH120: 1000 | II120: 1000 | IJ120: 1000 | IK120: 1000 | IL120: 1000 | IM120: 1000 | IN120: 1000 | IO120: 1000 | IP120: 1000 | IQ120: 1000 | IR120: 1000 | IS120: 1000 | IT120: 1000 | IU120: 1000 | IV120: 1000 | IW120: 1000 | IX120: 1000 | IY120: 1000 | IZ120: 1000 | JA120: 1000 | JB120: 1000 | JC120: 1000 | JD120: 1000 | JE120: 1000
F121: =F94 -> 5000 | G121: 3 | Z121: 5000 | AA121: 5000 | AB121: 5000 | AC121: 5000 | AD121: 5000 | AE121: 5000 | AF121: =IF(AF94,$F121,0) -> 5000 | AG121: 5000 | AH121: 5000 | AI121: 5000 | AJ121: 5000 | AK121: 5000 | AL121: 5000 | AM121: 5000 | AN121: 5000 | AO121: 5000 | AP121: 5000 | AQ121: 5000 | AR121: 5000 | AS121: 5000 | AT121: 5000 | AU121: 5000 | AV121: 5000 | AW121: 5000 | AX121: 5000 | AY121: 5000 | AZ121: 5000 | BA121: 5000 | BB121: 5000 | BC121: 0 | BD121: 0 | BE121: 0 | BF121: 0 | BG121: 0 | BH121: 0 | BI121: 5000 | BJ121: 5000 | BK121: 5000 | BL121: 5000 | BM121: 5000 | BN121: 5000 | BO121: 5000 | BP121: 5000 | BQ121: 5000 | BR121: 5000 | BS121: 5000 | BT121: 5000 | BU121: 5000 | BV121: 5000 | BW121: 5000 | BX121: 5000 | BY121: 5000 | BZ121: 5000 | CA121: 5000 | CB121: 5000 | CC121: 5000 | CD121: 5000 | CE121: 5000 | CF121: 5000 | CG121: 5000 | CH121: 5000 | CI121: 5000 | CJ121: 5000 | CK121: 5000 | CL121: 5000 | CM121: 5000 | CN121: 5000 | CO121: 5000 | CP121: 5000 | CQ121: 5000 | CR121: 5000 | CS121: 0 | CT121: 0 | CU121: 0 | CV121: 0 | CW121: 5000 | CX121: 5000 | CY121: 5000 | CZ121: 5000 | DA121: 5000 | DB121: 5000 | DC121: 5000 | DD121: 5000 | DE121: 5000 | DF121: 5000 | DG121: 5000 | DH121: 5000 | DI121: 5000 | DJ121: 5000 | DK121: 5000 | DL121: 5000 | DM121: 5000 | DN121: 5000 | DO121: 5000 | DP121: 5000 | DQ121: 5000 | DR121: 5000 | DS121: 5000 | DT121: 5000 | DU121: 5000 | DV121: 5000 | DW121: 5000 | DX121: 5000 | DY121: 5000 | DZ121: 5000 | EA121: 5000 | EB121: 5000 | EC121: 5000 | ED121: 5000 | EE121: 5000 | EF121: 5000 | EG121: 5000 | EH121: 5000 | EI121: 5000 | EJ121: 5000 | EK121: 5000 | EL121: 5000 | EM121: 5000 | EN121: 5000 | EO121: 5000 | EP121: 5000 | EQ121: 5000 | ER121: 5000 | ES121: 5000 | ET121: 5000 | EU121: 5000 | EV121: 5000 | EW121: 5000 | EX121: 5000 | EY121: 5000 | EZ121: 5000 | FA121: 5000 | FB121: 5000 | FC121: 5000 | FD121: 5000 | FE121: 5000 | FF121: 5000 | FG121: 5000 | FH121: 5000 | FI121: 5000 | FJ121: 5000 | FK121: 5000 | FL121: 5000 | FM121: 5000 | FN121: 5000 | FO121: 5000 | FP121: 5000 | FQ121: 5000 | FR121: 5000 | FS121: 5000 | FT121: 5000 | FU121: 5000 | FV121: 5000 | FW121: 5000 | FX121: 5000 | FY121: 5000 | FZ121: 5000 | GA121: 5000 | GB121: 5000 | GC121: 5000 | GD121: 5000 | GE121: 5000 | GF121: 5000 | GG121: 5000 | GH121: 5000 | GI121: 5000 | GJ121: 5000 | GK121: 5000 | GL121: 5000 | GM121: 5000 | GN121: 5000 | GO121: 5000 | GP121: 5000 | GQ121: 5000 | GR121: 5000 | GS121: 5000 | GT121: 5000 | GU121: 5000 | GV121: 5000 | GW121: 5000 | GX121: 5000 | GY121: 5000 | GZ121: 5000 | HA121: 5000 | HB121: 5000 | HC121: 5000 | HD121: 5000 | HE121: 5000 | HF121: 5000 | HG121: 5000 | HH121: 5000 | HI121: 5000 | HJ121: 5000 | HK121: 5000 | HL121: 5000 | HM121: 5000 | HN121: 5000 | HO121: 5000 | HP121: 5000 | HQ121: 5000 | HR121: 5000 | HS121: 5000 | HT121: 5000 | HU121: 5000 | HV121: 5000 | HW121: 5000 | HX121: 5000 | HY121: 5000 | HZ121: 5000 | IA121: 5000 | IB121: 5000 | IC121: 5000 | ID121: 5000 | IE121: 5000 | IF121: 5000 | IG121: 5000 | IH121: 5000 | II121: 5000 | IJ121: 5000 | IK121: 5000 | IL121: 5000 | IM121: 5000 | IN121: 5000 | IO121: 5000 | IP121: 5000 | IQ121: 5000 | IR121: 5000 | IS121: 5000 | IT121: 5000 | IU121: 5000 | IV121: 5000 | IW121: 5000 | IX121: 5000 | IY121: 5000 | IZ121: 5000 | JA121: 5000 | JB121: 5000 | JC121: 5000 | JD121: 5000 | JE121: 5000
F122: =F95 -> 3000 | G122: 4 | Z122: 3000 | AA122: 3000 | AB122: 3000 | AC122: 3000 | AD122: 3000 | AE122: 3000 | AF122: 3000 | AG122: 3000 | AH122: 3000 | AI122: 3000 | AJ122: 3000 | AK122: 3000 | AL122: 3000 | AM122: 3000 | AN122: 3000 | AO122: 3000 | AP122: 3000 | AQ122: 3000 | AR122: 3000 | AS122: 3000 | AT122: 3000 | AU122: 3000 | AV122: 3000 | AW122: 3000 | AX122: 3000 | AY122: 3000 | AZ122: 3000 | BA122: 3000 | BB122: 3000 | BC122: 3000 | BD122: 3000 | BE122: 3000 | BF122: 3000 | BG122: 3000 | BH122: 3000 | BI122: 3000 | BJ122: 3000 | BK122: 3000 | BL122: 3000 | BM122: 3000 | BN122: 3000 | BO122: 0 | BP122: 0 | BQ122: 0 | BR122: 0 | BS122: 0 | BT122: 3000 | BU122: 3000 | BV122: 3000 | BW122: 3000 | BX122: 3000 | BY122: 3000 | BZ122: 3000 | CA122: 3000 | CB122: 3000 | CC122: 3000 | CD122: 3000 | CE122: 3000 | CF122: 3000 | CG122: 3000 | CH122: 3000 | CI122: 3000 | CJ122: 3000 | CK122: 3000 | CL122: =IF(CL95,$F122,0) -> 3000 | CM122: 3000 | CN122: 3000 | CO122: 3000 | CP122: 3000 | CQ122: 3000 | CR122: 3000 | CS122: 3000 | CT122: 3000 | CU122: 3000 | CV122: 3000 | CW122: 3000 | CX122: 3000 | CY122: 3000 | CZ122: 3000 | DA122: 3000 | DB122: 3000 | DC122: 3000 | DD122: 0 | DE122: 0 | DF122: 0 | DG122: 3000 | DH122: 3000 | DI122: 3000 | DJ122: 3000 | DK122: 3000 | DL122: 3000 | DM122: 3000 | DN122: 3000 | DO122: 3000 | DP122: 3000 | DQ122: 3000 | DR122: 3000 | DS122: 3000 | DT122: 3000 | DU122: 3000 | DV122: 3000 | DW122: 3000 | DX122: 3000 | DY122: 3000 | DZ122: 3000 | EA122: 3000 | EB122: 3000 | EC122: 3000 | ED122: 3000 | EE122: 3000 | EF122: 3000 | EG122: 3000 | EH122: 3000 | EI122: 3000 | EJ122: 3000 | EK122: 3000 | EL122: 3000 | EM122: 3000 | EN122: 3000 | EO122: 3000 | EP122: 3000 | EQ122: 3000 | ER122: 3000 | ES122: 3000 | ET122: 3000 | EU122: 3000 | EV122: 3000 | EW122: 3000 | EX122: =IF(EX95,$F122,0) -> 3000 | EY122: 3000 | EZ122: 3000 | FA122: 3000 | FB122: 3000 | FC122: 3000 | FD122: 3000 | FE122: 3000 | FF122: 3000 | FG122: 3000 | FH122: 3000 | FI122: 3000 | FJ122: 3000 | FK122: 3000 | FL122: 3000 | FM122: 3000 | FN122: 3000 | FO122: 3000 | FP122: 3000 | FQ122: 3000 | FR122: 3000 | FS122: 3000 | FT122: 3000 | FU122: 3000 | FV122: 3000 | FW122: 3000 | FX122: 3000 | FY122: 3000 | FZ122: 3000 | GA122: 3000 | GB122: 3000 | GC122: 3000 | GD122: 3000 | GE122: 3000 | GF122: 3000 | GG122: 3000 | GH122: 3000 | GI122: 3000 | GJ122: 3000 | GK122: 3000 | GL122: 3000 | GM122: 3000 | GN122: 3000 | GO122: 3000 | GP122: 3000 | GQ122: 3000 | GR122: 3000 | GS122: 3000 | GT122: 3000 | GU122: 3000 | GV122: 3000 | GW122: 3000 | GX122: 3000 | GY122: 3000 | GZ122: 3000 | HA122: 3000 | HB122: 3000 | HC122: 3000 | HD122: 3000 | HE122: 3000 | HF122: 3000 | HG122: 3000 | HH122: 3000 | HI122: 3000 | HJ122: =IF(HJ95,$F122,0) -> 3000 | HK122: 3000 | HL122: 3000 | HM122: 3000 | HN122: 3000 | HO122: 3000 | HP122: 3000 | HQ122: 3000 | HR122: 3000 | HS122: 3000 | HT122: 3000 | HU122: 3000 | HV122: 3000 | HW122: 3000 | HX122: 3000 | HY122: 3000 | HZ122: 3000 | IA122: 3000 | IB122: 3000 | IC122: 3000 | ID122: 3000 | IE122: 3000 | IF122: 3000 | IG122: 3000 | IH122: 3000 | II122: 3000 | IJ122: 3000 | IK122: 3000 | IL122: 3000 | IM122: 3000 | IN122: 3000 | IO122: 3000 | IP122: 3000 | IQ122: 3000 | IR122: 3000 | IS122: 3000 | IT122: 3000 | IU122: 3000 | IV122: 3000 | IW122: 3000 | IX122: 3000 | IY122: 3000 | IZ122: 3000 | JA122: 3000 | JB122: 3000 | JC122: 3000 | JD122: 3000 | JE122: 3000
F123: =F96 -> 4000 | G123: 5 | Z123: 4000 | AA123: =IF(AA96,$F123,0) -> 4000 | AB123: 4000 | AC123: 4000 | AD123: 4000 | AE123: 4000 | AF123: 4000 | AG123: 4000 | AH123: 4000 | AI123: 4000 | AJ123: 4000 | AK123: 4000 | AL123: 4000 | AM123: 4000 | AN123: 4000 | AO123: 4000 | AP123: 4000 | AQ123: 4000 | AR123: 4000 | AS123: 4000 | AT123: 4000 | AU123: 4000 | AV123: 4000 | AW123: 4000 | AX123: 4000 | AY123: 4000 | AZ123: 4000 | BA123: 4000 | BB123: 4000 | BC123: 4000 | BD123: 4000 | BE123: 4000 | BF123: 4000 | BG123: 4000 | BH123: 4000 | BI123: 4000 | BJ123: 4000 | BK123: 4000 | BL123: 4000 | BM123: 4000 | BN123: 4000 | BO123: 4000 | BP123: 4000 | BQ123: 4000 | BR123: 4000 | BS123: 4000 | BT123: 4000 | BU123: 4000 | BV123: 4000 | BW123: 4000 | BX123: 4000 | BY123: 4000 | BZ123: 4000 | CA123: 4000 | CB123: 4000 | CC123: 4000 | CD123: 4000 | CE123: 4000 | CF123: 4000 | CG123: 4000 | CH123: 4000 | CI123: 4000 | CJ123: 4000 | CK123: 4000 | CL123: 4000 | CM123: =IF(CM96,$F123,0) -> 4000 | CN123: 4000 | CO123: 4000 | CP123: 4000 | CQ123: 4000 | CR123: 4000 | CS123: 4000 | CT123: 4000 | CU123: 4000 | CV123: 4000 | CW123: 4000 | CX123: 4000 | CY123: 0 | CZ123: 0 | DA123: 0 | DB123: 0 | DC123: 4000 | DD123: 4000 | DE123: 4000 | DF123: 4000 | DG123: 4000 | DH123: 4000 | DI123: 4000 | DJ123: 4000 | DK123: 4000 | DL123: 4000 | DM123: 4000 | DN123: 4000 | DO123: 4000 | DP123: 4000 | DQ123: 4000 | DR123: 4000 | DS123: 4000 | DT123: 4000 | DU123: 4000 | DV123: 4000 | DW123: 4000 | DX123: 4000 | DY123: 4000 | DZ123: 4000 | EA123: 4000 | EB123: 4000 | EC123: 4000 | ED123: 4000 | EE123: 4000 | EF123: 4000 | EG123: 4000 | EH123: 4000 | EI123: 4000 | EJ123: 4000 | EK123: 4000 | EL123: 4000 | EM123: 0 | EN123: 0 | EO123: 0 | EP123: 0 | EQ123: 0 | ER123: 4000 | ES123: 4000 | ET123: 4000 | EU123: 4000 | EV123: 4000 | EW123: 4000 | EX123: 4000 | EY123: =IF(EY96,$F123,0) -> 4000 | EZ123: 4000 | FA123: 4000 | FB123: 4000 | FC123: 4000 | FD123: 4000 | FE123: 4000 | FF123: 4000 | FG123: 4000 | FH123: 4000 | FI123: 4000 | FJ123: 4000 | FK123: 4000 | FL123: 4000 | FM123: 4000 | FN123: 4000 | FO123: 4000 | FP123: 4000 | FQ123: 4000 | FR123: 4000 | FS123: 4000 | FT123: 4000 | FU123: 4000 | FV123: 4000 | FW123: 4000 | FX123: 4000 | FY123: 4000 | FZ123: 4000 | GA123: 4000 | GB123: 4000 | GC123: 4000 | GD123: 4000 | GE123: 4000 | GF123: 4000 | GG123: 4000 | GH123: 4000 | GI123: 4000 | GJ123: 4000 | GK123: 4000 | GL123: 4000 | GM123: 4000 | GN123: 4000 | GO123: 4000 | GP123: 4000 | GQ123: 4000 | GR123: 4000 | GS123: 4000 | GT123: 4000 | GU123: 4000 | GV123: 4000 | GW123: 4000 | GX123: 4000 | GY123: 4000 | GZ123: 4000 | HA123: 4000 | HB123: 4000 | HC123: 4000 | HD123: 4000 | HE123: 4000 | HF123: 4000 | HG123: 4000 | HH123: 4000 | HI123: 4000 | HJ123: 4000 | HK123: 4000 | HL123: 4000 | HM123: 4000 | HN123: 4000 | HO123: 4000 | HP123: 4000 | HQ123: 4000 | HR123: 4000 | HS123: 4000 | HT123: 4000 | HU123: 4000 | HV123: 4000 | HW123: 4000 | HX123: 4000 | HY123: 4000 | HZ123: 4000 | IA123: 4000 | IB123: 4000 | IC123: 4000 | ID123: 4000 | IE123: 4000 | IF123: 4000 | IG123: 4000 | IH123: 4000 | II123: 4000 | IJ123: 4000 | IK123: 4000 | IL123: 4000 | IM123: 4000 | IN123: 4000 | IO123: 4000 | IP123: 4000 | IQ123: 4000 | IR123: 4000 | IS123: 4000 | IT123: 4000 | IU123: 4000 | IV123: 4000 | IW123: 4000 | IX123: 4000 | IY123: 4000 | IZ123: 4000 | JA123: 4000 | JB123: 4000 | JC123: 4000 | JD123: 4000 | JE123: 4000
F124: =F97 -> 5000 | G124: 6 | Z124: 0 | AA124: 0 | AB124: 0 | AC124: 0 | AD124: 0 | AE124: 0 | AF124: 0 | AG124: 5000 | AH124: 5000 | AI124: 5000 | AJ124: 5000 | AK124: 5000 | AL124: 5000 | AM124: 5000 | AN124: 5000 | AO124: 5000 | AP124: 5000 | AQ124: 5000 | AR124: 5000 | AS124: 5000 | AT124: 5000 | AU124: 5000 | AV124: 5000 | AW124: 5000 | AX124: 5000 | AY124: 5000 | AZ124: 5000 | BA124: 5000 | BB124: 5000 | BC124: 5000 | BD124: 5000 | BE124: 5000 | BF124: 5000 | BG124: 5000 | BH124: 5000 | BI124: 5000 | BJ124: 5000 | BK124: 5000 | BL124: 5000 | BM124: 5000 | BN124: 5000 | BO124: 5000 | BP124: 5000 | BQ124: 0 | BR124: 0 | BS124: 0 | BT124: 0 | BU124: 0 | BV124: 5000 | BW124: 5000 | BX124: 5000 | BY124: 5000 | BZ124: 5000 | CA124: 5000 | CB124: 5000 | CC124: 5000 | CD124: 5000 | CE124: 5000 | CF124: 5000 | CG124: 5000 | CH124: 5000 | CI124: 5000 | CJ124: 5000 | CK124: 5000 | CL124: 5000 | CM124: 5000 | CN124: 5000 | CO124: 5000 | CP124: 5000 | CQ124: 5000 | CR124: 5000 | CS124: 5000 | CT124: 5000 | CU124: 5000 | CV124: 5000 | CW124: 5000 | CX124: 5000 | CY124: 5000 | CZ124: 5000 | DA124: 5000 | DB124: 5000 | DC124: 5000 | DD124: 5000 | DE124: 5000 | DF124: 5000 | DG124: 5000 | DH124: 5000 | DI124: 5000 | DJ124: 5000 | DK124: 5000 | DL124: 5000 | DM124: 5000 | DN124: 5000 | DO124: 5000 | DP124: 5000 | DQ124: 5000 | DR124: 5000 | DS124: 5000 | DT124: 5000 | DU124: 5000 | DV124: 5000 | DW124: 5000 | DX124: 5000 | DY124: 5000 | DZ124: 5000 | EA124: 5000 | EB124: 5000 | EC124: 5000 | ED124: 5000 | EE124: 5000 | EF124: 5000 | EG124: 5000 | EH124: 5000 | EI124: 5000 | EJ124: 5000 | EK124: 5000 | EL124: 5000 | EM124: 5000 | EN124: 5000 | EO124: 5000 | EP124: 5000 | EQ124: 5000 | ER124: 5000 | ES124: 5000 | ET124: 5000 | EU124: 5000 | EV124: 5000 | EW124: 5000 | EX124: 5000 | EY124: 5000 | EZ124: 5000 | FA124: 5000 | FB124: 5000 | FC124: 5000 | FD124: 5000 | FE124: 5000 | FF124: 5000 | FG124: 5000 | FH124: 5000 | FI124: 5000 | FJ124: 5000 | FK124: 5000 | FL124: 5000 | FM124: 5000 | FN124: 5000 | FO124: 5000 | FP124: 5000 | FQ124: 5000 | FR124: 5000 | FS124: 5000 | FT124: 5000 | FU124: 5000 | FV124: 5000 | FW124: 5000 | FX124: 5000 | FY124: 5000 | FZ124: 5000 | GA124: 5000 | GB124: 5000 | GC124: 5000 | GD124: 5000 | GE124: 5000 | GF124: 5000 | GG124: 5000 | GH124: 5000 | GI124: 5000 | GJ124: 5000 | GK124: 5000 | GL124: 5000 | GM124: 5000 | GN124: 5000 | GO124: 5000 | GP124: 5000 | GQ124: 5000 | GR124: 5000 | GS124: 5000 | GT124: 5000 | GU124: 5000 | GV124: 5000 | GW124: 5000 | GX124: 5000 | GY124: 5000 | GZ124: 5000 | HA124: 5000 | HB124: 5000 | HC124: 5000 | HD124: 5000 | HE124: 5000 | HF124: 5000 | HG124: 5000 | HH124: 5000 | HI124: 5000 | HJ124: 5000 | HK124: 5000 | HL124: 5000 | HM124: 5000 | HN124: 5000 | HO124: 5000 | HP124: 5000 | HQ124: 5000 | HR124: 5000 | HS124: 5000 | HT124: 5000 | HU124: 5000 | HV124: 5000 | HW124: 5000 | HX124: 5000 | HY124: 5000 | HZ124: 5000 | IA124: 5000 | IB124: 5000 | IC124: 5000 | ID124: 5000 | IE124: =IF(IE97,$F124,0) -> 5000 | IF124: 5000 | IG124: 5000 | IH124: 5000 | II124: 5000 | IJ124: 5000 | IK124: 5000 | IL124: 5000 | IM124: 5000 | IN124: 5000 | IO124: 5000 | IP124: 5000 | IQ124: 5000 | IR124: 5000 | IS124: 5000 | IT124: 5000 | IU124: 5000 | IV124: 5000 | IW124: 5000 | IX124: 5000 | IY124: 5000 | IZ124: 5000 | JA124: 5000 | JB124: 5000 | JC124: 5000 | JD124: 5000 | JE124: 5000
F125: =F98 -> 7000 | G125: 7 | Z125: 7000 | AA125: 7000 | AB125: 7000 | AC125: 7000 | AD125: 7000 | AE125: 7000 | AF125: 7000 | AG125: 7000 | AH125: 7000 | AI125: 7000 | AJ125: 7000 | AK125: 7000 | AL125: 7000 | AM125: 7000 | AN125: 7000 | AO125: 7000 | AP125: 7000 | AQ125: 0 | AR125: 0 | AS125: 0 | AT125: 0 | AU125: 0 | AV125: 7000 | AW125: 7000 | AX125: 7000 | AY125: 7000 | AZ125: 7000 | BA125: 7000 | BB125: 7000 | BC125: 7000 | BD125: 7000 | BE125: 7000 | BF125: 7000 | BG125: 7000 | BH125: 7000 | BI125: 7000 | BJ125: 7000 | BK125: 7000 | BL125: 7000 | BM125: 7000 | BN125: 7000 | BO125: 7000 | BP125: 7000 | BQ125: 7000 | BR125: 7000 | BS125: 7000 | BT125: 7000 | BU125: 7000 | BV125: 7000 | BW125: 7000 | BX125: 7000 | BY125: 7000 | BZ125: 7000 | CA125: 7000 | CB125: 7000 | CC125: 7000 | CD125: 7000 | CE125: 7000 | CF125: 0 | CG125: 0 | CH125: 0 | CI125: 0 | CJ125: 0 | CK125: 0 | CL125: 0 | CM125: 7000 | CN125: 7000 | CO125: 7000 | CP125: 7000 | CQ125: 7000 | CR125: 7000 | CS125: 7000 | CT125: 7000 | CU125: 7000 | CV125: 7000 | CW125: 7000 | CX125: 7000 | CY125: 7000 | CZ125: 7000 | DA125: 7000 | DB125: 7000 | DC125: 7000 | DD125: 7000 | DE125: 7000 | DF125: 7000 | DG125: 7000 | DH125: 7000 | DI125: 7000 | DJ125: 7000 | DK125: 7000 | DL125: 7000 | DM125: 7000 | DN125: 7000 | DO125: 7000 | DP125: 7000 | DQ125: 7000 | DR125: 7000 | DS125: 7000 | DT125: 7000 | DU125: 7000 | DV125: 7000 | DW125: 7000 | DX125: 7000 | DY125: 7000 | DZ125: 7000 | EA125: 7000 | EB125: 7000 | EC125: 7000 | ED125: 7000 | EE125: 7000 | EF125: 7000 | EG125: 7000 | EH125: 7000 | EI125: 7000 | EJ125: 7000 | EK125: 7000 | EL125: 7000 | EM125: 7000 | EN125: 7000 | EO125: 7000 | EP125: 7000 | EQ125: 7000 | ER125: 7000 | ES125: 7000 | ET125: 7000 | EU125: 7000 | EV125: 7000 | EW125: 7000 | EX125: 7000 | EY125: 7000 | EZ125: 7000 | FA125: 7000 | FB125: 7000 | FC125: 7000 | FD125: 7000 | FE125: 7000 | FF125: 7000 | FG125: 7000 | FH125: 7000 | FI125: 7000 | FJ125: 7000 | FK125: 7000 | FL125: 7000 | FM125: 7000 | FN125: 7000 | FO125: 7000 | FP125: 7000 | FQ125: 7000 | FR125: 7000 | FS125: 7000 | FT125: 7000 | FU125: 7000 | FV125: 7000 | FW125: 7000 | FX125: 7000 | FY125: 7000 | FZ125: 7000 | GA125: 7000 | GB125: 7000 | GC125: 7000 | GD125: 7000 | GE125: 7000 | GF125: 7000 | GG125: 7000 | GH125: 7000 | GI125: 7000 | GJ125: 7000 | GK125: 7000 | GL125: 7000 | GM125: 7000 | GN125: 7000 | GO125: 7000 | GP125: 7000 | GQ125: 7000 | GR125: 7000 | GS125: 7000 | GT125: 7000 | GU125: 7000 | GV125: 7000 | GW125: 7000 | GX125: 7000 | GY125: 7000 | GZ125: 7000 | HA125: 7000 | HB125: 7000 | HC125: 7000 | HD125: 7000 | HE125: 7000 | HF125: 7000 | HG125: 7000 | HH125: 7000 | HI125: 7000 | HJ125: 7000 | HK125: =IF(HK98,$F125,0) -> 7000 | HL125: 7000 | HM125: 7000 | HN125: 7000 | HO125: 7000 | HP125: 7000 | HQ125: 7000 | HR125: 7000 | HS125: 7000 | HT125: 7000 | HU125: 7000 | HV125: 7000 | HW125: 7000 | HX125: 7000 | HY125: 7000 | HZ125: 7000 | IA125: 7000 | IB125: 7000 | IC125: 7000 | ID125: 7000 | IE125: 7000 | IF125: 7000 | IG125: 7000 | IH125: 7000 | II125: 7000 | IJ125: 7000 | IK125: 7000 | IL125: 7000 | IM125: 7000 | IN125: 7000 | IO125: 7000 | IP125: 7000 | IQ125: 7000 | IR125: 7000 | IS125: 7000 | IT125: 7000 | IU125: 7000 | IV125: 7000 | IW125: 7000 | IX125: 7000 | IY125: 7000 | IZ125: 7000 | JA125: 7000 | JB125: 7000 | JC125: 7000 | JD125: 7000 | JE125: 7000
F126: =F99 -> 4000 | G126: 8 | Z126: 4000 | AA126: 4000 | AB126: 4000 | AC126: 4000 | AD126: 4000 | AE126: 0 | AF126: 0 | AG126: 0 | AH126: 0 | AI126: 0 | AJ126: 0 | AK126: 4000 | AL126: 4000 | AM126: 4000 | AN126: 4000 | AO126: 4000 | AP126: 4000 | AQ126: 4000 | AR126: 4000 | AS126: 4000 | AT126: 4000 | AU126: 4000 | AV126: 4000 | AW126: 4000 | AX126: 4000 | AY126: 4000 | AZ126: 4000 | BA126: 4000 | BB126: 4000 | BC126: 4000 | BD126: 4000 | BE126: 4000 | BF126: 4000 | BG126: 4000 | BH126: 4000 | BI126: 4000 | BJ126: 4000 | BK126: 4000 | BL126: 4000 | BM126: 4000 | BN126: 4000 | BO126: 4000 | BP126: 4000 | BQ126: 4000 | BR126: 4000 | BS126: 4000 | BT126: 4000 | BU126: 0 | BV126: 0 | BW126: 0 | BX126: 0 | BY126: 0 | BZ126: 4000 | CA126: 4000 | CB126: 4000 | CC126: 4000 | CD126: 4000 | CE126: 4000 | CF126: 4000 | CG126: 4000 | CH126: 4000 | CI126: 4000 | CJ126: 4000 | CK126: 4000 | CL126: =IF(CL99,$F126,0) -> 4000 | CM126: 4000 | CN126: 4000 | CO126: 4000 | CP126: 4000 | CQ126: 4000 | CR126: 4000 | CS126: 4000 | CT126: 4000 | CU126: 4000 | CV126: 4000 | CW126: 4000 | CX126: 4000 | CY126: 4000 | CZ126: 4000 | DA126: 4000 | DB126: 4000 | DC126: 4000 | DD126: 4000 | DE126: 4000 | DF126: 4000 | DG126: 4000 | DH126: 4000 | DI126: 4000 | DJ126: 4000 | DK126: 4000 | DL126: 4000 | DM126: 4000 | DN126: 4000 | DO126: 4000 | DP126: 4000 | DQ126: 4000 | DR126: 4000 | DS126: 4000 | DT126: 4000 | DU126: 4000 | DV126: 4000 | DW126: 4000 | DX126: 4000 | DY126: 4000 | DZ126: 4000 | EA126: 4000 | EB126: 4000 | EC126: 4000 | ED126: 4000 | EE126: 4000 | EF126: 4000 | EG126: 4000 | EH126: 4000 | EI126: 4000 | EJ126: 4000 | EK126: 4000 | EL126: 4000 | EM126: 4000 | EN126: 4000 | EO126: 4000 | EP126: 4000 | EQ126: 4000 | ER126: 4000 | ES126: 4000 | ET126: 4000 | EU126: 4000 | EV126: 4000 | EW126: 4000 | EX126: =IF(EX99,$F126,0) -> 4000 | EY126: 4000 | EZ126: 4000 | FA126: 4000 | FB126: 4000 | FC126: 4000 | FD126: 4000 | FE126: 4000 | FF126: 4000 | FG126: 4000 | FH126: 4000 | FI126: 4000 | FJ126: 4000 | FK126: 4000 | FL126: 4000 | FM126: 4000 | FN126: 4000 | FO126: 4000 | FP126: 4000 | FQ126: 4000 | FR126: 4000 | FS126: 4000 | FT126: 4000 | FU126: 4000 | FV126: 4000 | FW126: 4000 | FX126: 4000 | FY126: 4000 | FZ126: 4000 | GA126: 4000 | GB126: 4000 | GC126: 4000 | GD126: 4000 | GE126: 4000 | GF126: 4000 | GG126: 4000 | GH126: 4000 | GI126: 4000 | GJ126: 4000 | GK126: 4000 | GL126: 4000 | GM126: 4000 | GN126: 4000 | GO126: 4000 | GP126: 4000 | GQ126: 4000 | GR126: 4000 | GS126: 4000 | GT126: 4000 | GU126: 4000 | GV126: 4000 | GW126: 4000 | GX126: 4000 | GY126: 4000 | GZ126: 4000 | HA126: 4000 | HB126: 4000 | HC126: 4000 | HD126: 4000 | HE126: 4000 | HF126: 4000 | HG126: 4000 | HH126: 4000 | HI126: 4000 | HJ126: =IF(HJ99,$F126,0) -> 4000 | HK126: 4000 | HL126: 4000 | HM126: 4000 | HN126: 4000 | HO126: 4000 | HP126: 4000 | HQ126: 4000 | HR126: 4000 | HS126: 4000 | HT126: 4000 | HU126: 4000 | HV126: 4000 | HW126: 4000 | HX126: 4000 | HY126: 4000 | HZ126: 4000 | IA126: 4000 | IB126: 4000 | IC126: 4000 | ID126: 4000 | IE126: 4000 | IF126: 4000 | IG126: 4000 | IH126: 4000 | II126: 4000 | IJ126: 4000 | IK126: 4000 | IL126: 4000 | IM126: 4000 | IN126: 4000 | IO126: 4000 | IP126: 4000 | IQ126: 4000 | IR126: 4000 | IS126: 4000 | IT126: 4000 | IU126: 4000 | IV126: 4000 | IW126: 4000 | IX126: 4000 | IY126: 4000 | IZ126: 4000 | JA126: 4000 | JB126: 4000 | JC126: 4000 | JD126: 4000 | JE126: 4000
F127: =F100 -> 6000 | G127: 9 | Z127: 6000 | AA127: =IF(AA100,$F127,0) -> 6000 | AB127: 6000 | AC127: 6000 | AD127: 6000 | AE127: 6000 | AF127: 6000 | AG127: 6000 | AH127: 6000 | AI127: 6000 | AJ127: 6000 | AK127: 6000 | AL127: 6000 | AM127: 6000 | AN127: 6000 | AO127: 6000 | AP127: 6000 | AQ127: 6000 | AR127: 6000 | AS127: 6000 | AT127: 6000 | AU127: 6000 | AV127: 6000 | AW127: 6000 | AX127: 6000 | AY127: 6000 | AZ127: 6000 | BA127: 6000 | BB127: 6000 | BC127: 0 | BD127: 0 | BE127: 0 | BF127: 0 | BG127: 0 | BH127: 0 | BI127: 6000 | BJ127: 6000 | BK127: 6000 | BL127: 6000 | BM127: 6000 | BN127: 6000 | BO127: 6000 | BP127: 6000 | BQ127: 6000 | BR127: 6000 | BS127: 6000 | BT127: 6000 | BU127: 6000 | BV127: 6000 | BW127: 6000 | BX127: 6000 | BY127: 6000 | BZ127: 6000 | CA127: 6000 | CB127: 6000 | CC127: 6000 | CD127: 6000 | CE127: 6000 | CF127: 6000 | CG127: 6000 | CH127: 6000 | CI127: 6000 | CJ127: 6000 | CK127: 6000 | CL127: 6000 | CM127: =IF(CM100,$F127,0) -> 6000 | CN127: 6000 | CO127: 6000 | CP127: 6000 | CQ127: 6000 | CR127: 6000 | CS127: 0 | CT127: 0 | CU127: 0 | CV127: 0 | CW127: 6000 | CX127: 6000 | CY127: 6000 | CZ127: 6000 | DA127: 6000 | DB127: 6000 | DC127: 6000 | DD127: 6000 | DE127: 6000 | DF127: 6000 | DG127: 6000 | DH127: 6000 | DI127: 6000 | DJ127: 6000 | DK127: 6000 | DL127: 6000 | DM127: 6000 | DN127: 6000 | DO127: 6000 | DP127: 6000 | DQ127: 6000 | DR127: 6000 | DS127: 6000 | DT127: 6000 | DU127: 6000 | DV127: 6000 | DW127: 6000 | DX127: 6000 | DY127: 6000 | DZ127: 6000 | EA127: 6000 | EB127: 6000 | EC127: 6000 | ED127: 6000 | EE127: 6000 | EF127: 6000 | EG127: 6000 | EH127: 6000 | EI127: 6000 | EJ127: 6000 | EK127: 6000 | EL127: 6000 | EM127: 6000 | EN127: 6000 | EO127: 6000 | EP127: 6000 | EQ127: 6000 | ER127: 6000 | ES127: 6000 | ET127: 6000 | EU127: 6000 | EV127: 6000 | EW127: 6000 | EX127: 6000 | EY127: =IF(EY100,$F127,0) -> 6000 | EZ127: 6000 | FA127: 6000 | FB127: 6000 | FC127: 6000 | FD127: 6000 | FE127: 6000 | FF127: 6000 | FG127: 6000 | FH127: 6000 | FI127: 6000 | FJ127: 6000 | FK127: 6000 | FL127: 6000 | FM127: 6000 | FN127: 6000 | FO127: 6000 | FP127: 6000 | FQ127: 6000 | FR127: 6000 | FS127: 6000 | FT127: 6000 | FU127: 6000 | FV127: 6000 | FW127: 6000 | FX127: 6000 | FY127: 6000 | FZ127: 6000 | GA127: 6000 | GB127: 6000 | GC127: 6000 | GD127: 6000 | GE127: 6000 | GF127: 6000 | GG127: 6000 | GH127: 6000 | GI127: 6000 | GJ127: 6000 | GK127: 6000 | GL127: 6000 | GM127: 6000 | GN127: 6000 | GO127: 6000 | GP127: 6000 | GQ127: 6000 | GR127: 6000 | GS127: 6000 | GT127: 6000 | GU127: 6000 | GV127: 6000 | GW127: 6000 | GX127: 6000 | GY127: 6000 | GZ127: 6000 | HA127: 6000 | HB127: 6000 | HC127: 6000 | HD127: 6000 | HE127: 6000 | HF127: 6000 | HG127: 6000 | HH127: 6000 | HI127: 6000 | HJ127: 6000 | HK127: 6000 | HL127: 6000 | HM127: 6000 | HN127: 6000 | HO127: 6000 | HP127: 6000 | HQ127: 6000 | HR127: 6000 | HS127: 6000 | HT127: 6000 | HU127: 6000 | HV127: 6000 | HW127: 6000 | HX127: 6000 | HY127: 6000 | HZ127: 6000 | IA127: 6000 | IB127: 6000 | IC127: 6000 | ID127: 6000 | IE127: 6000 | IF127: 6000 | IG127: 6000 | IH127: 6000 | II127: 6000 | IJ127: 6000 | IK127: 6000 | IL127: 6000 | IM127: 6000 | IN127: 6000 | IO127: 6000 | IP127: 6000 | IQ127: 6000 | IR127: 6000 | IS127: 6000 | IT127: 6000 | IU127: 6000 | IV127: 6000 | IW127: 6000 | IX127: 6000 | IY127: 6000 | IZ127: 6000 | JA127: 6000 | JB127: 6000 | JC127: 6000 | JD127: 6000 | JE127: 6000
F128: =F101 -> 7000 | G128: 10 | Z128: 7000 | AA128: 7000 | AB128: 7000 | AC128: 7000 | AD128: 7000 | AE128: 7000 | AF128: 7000 | AG128: 7000 | AH128: 7000 | AI128: 7000 | AJ128: 7000 | AK128: 7000 | AL128: 7000 | AM128: 7000 | AN128: 7000 | AO128: 7000 | AP128: 7000 | AQ128: 7000 | AR128: 7000 | AS128: 7000 | AT128: 7000 | AU128: 7000 | AV128: 7000 | AW128: 7000 | AX128: 7000 | AY128: 7000 | AZ128: 7000 | BA128: 7000 | BB128: 7000 | BC128: 7000 | BD128: 7000 | BE128: 7000 | BF128: 7000 | BG128: 7000 | BH128: 7000 | BI128: 7000 | BJ128: 7000 | BK128: 7000 | BL128: 7000 | BM128: 7000 | BN128: 7000 | BO128: 0 | BP128: 0 | BQ128: 0 | BR128: 0 | BS128: 0 | BT128: 7000 | BU128: 7000 | BV128: 7000 | BW128: 7000 | BX128: 7000 | BY128: 7000 | BZ128: 7000 | CA128: 7000 | CB128: 7000 | CC128: 7000 | CD128: 7000 | CE128: 7000 | CF128: 7000 | CG128: 7000 | CH128: 7000 | CI128: 7000 | CJ128: 7000 | CK128: 7000 | CL128: 7000 | CM128: 7000 | CN128: 7000 | CO128: 7000 | CP128: 7000 | CQ128: 7000 | CR128: 7000 | CS128: 7000 | CT128: 7000 | CU128: 7000 | CV128: 7000 | CW128: 7000 | CX128: 7000 | CY128: 7000 | CZ128: 7000 | DA128: 7000 | DB128: 7000 | DC128: 7000 | DD128: 0 | DE128: 0 | DF128: 0 | DG128: 7000 | DH128: 7000 | DI128: 7000 | DJ128: 7000 | DK128: 7000 | DL128: 7000 | DM128: 7000 | DN128: 7000 | DO128: 7000 | DP128: 7000 | DQ128: 7000 | DR128: 7000 | DS128: 7000 | DT128: 7000 | DU128: 7000 | DV128: 7000 | DW128: 7000 | DX128: 7000 | DY128: 7000 | DZ128: 7000 | EA128: 7000 | EB128: 7000 | EC128: 7000 | ED128: 7000 | EE128: 7000 | EF128: 7000 | EG128: 7000 | EH128: 7000 | EI128: 7000 | EJ128: 7000 | EK128: 7000 | EL128: 7000 | EM128: 7000 | EN128: 7000 | EO128: 7000 | EP128: 7000 | EQ128: 7000 | ER128: 7000 | ES128: 7000 | ET128: 7000 | EU128: 7000 | EV128: 7000 | EW128: 7000 | EX128: 7000 | EY128: 7000 | EZ128: 7000 | FA128: 7000 | FB128: 7000 | FC128: 7000 | FD128: 7000 | FE128: 7000 | FF128: 7000 | FG128: 7000 | FH128: 7000 | FI128: 7000 | FJ128: 7000 | FK128: 7000 | FL128: 7000 | FM128: 7000 | FN128: 7000 | FO128: 7000 | FP128: 7000 | FQ128: 7000 | FR128: 7000 | FS128: 7000 | FT128: 7000 | FU128: 7000 | FV128: 7000 | FW128: 7000 | FX128: 7000 | FY128: 7000 | FZ128: 7000 | GA128: 7000 | GB128: 7000 | GC128: 7000 | GD128: 7000 | GE128: 7000 | GF128: 7000 | GG128: 7000 | GH128: 7000 | GI128: 7000 | GJ128: 7000 | GK128: 7000 | GL128: 7000 | GM128: 7000 | GN128: 7000 | GO128: 7000 | GP128: 7000 | GQ128: 7000 | GR128: 7000 | GS128: 7000 | GT128: 7000 | GU128: 7000 | GV128: 7000 | GW128: 7000 | GX128: 7000 | GY128: 7000 | GZ128: 7000 | HA128: 7000 | HB128: 7000 | HC128: 7000 | HD128: 7000 | HE128: 7000 | HF128: 7000 | HG128: 7000 | HH128: 7000 | HI128: 7000 | HJ128: 7000 | HK128: 7000 | HL128: 7000 | HM128: 7000 | HN128: 7000 | HO128: 7000 | HP128: 7000 | HQ128: 7000 | HR128: 7000 | HS128: 7000 | HT128: 7000 | HU128: 7000 | HV128: 7000 | HW128: 7000 | HX128: 7000 | HY128: 7000 | HZ128: 7000 | IA128: 7000 | IB128: 7000 | IC128: 7000 | ID128: 7000 | IE128: 7000 | IF128: 7000 | IG128: 7000 | IH128: 7000 | II128: 7000 | IJ128: 7000 | IK128: 7000 | IL128: 7000 | IM128: 7000 | IN128: 7000 | IO128: 7000 | IP128: 7000 | IQ128: 7000 | IR128: 7000 | IS128: 7000 | IT128: 7000 | IU128: 7000 | IV128: 7000 | IW128: 7000 | IX128: 7000 | IY128: 7000 | IZ128: 7000 | JA128: 7000 | JB128: 7000 | JC128: 7000 | JD128: 7000 | JE128: 7000
F129: =F102 -> 3000 | G129: 11 | Z129: 3000 | AA129: 3000 | AB129: 3000 | AC129: 3000 | AD129: 3000 | AE129: 3000 | AF129: 3000 | AG129: 3000 | AH129: 3000 | AI129: 3000 | AJ129: 3000 | AK129: 3000 | AL129: 3000 | AM129: 3000 | AN129: 3000 | AO129: 3000 | AP129: 3000 | AQ129: 3000 | AR129: 3000 | AS129: 3000 | AT129: 3000 | AU129: 3000 | AV129: 3000 | AW129: 3000 | AX129: 3000 | AY129: 3000 | AZ129: 3000 | BA129: 3000 | BB129: 3000 | BC129: 3000 | BD129: 3000 | BE129: 3000 | BF129: 3000 | BG129: 3000 | BH129: 3000 | BI129: 3000 | BJ129: 3000 | BK129: 3000 | BL129: 3000 | BM129: 3000 | BN129: 3000 | BO129: 3000 | BP129: 3000 | BQ129: 3000 | BR129: 3000 | BS129: 3000 | BT129: 3000 | BU129: 3000 | BV129: 3000 | BW129: 3000 | BX129: 3000 | BY129: 3000 | BZ129: 3000 | CA129: 3000 | CB129: 3000 | CC129: 3000 | CD129: 3000 | CE129: 3000 | CF129: 3000 | CG129: 3000 | CH129: 3000 | CI129: 3000 | CJ129: 3000 | CK129: 3000 | CL129: 3000 | CM129: 3000 | CN129: 3000 | CO129: 3000 | CP129: 3000 | CQ129: 3000 | CR129: 3000 | CS129: 3000 | CT129: 3000 | CU129: 3000 | CV129: 3000 | CW129: 3000 | CX129: 3000 | CY129: 0 | CZ129: 0 | DA129: 0 | DB129: 0 | DC129: 3000 | DD129: 3000 | DE129: 3000 | DF129: 3000 | DG129: 3000 | DH129: 3000 | DI129: 3000 | DJ129: 3000 | DK129: 3000 | DL129: 3000 | DM129: 3000 | DN129: 3000 | DO129: 3000 | DP129: 3000 | DQ129: 3000 | DR129: 3000 | DS129: 3000 | DT129: 3000 | DU129: 3000 | DV129: 3000 | DW129: 3000 | DX129: 3000 | DY129: 3000 | DZ129: 3000 | EA129: 3000 | EB129: 3000 | EC129: 3000 | ED129: 3000 | EE129: 3000 | EF129: 3000 | EG129: 3000 | EH129: 3000 | EI129: 3000 | EJ129: 3000 | EK129: 3000 | EL129: 3000 | EM129: 0 | EN129: 0 | EO129: 0 | EP129: 0 | EQ129: 0 | ER129: 3000 | ES129: 3000 | ET129: 3000 | EU129: 3000 | EV129: 3000 | EW129: 3000 | EX129: 3000 | EY129: 3000 | EZ129: 3000 | FA129: 3000 | FB129: 3000 | FC129: 3000 | FD129: 3000 | FE129: 3000 | FF129: 3000 | FG129: 3000 | FH129: 3000 | FI129: 3000 | FJ129: 3000 | FK129: 3000 | FL129: 3000 | FM129: 3000 | FN129: 3000 | FO129: 3000 | FP129: 3000 | FQ129: 3000 | FR129: 3000 | FS129: 3000 | FT129: 3000 | FU129: 3000 | FV129: 3000 | FW129: 3000 | FX129: 3000 | FY129: 3000 | FZ129: 3000 | GA129: 3000 | GB129: 3000 | GC129: 3000 | GD129: 3000 | GE129: 3000 | GF129: 3000 | GG129: 3000 | GH129: 3000 | GI129: 3000 | GJ129: 3000 | GK129: 3000 | GL129: 3000 | GM129: 3000 | GN129: 3000 | GO129: 3000 | GP129: 3000 | GQ129: 3000 | GR129: 3000 | GS129: 3000 | GT129: 3000 | GU129: 3000 | GV129: 3000 | GW129: 3000 | GX129: 3000 | GY129: 3000 | GZ129: 3000 | HA129: 3000 | HB129: 3000 | HC129: 3000 | HD129: 3000 | HE129: 3000 | HF129: 3000 | HG129: 3000 | HH129: 3000 | HI129: 3000 | HJ129: 3000 | HK129: 3000 | HL129: 3000 | HM129: 3000 | HN129: 3000 | HO129: 3000 | HP129: 3000 | HQ129: 3000 | HR129: 3000 | HS129: 3000 | HT129: 3000 | HU129: 3000 | HV129: 3000 | HW129: 3000 | HX129: 3000 | HY129: 3000 | HZ129: 3000 | IA129: 3000 | IB129: 3000 | IC129: 3000 | ID129: 3000 | IE129: 3000 | IF129: 3000 | IG129: 3000 | IH129: 3000 | II129: 3000 | IJ129: 3000 | IK129: 3000 | IL129: 3000 | IM129: 3000 | IN129: 3000 | IO129: 3000 | IP129: 3000 | IQ129: 3000 | IR129: 3000 | IS129: 3000 | IT129: 3000 | IU129: 3000 | IV129: 3000 | IW129: 3000 | IX129: 3000 | IY129: 3000 | IZ129: 3000 | JA129: 3000 | JB129: 3000 | JC129: 3000 | JD129: 3000 | JE129: 3000
F130: =F103 -> 5000 | G130: 12 | Z130: 0 | AA130: 0 | AB130: 0 | AC130: 0 | AD130: 0 | AE130: 0 | AF130: 0 | AG130: 5000 | AH130: 5000 | AI130: 5000 | AJ130: 5000 | AK130: 5000 | AL130: 5000 | AM130: 5000 | AN130: 5000 | AO130: 5000 | AP130: 5000 | AQ130: 5000 | AR130: 5000 | AS130: 5000 | AT130: 5000 | AU130: 5000 | AV130: 5000 | AW130: 5000 | AX130: 5000 | AY130: 5000 | AZ130: 5000 | BA130: 5000 | BB130: 5000 | BC130: 5000 | BD130: 5000 | BE130: 5000 | BF130: 5000 | BG130: 5000 | BH130: 5000 | BI130: 5000 | BJ130: 5000 | BK130: 5000 | BL130: 5000 | BM130: 5000 | BN130: 5000 | BO130: 5000 | BP130: 5000 | BQ130: 0 | BR130: 0 | BS130: 0 | BT130: 0 | BU130: 0 | BV130: 5000 | BW130: 5000 | BX130: 5000 | BY130: 5000 | BZ130: 5000 | CA130: 5000 | CB130: 5000 | CC130: 5000 | CD130: 5000 | CE130: 5000 | CF130: 5000 | CG130: 5000 | CH130: 5000 | CI130: 5000 | CJ130: 5000 | CK130: 5000 | CL130: =IF(CL103,$F130,0) -> 5000 | CM130: 5000 | CN130: 5000 | CO130: 5000 | CP130: 5000 | CQ130: 5000 | CR130: 5000 | CS130: 5000 | CT130: 5000 | CU130: 5000 | CV130: 5000 | CW130: 5000 | CX130: 5000 | CY130: 5000 | CZ130: 5000 | DA130: 5000 | DB130: 5000 | DC130: 5000 | DD130: 5000 | DE130: 5000 | DF130: 5000 | DG130: 5000 | DH130: 5000 | DI130: 5000 | DJ130: 5000 | DK130: 5000 | DL130: 5000 | DM130: 5000 | DN130: 5000 | DO130: 5000 | DP130: 5000 | DQ130: 5000 | DR130: 5000 | DS130: 5000 | DT130: 5000 | DU130: 5000 | DV130: 5000 | DW130: 5000 | DX130: 5000 | DY130: 5000 | DZ130: 5000 | EA130: 5000 | EB130: 5000 | EC130: 5000 | ED130: 5000 | EE130: 5000 | EF130: 5000 | EG130: 5000 | EH130: 5000 | EI130: 5000 | EJ130: 5000 | EK130: 5000 | EL130: 5000 | EM130: 5000 | EN130: 5000 | EO130: 5000 | EP130: 5000 | EQ130: 5000 | ER130: 5000 | ES130: 5000 | ET130: 5000 | EU130: 5000 | EV130: 5000 | EW130: 5000 | EX130: =IF(EX103,$F130,0) -> 5000 | EY130: 5000 | EZ130: 5000 | FA130: 5000 | FB130: 5000 | FC130: 5000 | FD130: 5000 | FE130: 5000 | FF130: 5000 | FG130: 5000 | FH130: 5000 | FI130: 5000 | FJ130: 5000 | FK130: 5000 | FL130: 5000 | FM130: 5000 | FN130: 5000 | FO130: 5000 | FP130: 5000 | FQ130: 5000 | FR130: 5000 | FS130: 5000 | FT130: 5000 | FU130: 5000 | FV130: 5000 | FW130: 5000 | FX130: 5000 | FY130: 5000 | FZ130: 5000 | GA130: 5000 | GB130: 5000 | GC130: 5000 | GD130: 5000 | GE130: 5000 | GF130: 5000 | GG130: 5000 | GH130: 5000 | GI130: 5000 | GJ130: 5000 | GK130: 5000 | GL130: 5000 | GM130: 5000 | GN130: 5000 | GO130: 5000 | GP130: 5000 | GQ130: 5000 | GR130: 5000 | GS130: 5000 | GT130: 5000 | GU130: 5000 | GV130: 5000 | GW130: 5000 | GX130: 5000 | GY130: 5000 | GZ130: 5000 | HA130: 5000 | HB130: 5000 | HC130: 5000 | HD130: 5000 | HE130: 5000 | HF130: 5000 | HG130: 5000 | HH130: 5000 | HI130: 5000 | HJ130: =IF(HJ103,$F130,0) -> 5000 | HK130: 5000 | HL130: 5000 | HM130: 5000 | HN130: 5000 | HO130: 5000 | HP130: 5000 | HQ130: 5000 | HR130: 5000 | HS130: 5000 | HT130: 5000 | HU130: 5000 | HV130: 5000 | HW130: 5000 | HX130: 5000 | HY130: 5000 | HZ130: 5000 | IA130: 5000 | IB130: 5000 | IC130: 5000 | ID130: 5000 | IE130: =IF(IE103,$F130,0) -> 5000 | IF130: 5000 | IG130: 5000 | IH130: 5000 | II130: 5000 | IJ130: 5000 | IK130: 5000 | IL130: 5000 | IM130: 5000 | IN130: 5000 | IO130: 5000 | IP130: 5000 | IQ130: 5000 | IR130: 5000 | IS130: 5000 | IT130: 5000 | IU130: 5000 | IV130: 5000 | IW130: 5000 | IX130: 5000 | IY130: 5000 | IZ130: 5000 | JA130: 5000 | JB130: 5000 | JC130: 5000 | JD130: 5000 | JE130: 5000
F131: =F104 -> 9000 | G131: 13 | Z131: 9000 | AA131: =IF(AA104,$F131,0) -> 9000 | AB131: 9000 | AC131: 9000 | AD131: 9000 | AE131: 9000 | AF131: 9000 | AG131: 9000 | AH131: 9000 | AI131: 9000 | AJ131: 9000 | AK131: 9000 | AL131: 9000 | AM131: 9000 | AN131: 9000 | AO131: 9000 | AP131: 9000 | AQ131: 0 | AR131: 0 | AS131: 0 | AT131: 0 | AU131: 0 | AV131: 9000 | AW131: 9000 | AX131: 9000 | AY131: 9000 | AZ131: 9000 | BA131: 9000 | BB131: 9000 | BC131: 9000 | BD131: 9000 | BE131: 9000 | BF131: 9000 | BG131: 9000 | BH131: 9000 | BI131: 9000 | BJ131: 9000 | BK131: 9000 | BL131: 9000 | BM131: 9000 | BN131: 9000 | BO131: 9000 | BP131: 9000 | BQ131: 9000 | BR131: 9000 | BS131: 9000 | BT131: 9000 | BU131: 9000 | BV131: 9000 | BW131: 9000 | BX131: 9000 | BY131: 9000 | BZ131: 9000 | CA131: 9000 | CB131: 9000 | CC131: 9000 | CD131: 9000 | CE131: 9000 | CF131: 0 | CG131: 0 | CH131: 0 | CI131: 0 | CJ131: 0 | CK131: 0 | CL131: 0 | CM131: =IF(CM104,$F131,0) -> 9000 | CN131: 9000 | CO131: 9000 | CP131: 9000 | CQ131: 9000 | CR131: 9000 | CS131: 9000 | CT131: 9000 | CU131: 9000 | CV131: 9000 | CW131: 9000 | CX131: 9000 | CY131: 9000 | CZ131: 9000 | DA131: 9000 | DB131: 9000 | DC131: 9000 | DD131: 9000 | DE131: 9000 | DF131: 9000 | DG131: 9000 | DH131: 9000 | DI131: 9000 | DJ131: 9000 | DK131: 9000 | DL131: 9000 | DM131: 9000 | DN131: 9000 | DO131: 9000 | DP131: 9000 | DQ131: 9000 | DR131: 9000 | DS131: 9000 | DT131: 9000 | DU131: 9000 | DV131: 9000 | DW131: 9000 | DX131: 9000 | DY131: 9000 | DZ131: 9000 | EA131: 9000 | EB131: 9000 | EC131: 9000 | ED131: 9000 | EE131: 9000 | EF131: 9000 | EG131: 9000 | EH131: 9000 | EI131: 9000 | EJ131: 9000 | EK131: 9000 | EL131: 9000 | EM131: 9000 | EN131: 9000 | EO131: 9000 | EP131: 9000 | EQ131: 9000 | ER131: 9000 | ES131: 9000 | ET131: 9000 | EU131: 9000 | EV131: 9000 | EW131: 9000 | EX131: 9000 | EY131: =IF(EY104,$F131,0) -> 9000 | EZ131: 9000 | FA131: 9000 | FB131: 9000 | FC131: 9000 | FD131: 9000 | FE131: 9000 | FF131: 9000 | FG131: 9000 | FH131: 9000 | FI131: 9000 | FJ131: 9000 | FK131: 9000 | FL131: 9000 | FM131: 9000 | FN131: 9000 | FO131: 9000 | FP131: 9000 | FQ131: 9000 | FR131: 9000 | FS131: 9000 | FT131: 9000 | FU131: 9000 | FV131: 9000 | FW131: 9000 | FX131: 9000 | FY131: 9000 | FZ131: 9000 | GA131: 9000 | GB131: 9000 | GC131: 9000 | GD131: 9000 | GE131: 9000 | GF131: 9000 | GG131: 9000 | GH131: 9000 | GI131: 9000 | GJ131: 9000 | GK131: 9000 | GL131: 9000 | GM131: 9000 | GN131: 9000 | GO131: 9000 | GP131: 9000 | GQ131: 9000 | GR131: 9000 | GS131: 9000 | GT131: 9000 | GU131: 9000 | GV131: 9000 | GW131: 9000 | GX131: 9000 | GY131: 9000 | GZ131: 9000 | HA131: 9000 | HB131: 9000 | HC131: 9000 | HD131: 9000 | HE131: 9000 | HF131: 9000 | HG131: 9000 | HH131: 9000 | HI131: 9000 | HJ131: 9000 | HK131: =IF(HK104,$F131,0) -> 9000 | HL131: 9000 | HM131: 9000 | HN131: 9000 | HO131: 9000 | HP131: 9000 | HQ131: 9000 | HR131: 9000 | HS131: 9000 | HT131: 9000 | HU131: 9000 | HV131: 9000 | HW131: 9000 | HX131: 9000 | HY131: 9000 | HZ131: 9000 | IA131: 9000 | IB131: 9000 | IC131: 9000 | ID131: 9000 | IE131: 9000 | IF131: 9000 | IG131: 9000 | IH131: 9000 | II131: 9000 | IJ131: 9000 | IK131: 9000 | IL131: 9000 | IM131: 9000 | IN131: 9000 | IO131: 9000 | IP131: 9000 | IQ131: 9000 | IR131: 9000 | IS131: 9000 | IT131: 9000 | IU131: 9000 | IV131: 9000 | IW131: 9000 | IX131: 9000 | IY131: 9000 | IZ131: 9000 | JA131: 9000 | JB131: 9000 | JC131: 9000 | JD131: 9000 | JE131: 9000
F132: =F105 -> 10000 | G132: 14 | Z132: 10000 | AA132: 10000 | AB132: 10000 | AC132: 10000 | AD132: 10000 | AE132: 10000 | AF132: 10000 | AG132: 10000 | AH132: 10000 | AI132: 10000 | AJ132: 10000 | AK132: 10000 | AL132: 10000 | AM132: 10000 | AN132: 10000 | AO132: 10000 | AP132: 10000 | AQ132: 0 | AR132: 0 | AS132: 0 | AT132: 0 | AU132: 0 | AV132: 10000 | AW132: 10000 | AX132: 10000 | AY132: 10000 | AZ132: 10000 | BA132: 10000 | BB132: 10000 | BC132: 10000 | BD132: 10000 | BE132: 10000 | BF132: 10000 | BG132: 10000 | BH132: 10000 | BI132: 10000 | BJ132: 10000 | BK132: 10000 | BL132: 10000 | BM132: 10000 | BN132: 10000 | BO132: 10000 | BP132: 10000 | BQ132: 10000 | BR132: 10000 | BS132: 10000 | BT132: 10000 | BU132: 10000 | BV132: 10000 | BW132: 10000 | BX132: 10000 | BY132: 10000 | BZ132: 10000 | CA132: 10000 | CB132: 10000 | CC132: 10000 | CD132: 10000 | CE132: 10000 | CF132: 0 | CG132: 0 | CH132: 0 | CI132: 0 | CJ132: 0 | CK132: 0 | CL132: 0 | CM132: 10000 | CN132: 10000 | CO132: 10000 | CP132: 10000 | CQ132: 10000 | CR132: 10000 | CS132: 10000 | CT132: 10000 | CU132: 10000 | CV132: 10000 | CW132: 10000 | CX132: 10000 | CY132: 10000 | CZ132: 10000 | DA132: 10000 | DB132: 10000 | DC132: 10000 | DD132: 10000 | DE132: 10000 | DF132: 10000 | DG132: 10000 | DH132: 10000 | DI132: 10000 | DJ132: 10000 | DK132: 10000 | DL132: 10000 | DM132: 10000 | DN132: 10000 | DO132: 10000 | DP132: 10000 | DQ132: 10000 | DR132: 10000 | DS132: 10000 | DT132: 10000 | DU132: 10000 | DV132: 10000 | DW132: 10000 | DX132: 10000 | DY132: 10000 | DZ132: 10000 | EA132: 10000 | EB132: 10000 | EC132: 10000 | ED132: 10000 | EE132: 10000 | EF132: 10000 | EG132: 10000 | EH132: 10000 | EI132: 10000 | EJ132: 10000 | EK132: 10000 | EL132: 10000 | EM132: 10000 | EN132: 10000 | EO132: 10000 | EP132: 10000 | EQ132: 10000 | ER132: 10000 | ES132: 10000 | ET132: 10000 | EU132: 10000 | EV132: 10000 | EW132: 10000 | EX132: 10000 | EY132: 10000 | EZ132: 10000 | FA132: 10000 | FB132: 10000 | FC132: 10000 | FD132: 10000 | FE132: 10000 | FF132: 10000 | FG132: 10000 | FH132: 10000 | FI132: 10000 | FJ132: 10000 | FK132: 10000 | FL132: 10000 | FM132: 10000 | FN132: 10000 | FO132: 10000 | FP132: 10000 | FQ132: 10000 | FR132: 10000 | FS132: 10000 | FT132: 10000 | FU132: 10000 | FV132: 10000 | FW132: 10000 | FX132: 10000 | FY132: 10000 | FZ132: 10000 | GA132: 10000 | GB132: 10000 | GC132: 10000 | GD132: 10000 | GE132: 10000 | GF132: 10000 | GG132: 10000 | GH132: 10000 | GI132: 10000 | GJ132: 10000 | GK132: 10000 | GL132: 10000 | GM132: 10000 | GN132: 10000 | GO132: 10000 | GP132: 10000 | GQ132: 10000 | GR132: 10000 | GS132: 10000 | GT132: 10000 | GU132: 10000 | GV132: 10000 | GW132: 10000 | GX132: 10000 | GY132: 10000 | GZ132: 10000 | HA132: 10000 | HB132: 10000 | HC132: 10000 | HD132: 10000 | HE132: 10000 | HF132: 10000 | HG132: 10000 | HH132: 10000 | HI132: 10000 | HJ132: 10000 | HK132: 10000 | HL132: 10000 | HM132: 10000 | HN132: 10000 | HO132: 10000 | HP132: 10000 | HQ132: 10000 | HR132: 10000 | HS132: 10000 | HT132: 10000 | HU132: 10000 | HV132: 10000 | HW132: 10000 | HX132: 10000 | HY132: 10000 | HZ132: 10000 | IA132: 10000 | IB132: 10000 | IC132: 10000 | ID132: 10000 | IE132: 10000 | IF132: 10000 | IG132: 10000 | IH132: 10000 | II132: 10000 | IJ132: 10000 | IK132: 10000 | IL132: 10000 | IM132: 10000 | IN132: 10000 | IO132: 10000 | IP132: 10000 | IQ132: 10000 | IR132: 10000 | IS132: 10000 | IT132: 10000 | IU132: 10000 | IV132: 10000 | IW132: 10000 | IX132: 10000 | IY132: 10000 | IZ132: 10000 | JA132: 10000 | JB132: 10000 | JC132: 10000 | JD132: 10000 | JE132: 10000
F133: =F106 -> 8000 | G133: 15 | Z133: 8000 | AA133: 8000 | AB133: 8000 | AC133: 8000 | AD133: 8000 | AE133: 8000 | AF133: 8000 | AG133: 8000 | AH133: 8000 | AI133: 8000 | AJ133: 8000 | AK133: 8000 | AL133: 8000 | AM133: 8000 | AN133: 8000 | AO133: 8000 | AP133: 8000 | AQ133: 0 | AR133: 0 | AS133: 0 | AT133: 0 | AU133: 0 | AV133: 8000 | AW133: 8000 | AX133: 8000 | AY133: 8000 | AZ133: 8000 | BA133: 8000 | BB133: 8000 | BC133: 8000 | BD133: 8000 | BE133: 8000 | BF133: 8000 | BG133: 8000 | BH133: 8000 | BI133: 8000 | BJ133: 8000 | BK133: 8000 | BL133: 8000 | BM133: 8000 | BN133: 8000 | BO133: 8000 | BP133: 8000 | BQ133: 8000 | BR133: 8000 | BS133: 8000 | BT133: 8000 | BU133: 8000 | BV133: 8000 | BW133: 8000 | BX133: 8000 | BY133: 8000 | BZ133: 8000 | CA133: 8000 | CB133: 8000 | CC133: 8000 | CD133: 8000 | CE133: 8000 | CF133: 0 | CG133: 0 | CH133: 0 | CI133: 0 | CJ133: 0 | CK133: 0 | CL133: 0 | CM133: 8000 | CN133: 8000 | CO133: 8000 | CP133: 8000 | CQ133: 8000 | CR133: 8000 | CS133: 8000 | CT133: 8000 | CU133: 8000 | CV133: 8000 | CW133: 8000 | CX133: 8000 | CY133: 8000 | CZ133: 8000 | DA133: 8000 | DB133: 8000 | DC133: 8000 | DD133: 8000 | DE133: 8000 | DF133: 8000 | DG133: 8000 | DH133: 8000 | DI133: 8000 | DJ133: 8000 | DK133: 8000 | DL133: 8000 | DM133: 8000 | DN133: 8000 | DO133: 8000 | DP133: 8000 | DQ133: 8000 | DR133: 8000 | DS133: 8000 | DT133: 8000 | DU133: 8000 | DV133: 8000 | DW133: 8000 | DX133: 8000 | DY133: 8000 | DZ133: 8000 | EA133: 8000 | EB133: 8000 | EC133: 8000 | ED133: 8000 | EE133: 8000 | EF133: 8000 | EG133: 8000 | EH133: 8000 | EI133: 8000 | EJ133: 8000 | EK133: 8000 | EL133: 8000 | EM133: 8000 | EN133: 8000 | EO133: 8000 | EP133: 8000 | EQ133: 8000 | ER133: 8000 | ES133: 8000 | ET133: 8000 | EU133: 8000 | EV133: 8000 | EW133: 8000 | EX133: 8000 | EY133: 8000 | EZ133: 8000 | FA133: 8000 | FB133: 8000 | FC133: 8000 | FD133: 8000 | FE133: 8000 | FF133: 8000 | FG133: 8000 | FH133: 8000 | FI133: 8000 | FJ133: 8000 | FK133: 8000 | FL133: 8000 | FM133: 8000 | FN133: 8000 | FO133: 8000 | FP133: 8000 | FQ133: 8000 | FR133: 8000 | FS133: 8000 | FT133: 8000 | FU133: 8000 | FV133: 8000 | FW133: 8000 | FX133: 8000 | FY133: 8000 | FZ133: 8000 | GA133: 8000 | GB133: 8000 | GC133: 8000 | GD133: 8000 | GE133: 8000 | GF133: 8000 | GG133: 8000 | GH133: 8000 | GI133: 8000 | GJ133: 8000 | GK133: 8000 | GL133: 8000 | GM133: 8000 | GN133: 8000 | GO133: 8000 | GP133: 8000 | GQ133: 8000 | GR133: 8000 | GS133: 8000 | GT133: 8000 | GU133: 8000 | GV133: 8000 | GW133: 8000 | GX133: 8000 | GY133: 8000 | GZ133: 8000 | HA133: 8000 | HB133: 8000 | HC133: 8000 | HD133: 8000 | HE133: 8000 | HF133: 8000 | HG133: 8000 | HH133: 8000 | HI133: 8000 | HJ133: 8000 | HK133: 8000 | HL133: 8000 | HM133: 8000 | HN133: 8000 | HO133: 8000 | HP133: 8000 | HQ133: 8000 | HR133: 8000 | HS133: 8000 | HT133: 8000 | HU133: 8000 | HV133: 8000 | HW133: 8000 | HX133: 8000 | HY133: 8000 | HZ133: 8000 | IA133: 8000 | IB133: 8000 | IC133: 8000 | ID133: 8000 | IE133: 8000 | IF133: 8000 | IG133: 8000 | IH133: 8000 | II133: 8000 | IJ133: 8000 | IK133: 8000 | IL133: 8000 | IM133: 8000 | IN133: 8000 | IO133: 8000 | IP133: 8000 | IQ133: 8000 | IR133: 8000 | IS133: 8000 | IT133: 8000 | IU133: 8000 | IV133: 8000 | IW133: 8000 | IX133: 8000 | IY133: 8000 | IZ133: 8000 | JA133: 8000 | JB133: 8000 | JC133: 8000 | JD133: 8000 | JE133: 8000
F134: =F107 -> 5000 | G134: 16 | Z134: 0 | AA134: 0 | AB134: 0 | AC134: 0 | AD134: 0 | AE134: 0 | AF134: 0 | AG134: 5000 | AH134: 5000 | AI134: 5000 | AJ134: 5000 | AK134: 5000 | AL134: 5000 | AM134: 5000 | AN134: 5000 | AO134: 5000 | AP134: 5000 | AQ134: 5000 | AR134: 5000 | AS134: 5000 | AT134: 5000 | AU134: 5000 | AV134: 5000 | AW134: 5000 | AX134: 5000 | AY134: 5000 | AZ134: 5000 | BA134: 5000 | BB134: 5000 | BC134: 5000 | BD134: 5000 | BE134: 5000 | BF134: 5000 | BG134: 5000 | BH134: 5000 | BI134: 5000 | BJ134: 5000 | BK134: 5000 | BL134: 5000 | BM134: 5000 | BN134: 5000 | BO134: 5000 | BP134: 5000 | BQ134: 0 | BR134: 0 | BS134: 0 | BT134: 0 | BU134: 0 | BV134: 5000 | BW134: 5000 | BX134: 5000 | BY134: 5000 | BZ134: 5000 | CA134: 5000 | CB134: 5000 | CC134: 5000 | CD134: 5000 | CE134: 5000 | CF134: 5000 | CG134: 5000 | CH134: 5000 | CI134: 5000 | CJ134: 5000 | CK134: 5000 | CL134: =IF(CL107,$F134,0) -> 5000 | CM134: 5000 | CN134: 5000 | CO134: 5000 | CP134: 5000 | CQ134: 5000 | CR134: 5000 | CS134: 5000 | CT134: 5000 | CU134: 5000 | CV134: 5000 | CW134: 5000 | CX134: 5000 | CY134: 5000 | CZ134: 5000 | DA134: 5000 | DB134: 5000 | DC134: 5000 | DD134: 5000 | DE134: 5000 | DF134: 5000 | DG134: 5000 | DH134: 5000 | DI134: 5000 | DJ134: 5000 | DK134: 5000 | DL134: 5000 | DM134: 5000 | DN134: 5000 | DO134: 5000 | DP134: 5000 | DQ134: 5000 | DR134: 5000 | DS134: 5000 | DT134: 5000 | DU134: 5000 | DV134: 5000 | DW134: 5000 | DX134: 5000 | DY134: 5000 | DZ134: 5000 | EA134: 5000 | EB134: 5000 | EC134: 5000 | ED134: 5000 | EE134: 5000 | EF134: 5000 | EG134: 5000 | EH134: 5000 | EI134: 5000 | EJ134: 5000 | EK134: 5000 | EL134: 5000 | EM134: 5000 | EN134: 5000 | EO134: 5000 | EP134: 5000 | EQ134: 5000 | ER134: 5000 | ES134: 5000 | ET134: 5000 | EU134: 5000 | EV134: 5000 | EW134: 5000 | EX134: =IF(EX107,$F134,0) -> 5000 | EY134: 5000 | EZ134: 5000 | FA134: 5000 | FB134: 5000 | FC134: 5000 | FD134: 5000 | FE134: 5000 | FF134: 5000 | FG134: 5000 | FH134: 5000 | FI134: 5000 | FJ134: 5000 | FK134: 5000 | FL134: 5000 | FM134: 5000 | FN134: 5000 | FO134: 5000 | FP134: 5000 | FQ134: 5000 | FR134: 5000 | FS134: 5000 | FT134: 5000 | FU134: 5000 | FV134: 5000 | FW134: 5000 | FX134: 5000 | FY134: 5000 | FZ134: 5000 | GA134: 5000 | GB134: 5000 | GC134: 5000 | GD134: 5000 | GE134: 5000 | GF134: 5000 | GG134: 5000 | GH134: 5000 | GI134: 5000 | GJ134: 5000 | GK134: 5000 | GL134: 5000 | GM134: 5000 | GN134: 5000 | GO134: 5000 | GP134: 5000 | GQ134: 5000 | GR134: 5000 | GS134: 5000 | GT134: 5000 | GU134: 5000 | GV134: 5000 | GW134: 5000 | GX134: 5000 | GY134: 5000 | GZ134: 5000 | HA134: 5000 | HB134: 5000 | HC134: 5000 | HD134: 5000 | HE134: 5000 | HF134: 5000 | HG134: 5000 | HH134: 5000 | HI134: 5000 | HJ134: =IF(HJ107,$F134,0) -> 5000 | HK134: 5000 | HL134: 5000 | HM134: 5000 | HN134: 5000 | HO134: 5000 | HP134: 5000 | HQ134: 5000 | HR134: 5000 | HS134: 5000 | HT134: 5000 | HU134: 5000 | HV134: 5000 | HW134: 5000 | HX134: 5000 | HY134: 5000 | HZ134: 5000 | IA134: 5000 | IB134: 5000 | IC134: 5000 | ID134: 5000 | IE134: 5000 | IF134: 5000 | IG134: 5000 | IH134: 5000 | II134: 5000 | IJ134: 5000 | IK134: 5000 | IL134: 5000 | IM134: 5000 | IN134: 5000 | IO134: 5000 | IP134: 5000 | IQ134: 5000 | IR134: 5000 | IS134: 5000 | IT134: 5000 | IU134: 5000 | IV134: 5000 | IW134: 5000 | IX134: 5000 | IY134: 5000 | IZ134: 5000 | JA134: 5000 | JB134: 5000 | JC134: 5000 | JD134: 5000 | JE134: 5000
F135: =F108 -> 6000 | G135: 17 | Z135: 0 | AA135: =IF(AA108,$F135,0) -> 0 | AB135: 0 | AC135: 0 | AD135: 0 | AE135: 0 | AF135: 0 | AG135: 6000 | AH135: 6000 | AI135: 6000 | AJ135: 6000 | AK135: 6000 | AL135: 6000 | AM135: 6000 | AN135: 6000 | AO135: 6000 | AP135: 6000 | AQ135: 6000 | AR135: 6000 | AS135: 6000 | AT135: 6000 | AU135: 6000 | AV135: 6000 | AW135: 6000 | AX135: 6000 | AY135: 6000 | AZ135: 6000 | BA135: 6000 | BB135: 6000 | BC135: 6000 | BD135: 6000 | BE135: 6000 | BF135: 6000 | BG135: 6000 | BH135: 6000 | BI135: 6000 | BJ135: 6000 | BK135: 6000 | BL135: 6000 | BM135: 6000 | BN135: 6000 | BO135: 6000 | BP135: 6000 | BQ135: 0 | BR135: 0 | BS135: 0 | BT135: 0 | BU135: 0 | BV135: 6000 | BW135: 6000 | BX135: 6000 | BY135: 6000 | BZ135: 6000 | CA135: 6000 | CB135: 6000 | CC135: 6000 | CD135: 6000 | CE135: 6000 | CF135: 6000 | CG135: 6000 | CH135: 6000 | CI135: 6000 | CJ135: 6000 | CK135: 6000 | CL135: 6000 | CM135: =IF(CM108,$F135,0) -> 6000 | CN135: 6000 | CO135: 6000 | CP135: 6000 | CQ135: 6000 | CR135: 6000 | CS135: 6000 | CT135: 6000 | CU135: 6000 | CV135: 6000 | CW135: 6000 | CX135: 6000 | CY135: 6000 | CZ135: 6000 | DA135: 6000 | DB135: 6000 | DC135: 6000 | DD135: 6000 | DE135: 6000 | DF135: 6000 | DG135: 6000 | DH135: 6000 | DI135: 6000 | DJ135: 6000 | DK135: 6000 | DL135: 6000 | DM135: 6000 | DN135: 6000 | DO135: 6000 | DP135: 6000 | DQ135: 6000 | DR135: 6000 | DS135: 6000 | DT135: 6000 | DU135: 6000 | DV135: 6000 | DW135: 6000 | DX135: 6000 | DY135: 6000 | DZ135: 6000 | EA135: 6000 | EB135: 6000 | EC135: 6000 | ED135: 6000 | EE135: 6000 | EF135: 6000 | EG135: 6000 | EH135: 6000 | EI135: 6000 | EJ135: 6000 | EK135: 6000 | EL135: 6000 | EM135: 6000 | EN135: 6000 | EO135: 6000 | EP135: 6000 | EQ135: 6000 | ER135: 6000 | ES135: 6000 | ET135: 6000 | EU135: 6000 | EV135: 6000 | EW135: 6000 | EX135: 6000 | EY135: =IF(EY108,$F135,0) -> 6000 | EZ135: 6000 | FA135: 6000 | FB135: 6000 | FC135: 6000 | FD135: 6000 | FE135: 6000 | FF135: 6000 | FG135: 6000 | FH135: 6000 | FI135: 6000 | FJ135: 6000 | FK135: 6000 | FL135: 6000 | FM135: 6000 | FN135: 6000 | FO135: 6000 | FP135: 6000 | FQ135: 6000 | FR135: 6000 | FS135: 6000 | FT135: 6000 | FU135: 6000 | FV135: 6000 | FW135: 6000 | FX135: 6000 | FY135: 6000 | FZ135: 6000 | GA135: 6000 | GB135: 6000 | GC135: 6000 | GD135: 6000 | GE135: 6000 | GF135: 6000 | GG135: 6000 | GH135: 6000 | GI135: 6000 | GJ135: 6000 | GK135: 6000 | GL135: 6000 | GM135: 6000 | GN135: 6000 | GO135: 6000 | GP135: 6000 | GQ135: 6000 | GR135: 6000 | GS135: 6000 | GT135: 6000 | GU135: 6000 | GV135: 6000 | GW135: 6000 | GX135: 6000 | GY135: 6000 | GZ135: 6000 | HA135: 6000 | HB135: 6000 | HC135: 6000 | HD135: 6000 | HE135: 6000 | HF135: 6000 | HG135: 6000 | HH135: 6000 | HI135: 6000 | HJ135: 6000 | HK135: 6000 | HL135: 6000 | HM135: 6000 | HN135: 6000 | HO135: 6000 | HP135: 6000 | HQ135: 6000 | HR135: 6000 | HS135: 6000 | HT135: 6000 | HU135: 6000 | HV135: 6000 | HW135: 6000 | HX135: 6000 | HY135: 6000 | HZ135: 6000 | IA135: 6000 | IB135: 6000 | IC135: 6000 | ID135: 6000 | IE135: 6000 | IF135: 6000 | IG135: 6000 | IH135: 6000 | II135: 6000 | IJ135: 6000 | IK135: 6000 | IL135: 6000 | IM135: 6000 | IN135: 6000 | IO135: 6000 | IP135: 6000 | IQ135: 6000 | IR135: 6000 | IS135: 6000 | IT135: 6000 | IU135: 6000 | IV135: 6000 | IW135: 6000 | IX135: 6000 | IY135: 6000 | IZ135: 6000 | JA135: 6000 | JB135: 6000 | JC135: 6000 | JD135: 6000 | JE135: 6000
D137: Occupancy | Z137: =SUM(Z119:Z136) -> 69000 | AA137: =SUM(AA119:AA136) -> 69000 | AB137: 69000 | AC137: 69000 | AD137: 69000 | AE137: 64000 | AF137: 64000 | AG137: 85000 | AH137: 85000 | AI137: 85000 | AJ137: 85000 | AK137: 90000 | AL137: 90000 | AM137: 90000 | AN137: 90000 | AO137: 90000 | AP137: 90000 | AQ137: 54000 | AR137: 54000 | AS137: 54000 | AT137: 54000 | AU137: 54000 | AV137: 90000 | AW137: 90000 | AX137: 90000 | AY137: 90000 | AZ137: 90000 | BA137: 90000 | BB137: 90000 | BC137: 79000 | BD137: 79000 | BE137: 79000 | BF137: 79000 | BG137: 79000 | BH137: 79000 | BI137: 90000 | BJ137: 90000 | BK137: 90000 | BL137: 90000 | BM137: 90000 | BN137: 90000 | BO137: 80000 | BP137: 80000 | BQ137: 59000 | BR137: 59000 | BS137: 59000 | BT137: 69000 | BU137: 64000 | BV137: 85000 | BW137: 85000 | BX137: 85000 | BY137: 85000 | BZ137: 90000 | CA137: 90000 | CB137: 90000 | CC137: 90000 | CD137: 90000 | CE137: 90000 | CF137: 54000 | CG137: 54000 | CH137: 54000 | CI137: 54000 | CJ137: 54000 | CK137: 54000 | CL137: 54000 | CM137: =SUM(CM119:CM136) -> 90000 | CN137: 90000 | CO137: 90000 | CP137: 90000 | CQ137: 90000 | CR137: 90000 | CS137: 79000 | CT137: 79000 | CU137: 79000 | CV137: 79000 | CW137: 90000 | CX137: 90000 | CY137: 83000 | CZ137: 83000 | DA137: 83000 | DB137: 83000 | DC137: 90000 | DD137: 80000 | DE137: 80000 | DF137: 80000 | DG137: 90000 | DH137: 90000 | DI137: 90000 | DJ137: 90000 | DK137: 90000 | DL137: 90000 | DM137: 90000 | DN137: 90000 | DO137: 90000 | DP137: 90000 | DQ137: 90000 | DR137: 90000 | DS137: 90000 | DT137: 90000 | DU137: 90000 | DV137: 90000 | DW137: 90000 | DX137: 90000 | DY137: 90000 | DZ137: 90000 | EA137: 90000 | EB137: 90000 | EC137: 90000 | ED137: 90000 | EE137: 90000 | EF137: 90000 | EG137: 90000 | EH137: 90000 | EI137: 90000 | EJ137: 90000 | EK137: 90000 | EL137: 90000 | EM137: 83000 | EN137: 83000 | EO137: 83000 | EP137: 83000 | EQ137: 83000 | ER137: 90000 | ES137: 90000 | ET137: 90000 | EU137: 90000 | EV137: 90000 | EW137: 90000 | EX137: 90000 | EY137: =SUM(EY119:EY136) -> 90000 | EZ137: 90000 | FA137: 90000 | FB137: 90000 | FC137: 90000 | FD137: 90000 | FE137: 90000 | FF137: 90000 | FG137: 90000 | FH137: 90000 | FI137: 90000 | FJ137: 90000 | FK137: 90000 | FL137: 90000 | FM137: 90000 | FN137: 90000 | FO137: 90000 | FP137: 90000 | FQ137: 90000 | FR137: 90000 | FS137: 90000 | FT137: 90000 | FU137: 90000 | FV137: 90000 | FW137: 90000 | FX137: 90000 | FY137: 90000 | FZ137: 90000 | GA137: 90000 | GB137: 90000 | GC137: 90000 | GD137: 90000 | GE137: 90000 | GF137: 90000 | GG137: 90000 | GH137: 90000 | GI137: 90000 | GJ137: 90000 | GK137: 90000 | GL137: 90000 | GM137: 90000 | GN137: 90000 | GO137: 90000 | GP137: 90000 | GQ137: 90000 | GR137: 90000 | GS137: 90000 | GT137: 90000 | GU137: 90000 | GV137: 90000 | GW137: 90000 | GX137: 90000 | GY137: 90000 | GZ137: 90000 | HA137: 90000 | HB137: 90000 | HC137: 90000 | HD137: 90000 | HE137: 90000 | HF137: 90000 | HG137: 90000 | HH137: 90000 | HI137: 90000 | HJ137: 90000 | HK137: =SUM(HK119:HK136) -> 90000 | HL137: 90000 | HM137: 90000 | HN137: 90000 | HO137: 90000 | HP137: 90000 | HQ137: 90000 | HR137: 90000 | HS137: 90000 | HT137: 90000 | HU137: 90000 | HV137: 90000 | HW137: 90000 | HX137: 90000 | HY137: 90000 | HZ137: 90000 | IA137: 90000 | IB137: 90000 | IC137: 90000 | ID137: 90000 | IE137: 90000 | IF137: 90000 | IG137: 90000 | IH137: 90000 | II137: 90000 | IJ137: 90000 | IK137: 90000 | IL137: 90000 | IM137: 90000 | IN137: 90000 | IO137: 90000 | IP137: 90000 | IQ137: 90000 | IR137: 90000 | IS137: 90000 | IT137: 90000 | IU137: 90000 | IV137: 90000 | IW137: 90000 | IX137: 90000 | IY137: 90000 | IZ137: 90000 | JA137: 90000 | JB137: 90000 | JC137: 90000 | JD137: 90000 | JE137: 90000
D138: Occupancy Percent | Z138: =Z137/$F$141 -> 0.7666666667 | AA138: =AA137/$F$141 -> 0.7666666667 | AB138: 0.7666666667 | AC138: 0.7666666667 | AD138: 0.7666666667 | AE138: 0.7111111111 | AF138: 0.7111111111 | AG138: 0.9444444444 | AH138: 0.9444444444 | AI138: 0.9444444444 | AJ138: 0.9444444444 | AK138: 1 | AL138: 1 | AM138: 1 | AN138: 1 | AO138: 1 | AP138: 1 | AQ138: 0.6 | AR138: 0.6 | AS138: 0.6 | AT138: 0.6 | AU138: 0.6 | AV138: 1 | AW138: 1 | AX138: 1 | AY138: 1 | AZ138: 1 | BA138: 1 | BB138: 1 | BC138: 0.8777777778 | BD138: 0.8777777778 | BE138: 0.8777777778 | BF138: 0.8777777778 | BG138: 0.8777777778 | BH138: 0.8777777778 | BI138: 1 | BJ138: 1 | BK138: 1 | BL138: 1 | BM138: 1 | BN138: 1 | BO138: 0.8888888889 | BP138: 0.8888888889 | BQ138: 0.6555555556 | BR138: 0.6555555556 | BS138: 0.6555555556 | BT138: 0.7666666667 | BU138: 0.7111111111 | BV138: 0.9444444444 | BW138: 0.9444444444 | BX138: 0.9444444444 | BY138: 0.9444444444 | BZ138: 1 | CA138: 1 | CB138: 1 | CC138: 1 | CD138: 1 | CE138: 1 | CF138: 0.6 | CG138: 0.6 | CH138: 0.6 | CI138: 0.6 | CJ138: 0.6 | CK138: 0.6 | CL138: 0.6 | CM138: =CM137/$F$141 -> 1 | CN138: 1 | CO138: 1 | CP138: 1 | CQ138: 1 | CR138: 1 | CS138: 0.8777777778 | CT138: 0.8777777778 | CU138: 0.8777777778 | CV138: 0.8777777778 | CW138: 1 | CX138: 1 | CY138: 0.9222222222 | CZ138: 0.9222222222 | DA138: 0.9222222222 | DB138: 0.9222222222 | DC138: 1 | DD138: 0.8888888889 | DE138: 0.8888888889 | DF138: 0.8888888889 | DG138: 1 | DH138: 1 | DI138: 1 | DJ138: 1 | DK138: 1 | DL138: 1 | DM138: 1 | DN138: 1 | DO138: 1 | DP138: 1 | DQ138: 1 | DR138: 1 | DS138: 1 | DT138: 1 | DU138: 1 | DV138: 1 | DW138: 1 | DX138: 1 | DY138: 1 | DZ138: 1 | EA138: 1 | EB138: 1 | EC138: 1 | ED138: 1 | EE138: 1 | EF138: 1 | EG138: 1 | EH138: 1 | EI138: 1 | EJ138: 1 | EK138: 1 | EL138: 1 | EM138: 0.9222222222 | EN138: 0.9222222222 | EO138: 0.9222222222 | EP138: 0.9222222222 | EQ138: 0.9222222222 | ER138: 1 | ES138: 1 | ET138: 1 | EU138: 1 | EV138: 1 | EW138: 1 | EX138: 1 | EY138: =EY137/$F$141 -> 1 | EZ138: 1 | FA138: 1 | FB138: 1 | FC138: 1 | FD138: 1 | FE138: 1 | FF138: 1 | FG138: 1 | FH138: 1 | FI138: 1 | FJ138: 1 | FK138: 1 | FL138: 1 | FM138: 1 | FN138: 1 | FO138: 1 | FP138: 1 | FQ138: 1 | FR138: 1 | FS138: 1 | FT138: 1 | FU138: 1 | FV138: 1 | FW138: 1 | FX138: 1 | FY138: 1 | FZ138: 1 | GA138: 1 | GB138: 1 | GC138: 1 | GD138: 1 | GE138: 1 | GF138: 1 | GG138: 1 | GH138: 1 | GI138: 1 | GJ138: 1 | GK138: 1 | GL138: 1 | GM138: 1 | GN138: 1 | GO138: 1 | GP138: 1 | GQ138: 1 | GR138: 1 | GS138: 1 | GT138: 1 | GU138: 1 | GV138: 1 | GW138: 1 | GX138: 1 | GY138: 1 | GZ138: 1 | HA138: 1 | HB138: 1 | HC138: 1 | HD138: 1 | HE138: 1 | HF138: 1 | HG138: 1 | HH138: 1 | HI138: 1 | HJ138: 1 | HK138: =HK137/$F$141 -> 1 | HL138: 1 | HM138: 1 | HN138: 1 | HO138: 1 | HP138: 1 | HQ138: 1 | HR138: 1 | HS138: 1 | HT138: 1 | HU138: 1 | HV138: 1 | HW138: 1 | HX138: 1 | HY138: 1 | HZ138: 1 | IA138: 1 | IB138: 1 | IC138: 1 | ID138: 1 | IE138: 1 | IF138: 1 | IG138: 1 | IH138: 1 | II138: 1 | IJ138: 1 | IK138: 1 | IL138: 1 | IM138: 1 | IN138: 1 | IO138: 1 | IP138: 1 | IQ138: 1 | IR138: 1 | IS138: 1 | IT138: 1 | IU138: 1 | IV138: 1 | IW138: 1 | IX138: 1 | IY138: 1 | IZ138: 1 | JA138: 1 | JB138: 1 | JC138: 1 | JD138: 1 | JE138: 1
D141: Fixed Cost | F141: =SUM(F118:F135) -> 90000 | G141: =G17 -> 1.88 | Z141: =$G$141*$F$141 -> 169200 | AA141: =$G$141*$F$141 -> 169200 | AB141: 169200 | AC141: 169200 | AD141: 169200 | AE141: 169200 | AF141: 169200 | AG141: 169200 | AH141: 169200 | AI141: 169200 | AJ141: 169200 | AK141: 169200 | AL141: 169200 | AM141: 169200 | AN141: 169200 | AO141: 169200 | AP141: 169200 | AQ141: 169200 | AR141: 169200 | AS141: 169200 | AT141: 169200 | AU141: 169200 | AV141: 169200 | AW141: 169200 | AX141: 169200 | AY141: 169200 | AZ141: 169200 | BA141: 169200 | BB141: 169200 | BC141: 169200 | BD141: 169200 | BE141: 169200 | BF141: 169200 | BG141: 169200 | BH141: 169200 | BI141: 169200 | BJ141: 169200 | BK141: 169200 | BL141: 169200 | BM141: 169200 | BN141: 169200 | BO141: 169200 | BP141: 169200 | BQ141: 169200 | BR141: 169200 | BS141: 169200 | BT141: 169200 | BU141: 169200 | BV141: 169200 | BW141: 169200 | BX141: 169200 | BY141: 169200 | BZ141: 169200 | CA141: 169200 | CB141: 169200 | CC141: 169200 | CD141: 169200 | CE141: 169200 | CF141: 169200 | CG141: 169200 | CH141: 169200 | CI141: 169200 | CJ141: 169200 | CK141: 169200 | CL141: 169200 | CM141: =$G$141*$F$141 -> 169200 | CN141: 169200 | CO141: 169200 | CP141: 169200 | CQ141: 169200 | CR141: 169200 | CS141: 169200 | CT141: 169200 | CU141: 169200 | CV141: 169200 | CW141: 169200 | CX141: 169200 | CY141: 169200 | CZ141: 169200 | DA141: 169200 | DB141: 169200 | DC141: 169200 | DD141: 169200 | DE141: 169200 | DF141: 169200 | DG141: 169200 | DH141: 169200 | DI141: 169200 | DJ141: 169200 | DK141: 169200 | DL141: 169200 | DM141: 169200 | DN141: 169200 | DO141: 169200 | DP141: 169200 | DQ141: 169200 | DR141: 169200 | DS141: 169200 | DT141: 169200 | DU141: 169200 | DV141: 169200 | DW141: 169200 | DX141: 169200 | DY141: 169200 | DZ141: 169200 | EA141: 169200 | EB141: 169200 | EC141: 169200 | ED141: 169200 | EE141: 169200 | EF141: 169200 | EG141: 169200 | EH141: 169200 | EI141: 169200 | EJ141: 169200 | EK141: 169200 | EL141: 169200 | EM141: 169200 | EN141: 169200 | EO141: 169200 | EP141: 169200 | EQ141: 169200 | ER141: 169200 | ES141: 169200 | ET141: 169200 | EU141: 169200 | EV141: 169200 | EW141: 169200 | EX141: 169200 | EY141: =$G$141*$F$141 -> 169200 | EZ141: 169200 | FA141: 169200 | FB141: 169200 | FC141: 169200 | FD141: 169200 | FE141: 169200 | FF141: 169200 | FG141: 169200 | FH141: 169200 | FI141: 169200 | FJ141: 169200 | FK141: 169200 | FL141: 169200 | FM141: 169200 | FN141: 169200 | FO141: 169200 | FP141: 169200 | FQ141: 169200 | FR141: 169200 | FS141: 169200 | FT141: 169200 | FU141: 169200 | FV141: 169200 | FW141: 169200 | FX141: 169200 | FY141: 169200 | FZ141: 169200 | GA141: 169200 | GB141: 169200 | GC141: 169200 | GD141: 169200 | GE141: 169200 | GF141: 169200 | GG141: 169200 | GH141: 169200 | GI141: 169200 | GJ141: 169200 | GK141: 169200 | GL141: 169200 | GM141: 169200 | GN141: 169200 | GO141: 169200 | GP141: 169200 | GQ141: 169200 | GR141: 169200 | GS141: 169200 | GT141: 169200 | GU141: 169200 | GV141: 169200 | GW141: 169200 | GX141: 169200 | GY141: 169200 | GZ141: 169200 | HA141: 169200 | HB141: 169200 | HC141: 169200 | HD141: 169200 | HE141: 169200 | HF141: 169200 | HG141: 169200 | HH141: 169200 | HI141: 169200 | HJ141: 169200 | HK141: =$G$141*$F$141 -> 169200 | HL141: 169200 | HM141: 169200 | HN141: 169200 | HO141: 169200 | HP141: 169200 | HQ141: 169200 | HR141: 169200 | HS141: 169200 | HT141: 169200 | HU141: 169200 | HV141: 169200 | HW141: 169200 | HX141: 169200 | HY141: 169200 | HZ141: 169200 | IA141: 169200 | IB141: 169200 | IC141: 169200 | ID141: 169200 | IE141: 169200 | IF141: 169200 | IG141: 169200 | IH141: 169200 | II141: 169200 | IJ141: 169200 | IK141: 169200 | IL141: 169200 | IM141: 169200 | IN141: 169200 | IO141: 169200 | IP141: 169200 | IQ141: 169200 | IR141: 169200 | IS141: 169200 | IT141: 169200 | IU141: 169200 | IV141: 169200 | IW141: 169200 | IX141: 169200 | IY141: 169200 | IZ141: 169200 | JA141: 169200 | JB141: 169200 | JC141: 169200 | JD141: 169200 | JE141: 169200
D142: Variable Cost | G142: =G18 -> 0.92 | Z142: =$G142*Z137 -> 63480 | AA142: =$G142*AA137 -> 63480 | AB142: 63480 | AC142: 63480 | AD142: 63480 | AE142: 58880 | AF142: 58880 | AG142: 78200 | AH142: 78200 | AI142: 78200 | AJ142: 78200 | AK142: 82800 | AL142: 82800 | AM142: 82800 | AN142: 82800 | AO142: 82800 | AP142: 82800 | AQ142: 49680 | AR142: 49680 | AS142: 49680 | AT142: 49680 | AU142: 49680 | AV142: 82800 | AW142: 82800 | AX142: 82800 | AY142: 82800 | AZ142: 82800 | BA142: 82800 | BB142: 82800 | BC142: 72680 | BD142: 72680 | BE142: 72680 | BF142: 72680 | BG142: 72680 | BH142: 72680 | BI142: 82800 | BJ142: 82800 | BK142: 82800 | BL142: 82800 | BM142: 82800 | BN142: 82800 | BO142: 73600 | BP142: 73600 | BQ142: 54280 | BR142: 54280 | BS142: 54280 | BT142: 63480 | BU142: 58880 | BV142: 78200 | BW142: 78200 | BX142: 78200 | BY142: 78200 | BZ142: 82800 | CA142: 82800 | CB142: 82800 | CC142: 82800 | CD142: 82800 | CE142: 82800 | CF142: 49680 | CG142: 49680 | CH142: 49680 | CI142: 49680 | CJ142: 49680 | CK142: 49680 | CL142: 49680 | CM142: =$G142*CM137 -> 82800 | CN142: 82800 | CO142: 82800 | CP142: 82800 | CQ142: 82800 | CR142: 82800 | CS142: 72680 | CT142: 72680 | CU142: 72680 | CV142: 72680 | CW142: 82800 | CX142: 82800 | CY142: 76360 | CZ142: 76360 | DA142: 76360 | DB142: 76360 | DC142: 82800 | DD142: 73600 | DE142: 73600 | DF142: 73600 | DG142: 82800 | DH142: 82800 | DI142: 82800 | DJ142: 82800 | DK142: 82800 | DL142: 82800 | DM142: 82800 | DN142: 82800 | DO142: 82800 | DP142: 82800 | DQ142: 82800 | DR142: 82800 | DS142: 82800 | DT142: 82800 | DU142: 82800 | DV142: 82800 | DW142: 82800 | DX142: 82800 | DY142: 82800 | DZ142: 82800 | EA142: 82800 | EB142: 82800 | EC142: 82800 | ED142: 82800 | EE142: 82800 | EF142: 82800 | EG142: 82800 | EH142: 82800 | EI142: 82800 | EJ142: 82800 | EK142: 82800 | EL142: 82800 | EM142: 76360 | EN142: 76360 | EO142: 76360 | EP142: 76360 | EQ142: 76360 | ER142: 82800 | ES142: 82800 | ET142: 82800 | EU142: 82800 | EV142: 82800 | EW142: 82800 | EX142: 82800 | EY142: =$G142*EY137 -> 82800 | EZ142: 82800 | FA142: 82800 | FB142: 82800 | FC142: 82800 | FD142: 82800 | FE142: 82800 | FF142: 82800 | FG142: 82800 | FH142: 82800 | FI142: 82800 | FJ142: 82800 | FK142: 82800 | FL142: 82800 | FM142: 82800 | FN142: 82800 | FO142: 82800 | FP142: 82800 | FQ142: 82800 | FR142: 82800 | FS142: 82800 | FT142: 82800 | FU142: 82800 | FV142: 82800 | FW142: 82800 | FX142: 82800 | FY142: 82800 | FZ142: 82800 | GA142: 82800 | GB142: 82800 | GC142: 82800 | GD142: 82800 | GE142: 82800 | GF142: 82800 | GG142: 82800 | GH142: 82800 | GI142: 82800 | GJ142: 82800 | GK142: 82800 | GL142: 82800 | GM142: 82800 | GN142: 82800 | GO142: 82800 | GP142: 82800 | GQ142: 82800 | GR142: 82800 | GS142: 82800 | GT142: 82800 | GU142: 82800 | GV142: 82800 | GW142: 82800 | GX142: 82800 | GY142: 82800 | GZ142: 82800 | HA142: 82800 | HB142: 82800 | HC142: 82800 | HD142: 82800 | HE142: 82800 | HF142: 82800 | HG142: 82800 | HH142: 82800 | HI142: 82800 | HJ142: 82800 | HK142: =$G142*HK137 -> 82800 | HL142: 82800 | HM142: 82800 | HN142: 82800 | HO142: 82800 | HP142: 82800 | HQ142: 82800 | HR142: 82800 | HS142: 82800 | HT142: 82800 | HU142: 82800 | HV142: 82800 | HW142: 82800 | HX142: 82800 | HY142: 82800 | HZ142: 82800 | IA142: 82800 | IB142: 82800 | IC142: 82800 | ID142: 82800 | IE142: 82800 | IF142: 82800 | IG142: 82800 | IH142: 82800 | II142: 82800 | IJ142: 82800 | IK142: 82800 | IL142: 82800 | IM142: 82800 | IN142: 82800 | IO142: 82800 | IP142: 82800 | IQ142: 82800 | IR142: 82800 | IS142: 82800 | IT142: 82800 | IU142: 82800 | IV142: 82800 | IW142: 82800 | IX142: 82800 | IY142: 82800 | IZ142: 82800 | JA142: 82800 | JB142: 82800 | JC142: 82800 | JD142: 82800 | JE142: 82800
E143: Total Operating Cost | Z143: =SUM(Z141:Z142) -> 232680 | AA143: =SUM(AA141:AA142) -> 232680 | AB143: 232680 | AC143: 232680 | AD143: 232680 | AE143: 228080 | AF143: 228080 | AG143: 247400 | AH143: 247400 | AI143: 247400 | AJ143: 247400 | AK143: 252000 | AL143: 252000 | AM143: 252000 | AN143: 252000 | AO143: 252000 | AP143: 252000 | AQ143: 218880 | AR143: 218880 | AS143: 218880 | AT143: 218880 | AU143: 218880 | AV143: 252000 | AW143: 252000 | AX143: 252000 | AY143: 252000 | AZ143: 252000 | BA143: 252000 | BB143: 252000 | BC143: 241880 | BD143: 241880 | BE143: 241880 | BF143: 241880 | BG143: 241880 | BH143: 241880 | BI143: 252000 | BJ143: 252000 | BK143: 252000 | BL143: 252000 | BM143: 252000 | BN143: 252000 | BO143: 242800 | BP143: 242800 | BQ143: 223480 | BR143: 223480 | BS143: 223480 | BT143: 232680 | BU143: 228080 | BV143: 247400 | BW143: 247400 | BX143: 247400 | BY143: 247400 | BZ143: 252000 | CA143: 252000 | CB143: 252000 | CC143: 252000 | CD143: 252000 | CE143: 252000 | CF143: 218880 | CG143: 218880 | CH143: 218880 | CI143: 218880 | CJ143: 218880 | CK143: 218880 | CL143: 218880 | CM143: =SUM(CM141:CM142) -> 252000 | CN143: 252000 | CO143: 252000 | CP143: 252000 | CQ143: 252000 | CR143: 252000 | CS143: 241880 | CT143: 241880 | CU143: 241880 | CV143: 241880 | CW143: 252000 | CX143: 252000 | CY143: 245560 | CZ143: 245560 | DA143: 245560 | DB143: 245560 | DC143: 252000 | DD143: 242800 | DE143: 242800 | DF143: 242800 | DG143: 252000 | DH143: 252000 | DI143: 252000 | DJ143: 252000 | DK143: 252000 | DL143: 252000 | DM143: 252000 | DN143: 252000 | DO143: 252000 | DP143: 252000 | DQ143: 252000 | DR143: 252000 | DS143: 252000 | DT143: 252000 | DU143: 252000 | DV143: 252000 | DW143: 252000 | DX143: 252000 | DY143: 252000 | DZ143: 252000 | EA143: 252000 | EB143: 252000 | EC143: 252000 | ED143: 252000 | EE143: 252000 | EF143: 252000 | EG143: 252000 | EH143: 252000 | EI143: 252000 | EJ143: 252000 | EK143: 252000 | EL143: 252000 | EM143: 245560 | EN143: 245560 | EO143: 245560 | EP143: 245560 | EQ143: 245560 | ER143: 252000 | ES143: 252000 | ET143: 252000 | EU143: 252000 | EV143: 252000 | EW143: 252000 | EX143: 252000 | EY143: =SUM(EY141:EY142) -> 252000 | EZ143: 252000 | FA143: 252000 | FB143: 252000 | FC143: 252000 | FD143: 252000 | FE143: 252000 | FF143: 252000 | FG143: 252000 | FH143: 252000 | FI143: 252000 | FJ143: 252000 | FK143: 252000 | FL143: 252000 | FM143: 252000 | FN143: 252000 | FO143: 252000 | FP143: 252000 | FQ143: 252000 | FR143: 252000 | FS143: 252000 | FT143: 252000 | FU143: 252000 | FV143: 252000 | FW143: 252000 | FX143: 252000 | FY143: 252000 | FZ143: 252000 | GA143: 252000 | GB143: 252000 | GC143: 252000 | GD143: 252000 | GE143: 252000 | GF143: 252000 | GG143: 252000 | GH143: 252000 | GI143: 252000 | GJ143: 252000 | GK143: 252000 | GL143: 252000 | GM143: 252000 | GN143: 252000 | GO143: 252000 | GP143: 252000 | GQ143: 252000 | GR143: 252000 | GS143: 252000 | GT143: 252000 | GU143: 252000 | GV143: 252000 | GW143: 252000 | GX143: 252000 | GY143: 252000 | GZ143: 252000 | HA143: 252000 | HB143: 252000 | HC143: 252000 | HD143: 252000 | HE143: 252000 | HF143: 252000 | HG143: 252000 | HH143: 252000 | HI143: 252000 | HJ143: 252000 | HK143: =SUM(HK141:HK142) -> 252000 | HL143: 252000 | HM143: 252000 | HN143: 252000 | HO143: 252000 | HP143: 252000 | HQ143: 252000 | HR143: 252000 | HS143: 252000 | HT143: 252000 | HU143: 252000 | HV143: 252000 | HW143: 252000 | HX143: 252000 | HY143: 252000 | HZ143: 252000 | IA143: 252000 | IB143: 252000 | IC143: 252000 | ID143: 252000 | IE143: 252000 | IF143: 252000 | IG143: 252000 | IH143: 252000 | II143: 252000 | IJ143: 252000 | IK143: 252000 | IL143: 252000 | IM143: 252000 | IN143: 252000 | IO143: 252000 | IP143: 252000 | IQ143: 252000 | IR143: 252000 | IS143: 252000 | IT143: 252000 | IU143: 252000 | IV143: 252000 | IW143: 252000 | IX143: 252000 | IY143: 252000 | IZ143: 252000 | JA143: 252000 | JB143: 252000 | JC143: 252000 | JD143: 252000 | JE143: 252000
E145: Inflated Cost | Z145: =Z143*Z112 -> 233064.2899 | AA145: =AA143*AA112 -> 233449.2146 | AB145: 233834.7749 | AC145: 234220.9721 | AD145: 234607.807 | AE145: 230349.5086 | AF145: 230729.9496 | AG145: 250687.7677 | AH145: 251101.799 | AI145: 251516.514 | AJ145: 251931.914 | AK145: 257040 | AL145: 257464.5225 | AM145: 257889.746 | AN145: 258315.6719 | AO145: 258742.3013 | AP145: 259169.6352 | AQ145: 225479.1234 | AR145: 225851.5205 | AS145: 226224.5326 | AT145: 226598.1608 | AU145: 226972.4061 | AV145: 261748.5011 | AW145: 262180.8 | AX145: 262613.8129 | AY145: 263047.541 | AZ145: 263481.9854 | BA145: 263917.1473 | BB145: 264353.0279 | BC145: 254156.0132 | BD145: 254575.7725 | BE145: 254996.2251 | BF145: 255417.3721 | BG145: 255839.2147 | BH145: 256261.7539 | BI145: 267424.416 | BJ145: 267866.0892 | BK145: 268308.4918 | BL145: 268751.6251 | BM145: 269195.4902 | BN145: 269640.0885 | BO145: 260225.1596 | BP145: 260654.9426 | BQ145: 240310.4329 | BR145: 240707.3251 | BS145: 241104.8729 | BT145: 251445.0331 | BU145: 246881.1271 | BV145: 268235.9995 | BW145: 268679.013 | BX145: 269122.7583 | BY145: 269567.2364 | BZ145: 275032.8902 | CA145: 275487.1294 | CB145: 275942.1188 | CC145: 276397.8597 | CD145: 276854.3532 | CE145: 277311.6007 | CF145: 241262.7412 | CG145: 241661.2062 | CH145: 242060.3293 | CI145: 242460.1116 | CJ145: 242860.5542 | CK145: 243261.6582 | CL145: 243663.4246 | CM145: =CM143*CM112 -> 280996.872 | CN145: 281460.9612 | CO145: 281925.8169 | CP145: 282391.4403 | CQ145: 282857.8327 | CR145: 283324.9954 | CS145: 272396.166 | CT145: 272846.0504 | CU145: 273296.6778 | CV145: 273748.0495 | CW145: 285672.4078 | CX145: 286144.219 | CY145: 279292.1577 | CZ145: 279753.4314 | DA145: 280215.4669 | DB145: 280678.2655 | DC145: 288514.9893 | DD145: 278441.0121 | DE145: 278900.8801 | DF145: 279361.5076 | DG145: 290425.7403 | DH145: 290905.402 | DI145: 291385.856 | DJ145: 291867.1034 | DK145: 292349.1456 | DL145: 292831.984 | DM145: 293315.6199 | DN145: 293800.0544 | DO145: 294285.2891 | DP145: 294771.3252 | DQ145: 295258.164 | DR145: 295745.8069 | DS145: 296234.2551 | DT145: 296723.5101 | DU145: 297213.5731 | DV145: 297704.4455 | DW145: 298196.1286 | DX145: 298688.6237 | DY145: 299181.9322 | DZ145: 299676.0555 | EA145: 300170.9949 | EB145: 300666.7517 | EC145: 301163.3273 | ED145: 301660.723 | EE145: 302158.9402 | EF145: 302657.9803 | EG145: 303157.8445 | EH145: 303658.5344 | EI145: 304160.0511 | EJ145: 304662.3962 | EK145: 305165.5709 | EL145: 305669.5766 | EM145: 298349.9575 | EN145: 298842.7067 | EO145: 299336.2698 | EP145: 299830.648 | EQ145: 300325.8427 | ER145: 308711.1399 | ES145: 309221.0014 | ET145: 309731.7051 | EU145: 310243.2521 | EV145: 310755.6441 | EW145: 311268.8823 | EX145: 311782.9682 | EY145: =EY143*EY112 -> 312297.9031 | EZ145: 312813.6885 | FA145: 313330.3257 | FB145: 313847.8162 | FC145: 314366.1614 | FD145: 314885.3627 | FE145: 315405.4215 | FF145: 315926.3392 | FG145: 316448.1172 | FH145: 316970.757 | FI145: 317494.26 | FJ145: 318018.6275 | FK145: 318543.8612 | FL145: 319069.9622 | FM145: 319596.9322 | FN145: 320124.7725 | FO145: 320653.4846 | FP145: 321183.0699 | FQ145: 321713.5299 | FR145: 322244.8659 | FS145: 322777.0795 | FT145: 323310.1721 | FU145: 323844.1452 | FV145: 324379.0001 | FW145: 324914.7384 | FX145: 325451.3615 | FY145: 325988.8709 | FZ145: 326527.268 | GA145: 327066.5543 | GB145: 327606.7313 | GC145: 328147.8005 | GD145: 328689.7633 | GE145: 329232.6211 | GF145: 329776.3756 | GG145: 330321.0281 | GH145: 330866.5801 | GI145: 331413.0332 | GJ145: 331960.3887 | GK145: 332508.6483 | GL145: 333057.8134 | GM145: 333607.8854 | GN145: 334158.866 | GO145: 334710.7565 | GP145: 335263.5585 | GQ145: 335817.2735 | GR145: 336371.9031 | GS145: 336927.4486 | GT145: 337483.9117 | GU145: 338041.2938 | GV145: 338599.5965 | GW145: 339158.8213 | GX145: 339718.9696 | GY145: 340280.0431 | GZ145: 340842.0433 | HA145: 341404.9716 | HB145: 341968.8297 | HC145: 342533.619 | HD145: 343099.3411 | HE145: 343665.9976 | HF145: 344233.5899 | HG145: 344802.1197 | HH145: 345371.5884 | HI145: 345941.9977 | HJ145: 346513.349 | HK145: =HK143*HK112 -> 347085.644 | HL145: 347658.8841 | HM145: 348233.0711 | HN145: 348808.2063 | HO145: 349384.2914 | HP145: 349961.328 | HQ145: 350539.3175 | HR145: 351118.2617 | HS145: 351698.1621 | HT145: 352279.0202 | HU145: 352860.8376 | HV145: 353443.616 | HW145: 354027.3569 | HX145: 354612.0618 | HY145: 355197.7325 | HZ145: 355784.3704 | IA145: 356371.9772 | IB145: 356960.5545 | IC145: 357550.1039 | ID145: 358140.627 | IE145: 358732.1253 | IF145: 359324.6006 | IG145: 359918.0544 | IH145: 360512.4883 | II145: 361107.904 | IJ145: 361704.3031 | IK145: 362301.6871 | IL145: 362900.0578 | IM145: 363499.4168 | IN145: 364099.7656 | IO145: 364701.106 | IP145: 365303.4395 | IQ145: 365906.7678 | IR145: 366511.0926 | IS145: 367116.4155 | IT145: 367722.7381 | IU145: 368330.0621 | IV145: 368938.3891 | IW145: 369547.7209 | IX145: 370158.059 | IY145: 370769.4051 | IZ145: 371381.7609 | JA145: 371995.1281 | JB145: 372609.5083 | JC145: 373224.9032 | JD145: 373841.3145 | JE145: 374458.7438
A147: Capital Expenditures
C148: Construction Cost | F148: =G7 -> 150000 | G148: =G8 -> 160 | Y148: =F148*G148 -> 24000000
C150: S-curve
A152: Pre-tax Cash Flow | G152: IRR | H152: =IFERROR(IRR(Y152:JE152,-0.01),-5%) -> 0.01849298933 | I152: =(1+H152)^12-1 -> 0.2459382742 | J152: pre tax irr | Y152: =Y114-Y145-Y148 -> -24000000 | Z152: =Z114-Z145-Z148 -> 258245.8107 | AA152: 258672.3246 | AB152: 259099.543 | AC152: 259527.467 | AD152: 230783.0451 | AE152: 229682.9413 | AF152: 230062.2814 | AG152: 390941.9547 | AH152: 391587.6271 | AI152: 392234.3659 | AJ152: 392882.1728 | AK152: 424867.8739 | AL152: 425569.5777 | AM152: 426272.4405 | AN152: 426976.464 | AO152: 427681.6504 | AP152: 223246.3219 | AQ152: 209797.2927 | AR152: 210143.79 | AS152: 210490.8595 | AT152: 210838.5023 | AU152: 211186.7192 | AV152: 564044.0763 | AW152: 564975.6409 | AX152: 565908.7441 | AY152: 566843.3884 | AZ152: 567779.5764 | BA152: 568717.3105 | BB152: 487518.3311 | BC152: 489815.5758 | BD152: 490624.5461 | BE152: 491434.8524 | BF152: 492246.497 | BG152: 493059.4821 | BH152: 493873.81 | BI152: 576508.8894 | BJ152: 577461.0407 | BK152: 578414.7645 | BL152: 579370.0635 | BM152: 580326.9403 | BN152: 514981.0423 | BO152: 515474.3195 | BP152: 516325.6673 | BQ152: 346854.8483 | BR152: 347427.7073 | BS152: 348001.5124 | BT152: 426299.0603 | BU152: 393748.2394 | BV152: 554389.7432 | BW152: 571845.7544 | BX152: 567125.6368 | BY152: 559516.0622 | BZ152: 584486.7942 | CA152: 586976.4987 | CB152: 562370.3147 | CC152: 573956.9608 | CD152: 556058.408 | CE152: 562314.5795 | CF152: 196489.6116 | CG152: 210014.0175 | CH152: 216043.5556 | CI152: 228022.9569 | CJ152: 217591.5898 | CK152: 250299.3449 | CL152: =CL114-CL145-CL148 -> 263160.2555 | CM152: 573533.045 | CN152: 567069.1349 | CO152: 620009.0105 | CP152: 711974.6536 | CQ152: 685048.0595 | CR152: 637973.3487 | CS152: 548777.0042 | CT152: 561703.9258 | CU152: 593932.1847 | CV152: 583201.8427 | CW152: 672512.1316 | CX152: 564555.7046 | CY152: 675681.5797 | CZ152: 681100.1702 | DA152: 718927.5352 | DB152: 696439.4028 | DC152: 731770.1191 | DD152: 609248.238 | DE152: 706957.6405 | DF152: 785327.13 | DG152: 831635.4333 | DH152: 843338.6019 | DI152: 849519.5572 | DJ152: 690481.6099 | DK152: 611389.8933 | DL152: 619409.0221 | DM152: 596578.1618 | DN152: 589200.549 | DO152: 521773.1505 | DP152: 506691.7665 | DQ152: 457608.9089 | DR152: 475819.7069 | DS152: 497271.447 | DT152: 550235.393 | DU152: 553075.1237 | DV152: 539605.6742 | DW152: 595321.3687 | DX152: 600841.2173 | DY152: 596078.5092 | DZ152: 556403.3666 | EA152: 504670.8482 | EB152: 472891.263 | EC152: 508723.3565 | ED152: 537687.2112 | EE152: 535682.47 | EF152: 623350.8436 | EG152: 585161.8784 | EH152: 589124.5033 | EI152: 552992.9256 | EJ152: 570276.2755 | EK152: 552823.0783 | EL152: 648018.0269 | EM152: 548722.6797 | EN152: 575709.5789 | EO152: 513101.7098 | EP152: 549148.4397 | EQ152: 596095.701 | ER152: 615086.2205 | ES152: 580620.2918 | ET152: 586391.1588 | EU152: 450628.5788 | EV152: 454904.7705 | EW152: 405536.6142 | EX152: =EX114-EX145-EX148 -> 451927.1078 | EY152: 404675.2172 | EZ152: 468228.5286 | FA152: 457289.385 | FB152: 347207.6062 | FC152: 397390.6373 | FD152: 395449.2928 | FE152: 411273.2361 | FF152: 389145.3394 | FG152: 352297.6122 | FH152: 457239.6087 | FI152: 436842.3006 | FJ152: 481481.0515 | FK152: 455289.5928 | FL152: 492502.528 | FM152: 406667.7144 | FN152: 389019.2401 | FO152: 348279.0646 | FP152: 304948.0745 | FQ152: 393362.4944 | FR152: 382128.6709 | FS152: 376709.1306 | FT152: 356783.9965 | FU152: 360359.0327 | FV152: 369264.2451 | FW152: 390785.9369 | FX152: 315622.7794 | FY152: 404943.5751 | FZ152: 411111.1106 | GA152: 417757.0683 | GB152: 369536.4974 | GC152: 432010.9504 | GD152: 478799.7993 | GE152: 504980.0773 | GF152: 516904.1398 | GG152: 471958.4407 | GH152: 594016.2517 | GI152: 539008.915 | GJ152: 485252.5661 | GK152: 450732.1272 | GL152: 475825.7216 | GM152: 443660.5336 | GN152: 470344.7202 | GO152: 533999.9988 | GP152: 475733.1334 | GQ152: 429531.7293 | GR152: 455235.8944 | GS152: 495763.8988 | GT152: 533043.8565 | GU152: 573204.7479 | GV152: 508719.15 | GW152: 471736.8475 | GX152: 486689.1203 | GY152: 471314.3573 | GZ152: 385708.9176 | HA152: 347303.4278 | HB152: 326203.3499 | HC152: 287918.3298 | HD152: 280984.5693 | HE152: 293641.8024 | HF152: 292167.5382 | HG152: 253740.9345 | HH152: 204916.4539 | HI152: 147059.9061 | HJ152: =HJ114-HJ145-HJ148 -> 98423.63879 | HK152: 126036.8291 | HL152: 138690.3125 | HM152: 157128.0114 | HN152: 188322.132 | HO152: 185855.5517 | HP152: 287382.2934 | HQ152: 265588.8925 | HR152: 416016.6786 | HS152: 408223.6968 | HT152: 389198.3941 | HU152: 561503.9122 | HV152: 472344.7658 | HW152: 519442.7449 | HX152: 455070.6766 | HY152: 446001.0721 | HZ152: 407521.5212 | IA152: 507155.7651 | IB152: 561446.0995 | IC152: 630153.1351 | ID152: 604178.6052 | IE152: 658284.6913 | IF152: 551886.0215 | IG152: 524140.1877 | IH152: 632134.5317 | II152: 910882.765 | IJ152: 734815.7024 | IK152: 755528.9348 | IL152: 857220.0267 | IM152: 903989.4604 | IN152: 961257.1344 | IO152: 852041.6283 | IP152: 766113.4172 | IQ152: 738886.0385 | IR152: 759254.6201 | IS152: 904304.7673 | IT152: 832752.2093 | IU152: 987897.7832 | IV152: 865491.8892 | IW152: 979557.7021 | IX152: 927911.1777 | IY152: 915950.4056 | IZ152: 874061.7129 | JA152: 916972.3117 | JB152: 1030139.556 | JC152: 942668.3811 | JD152: 852360.0801 | JE152: 995729.0158
G153: MIRR | H153: =(1+7%)^(1/12)-1 -> 0.005654145387 | I153: =(1+MIRR(Y152:JE152,H153,H153))^(12)-1 -> 0.1237533398 | J153: pre tax mirr
G154: NPV 5% | H154: 0.05 | I154: =NPV((H154+1)^(1/12)-1,$Y$152:$JE$152) -> 51160450.48 | J154: npv 5%
G155: NPV 2% | H155: 0.02 | I155: =NPV((H155+1)^(1/12)-1,$Y$152:$JE$152) -> 75066018.21 | J155: npv 2%
A157: Financing
C158: Opening Debt Balance | Y158: =X161 -> 0 | Z158: =Y161 -> 16800000 | AA158: 16625754.19 | AB158: 16450210.64 | AC158: 16273362.15 | AD158: 16095201.49 | AE158: 15944894.45 | AF158: 15794935.98 | AG158: 15643848.38 | AH158: 15331125.67 | AI158: 15016193.67 | AJ158: 14699040.27 | AK158: 14379653.3 | AL158: 14026683.69 | AM158: 13671247.53 | AN158: 13313331.33 | AO158: 12952921.52 | AP158: 12590004.48 | AQ158: 12429708.18 | AR158: 12282059.43 | AS158: 12133325.94 | AT158: 11983501.71 | AU158: 11832580.71 | AV158: 11680556.9 | AW158: 11174915.61 | AX158: 10665814.54 | AY158: 10153234.87 | AZ158: 9637157.658 | BA158: 9117563.87 | BB158: 8594434.379 | BC158: 8149888.219 | BD158: 7700822.085 | BE158: 7248701.649 | BF158: 6793510.305 | BG158: 6335231.359 | BH158: 5873848.034 | BI158: 5409343.464 | BJ158: 4859881.292 | BK158: 4306719.658 | BL158: 3749838.492 | BM158: 3189217.621 | BN158: 2624836.768 | BO158: 2122979.91 | BP158: 1618120.49 | BQ158: 1109885.425 | BR158: 768580.0039 | BS158: 424995.1967 | BT158: 79118.66025 | BU158: 0 | BV158: 0 | BW158: 0 | BX158: 0 | BY158: 0 | BZ158: 0 | CA158: 0 | CB158: 0 | CC158: 0 | CD158: 0 | CE158: 0 | CF158: 0 | CG158: 0 | CH158: 0 | CI158: 0 | CJ158: 0 | CK158: 0 | CL158: =CK161 -> 0 | CM158: 0 | CN158: 0 | CO158: 0 | CP158: 0 | CQ158: 0 | CR158: 0 | CS158: 0 | CT158: 0 | CU158: 0 | CV158: 0 | CW158: 0 | CX158: 0 | CY158: 0 | CZ158: 0 | DA158: 0 | DB158: 0 | DC158: 0 | DD158: 0 | DE158: 0 | DF158: 0 | DG158: 0 | DH158: 0 | DI158: 0 | DJ158: 0 | DK158: 0 | DL158: 0 | DM158: 0 | DN158: 0 | DO158: 0 | DP158: 0 | DQ158: 0 | DR158: 0 | DS158: 0 | DT158: 0 | DU158: 0 | DV158: 0 | DW158: 0 | DX158: 0 | DY158: 0 | DZ158: 0 | EA158: 0 | EB158: 0 | EC158: 0 | ED158: 0 | EE158: 0 | EF158: 0 | EG158: 0 | EH158: 0 | EI158: 0 | EJ158: 0 | EK158: 0 | EL158: 0 | EM158: 0 | EN158: 0 | EO158: 0 | EP158: 0 | EQ158: 0 | ER158: 0 | ES158: 0 | ET158: 0 | EU158: 0 | EV158: 0 | EW158: 0 | EX158: =EW161 -> 0 | EY158: 0 | EZ158: 0 | FA158: 0 | FB158: 0 | FC158: 0 | FD158: 0 | FE158: 0 | FF158: 0 | FG158: 0 | FH158: 0 | FI158: 0 | FJ158: 0 | FK158: 0 | FL158: 0 | FM158: 0 | FN158: 0 | FO158: 0 | FP158: 0 | FQ158: 0 | FR158: 0 | FS158: 0 | FT158: 0 | FU158: 0 | FV158: 0 | FW158: 0 | FX158: 0 | FY158: 0 | FZ158: 0 | GA158: 0 | GB158: 0 | GC158: 0 | GD158: 0 | GE158: 0 | GF158: 0 | GG158: 0 | GH158: 0 | GI158: 0 | GJ158: 0 | GK158: 0 | GL158: 0 | GM158: 0 | GN158: 0 | GO158: 0 | GP158: 0 | GQ158: 0 | GR158: 0 | GS158: 0 | GT158: 0 | GU158: 0 | GV158: 0 | GW158: 0 | GX158: 0 | GY158: 0 | GZ158: 0 | HA158: 0 | HB158: 0 | HC158: 0 | HD158: 0 | HE158: 0 | HF158: 0 | HG158: 0 | HH158: 0 | HI158: 0 | HJ158: =HI161 -> 0 | HK158: 0 | HL158: 0 | HM158: 0 | HN158: 0 | HO158: 0 | HP158: 0 | HQ158: 0 | HR158: 0 | HS158: 0 | HT158: 0 | HU158: 0 | HV158: 0 | HW158: 0 | HX158: 0 | HY158: 0 | HZ158: 0 | IA158: 0 | IB158: 0 | IC158: 0 | ID158: 0 | IE158: 0 | IF158: 0 | IG158: 0 | IH158: 0 | II158: 0 | IJ158: 0 | IK158: 0 | IL158: 0 | IM158: 0 | IN158: 0 | IO158: 0 | IP158: 0 | IQ158: 0 | IR158: 0 | IS158: 0 | IT158: 0 | IU158: 0 | IV158: 0 | IW158: 0 | IX158: 0 | IY158: 0 | IZ158: 0 | JA158: 0 | JB158: 0 | JC158: 0 | JD158: 0 | JE158: 0
C159: Add: New Debt | G159: =G60 -> 16800000 | Y159: =G159 -> 16800000
C160: Less: Debt Repaid | Y160: =Y173 -> 0 | Z160: =Z173 -> 174245.8107 | AA160: 175543.5537 | AB160: 176848.4898 | AC160: 178160.6562 | AD160: 150307.0376 | AE160: 149958.469 | AF160: 151087.6014 | AG160: 312722.7128 | AH160: 314931.9988 | AI160: 317153.3976 | AJ160: 319386.9715 | AK160: 352969.6074 | AL160: 355436.1592 | AM160: 357916.2028 | AN160: 360409.8074 | AO160: 362917.0428 | AP160: 160296.2995 | AQ160: 147648.7518 | AR160: 148733.4928 | AS160: 149824.2298 | AT160: 150920.9937 | AU160: 152023.8156 | AV160: 505641.2918 | AW160: 509101.0629 | AX160: 512579.6714 | AY160: 516077.2141 | AZ160: 519593.7881 | BA160: 523129.4912 | BB160: 444546.1592 | BC160: 449066.1347 | BD160: 452120.4357 | BE160: 455191.3442 | BF160: 458278.9455 | BG160: 461383.3253 | BH160: 464504.5698 | BI160: 549462.172 | BJ160: 553161.6342 | BK160: 556881.1662 | BL160: 560620.8711 | BM160: 564380.8522 | BN160: 501856.8585 | BO160: 504859.42 | BP160: 508235.0648 | BQ160: 341305.4212 | BR160: 343584.8073 | BS160: 345876.5364 | BT160: 79118.66025 | BU160: 0 | BV160: 0 | BW160: 0 | BX160: 0 | BY160: 0 | BZ160: 0 | CA160: 0 | CB160: 0 | CC160: 0 | CD160: 0 | CE160: 0 | CF160: 0 | CG160: 0 | CH160: 0 | CI160: 0 | CJ160: 0 | CK160: 0 | CL160: =CL173 -> 0 | CM160: 0 | CN160: 0 | CO160: 0 | CP160: 0 | CQ160: 0 | CR160: 0 | CS160: 0 | CT160: 0 | CU160: 0 | CV160: 0 | CW160: 0 | CX160: 0 | CY160: 0 | CZ160: 0 | DA160: 0 | DB160: 0 | DC160: 0 | DD160: 0 | DE160: 0 | DF160: 0 | DG160: 0 | DH160: 0 | DI160: 0 | DJ160: 0 | DK160: 0 | DL160: 0 | DM160: 0 | DN160: 0 | DO160: 0 | DP160: 0 | DQ160: 0 | DR160: 0 | DS160: 0 | DT160: 0 | DU160: 0 | DV160: 0 | DW160: 0 | DX160: 0 | DY160: 0 | DZ160: 0 | EA160: 0 | EB160: 0 | EC160: 0 | ED160: 0 | EE160: 0 | EF160: 0 | EG160: 0 | EH160: 0 | EI160: 0 | EJ160: 0 | EK160: 0 | EL160: 0 | EM160: 0 | EN160: 0 | EO160: 0 | EP160: 0 | EQ160: 0 | ER160: 0 | ES160: 0 | ET160: 0 | EU160: 0 | EV160: 0 | EW160: 0 | EX160: =EX173 -> 0 | EY160: 0 | EZ160: 0 | FA160: 0 | FB160: 0 | FC160: 0 | FD160: 0 | FE160: 0 | FF160: 0 | FG160: 0 | FH160: 0 | FI160: 0 | FJ160: 0 | FK160: 0 | FL160: 0 | FM160: 0 | FN160: 0 | FO160: 0 | FP160: 0 | FQ160: 0 | FR160: 0 | FS160: 0 | FT160: 0 | FU160: 0 | FV160: 0 | FW160: 0 | FX160: 0 | FY160: 0 | FZ160: 0 | GA160: 0 | GB160: 0 | GC160: 0 | GD160: 0 | GE160: 0 | GF160: 0 | GG160: 0 | GH160: 0 | GI160: 0 | GJ160: 0 | GK160: 0 | GL160: 0 | GM160: 0 | GN160: 0 | GO160: 0 | GP160: 0 | GQ160: 0 | GR160: 0 | GS160: 0 | GT160: 0 | GU160: 0 | GV160: 0 | GW160: 0 | GX160: 0 | GY160: 0 | GZ160: 0 | HA160: 0 | HB160: 0 | HC160: 0 | HD160: 0 | HE160: 0 | HF160: 0 | HG160: 0 | HH160: 0 | HI160: 0 | HJ160: =HJ173 -> 0 | HK160: 0 | HL160: 0 | HM160: 0 | HN160: 0 | HO160: 0 | HP160: 0 | HQ160: 0 | HR160: 0 | HS160: 0 | HT160: 0 | HU160: 0 | HV160: 0 | HW160: 0 | HX160: 0 | HY160: 0 | HZ160: 0 | IA160: 0 | IB160: 0 | IC160: 0 | ID160: 0 | IE160: 0 | IF160: 0 | IG160: 0 | IH160: 0 | II160: 0 | IJ160: 0 | IK160: 0 | IL160: 0 | IM160: 0 | IN160: 0 | IO160: 0 | IP160: 0 | IQ160: 0 | IR160: 0 | IS160: 0 | IT160: 0 | IU160: 0 | IV160: 0 | IW160: 0 | IX160: 0 | IY160: 0 | IZ160: 0 | JA160: 0 | JB160: 0 | JC160: 0 | JD160: 0 | JE160: 0
C161: Closing Balance | Y161: =Y158+Y159-Y160 -> 16800000 | Z161: =Z158+Z159-Z160 -> 16625754.19 | AA161: 16450210.64 | AB161: 16273362.15 | AC161: 16095201.49 | AD161: 15944894.45 | AE161: 15794935.98 | AF161: 15643848.38 | AG161: 15331125.67 | AH161: 15016193.67 | AI161: 14699040.27 | AJ161: 14379653.3 | AK161: 14026683.69 | AL161: 13671247.53 | AM161: 13313331.33 | AN161: 12952921.52 | AO161: 12590004.48 | AP161: 12429708.18 | AQ161: 12282059.43 | AR161: 12133325.94 | AS161: 11983501.71 | AT161: 11832580.71 | AU161: 11680556.9 | AV161: 11174915.61 | AW161: 10665814.54 | AX161: 10153234.87 | AY161: 9637157.658 | AZ161: 9117563.87 | BA161: 8594434.379 | BB161: 8149888.219 | BC161: 7700822.085 | BD161: 7248701.649 | BE161: 6793510.305 | BF161: 6335231.359 | BG161: 5873848.034 | BH161: 5409343.464 | BI161: 4859881.292 | BJ161: 4306719.658 | BK161: 3749838.492 | BL161: 3189217.621 | BM161: 2624836.768 | BN161: 2122979.91 | BO161: 1618120.49 | BP161: 1109885.425 | BQ161: 768580.0039 | BR161: 424995.1967 | BS161: 79118.66025 | BT161: 0 | BU161: 0 | BV161: 0 | BW161: 0 | BX161: 0 | BY161: 0 | BZ161: 0 | CA161: 0 | CB161: 0 | CC161: 0 | CD161: 0 | CE161: 0 | CF161: 0 | CG161: 0 | CH161: 0 | CI161: 0 | CJ161: 0 | CK161: 0 | CL161: =CL158+CL159-CL160 -> 0 | CM161: 0 | CN161: 0 | CO161: 0 | CP161: 0 | CQ161: 0 | CR161: 0 | CS161: 0 | CT161: 0 | CU161: 0 | CV161: 0 | CW161: 0 | CX161: 0 | CY161: 0 | CZ161: 0 | DA161: 0 | DB161: 0 | DC161: 0 | DD161: 0 | DE161: 0 | DF161: 0 | DG161: 0 | DH161: 0 | DI161: 0 | DJ161: 0 | DK161: 0 | DL161: 0 | DM161: 0 | DN161: 0 | DO161: 0 | DP161: 0 | DQ161: 0 | DR161: 0 | DS161: 0 | DT161: 0 | DU161: 0 | DV161: 0 | DW161: 0 | DX161: 0 | DY161: 0 | DZ161: 0 | EA161: 0 | EB161: 0 | EC161: 0 | ED161: 0 | EE161: 0 | EF161: 0 | EG161: 0 | EH161: 0 | EI161: 0 | EJ161: 0 | EK161: 0 | EL161: 0 | EM161: 0 | EN161: 0 | EO161: 0 | EP161: 0 | EQ161: 0 | ER161: 0 | ES161: 0 | ET161: 0 | EU161: 0 | EV161: 0 | EW161: 0 | EX161: =EX158+EX159-EX160 -> 0 | EY161: 0 | EZ161: 0 | FA161: 0 | FB161: 0 | FC161: 0 | FD161: 0 | FE161: 0 | FF161: 0 | FG161: 0 | FH161: 0 | FI161: 0 | FJ161: 0 | FK161: 0 | FL161: 0 | FM161: 0 | FN161: 0 | FO161: 0 | FP161: 0 | FQ161: 0 | FR161: 0 | FS161: 0 | FT161: 0 | FU161: 0 | FV161: 0 | FW161: 0 | FX161: 0 | FY161: 0 | FZ161: 0 | GA161: 0 | GB161: 0 | GC161: 0 | GD161: 0 | GE161: 0 | GF161: 0 | GG161: 0 | GH161: 0 | GI161: 0 | GJ161: 0 | GK161: 0 | GL161: 0 | GM161: 0 | GN161: 0 | GO161: 0 | GP161: 0 | GQ161: 0 | GR161: 0 | GS161: 0 | GT161: 0 | GU161: 0 | GV161: 0 | GW161: 0 | GX161: 0 | GY161: 0 | GZ161: 0 | HA161: 0 | HB161: 0 | HC161: 0 | HD161: 0 | HE161: 0 | HF161: 0 | HG161: 0 | HH161: 0 | HI161: 0 | HJ161: =HJ158+HJ159-HJ160 -> 0 | HK161: 0 | HL161: 0 | HM161: 0 | HN161: 0 | HO161: 0 | HP161: 0 | HQ161: 0 | HR161: 0 | HS161: 0 | HT161: 0 | HU161: 0 | HV161: 0 | HW161: 0 | HX161: 0 | HY161: 0 | HZ161: 0 | IA161: 0 | IB161: 0 | IC161: 0 | ID161: 0 | IE161: 0 | IF161: 0 | IG161: 0 | IH161: 0 | II161: 0 | IJ161: 0 | IK161: 0 | IL161: 0 | IM161: 0 | IN161: 0 | IO161: 0 | IP161: 0 | IQ161: 0 | IR161: 0 | IS161: 0 | IT161: 0 | IU161: 0 | IV161: 0 | IW161: 0 | IX161: 0 | IY161: 0 | IZ161: 0 | JA161: 0 | JB161: 0 | JC161: 0 | JD161: 0 | JE161: 0
C163: Interest Rate | G163: =G61 -> 0.06 | H163: =G163/12 -> 0.005 | Y163: =$H$163 -> 0.005 | Z163: =$H$163 -> 0.005 | AA163: 0.005 | AB163: 0.005 | AC163: 0.005 | AD163: 0.005 | AE163: 0.005 | AF163: 0.005 | AG163: 0.005 | AH163: 0.005 | AI163: 0.005 | AJ163: 0.005 | AK163: 0.005 | AL163: 0.005 | AM163: 0.005 | AN163: 0.005 | AO163: 0.005 | AP163: 0.005 | AQ163: 0.005 | AR163: 0.005 | AS163: 0.005 | AT163: 0.005 | AU163: 0.005 | AV163: 0.005 | AW163: 0.005 | AX163: 0.005 | AY163: 0.005 | AZ163: 0.005 | BA163: 0.005 | BB163: 0.005 | BC163: 0.005 | BD163: 0.005 | BE163: 0.005 | BF163: 0.005 | BG163: 0.005 | BH163: 0.005 | BI163: 0.005 | BJ163: 0.005 | BK163: 0.005 | BL163: 0.005 | BM163: 0.005 | BN163: 0.005 | BO163: 0.005 | BP163: 0.005 | BQ163: 0.005 | BR163: 0.005 | BS163: 0.005 | BT163: 0.005 | BU163: 0.005 | BV163: 0.005 | BW163: 0.005 | BX163: 0.005 | BY163: 0.005 | BZ163: 0.005 | CA163: 0.005 | CB163: 0.005 | CC163: 0.005 | CD163: 0.005 | CE163: 0.005 | CF163: 0.005 | CG163: 0.005 | CH163: 0.005 | CI163: 0.005 | CJ163: 0.005 | CK163: 0.005 | CL163: =$H$163 -> 0.005 | CM163: 0.005 | CN163: 0.005 | CO163: 0.005 | CP163: 0.005 | CQ163: 0.005 | CR163: 0.005 | CS163: 0.005 | CT163: 0.005 | CU163: 0.005 | CV163: 0.005 | CW163: 0.005 | CX163: 0.005 | CY163: 0.005 | CZ163: 0.005 | DA163: 0.005 | DB163: 0.005 | DC163: 0.005 | DD163: 0.005 | DE163: 0.005 | DF163: 0.005 | DG163: 0.005 | DH163: 0.005 | DI163: 0.005 | DJ163: 0.005 | DK163: 0.005 | DL163: 0.005 | DM163: 0.005 | DN163: 0.005 | DO163: 0.005 | DP163: 0.005 | DQ163: 0.005 | DR163: 0.005 | DS163: 0.005 | DT163: 0.005 | DU163: 0.005 | DV163: 0.005 | DW163: 0.005 | DX163: 0.005 | DY163: 0.005 | DZ163: 0.005 | EA163: 0.005 | EB163: 0.005 | EC163: 0.005 | ED163: 0.005 | EE163: 0.005 | EF163: 0.005 | EG163: 0.005 | EH163: 0.005 | EI163: 0.005 | EJ163: 0.005 | EK163: 0.005 | EL163: 0.005 | EM163: 0.005 | EN163: 0.005 | EO163: 0.005 | EP163: 0.005 | EQ163: 0.005 | ER163: 0.005 | ES163: 0.005 | ET163: 0.005 | EU163: 0.005 | EV163: 0.005 | EW163: 0.005 | EX163: =$H$163 -> 0.005 | EY163: 0.005 | EZ163: 0.005 | FA163: 0.005 | FB163: 0.005 | FC163: 0.005 | FD163: 0.005 | FE163: 0.005 | FF163: 0.005 | FG163: 0.005 | FH163: 0.005 | FI163: 0.005 | FJ163: 0.005 | FK163: 0.005 | FL163: 0.005 | FM163: 0.005 | FN163: 0.005 | FO163: 0.005 | FP163: 0.005 | FQ163: 0.005 | FR163: 0.005 | FS163: 0.005 | FT163: 0.005 | FU163: 0.005 | FV163: 0.005 | FW163: 0.005 | FX163: 0.005 | FY163: 0.005 | FZ163: 0.005 | GA163: 0.005 | GB163: 0.005 | GC163: 0.005 | GD163: 0.005 | GE163: 0.005 | GF163: 0.005 | GG163: 0.005 | GH163: 0.005 | GI163: 0.005 | GJ163: 0.005 | GK163: 0.005 | GL163: 0.005 | GM163: 0.005 | GN163: 0.005 | GO163: 0.005 | GP163: 0.005 | GQ163: 0.005 | GR163: 0.005 | GS163: 0.005 | GT163: 0.005 | GU163: 0.005 | GV163: 0.005 | GW163: 0.005 | GX163: 0.005 | GY163: 0.005 | GZ163: 0.005 | HA163: 0.005 | HB163: 0.005 | HC163: 0.005 | HD163: 0.005 | HE163: 0.005 | HF163: 0.005 | HG163: 0.005 | HH163: 0.005 | HI163: 0.005 | HJ163: =$H$163 -> 0.005 | HK163: 0.005 | HL163: 0.005 | HM163: 0.005 | HN163: 0.005 | HO163: 0.005 | HP163: 0.005 | HQ163: 0.005 | HR163: 0.005 | HS163: 0.005 | HT163: 0.005 | HU163: 0.005 | HV163: 0.005 | HW163: 0.005 | HX163: 0.005 | HY163: 0.005 | HZ163: 0.005 | IA163: 0.005 | IB163: 0.005 | IC163: 0.005 | ID163: 0.005 | IE163: 0.005 | IF163: 0.005 | IG163: 0.005 | IH163: 0.005 | II163: 0.005 | IJ163: 0.005 | IK163: 0.005 | IL163: 0.005 | IM163: 0.005 | IN163: 0.005 | IO163: 0.005 | IP163: 0.005 | IQ163: 0.005 | IR163: 0.005 | IS163: 0.005 | IT163: 0.005 | IU163: 0.005 | IV163: 0.005 | IW163: 0.005 | IX163: 0.005 | IY163: 0.005 | IZ163: 0.005 | JA163: 0.005 | JB163: 0.005 | JC163: 0.005 | JD163: 0.005 | JE163: 0.005
C164: Interest Expense | Y164: =Y163*Y158 -> 0 | Z164: =Z163*Z158 -> 84000 | AA164: 83128.77095 | AB164: 82251.05318 | AC164: 81366.81073 | AD164: 80476.00745 | AE164: 79724.47226 | AF164: 78974.67991 | AG164: 78219.24191 | AH164: 76655.62834 | AI164: 75080.96835 | AJ164: 73495.20136 | AK164: 71898.2665 | AL164: 70133.41847 | AM164: 68356.23767 | AN164: 66566.65666 | AO164: 64764.60762 | AP164: 62950.02241 | AQ164: 62148.54091 | AR164: 61410.29715 | AS164: 60666.62969 | AT164: 59917.50854 | AU164: 59162.90357 | AV164: 58402.78449 | AW164: 55874.57803 | AX164: 53329.07272 | AY164: 50766.17436 | AZ164: 48185.78829 | BA164: 45587.81935 | BB164: 42972.17189 | BC164: 40749.4411 | BD164: 38504.11042 | BE164: 36243.50824 | BF164: 33967.55152 | BG164: 31676.1568 | BH164: 29369.24017 | BI164: 27046.71732 | BJ164: 24299.40646 | BK164: 21533.59829 | BL164: 18749.19246 | BM164: 15946.0881 | BN164: 13124.18384 | BO164: 10614.89955 | BP164: 8090.60245 | BQ164: 5549.427126 | BR164: 3842.90002 | BS164: 2124.975983 | BT164: 395.5933013 | BU164: 0 | BV164: 0 | BW164: 0 | BX164: 0 | BY164: 0 | BZ164: 0 | CA164: 0 | CB164: 0 | CC164: 0 | CD164: 0 | CE164: 0 | CF164: 0 | CG164: 0 | CH164: 0 | CI164: 0 | CJ164: 0 | CK164: 0 | CL164: =CL163*CL158 -> 0 | CM164: 0 | CN164: 0 | CO164: 0 | CP164: 0 | CQ164: 0 | CR164: 0 | CS164: 0 | CT164: 0 | CU164: 0 | CV164: 0 | CW164: 0 | CX164: 0 | CY164: 0 | CZ164: 0 | DA164: 0 | DB164: 0 | DC164: 0 | DD164: 0 | DE164: 0 | DF164: 0 | DG164: 0 | DH164: 0 | DI164: 0 | DJ164: 0 | DK164: 0 | DL164: 0 | DM164: 0 | DN164: 0 | DO164: 0 | DP164: 0 | DQ164: 0 | DR164: 0 | DS164: 0 | DT164: 0 | DU164: 0 | DV164: 0 | DW164: 0 | DX164: 0 | DY164: 0 | DZ164: 0 | EA164: 0 | EB164: 0 | EC164: 0 | ED164: 0 | EE164: 0 | EF164: 0 | EG164: 0 | EH164: 0 | EI164: 0 | EJ164: 0 | EK164: 0 | EL164: 0 | EM164: 0 | EN164: 0 | EO164: 0 | EP164: 0 | EQ164: 0 | ER164: 0 | ES164: 0 | ET164: 0 | EU164: 0 | EV164: 0 | EW164: 0 | EX164: =EX163*EX158 -> 0 | EY164: 0 | EZ164: 0 | FA164: 0 | FB164: 0 | FC164: 0 | FD164: 0 | FE164: 0 | FF164: 0 | FG164: 0 | FH164: 0 | FI164: 0 | FJ164: 0 | FK164: 0 | FL164: 0 | FM164: 0 | FN164: 0 | FO164: 0 | FP164: 0 | FQ164: 0 | FR164: 0 | FS164: 0 | FT164: 0 | FU164: 0 | FV164: 0 | FW164: 0 | FX164: 0 | FY164: 0 | FZ164: 0 | GA164: 0 | GB164: 0 | GC164: 0 | GD164: 0 | GE164: 0 | GF164: 0 | GG164: 0 | GH164: 0 | GI164: 0 | GJ164: 0 | GK164: 0 | GL164: 0 | GM164: 0 | GN164: 0 | GO164: 0 | GP164: 0 | GQ164: 0 | GR164: 0 | GS164: 0 | GT164: 0 | GU164: 0 | GV164: 0 | GW164: 0 | GX164: 0 | GY164: 0 | GZ164: 0 | HA164: 0 | HB164: 0 | HC164: 0 | HD164: 0 | HE164: 0 | HF164: 0 | HG164: 0 | HH164: 0 | HI164: 0 | HJ164: =HJ163*HJ158 -> 0 | HK164: 0 | HL164: 0 | HM164: 0 | HN164: 0 | HO164: 0 | HP164: 0 | HQ164: 0 | HR164: 0 | HS164: 0 | HT164: 0 | HU164: 0 | HV164: 0 | HW164: 0 | HX164: 0 | HY164: 0 | HZ164: 0 | IA164: 0 | IB164: 0 | IC164: 0 | ID164: 0 | IE164: 0 | IF164: 0 | IG164: 0 | IH164: 0 | II164: 0 | IJ164: 0 | IK164: 0 | IL164: 0 | IM164: 0 | IN164: 0 | IO164: 0 | IP164: 0 | IQ164: 0 | IR164: 0 | IS164: 0 | IT164: 0 | IU164: 0 | IV164: 0 | IW164: 0 | IX164: 0 | IY164: 0 | IZ164: 0 | JA164: 0 | JB164: 0 | JC164: 0 | JD164: 0 | JE164: 0
A166: Cash Flow
C167: Pre-tax Cash Flow | Y167: =Y152 -> -24000000 | Z167: =Z152 -> 258245.8107 | AA167: 258672.3246 | AB167: 259099.543 | AC167: 259527.467 | AD167: 230783.0451 | AE167: 229682.9413 | AF167: 230062.2814 | AG167: 390941.9547 | AH167: 391587.6271 | AI167: 392234.3659 | AJ167: 392882.1728 | AK167: 424867.8739 | AL167: 425569.5777 | AM167: 426272.4405 | AN167: 426976.464 | AO167: 427681.6504 | AP167: 223246.3219 | AQ167: 209797.2927 | AR167: 210143.79 | AS167: 210490.8595 | AT167: 210838.5023 | AU167: 211186.7192 | AV167: 564044.0763 | AW167: 564975.6409 | AX167: 565908.7441 | AY167: 566843.3884 | AZ167: 567779.5764 | BA167: 568717.3105 | BB167: 487518.3311 | BC167: 489815.5758 | BD167: 490624.5461 | BE167: 491434.8524 | BF167: 492246.497 | BG167: 493059.4821 | BH167: 493873.81 | BI167: 576508.8894 | BJ167: 577461.0407 | BK167: 578414.7645 | BL167: 579370.0635 | BM167: 580326.9403 | BN167: 514981.0423 | BO167: 515474.3195 | BP167: 516325.6673 | BQ167: 346854.8483 | BR167: 347427.7073 | BS167: 348001.5124 | BT167: 426299.0603 | BU167: 393748.2394 | BV167: 554389.7432 | BW167: 571845.7544 | BX167: 567125.6368 | BY167: 559516.0622 | BZ167: 584486.7942 | CA167: 586976.4987 | CB167: 562370.3147 | CC167: 573956.9608 | CD167: 556058.408 | CE167: 562314.5795 | CF167: 196489.6116 | CG167: 210014.0175 | CH167: 216043.5556 | CI167: 228022.9569 | CJ167: 217591.5898 | CK167: 250299.3449 | CL167: =CL152 -> 263160.2555 | CM167: 573533.045 | CN167: 567069.1349 | CO167: 620009.0105 | CP167: 711974.6536 | CQ167: 685048.0595 | CR167: 637973.3487 | CS167: 548777.0042 | CT167: 561703.9258 | CU167: 593932.1847 | CV167: 583201.8427 | CW167: 672512.1316 | CX167: 564555.7046 | CY167: 675681.5797 | CZ167: 681100.1702 | DA167: 718927.5352 | DB167: 696439.4028 | DC167: 731770.1191 | DD167: 609248.238 | DE167: 706957.6405 | DF167: 785327.13 | DG167: 831635.4333 | DH167: 843338.6019 | DI167: 849519.5572 | DJ167: 690481.6099 | DK167: 611389.8933 | DL167: 619409.0221 | DM167: 596578.1618 | DN167: 589200.549 | DO167: 521773.1505 | DP167: 506691.7665 | DQ167: 457608.9089 | DR167: 475819.7069 | DS167: 497271.447 | DT167: 550235.393 | DU167: 553075.1237 | DV167: 539605.6742 | DW167: 595321.3687 | DX167: 600841.2173 | DY167: 596078.5092 | DZ167: 556403.3666 | EA167: 504670.8482 | EB167: 472891.263 | EC167: 508723.3565 | ED167: 537687.2112 | EE167: 535682.47 | EF167: 623350.8436 | EG167: 585161.8784 | EH167: 589124.5033 | EI167: 552992.9256 | EJ167: 570276.2755 | EK167: 552823.0783 | EL167: 648018.0269 | EM167: 548722.6797 | EN167: 575709.5789 | EO167: 513101.7098 | EP167: 549148.4397 | EQ167: 596095.701 | ER167: 615086.2205 | ES167: 580620.2918 | ET167: 586391.1588 | EU167: 450628.5788 | EV167: 454904.7705 | EW167: 405536.6142 | EX167: =EX152 -> 451927.1078 | EY167: 404675.2172 | EZ167: 468228.5286 | FA167: 457289.385 | FB167: 347207.6062 | FC167: 397390.6373 | FD167: 395449.2928 | FE167: 411273.2361 | FF167: 389145.3394 | FG167: 352297.6122 | FH167: 457239.6087 | FI167: 436842.3006 | FJ167: 481481.0515 | FK167: 455289.5928 | FL167: 492502.528 | FM167: 406667.7144 | FN167: 389019.2401 | FO167: 348279.0646 | FP167: 304948.0745 | FQ167: 393362.4944 | FR167: 382128.6709 | FS167: 376709.1306 | FT167: 356783.9965 | FU167: 360359.0327 | FV167: 369264.2451 | FW167: 390785.9369 | FX167: 315622.7794 | FY167: 404943.5751 | FZ167: 411111.1106 | GA167: 417757.0683 | GB167: 369536.4974 | GC167: 432010.9504 | GD167: 478799.7993 | GE167: 504980.0773 | GF167: 516904.1398 | GG167: 471958.4407 | GH167: 594016.2517 | GI167: 539008.915 | GJ167: 485252.5661 | GK167: 450732.1272 | GL167: 475825.7216 | GM167: 443660.5336 | GN167: 470344.7202 | GO167: 533999.9988 | GP167: 475733.1334 | GQ167: 429531.7293 | GR167: 455235.8944 | GS167: 495763.8988 | GT167: 533043.8565 | GU167: 573204.7479 | GV167: 508719.15 | GW167: 471736.8475 | GX167: 486689.1203 | GY167: 471314.3573 | GZ167: 385708.9176 | HA167: 347303.4278 | HB167: 326203.3499 | HC167: 287918.3298 | HD167: 280984.5693 | HE167: 293641.8024 | HF167: 292167.5382 | HG167: 253740.9345 | HH167: 204916.4539 | HI167: 147059.9061 | HJ167: =HJ152 -> 98423.63879 | HK167: 126036.8291 | HL167: 138690.3125 | HM167: 157128.0114 | HN167: 188322.132 | HO167: 185855.5517 | HP167: 287382.2934 | HQ167: 265588.8925 | HR167: 416016.6786 | HS167: 408223.6968 | HT167: 389198.3941 | HU167: 561503.9122 | HV167: 472344.7658 | HW167: 519442.7449 | HX167: 455070.6766 | HY167: 446001.0721 | HZ167: 407521.5212 | IA167: 507155.7651 | IB167: 561446.0995 | IC167: 630153.1351 | ID167: 604178.6052 | IE167: 658284.6913 | IF167: 551886.0215 | IG167: 524140.1877 | IH167: 632134.5317 | II167: 910882.765 | IJ167: 734815.7024 | IK167: 755528.9348 | IL167: 857220.0267 | IM167: 903989.4604 | IN167: 961257.1344 | IO167: 852041.6283 | IP167: 766113.4172 | IQ167: 738886.0385 | IR167: 759254.6201 | IS167: 904304.7673 | IT167: 832752.2093 | IU167: 987897.7832 | IV167: 865491.8892 | IW167: 979557.7021 | IX167: 927911.1777 | IY167: 915950.4056 | IZ167: 874061.7129 | JA167: 916972.3117 | JB167: 1030139.556 | JC167: 942668.3811 | JD167: 852360.0801 | JE167: 995729.0158
C168: Add: Debt Issued | Y168: =Y159 -> 16800000
C169: Add: Equity Issued | G169: =G58-G60 -> 7200000 | Y169: =G169 -> 7200000
C170: Cash Flow Before Debt Service | Y170: =Y167+Y168+Y169 -> 0 | Z170: =Z167+Z168+Z169 -> 258245.8107 | AA170: 258672.3246 | AB170: 259099.543 | AC170: 259527.467 | AD170: 230783.0451 | AE170: 229682.9413 | AF170: 230062.2814 | AG170: 390941.9547 | AH170: 391587.6271 | AI170: 392234.3659 | AJ170: 392882.1728 | AK170: 424867.8739 | AL170: 425569.5777 | AM170: 426272.4405 | AN170: 426976.464 | AO170: 427681.6504 | AP170: 223246.3219 | AQ170: 209797.2927 | AR170: 210143.79 | AS170: 210490.8595 | AT170: 210838.5023 | AU170: 211186.7192 | AV170: 564044.0763 | AW170: 564975.6409 | AX170: 565908.7441 | AY170: 566843.3884 | AZ170: 567779.5764 | BA170: 568717.3105 | BB170: 487518.3311 | BC170: 489815.5758 | BD170: 490624.5461 | BE170: 491434.8524 | BF170: 492246.497 | BG170: 493059.4821 | BH170: 493873.81 | BI170: 576508.8894 | BJ170: 577461.0407 | BK170: 578414.7645 | BL170: 579370.0635 | BM170: 580326.9403 | BN170: 514981.0423 | BO170: 515474.3195 | BP170: 516325.6673 | BQ170: 346854.8483 | BR170: 347427.7073 | BS170: 348001.5124 | BT170: 426299.0603 | BU170: 393748.2394 | BV170: 554389.7432 | BW170: 571845.7544 | BX170: 567125.6368 | BY170: 559516.0622 | BZ170: 584486.7942 | CA170: 586976.4987 | CB170: 562370.3147 | CC170: 573956.9608 | CD170: 556058.408 | CE170: 562314.5795 | CF170: 196489.6116 | CG170: 210014.0175 | CH170: 216043.5556 | CI170: 228022.9569 | CJ170: 217591.5898 | CK170: 250299.3449 | CL170: =CL167+CL168+CL169 -> 263160.2555 | CM170: 573533.045 | CN170: 567069.1349 | CO170: 620009.0105 | CP170: 711974.6536 | CQ170: 685048.0595 | CR170: 637973.3487 | CS170: 548777.0042 | CT170: 561703.9258 | CU170: 593932.1847 | CV170: 583201.8427 | CW170: 672512.1316 | CX170: 564555.7046 | CY170: 675681.5797 | CZ170: 681100.1702 | DA170: 718927.5352 | DB170: 696439.4028 | DC170: 731770.1191 | DD170: 609248.238 | DE170: 706957.6405 | DF170: 785327.13 | DG170: 831635.4333 | DH170: 843338.6019 | DI170: 849519.5572 | DJ170: 690481.6099 | DK170: 611389.8933 | DL170: 619409.0221 | DM170: 596578.1618 | DN170: 589200.549 | DO170: 521773.1505 | DP170: 506691.7665 | DQ170: 457608.9089 | DR170: 475819.7069 | DS170: 497271.447 | DT170: 550235.393 | DU170: 553075.1237 | DV170: 539605.6742 | DW170: 595321.3687 | DX170: 600841.2173 | DY170: 596078.5092 | DZ170: 556403.3666 | EA170: 504670.8482 | EB170: 472891.263 | EC170: 508723.3565 | ED170: 537687.2112 | EE170: 535682.47 | EF170: 623350.8436 | EG170: 585161.8784 | EH170: 589124.5033 | EI170: 552992.9256 | EJ170: 570276.2755 | EK170: 552823.0783 | EL170: 648018.0269 | EM170: 548722.6797 | EN170: 575709.5789 | EO170: 513101.7098 | EP170: 549148.4397 | EQ170: 596095.701 | ER170: 615086.2205 | ES170: 580620.2918 | ET170: 586391.1588 | EU170: 450628.5788 | EV170: 454904.7705 | EW170: 405536.6142 | EX170: =EX167+EX168+EX169 -> 451927.1078 | EY170: 404675.2172 | EZ170: 468228.5286 | FA170: 457289.385 | FB170: 347207.6062 | FC170: 397390.6373 | FD170: 395449.2928 | FE170: 411273.2361 | FF170: 389145.3394 | FG170: 352297.6122 | FH170: 457239.6087 | FI170: 436842.3006 | FJ170: 481481.0515 | FK170: 455289.5928 | FL170: 492502.528 | FM170: 406667.7144 | FN170: 389019.2401 | FO170: 348279.0646 | FP170: 304948.0745 | FQ170: 393362.4944 | FR170: 382128.6709 | FS170: 376709.1306 | FT170: 356783.9965 | FU170: 360359.0327 | FV170: 369264.2451 | FW170: 390785.9369 | FX170: 315622.7794 | FY170: 404943.5751 | FZ170: 411111.1106 | GA170: 417757.0683 | GB170: 369536.4974 | GC170: 432010.9504 | GD170: 478799.7993 | GE170: 504980.0773 | GF170: 516904.1398 | GG170: 471958.4407 | GH170: 594016.2517 | GI170: 539008.915 | GJ170: 485252.5661 | GK170: 450732.1272 | GL170: 475825.7216 | GM170: 443660.5336 | GN170: 470344.7202 | GO170: 533999.9988 | GP170: 475733.1334 | GQ170: 429531.7293 | GR170: 455235.8944 | GS170: 495763.8988 | GT170: 533043.8565 | GU170: 573204.7479 | GV170: 508719.15 | GW170: 471736.8475 | GX170: 486689.1203 | GY170: 471314.3573 | GZ170: 385708.9176 | HA170: 347303.4278 | HB170: 326203.3499 | HC170: 287918.3298 | HD170: 280984.5693 | HE170: 293641.8024 | HF170: 292167.5382 | HG170: 253740.9345 | HH170: 204916.4539 | HI170: 147059.9061 | HJ170: =HJ167+HJ168+HJ169 -> 98423.63879 | HK170: 126036.8291 | HL170: 138690.3125 | HM170: 157128.0114 | HN170: 188322.132 | HO170: 185855.5517 | HP170: 287382.2934 | HQ170: 265588.8925 | HR170: 416016.6786 | HS170: 408223.6968 | HT170: 389198.3941 | HU170: 561503.9122 | HV170: 472344.7658 | HW170: 519442.7449 | HX170: 455070.6766 | HY170: 446001.0721 | HZ170: 407521.5212 | IA170: 507155.7651 | IB170: 561446.0995 | IC170: 630153.1351 | ID170: 604178.6052 | IE170: 658284.6913 | IF170: 551886.0215 | IG170: 524140.1877 | IH170: 632134.5317 | II170: 910882.765 | IJ170: 734815.7024 | IK170: 755528.9348 | IL170: 857220.0267 | IM170: 903989.4604 | IN170: 961257.1344 | IO170: 852041.6283 | IP170: 766113.4172 | IQ170: 738886.0385 | IR170: 759254.6201 | IS170: 904304.7673 | IT170: 832752.2093 | IU170: 987897.7832 | IV170: 865491.8892 | IW170: 979557.7021 | IX170: 927911.1777 | IY170: 915950.4056 | IZ170: 874061.7129 | JA170: 916972.3117 | JB170: 1030139.556 | JC170: 942668.3811 | JD170: 852360.0801 | JE170: 995729.0158
C171: Less: Interest Expense | Y171: =Y164 -> 0 | Z171: =Z164 -> 84000 | AA171: 83128.77095 | AB171: 82251.05318 | AC171: 81366.81073 | AD171: 80476.00745 | AE171: 79724.47226 | AF171: 78974.67991 | AG171: 78219.24191 | AH171: 76655.62834 | AI171: 75080.96835 | AJ171: 73495.20136 | AK171: 71898.2665 | AL171: 70133.41847 | AM171: 68356.23767 | AN171: 66566.65666 | AO171: 64764.60762 | AP171: 62950.02241 | AQ171: 62148.54091 | AR171: 61410.29715 | AS171: 60666.62969 | AT171: 59917.50854 | AU171: 59162.90357 | AV171: 58402.78449 | AW171: 55874.57803 | AX171: 53329.07272 | AY171: 50766.17436 | AZ171: 48185.78829 | BA171: 45587.81935 | BB171: 42972.17189 | BC171: 40749.4411 | BD171: 38504.11042 | BE171: 36243.50824 | BF171: 33967.55152 | BG171: 31676.1568 | BH171: 29369.24017 | BI171: 27046.71732 | BJ171: 24299.40646 | BK171: 21533.59829 | BL171: 18749.19246 | BM171: 15946.0881 | BN171: 13124.18384 | BO171: 10614.89955 | BP171: 8090.60245 | BQ171: 5549.427126 | BR171: 3842.90002 | BS171: 2124.975983 | BT171: 395.5933013 | BU171: 0 | BV171: 0 | BW171: 0 | BX171: 0 | BY171: 0 | BZ171: 0 | CA171: 0 | CB171: 0 | CC171: 0 | CD171: 0 | CE171: 0 | CF171: 0 | CG171: 0 | CH171: 0 | CI171: 0 | CJ171: 0 | CK171: 0 | CL171: =CL164 -> 0 | CM171: 0 | CN171: 0 | CO171: 0 | CP171: 0 | CQ171: 0 | CR171: 0 | CS171: 0 | CT171: 0 | CU171: 0 | CV171: 0 | CW171: 0 | CX171: 0 | CY171: 0 | CZ171: 0 | DA171: 0 | DB171: 0 | DC171: 0 | DD171: 0 | DE171: 0 | DF171: 0 | DG171: 0 | DH171: 0 | DI171: 0 | DJ171: 0 | DK171: 0 | DL171: 0 | DM171: 0 | DN171: 0 | DO171: 0 | DP171: 0 | DQ171: 0 | DR171: 0 | DS171: 0 | DT171: 0 | DU171: 0 | DV171: 0 | DW171: 0 | DX171: 0 | DY171: 0 | DZ171: 0 | EA171: 0 | EB171: 0 | EC171: 0 | ED171: 0 | EE171: 0 | EF171: 0 | EG171: 0 | EH171: 0 | EI171: 0 | EJ171: 0 | EK171: 0 | EL171: 0 | EM171: 0 | EN171: 0 | EO171: 0 | EP171: 0 | EQ171: 0 | ER171: 0 | ES171: 0 | ET171: 0 | EU171: 0 | EV171: 0 | EW171: 0 | EX171: =EX164 -> 0 | EY171: 0 | EZ171: 0 | FA171: 0 | FB171: 0 | FC171: 0 | FD171: 0 | FE171: 0 | FF171: 0 | FG171: 0 | FH171: 0 | FI171: 0 | FJ171: 0 | FK171: 0 | FL171: 0 | FM171: 0 | FN171: 0 | FO171: 0 | FP171: 0 | FQ171: 0 | FR171: 0 | FS171: 0 | FT171: 0 | FU171: 0 | FV171: 0 | FW171: 0 | FX171: 0 | FY171: 0 | FZ171: 0 | GA171: 0 | GB171: 0 | GC171: 0 | GD171: 0 | GE171: 0 | GF171: 0 | GG171: 0 | GH171: 0 | GI171: 0 | GJ171: 0 | GK171: 0 | GL171: 0 | GM171: 0 | GN171: 0 | GO171: 0 | GP171: 0 | GQ171: 0 | GR171: 0 | GS171: 0 | GT171: 0 | GU171: 0 | GV171: 0 | GW171: 0 | GX171: 0 | GY171: 0 | GZ171: 0 | HA171: 0 | HB171: 0 | HC171: 0 | HD171: 0 | HE171: 0 | HF171: 0 | HG171: 0 | HH171: 0 | HI171: 0 | HJ171: =HJ164 -> 0 | HK171: 0 | HL171: 0 | HM171: 0 | HN171: 0 | HO171: 0 | HP171: 0 | HQ171: 0 | HR171: 0 | HS171: 0 | HT171: 0 | HU171: 0 | HV171: 0 | HW171: 0 | HX171: 0 | HY171: 0 | HZ171: 0 | IA171: 0 | IB171: 0 | IC171: 0 | ID171: 0 | IE171: 0 | IF171: 0 | IG171: 0 | IH171: 0 | II171: 0 | IJ171: 0 | IK171: 0 | IL171: 0 | IM171: 0 | IN171: 0 | IO171: 0 | IP171: 0 | IQ171: 0 | IR171: 0 | IS171: 0 | IT171: 0 | IU171: 0 | IV171: 0 | IW171: 0 | IX171: 0 | IY171: 0 | IZ171: 0 | JA171: 0 | JB171: 0 | JC171: 0 | JD171: 0 | JE171: 0
C172: Cash Flow After Interest | Y172: =Y170-Y171 -> 0 | Z172: =Z170-Z171 -> 174245.8107 | AA172: 175543.5537 | AB172: 176848.4898 | AC172: 178160.6562 | AD172: 150307.0376 | AE172: 149958.469 | AF172: 151087.6014 | AG172: 312722.7128 | AH172: 314931.9988 | AI172: 317153.3976 | AJ172: 319386.9715 | AK172: 352969.6074 | AL172: 355436.1592 | AM172: 357916.2028 | AN172: 360409.8074 | AO172: 362917.0428 | AP172: 160296.2995 | AQ172: 147648.7518 | AR172: 148733.4928 | AS172: 149824.2298 | AT172: 150920.9937 | AU172: 152023.8156 | AV172: 505641.2918 | AW172: 509101.0629 | AX172: 512579.6714 | AY172: 516077.2141 | AZ172: 519593.7881 | BA172: 523129.4912 | BB172: 444546.1592 | BC172: 449066.1347 | BD172: 452120.4357 | BE172: 455191.3442 | BF172: 458278.9455 | BG172: 461383.3253 | BH172: 464504.5698 | BI172: 549462.172 | BJ172: 553161.6342 | BK172: 556881.1662 | BL172: 560620.8711 | BM172: 564380.8522 | BN172: 501856.8585 | BO172: 504859.42 | BP172: 508235.0648 | BQ172: 341305.4212 | BR172: 343584.8073 | BS172: 345876.5364 | BT172: 425903.467 | BU172: 393748.2394 | BV172: 554389.7432 | BW172: 571845.7544 | BX172: 567125.6368 | BY172: 559516.0622 | BZ172: 584486.7942 | CA172: 586976.4987 | CB172: 562370.3147 | CC172: 573956.9608 | CD172: 556058.408 | CE172: 562314.5795 | CF172: 196489.6116 | CG172: 210014.0175 | CH172: 216043.5556 | CI172: 228022.9569 | CJ172: 217591.5898 | CK172: 250299.3449 | CL172: =CL170-CL171 -> 263160.2555 | CM172: 573533.045 | CN172: 567069.1349 | CO172: 620009.0105 | CP172: 711974.6536 | CQ172: 685048.0595 | CR172: 637973.3487 | CS172: 548777.0042 | CT172: 561703.9258 | CU172: 593932.1847 | CV172: 583201.8427 | CW172: 672512.1316 | CX172: 564555.7046 | CY172: 675681.5797 | CZ172: 681100.1702 | DA172: 718927.5352 | DB172: 696439.4028 | DC172: 731770.1191 | DD172: 609248.238 | DE172: 706957.6405 | DF172: 785327.13 | DG172: 831635.4333 | DH172: 843338.6019 | DI172: 849519.5572 | DJ172: 690481.6099 | DK172: 611389.8933 | DL172: 619409.0221 | DM172: 596578.1618 | DN172: 589200.549 | DO172: 521773.1505 | DP172: 506691.7665 | DQ172: 457608.9089 | DR172: 475819.7069 | DS172: 497271.447 | DT172: 550235.393 | DU172: 553075.1237 | DV172: 539605.6742 | DW172: 595321.3687 | DX172: 600841.2173 | DY172: 596078.5092 | DZ172: 556403.3666 | EA172: 504670.8482 | EB172: 472891.263 | EC172: 508723.3565 | ED172: 537687.2112 | EE172: 535682.47 | EF172: 623350.8436 | EG172: 585161.8784 | EH172: 589124.5033 | EI172: 552992.9256 | EJ172: 570276.2755 | EK172: 552823.0783 | EL172: 648018.0269 | EM172: 548722.6797 | EN172: 575709.5789 | EO172: 513101.7098 | EP172: 549148.4397 | EQ172: 596095.701 | ER172: 615086.2205 | ES172: 580620.2918 | ET172: 586391.1588 | EU172: 450628.5788 | EV172: 454904.7705 | EW172: 405536.6142 | EX172: =EX170-EX171 -> 451927.1078 | EY172: 404675.2172 | EZ172: 468228.5286 | FA172: 457289.385 | FB172: 347207.6062 | FC172: 397390.6373 | FD172: 395449.2928 | FE172: 411273.2361 | FF172: 389145.3394 | FG172: 352297.6122 | FH172: 457239.6087 | FI172: 436842.3006 | FJ172: 481481.0515 | FK172: 455289.5928 | FL172: 492502.528 | FM172: 406667.7144 | FN172: 389019.2401 | FO172: 348279.0646 | FP172: 304948.0745 | FQ172: 393362.4944 | FR172: 382128.6709 | FS172: 376709.1306 | FT172: 356783.9965 | FU172: 360359.0327 | FV172: 369264.2451 | FW172: 390785.9369 | FX172: 315622.7794 | FY172: 404943.5751 | FZ172: 411111.1106 | GA172: 417757.0683 | GB172: 369536.4974 | GC172: 432010.9504 | GD172: 478799.7993 | GE172: 504980.0773 | GF172: 516904.1398 | GG172: 471958.4407 | GH172: 594016.2517 | GI172: 539008.915 | GJ172: 485252.5661 | GK172: 450732.1272 | GL172: 475825.7216 | GM172: 443660.5336 | GN172: 470344.7202 | GO172: 533999.9988 | GP172: 475733.1334 | GQ172: 429531.7293 | GR172: 455235.8944 | GS172: 495763.8988 | GT172: 533043.8565 | GU172: 573204.7479 | GV172: 508719.15 | GW172: 471736.8475 | GX172: 486689.1203 | GY172: 471314.3573 | GZ172: 385708.9176 | HA172: 347303.4278 | HB172: 326203.3499 | HC172: 287918.3298 | HD172: 280984.5693 | HE172: 293641.8024 | HF172: 292167.5382 | HG172: 253740.9345 | HH172: 204916.4539 | HI172: 147059.9061 | HJ172: =HJ170-HJ171 -> 98423.63879 | HK172: 126036.8291 | HL172: 138690.3125 | HM172: 157128.0114 | HN172: 188322.132 | HO172: 185855.5517 | HP172: 287382.2934 | HQ172: 265588.8925 | HR172: 416016.6786 | HS172: 408223.6968 | HT172: 389198.3941 | HU172: 561503.9122 | HV172: 472344.7658 | HW172: 519442.7449 | HX172: 455070.6766 | HY172: 446001.0721 | HZ172: 407521.5212 | IA172: 507155.7651 | IB172: 561446.0995 | IC172: 630153.1351 | ID172: 604178.6052 | IE172: 658284.6913 | IF172: 551886.0215 | IG172: 524140.1877 | IH172: 632134.5317 | II172: 910882.765 | IJ172: 734815.7024 | IK172: 755528.9348 | IL172: 857220.0267 | IM172: 903989.4604 | IN172: 961257.1344 | IO172: 852041.6283 | IP172: 766113.4172 | IQ172: 738886.0385 | IR172: 759254.6201 | IS172: 904304.7673 | IT172: 832752.2093 | IU172: 987897.7832 | IV172: 865491.8892 | IW172: 979557.7021 | IX172: 927911.1777 | IY172: 915950.4056 | IZ172: 874061.7129 | JA172: 916972.3117 | JB172: 1030139.556 | JC172: 942668.3811 | JD172: 852360.0801 | JE172: 995729.0158
C173: Less: Debt Repayment | Y173: =MIN(Y172,Y158) -> 0 | Z173: =MIN(Z172,Z158) -> 174245.8107 | AA173: 175543.5537 | AB173: 176848.4898 | AC173: 178160.6562 | AD173: 150307.0376 | AE173: 149958.469 | AF173: 151087.6014 | AG173: 312722.7128 | AH173: 314931.9988 | AI173: 317153.3976 | AJ173: 319386.9715 | AK173: 352969.6074 | AL173: 355436.1592 | AM173: 357916.2028 | AN173: 360409.8074 | AO173: 362917.0428 | AP173: 160296.2995 | AQ173: 147648.7518 | AR173: 148733.4928 | AS173: 149824.2298 | AT173: 150920.9937 | AU173: 152023.8156 | AV173: 505641.2918 | AW173: 509101.0629 | AX173: 512579.6714 | AY173: 516077.2141 | AZ173: 519593.7881 | BA173: 523129.4912 | BB173: 444546.1592 | BC173: 449066.1347 | BD173: 452120.4357 | BE173: 455191.3442 | BF173: 458278.9455 | BG173: 461383.3253 | BH173: 464504.5698 | BI173: 549462.172 | BJ173: 553161.6342 | BK173: 556881.1662 | BL173: 560620.8711 | BM173: 564380.8522 | BN173: 501856.8585 | BO173: 504859.42 | BP173: 508235.0648 | BQ173: 341305.4212 | BR173: 343584.8073 | BS173: 345876.5364 | BT173: 79118.66025 | BU173: 0 | BV173: 0 | BW173: 0 | BX173: 0 | BY173: 0 | BZ173: 0 | CA173: 0 | CB173: 0 | CC173: 0 | CD173: 0 | CE173: 0 | CF173: 0 | CG173: 0 | CH173: 0 | CI173: 0 | CJ173: 0 | CK173: 0 | CL173: =MIN(CL172,CL158) -> 0 | CM173: 0 | CN173: 0 | CO173: 0 | CP173: 0 | CQ173: 0 | CR173: 0 | CS173: 0 | CT173: 0 | CU173: 0 | CV173: 0 | CW173: 0 | CX173: 0 | CY173: 0 | CZ173: 0 | DA173: 0 | DB173: 0 | DC173: 0 | DD173: 0 | DE173: 0 | DF173: 0 | DG173: 0 | DH173: 0 | DI173: 0 | DJ173: 0 | DK173: 0 | DL173: 0 | DM173: 0 | DN173: 0 | DO173: 0 | DP173: 0 | DQ173: 0 | DR173: 0 | DS173: 0 | DT173: 0 | DU173: 0 | DV173: 0 | DW173: 0 | DX173: 0 | DY173: 0 | DZ173: 0 | EA173: 0 | EB173: 0 | EC173: 0 | ED173: 0 | EE173: 0 | EF173: 0 | EG173: 0 | EH173: 0 | EI173: 0 | EJ173: 0 | EK173: 0 | EL173: 0 | EM173: 0 | EN173: 0 | EO173: 0 | EP173: 0 | EQ173: 0 | ER173: 0 | ES173: 0 | ET173: 0 | EU173: 0 | EV173: 0 | EW173: 0 | EX173: =MIN(EX172,EX158) -> 0 | EY173: 0 | EZ173: 0 | FA173: 0 | FB173: 0 | FC173: 0 | FD173: 0 | FE173: 0 | FF173: 0 | FG173: 0 | FH173: 0 | FI173: 0 | FJ173: 0 | FK173: 0 | FL173: 0 | FM173: 0 | FN173: 0 | FO173: 0 | FP173: 0 | FQ173: 0 | FR173: 0 | FS173: 0 | FT173: 0 | FU173: 0 | FV173: 0 | FW173: 0 | FX173: 0 | FY173: 0 | FZ173: 0 | GA173: 0 | GB173: 0 | GC173: 0 | GD173: 0 | GE173: 0 | GF173: 0 | GG173: 0 | GH173: 0 | GI173: 0 | GJ173: 0 | GK173: 0 | GL173: 0 | GM173: 0 | GN173: 0 | GO173: 0 | GP173: 0 | GQ173: 0 | GR173: 0 | GS173: 0 | GT173: 0 | GU173: 0 | GV173: 0 | GW173: 0 | GX173: 0 | GY173: 0 | GZ173: 0 | HA173: 0 | HB173: 0 | HC173: 0 | HD173: 0 | HE173: 0 | HF173: 0 | HG173: 0 | HH173: 0 | HI173: 0 | HJ173: =MIN(HJ172,HJ158) -> 0 | HK173: 0 | HL173: 0 | HM173: 0 | HN173: 0 | HO173: 0 | HP173: 0 | HQ173: 0 | HR173: 0 | HS173: 0 | HT173: 0 | HU173: 0 | HV173: 0 | HW173: 0 | HX173: 0 | HY173: 0 | HZ173: 0 | IA173: 0 | IB173: 0 | IC173: 0 | ID173: 0 | IE173: 0 | IF173: 0 | IG173: 0 | IH173: 0 | II173: 0 | IJ173: 0 | IK173: 0 | IL173: 0 | IM173: 0 | IN173: 0 | IO173: 0 | IP173: 0 | IQ173: 0 | IR173: 0 | IS173: 0 | IT173: 0 | IU173: 0 | IV173: 0 | IW173: 0 | IX173: 0 | IY173: 0 | IZ173: 0 | JA173: 0 | JB173: 0 | JC173: 0 | JD173: 0 | JE173: 0
C174: Cash Flow After Debt Service | Y174: =Y172-Y173 -> 0 | Z174: =Z172-Z173 -> 0 | AA174: 0 | AB174: 0 | AC174: 0 | AD174: 0 | AE174: 0 | AF174: 0 | AG174: 0 | AH174: 0 | AI174: 0 | AJ174: 0 | AK174: 0 | AL174: 0 | AM174: 0 | AN174: 0 | AO174: 0 | AP174: 0 | AQ174: 0 | AR174: 0 | AS174: 0 | AT174: 0 | AU174: 0 | AV174: 0 | AW174: 0 | AX174: 0 | AY174: 0 | AZ174: 0 | BA174: 0 | BB174: 0 | BC174: 0 | BD174: 0 | BE174: 0 | BF174: 0 | BG174: 0 | BH174: 0 | BI174: 0 | BJ174: 0 | BK174: 0 | BL174: 0 | BM174: 0 | BN174: 0 | BO174: 0 | BP174: 0 | BQ174: 0 | BR174: 0 | BS174: 0 | BT174: 346784.8068 | BU174: 393748.2394 | BV174: 554389.7432 | BW174: 571845.7544 | BX174: 567125.6368 | BY174: 559516.0622 | BZ174: 584486.7942 | CA174: 586976.4987 | CB174: 562370.3147 | CC174: 573956.9608 | CD174: 556058.408 | CE174: 562314.5795 | CF174: 196489.6116 | CG174: 210014.0175 | CH174: 216043.5556 | CI174: 228022.9569 | CJ174: 217591.5898 | CK174: 250299.3449 | CL174: =CL172-CL173 -> 263160.2555 | CM174: 573533.045 | CN174: 567069.1349 | CO174: 620009.0105 | CP174: 711974.6536 | CQ174: 685048.0595 | CR174: 637973.3487 | CS174: 548777.0042 | CT174: 561703.9258 | CU174: 593932.1847 | CV174: 583201.8427 | CW174: 672512.1316 | CX174: 564555.7046 | CY174: 675681.5797 | CZ174: 681100.1702 | DA174: 718927.5352 | DB174: 696439.4028 | DC174: 731770.1191 | DD174: 609248.238 | DE174: 706957.6405 | DF174: 785327.13 | DG174: 831635.4333 | DH174: 843338.6019 | DI174: 849519.5572 | DJ174: 690481.6099 | DK174: 611389.8933 | DL174: 619409.0221 | DM174: 596578.1618 | DN174: 589200.549 | DO174: 521773.1505 | DP174: 506691.7665 | DQ174: 457608.9089 | DR174: 475819.7069 | DS174: 497271.447 | DT174: 550235.393 | DU174: 553075.1237 | DV174: 539605.6742 | DW174: 595321.3687 | DX174: 600841.2173 | DY174: 596078.5092 | DZ174: 556403.3666 | EA174: 504670.8482 | EB174: 472891.263 | EC174: 508723.3565 | ED174: 537687.2112 | EE174: 535682.47 | EF174: 623350.8436 | EG174: 585161.8784 | EH174: 589124.5033 | EI174: 552992.9256 | EJ174: 570276.2755 | EK174: 552823.0783 | EL174: 648018.0269 | EM174: 548722.6797 | EN174: 575709.5789 | EO174: 513101.7098 | EP174: 549148.4397 | EQ174: 596095.701 | ER174: 615086.2205 | ES174: 580620.2918 | ET174: 586391.1588 | EU174: 450628.5788 | EV174: 454904.7705 | EW174: 405536.6142 | EX174: =EX172-EX173 -> 451927.1078 | EY174: 404675.2172 | EZ174: 468228.5286 | FA174: 457289.385 | FB174: 347207.6062 | FC174: 397390.6373 | FD174: 395449.2928 | FE174: 411273.2361 | FF174: 389145.3394 | FG174: 352297.6122 | FH174: 457239.6087 | FI174: 436842.3006 | FJ174: 481481.0515 | FK174: 455289.5928 | FL174: 492502.528 | FM174: 406667.7144 | FN174: 389019.2401 | FO174: 348279.0646 | FP174: 304948.0745 | FQ174: 393362.4944 | FR174: 382128.6709 | FS174: 376709.1306 | FT174: 356783.9965 | FU174: 360359.0327 | FV174: 369264.2451 | FW174: 390785.9369 | FX174: 315622.7794 | FY174: 404943.5751 | FZ174: 411111.1106 | GA174: 417757.0683 | GB174: 369536.4974 | GC174: 432010.9504 | GD174: 478799.7993 | GE174: 504980.0773 | GF174: 516904.1398 | GG174: 471958.4407 | GH174: 594016.2517 | GI174: 539008.915 | GJ174: 485252.5661 | GK174: 450732.1272 | GL174: 475825.7216 | GM174: 443660.5336 | GN174: 470344.7202 | GO174: 533999.9988 | GP174: 475733.1334 | GQ174: 429531.7293 | GR174: 455235.8944 | GS174: 495763.8988 | GT174: 533043.8565 | GU174: 573204.7479 | GV174: 508719.15 | GW174: 471736.8475 | GX174: 486689.1203 | GY174: 471314.3573 | GZ174: 385708.9176 | HA174: 347303.4278 | HB174: 326203.3499 | HC174: 287918.3298 | HD174: 280984.5693 | HE174: 293641.8024 | HF174: 292167.5382 | HG174: 253740.9345 | HH174: 204916.4539 | HI174: 147059.9061 | HJ174: =HJ172-HJ173 -> 98423.63879 | HK174: 126036.8291 | HL174: 138690.3125 | HM174: 157128.0114 | HN174: 188322.132 | HO174: 185855.5517 | HP174: 287382.2934 | HQ174: 265588.8925 | HR174: 416016.6786 | HS174: 408223.6968 | HT174: 389198.3941 | HU174: 561503.9122 | HV174: 472344.7658 | HW174: 519442.7449 | HX174: 455070.6766 | HY174: 446001.0721 | HZ174: 407521.5212 | IA174: 507155.7651 | IB174: 561446.0995 | IC174: 630153.1351 | ID174: 604178.6052 | IE174: 658284.6913 | IF174: 551886.0215 | IG174: 524140.1877 | IH174: 632134.5317 | II174: 910882.765 | IJ174: 734815.7024 | IK174: 755528.9348 | IL174: 857220.0267 | IM174: 903989.4604 | IN174: 961257.1344 | IO174: 852041.6283 | IP174: 766113.4172 | IQ174: 738886.0385 | IR174: 759254.6201 | IS174: 904304.7673 | IT174: 832752.2093 | IU174: 987897.7832 | IV174: 865491.8892 | IW174: 979557.7021 | IX174: 927911.1777 | IY174: 915950.4056 | IZ174: 874061.7129 | JA174: 916972.3117 | JB174: 1030139.556 | JC174: 942668.3811 | JD174: 852360.0801 | JE174: 995729.0158
